Workbook

Sheet Ranking
B1: =Divisions!$B2 -> Afdeling/Division 1 | X1: Pnr.
A2: R | B2: TEAM | C2: =MATCH("XX",C3:C14,0) -> 1 | D2: 2 | E2: 3 | F2: 4 | G2: 5 | H2: 6 | I2: 7 | J2: 8 | K2: 9 | L2: 10 | M2: 11 | N2: 12 | O2: BP | P2: MP | Q2: #
A3: 1 | B3: =Divisions!B5 -> 303 KBSK Brugge 1 | C3: XX | D3: =Divisions!G5 -> 4 | E3: =Divisions!E5 -> 4.5 | F3: =Divisions!M5 -> 6.5 | G3: =Divisions!I5 -> 5 | H3: =Divisions!C5 -> 6.5 | I3: =Divisions!K5 -> 5 | J3: =Divisions!F5 -> 6 | K3: =Divisions!D5 -> 5 | L3: =Divisions!H5 -> 7.5 | M3: =Divisions!J5 -> 7.5 | N3: =Divisions!L5 -> 8 | O3: =SUM(C3:N3) -> 65.5 | P3: =SUM(Divisions!O5:Y5)*2 -> 21 | Q3: =COUNT(C3:N3) -> 11 | X3: 1
A4: =IF(O4=O3, IF(P4=P3,"",2),2) -> 2 | B4: =Divisions!B7 -> 627 Wirtzfeld 1 | C4: =Divisions!G7 -> 4 | D4: XX | E4: =Divisions!I7 -> 7.5 | F4: =Divisions!D7 -> 3.5 | G4: =Divisions!K7 -> 4.5 | H4: =Divisions!E7 -> 6.5 | I4: =Divisions!M7 -> 5 | J4: =Divisions!H7 -> 6.5 | K4: =Divisions!F7 -> 7.5 | L4: =Divisions!J7 -> 6 | M4: =Divisions!L7 -> 4 | N4: =Divisions!C7 -> 7.5 | O4: 62.5 | P4: =SUM(Divisions!O7:Y7)*2 -> 18 | Q4: 11 | X4: 7
A5: =IF(O5=O4, IF(P5=P4,"",3),3) -> 3 | B5: =Divisions!B15 -> 432 Wetteren 1 | C5: =Divisions!E15 -> 3.5 | D5: =Divisions!I15 -> 0.5 | E5: XX | F5: =Divisions!J15 -> 7 | G5: =Divisions!M15 -> 6 | H5: =Divisions!L15 -> 4.5 | I5: =Divisions!F15 -> 4.5 | J5: =Divisions!G15 -> 5 | K5: =Divisions!C15 -> 4.5 | L5: =Divisions!K15 -> 7.5 | M5: =Divisions!D15 -> 6.5 | N5: =Divisions!H15 -> 7.5 | O5: 57.0 | P5: =SUM(Divisions!O15:Y15)*2 -> 18 | Q5: 11 | X5: 11
A6: =IF(O6=O5, IF(P6=P5,"",4),4) -> 4 | B6: =Divisions!B13 -> 471 Wachtebeke 1 | C6: =Divisions!M13 -> 1.5 | D6: =Divisions!D13 -> 4.5 | E6: =Divisions!J13 -> 1 | F6: XX | G6: =Divisions!F13 -> 3.5 | H6: =Divisions!K13 -> 5 | I6: =Divisions!H13 -> 6.5 | J6: =Divisions!C13 -> 5 | K6: =Divisions!L13 -> 7.5 | L6: =Divisions!E13 -> 4.5 | M6: =Divisions!G13 -> 4 | N6: =Divisions!I13 -> 5.5 | O6: 48.5 | P6: =SUM(Divisions!O13:Y13)*2 -> 15 | Q6: 11 | X6: 12
A7: =IF(O7=O6, IF(P7=P6,"",5),5) -> 5 | B7: =Divisions!B9 -> 607 Roch. Eupen-Kelmis 1 | C7: =Divisions!I9 -> 3 | D7: =Divisions!K9 -> 3.5 | E7: =Divisions!M9 -> 2 | F7: =Divisions!F9 -> 4.5 | G7: XX | H7: =Divisions!G9 -> 5 | I7: =Divisions!D9 -> 6 | J7: =Divisions!J9 -> 6.5 | K7: =Divisions!H9 -> 4.5 | L7: =Divisions!L9 -> 3.5 | M7: =Divisions!C9 -> 6.5 | N7: =Divisions!E9 -> 5.5 | O7: 50.5 | P7: =SUM(Divisions!O9:Y9)*2 -> 14 | Q7: 11 | X7: 2
A8: =IF(O8=O7, IF(P8=P7,"",6),6) -> 6 | B8: =Divisions!B14 -> 401 KGSRL 1 | C8: =Divisions!C14 -> 1.5 | D8: =Divisions!E14 -> 1.5 | E8: =Divisions!L14 -> 3.5 | F8: =Divisions!K14 -> 3 | G8: =Divisions!G14 -> 3 | H8: XX | I8: =Divisions!I14 -> 5.5 | J8: =Divisions!D14 -> 4 | K8: =Divisions!M14 -> 6 | L8: =Divisions!F14 -> 5.5 | M8: =Divisions!H14 -> 5 | N8: =Divisions!J14 -> 5.5 | O8: 44.0 | P8: =SUM(Divisions!O14:Y14)*2 -> 11 | Q8: 11 | X8: 5
A9: =IF(O9=O8, IF(P9=P8,"",7),7) -> 7 | B9: =Divisions!B11 -> 166 TSM Mechelen 1 | C9: =Divisions!K11 -> 3 | D9: =Divisions!M11 -> 3 | E9: =Divisions!F11 -> 3.5 | F9: =Divisions!H11 -> 1.5 | G9: =Divisions!D11 -> 2 | H9: =Divisions!I11 -> 2.5 | I9: XX | J9: =Divisions!L11 -> 3 | K9: =Divisions!J11 -> 6 | L9: =Divisions!C11 -> 5.5 | M9: =Divisions!E11 -> 4.5 | N9: =Divisions!G11 -> 7 | O9: 41.5 | P9: =SUM(Divisions!O11:Y11)*2 -> 8 | Q9: 11 | X9: 9
A10: =IF(O10=O9, IF(P10=P9,"",8),8) -> 8 | B10: =Divisions!B6 -> 601 CRELEL Liège 1 | C10: =Divisions!F6 -> 2 | D10: =Divisions!H6 -> 1.5 | E10: =Divisions!G6 -> 3 | F10: =Divisions!C6 -> 3 | G10: =Divisions!J6 -> 1.5 | H10: =Divisions!D6 -> 4 | I10: =Divisions!L6 -> 5 | J10: XX | K10: =Divisions!E6 -> 5 | L10: =Divisions!I6 -> 3.5 | M10: =Divisions!K6 -> 5.5 | N10: =Divisions!M6 -> 2 | O10: 36.0 | P10: =SUM(Divisions!O6:Y6)*2 -> 7 | Q10: 11 | X10: 4
A11: =IF(O11=O10, IF(P11=P10,"",9),9) -> 9 | B11: =Divisions!B4 -> 621 T.A.L. 1 | C11: =Divisions!D4 -> 3 | D11: =Divisions!F4 -> 0.5 | E11: =Divisions!C4 -> 3.5 | F11: =Divisions!L4 -> 0.5 | G11: =Divisions!H4 -> 3.5 | H11: =Divisions!M4 -> 2 | I11: =Divisions!J4 -> 2 | J11: =Divisions!E4 -> 3 | K11: XX | L11: =Divisions!G4 -> 4.5 | M11: =Divisions!I4 -> 7 | N11: =Divisions!K4 -> 4.5 | O11: 34.0 | P11: =SUM(Divisions!O4:Y4)*2 -> 6 | Q11: 11 | X11: 6
A12: =IF(O12=O11, IF(P12=P11,"",10),10) -> 10 | B12: =Divisions!B8 -> 301 KOSK Oostende 1 | C12: =Divisions!H8 -> 0.5 | D12: =Divisions!J8 -> 2 | E12: =Divisions!K8 -> 0.5 | F12: =Divisions!E8 -> 3.5 | G12: =Divisions!L8 -> 4.5 | H12: =Divisions!F8 -> 2.5 | I12: =Divisions!C8 -> 2.5 | J12: =Divisions!I8 -> 4.5 | K12: =Divisions!G8 -> 3.5 | L12: XX | M12: =Divisions!M8 -> 3.5 | N12: =Divisions!D8 -> 4.5 | O12: 32.0 | P12: =SUM(Divisions!O8:Y8)*2 -> 6 | Q12: 11 | X12: 3
A13: =IF(O13=O12, IF(P13=P12,"",11),11) -> 11 | B13: =Divisions!B10 -> 501 CREC Charleroi 1 | C13: =Divisions!J10 -> 0.5 | D13: =Divisions!L10 -> 4 | E13: =Divisions!D10 -> 1.5 | F13: =Divisions!G10 -> 4 | G13: =Divisions!C10 -> 1.5 | H13: =Divisions!H10 -> 3 | I13: =Divisions!E10 -> 3.5 | J13: =Divisions!K10 -> 2.5 | K13: =Divisions!I10 -> 1 | L13: =Divisions!M10 -> 4.5 | M13: XX | N13: =Divisions!F10 -> 3.5 | O13: 29.5 | P13: =SUM(Divisions!O10:Y10)*2 -> 4 | Q13: 11 | X13: 10
A14: =IF(O14=O13, IF(P14=P13,"",12),12) -> 12 | B14: =Divisions!B12 -> 174 Brasschaat 1 | C14: =Divisions!L12 -> 0 | D14: =Divisions!C12 -> 0.5 | E14: =Divisions!H12 -> 0.5 | F14: =Divisions!I12 -> 2.5 | G14: =Divisions!E12 -> 2.5 | H14: =Divisions!J12 -> 2.5 | I14: =Divisions!G12 -> 1 | J14: =Divisions!M12 -> 6 | K14: =Divisions!K12 -> 3.5 | L14: =Divisions!D12 -> 3.5 | M14: =Divisions!F12 -> 4.5 | N14: XX | O14: 27.0 | P14: =SUM(Divisions!O12:Y12)*2 -> 4 | Q14: 11 | X14: 8
B16: =Divisions!$B17 -> Afdeling/Division 2A
A17: R | B17: TEAM | C17: =MATCH("XX",C18:C29,0) -> 1 | D17: 2 | E17: 3 | F17: 4 | G17: 5 | H17: 6 | I17: 7 | J17: 8 | K17: 9 | L17: 10 | M17: 11 | N17: 12 | O17: BP | P17: MP | Q17: #
A18: 1 | B18: =Divisions!B19 -> 230 Leuven Centraal 1 | C18: XX | D18: =Divisions!J19 -> 6.5 | E18: =Divisions!I19 -> 6.5 | F18: =Divisions!C19 -> 6 | G18: =Divisions!M19 -> 4.5 | H18: =Divisions!K19 -> 5 | I18: =Divisions!G19 -> 6.5 | J18: =Divisions!D19 -> 5.5 | K18: =Divisions!L19 -> 6.5 | L18: =Divisions!F19 -> 6 | M18: =Divisions!H19 -> 7 | N18: =Divisions!E19 -> 7.5 | O18: =SUM(C18:N18) -> 67.5 | P18: =SUM(Divisions!O19:Y19)*2 -> 22 | Q18: =COUNT(C18:N18) -> 11 | X18: 4
A19: =IF(O19=O18, IF(P19=P18,"",2),2) -> 2 | B19: =Divisions!B26 -> 901 Namur Echecs 1 | C19: =Divisions!J26 -> 1.5 | D19: XX | E19: =Divisions!E26 -> 3 | F19: =Divisions!F26 -> 6 | G19: =Divisions!I26 -> 5.5 | H19: =Divisions!G26 -> 7.5 | I19: =Divisions!C26 -> 4 | J19: =Divisions!K26 -> 4 | K19: =Divisions!H26 -> 6 | L19: =Divisions!M26 -> 6 | M19: =Divisions!D26 -> 6.5 | N19: =Divisions!L26 -> 3.5 | O19: 53.5 | P19: =SUM(Divisions!O26:Y26)*2 -> 14 | Q19: 11 | X19: 5
A20: =IF(O20=O19, IF(P20=P19,"",3),3) -> 3 | B20: =Divisions!B25 -> 952 CEW 1 | C20: =Divisions!I25 -> 1.5 | D20: =Divisions!E25 -> 5 | E20: XX | F20: =Divisions!D25 -> 4 | G20: =Divisions!H25 -> 5 | H20: =Divisions!F25 -> 4.5 | I20: =Divisions!M25 -> 2 | J20: =Divisions!J25 -> 5 | K20: =Divisions!G25 -> 3 | L20: =Divisions!L25 -> 6.5 | M20: =Divisions!C25 -> 4 | N20: =Divisions!K25 -> 5.5 | O20: 46.0 | P20: =SUM(Divisions!O25:Y25)*2 -> 14 | Q20: 11 | X20: 6
A21: =IF(O21=O20, IF(P21=P20,"",4),4) ->  | B21: =Divisions!B30 -> 239 Boitsfort 1 | C21: =Divisions!C30 -> 2 | D21: =Divisions!F30 -> 2 | E21: =Divisions!D30 -> 4 | F21: XX | G21: =Divisions!L30 -> 4 | H21: =Divisions!H30 -> 6.5 | I21: =Divisions!K30 -> 6 | J21: =Divisions!E30 -> 5 | K21: =Divisions!J30 -> 4.5 | L21: =Divisions!I30 -> 5 | M21: =Divisions!M30 -> 2.5 | N21: =Divisions!G30 -> 4.5 | O21: 46.0 | P21: =SUM(Divisions!O30:Y30)*2 -> 14 | Q21: 11 | X21: 8
A22: =IF(O22=O21, IF(P22=P21,"",5),5) -> 5 | B22: =Divisions!B29 -> 231 Dolle Toren Leuven 1 | C22: =Divisions!M29 -> 3.5 | D22: =Divisions!I29 -> 2.5 | E22: =Divisions!H29 -> 3 | F22: =Divisions!L29 -> 4 | G22: XX | H22: =Divisions!J29 -> 3.5 | I22: =Divisions!F29 -> 5 | J22: =Divisions!C29 -> 6 | K22: =Divisions!K29 -> 4 | L22: =Divisions!E29 -> 6 | M22: =Divisions!G29 -> 5.5 | N22: =Divisions!D29 -> 6.5 | O22: 49.5 | P22: =SUM(Divisions!O29:Y29)*2 -> 12 | Q22: 11 | X22: 9
A23: =IF(O23=O22, IF(P23=P22,"",6),6) -> 6 | B23: =Divisions!B27 -> 176 Westerlo 1 | C23: =Divisions!K27 -> 3 | D23: =Divisions!G27 -> 0.5 | E23: =Divisions!F27 -> 3.5 | F23: =Divisions!H27 -> 1.5 | G23: =Divisions!J27 -> 4.5 | H23: XX | I23: =Divisions!D27 -> 7.5 | J23: =Divisions!L27 -> 5 | K23: =Divisions!I27 -> 4.5 | L23: =Divisions!C27 -> 2.5 | M23: =Divisions!E27 -> 4 | N23: =Divisions!M27 -> 7.5 | O23: 44.0 | P23: =SUM(Divisions!O27:Y27)*2 -> 11 | Q23: 11 | X23: 1
A24: =IF(O24=O23, IF(P24=P23,"",7),7) -> 7 | B24: =Divisions!B23 -> 278 Pantin 1 | C24: =Divisions!G23 -> 1.5 | D24: =Divisions!C23 -> 4 | E24: =Divisions!M23 -> 6 | F24: =Divisions!K23 -> 2 | G24: =Divisions!F23 -> 3 | H24: =Divisions!D23 -> 0.5 | I24: XX | J24: =Divisions!H23 -> 6 | K24: =Divisions!E23 -> 4 | L24: =Divisions!J23 -> 4 | M24: =Divisions!L23 -> 2.5 | N24: =Divisions!I23 -> 5 | O24: 38.5 | P24: =SUM(Divisions!O23:Y23)*2 -> 9 | Q24: 11 | X24: 2
A25: =IF(O25=O24, IF(P25=P24,"",8),8) -> 8 | B25: =Divisions!B20 -> 514 MCC 1 | C25: =Divisions!D20 -> 2.5 | D25: =Divisions!K20 -> 4 | E25: =Divisions!J20 -> 3 | F25: =Divisions!E20 -> 3 | G25: =Divisions!C20 -> 2 | H25: =Divisions!L20 -> 3 | I25: =Divisions!H20 -> 2 | J25: XX | K25: =Divisions!M20 -> 5.5 | L25: =Divisions!G20 -> 5 | M25: =Divisions!I20 -> 6 | N25: =Divisions!F20 -> 4 | O25: 40.0 | P25: =SUM(Divisions!O20:Y20)*2 -> 8 | Q25: 11 | X25: 7
A26: =IF(O26=O25, IF(P26=P25,"",9),9) -> 9 | B26: =Divisions!B28 -> 618 Echiquier Mosan 1 | C26: =Divisions!L28 -> 1.5 | D26: =Divisions!H28 -> 2 | E26: =Divisions!G28 -> 5 | F26: =Divisions!J28 -> 3.5 | G26: =Divisions!K28 -> 4 | H26: =Divisions!I28 -> 3.5 | I26: =Divisions!E28 -> 4 | J26: =Divisions!M28 -> 2.5 | K26: XX | L26: =Divisions!D28 -> 2 | M26: =Divisions!F28 -> 6.5 | N26: =Divisions!C28 -> 5 | O26: 39.5 | P26: =SUM(Divisions!O28:Y28)*2 -> 8 | Q26: 11 | X26: 3
A27: =IF(O27=O26, IF(P27=P26,"",10),10) -> 10 | B27: =Divisions!B22 -> 401 KGSRL 2 | C27: =Divisions!F22 -> 2 | D27: =Divisions!M22 -> 2 | E27: =Divisions!L22 -> 1.5 | F27: =Divisions!I22 -> 3 | G27: =Divisions!E22 -> 2 | H27: =Divisions!C22 -> 5.5 | I27: =Divisions!J22 -> 4 | J27: =Divisions!G22 -> 3 | K27: =Divisions!D22 -> 6 | L27: XX | M27: =Divisions!K22 -> 5 | N27: =Divisions!H22 -> 4 | O27: 38.0 | P27: =SUM(Divisions!O22:Y22)*2 -> 8 | Q27: 11 | X27: 10
A28: =IF(O28=O27, IF(P28=P27,"",11),11) -> 11 | B28: =Divisions!B24 -> 201 CREB Bruxelles 1 | C28: =Divisions!H24 -> 1 | D28: =Divisions!D24 -> 1.5 | E28: =Divisions!C24 -> 4 | F28: =Divisions!M24 -> 5.5 | G28: =Divisions!G24 -> 2.5 | H28: =Divisions!E24 -> 4 | I28: =Divisions!L24 -> 5.5 | J28: =Divisions!I24 -> 2 | K28: =Divisions!F24 -> 1.5 | L28: =Divisions!K24 -> 3 | M28: XX | N28: =Divisions!J24 -> 5 | O28: 35.5 | P28: =SUM(Divisions!O24:Y24)*2 -> 8 | Q28: 11 | X28: 11
A29: =IF(O29=O28, IF(P29=P28,"",12),12) -> 12 | B29: =Divisions!B21 -> 601 CRELEL Liège 2 | C29: =Divisions!E21 -> 0.5 | D29: =Divisions!L21 -> 4.5 | E29: =Divisions!K21 -> 2.5 | F29: =Divisions!G21 -> 3.5 | G29: =Divisions!D21 -> 1.5 | H29: =Divisions!M21 -> 0.5 | I29: =Divisions!I21 -> 3 | J29: =Divisions!F21 -> 4 | K29: =Divisions!C21 -> 3 | L29: =Divisions!H21 -> 4 | M29: =Divisions!J21 -> 3 | N29: XX | O29: 30.0 | P29: =SUM(Divisions!O21:Y21)*2 -> 4 | Q29: 11 | X29: 12
B31: =Divisions!$B32 -> Afdeling/Division 2B
A32: R | B32: TEAM | C32: =MATCH("XX",C33:C44,0) -> 1 | D32: 2 | E32: 3 | F32: 4 | G32: 5 | H32: 6 | I32: 7 | J32: 8 | K32: 9 | L32: 10 | M32: 11 | N32: 12 | O32: BP | P32: MP | Q32: #
A33: 1 | B33: =Divisions!B42 -> 402 Jean Jaurès Gent 1 | C33: XX | D33: =Divisions!F42 -> 5 | E33: =Divisions!J42 -> 4 | F33: =Divisions!I42 -> 5.5 | G33: =Divisions!E42 -> 4.5 | H33: =Divisions!C42 -> 5.5 | I33: =Divisions!L42 -> 1 | J33: =Divisions!M42 -> 4.5 | K33: =Divisions!G42 -> 6 | L33: =Divisions!K42 -> 5 | M33: =Divisions!H42 -> 6.5 | N33: =Divisions!D42 -> 6 | O33: =SUM(C33:N33) -> 53.5 | P33: =SUM(Divisions!O42:Y42)*2 -> 19 | Q33: =COUNT(C33:N33) -> 11 | X33: 10
A34: =IF(O34=O33, IF(P34=P33,"",2),2) -> 2 | B34: =Divisions!B40 -> 124 Deurne 1 | C34: =Divisions!F40 -> 3 | D34: XX | E34: =Divisions!H40 -> 4.5 | F34: =Divisions!G40 -> 4.5 | G34: =Divisions!C40 -> 2.5 | H34: =Divisions!L40 -> 4.5 | I34: =Divisions!J40 -> 5.5 | J34: =Divisions!K40 -> 3.5 | K34: =Divisions!E40 -> 5 | L34: =Divisions!I40 -> 3 | M34: =Divisions!D40 -> 5.5 | N34: =Divisions!M40 -> 4.5 | O34: 46.0 | P34: =SUM(Divisions!O40:Y40)*2 -> 14 | Q34: 11 | X34: 9
A35: =IF(O35=O34, IF(P35=P34,"",3),3) -> 3 | B35: =Divisions!B44 -> 261 Opwijk 1 | C35: =Divisions!J44 -> 4 | D35: =Divisions!H44 -> 3.5 | E35: XX | F35: =Divisions!K44 -> 4 | G35: =Divisions!G44 -> 4.5 | H35: =Divisions!E44 -> 3.5 | I35: =Divisions!C44 -> 4.5 | J35: =Divisions!D44 -> 4 | K35: =Divisions!I44 -> 1.5 | L35: =Divisions!M44 -> 5 | M35: =Divisions!L44 -> 7 | N35: =Divisions!F44 -> 5.5 | O35: 47.0 | P35: =SUM(Divisions!O44:Y44)*2 -> 13 | Q35: 11 | X35: 2
A36: =IF(O36=O35, IF(P36=P35,"",4),4) -> 4 | B36: =Divisions!B43 -> 209 The Belgian CC 1 | C36: =Divisions!I43 -> 2.5 | D36: =Divisions!G43 -> 3.5 | E36: =Divisions!K43 -> 4 | F36: XX | G36: =Divisions!F43 -> 4.5 | H36: =Divisions!D43 -> 4 | I36: =Divisions!M43 -> 4.5 | J36: =Divisions!C43 -> 4 | K36: =Divisions!H43 -> 6 | L36: =Divisions!L43 -> 4 | M36: =Divisions!J43 -> 4 | N36: =Divisions!E43 -> 4.5 | O36: 45.5 | P36: =SUM(Divisions!O43:Y43)*2 -> 13 | Q36: 11 | X36: 12
A37: =IF(O37=O36, IF(P37=P36,"",5),5) -> 5 | B37: =Divisions!B39 -> 114 Mechelen 1 | C37: =Divisions!E39 -> 3.5 | D37: =Divisions!C39 -> 5.5 | E37: =Divisions!G39 -> 3.5 | F37: =Divisions!F39 -> 3.5 | G37: XX | H37: =Divisions!K39 -> 4.5 | I37: =Divisions!I39 -> 5 | J37: =Divisions!J39 -> 4.5 | K37: =Divisions!D39 -> 2.5 | L37: =Divisions!H39 -> 6 | M37: =Divisions!M39 -> 5.5 | N37: =Divisions!L39 -> 3.5 | O37: 47.5 | P37: =SUM(Divisions!O39:Y39)*2 -> 12 | Q37: 11 | X37: 1
A38: =IF(O38=O37, IF(P38=P37,"",6),6) -> 6 | B38: =Divisions!B37 -> 226 Europchess 1 | C38: =Divisions!C37 -> 2.5 | D38: =Divisions!L37 -> 3.5 | E38: =Divisions!E37 -> 4.5 | F38: =Divisions!D37 -> 4 | G38: =Divisions!K37 -> 3.5 | H38: XX | I38: =Divisions!G37 -> 6 | J38: =Divisions!H37 -> 4 | K38: =Divisions!M37 -> 5 | L38: =Divisions!F37 -> 4 | M38: =Divisions!I37 -> 4 | N38: =Divisions!J37 -> 5.5 | O38: 46.5 | P38: =SUM(Divisions!O37:Y37)*2 -> 12 | Q38: 11 | X38: 11
A39: =IF(O39=O38, IF(P39=P38,"",7),7) -> 7 | B39: =Divisions!B35 -> 303 KBSK Brugge 2 | C39: =Divisions!L35 -> 7 | D39: =Divisions!J35 -> 2.5 | E39: =Divisions!C35 -> 3.5 | F39: =Divisions!M35 -> 3.5 | G39: =Divisions!I35 -> 3 | H39: =Divisions!G35 -> 2 | I39: XX | J39: =Divisions!F35 -> 4.5 | K39: =Divisions!K35 -> 4.5 | L39: =Divisions!D35 -> 4.5 | M39: =Divisions!E35 -> 5.5 | N39: =Divisions!H35 -> 5 | O39: 45.5 | P39: =SUM(Divisions!O35:Y35)*2 -> 12 | Q39: 11 | X39: 8
A40: =IF(O40=O39, IF(P40=P39,"",8),8) -> 8 | B40: =Divisions!B36 -> 109 Borgerhout 1 | C40: =Divisions!M36 -> 3.5 | D40: =Divisions!K36 -> 4.5 | E40: =Divisions!D36 -> 4 | F40: =Divisions!C36 -> 4 | G40: =Divisions!J36 -> 3.5 | H40: =Divisions!H36 -> 4 | I40: =Divisions!F36 -> 3.5 | J40: XX | K40: =Divisions!L36 -> 2 | L40: =Divisions!E36 -> 4.5 | M40: =Divisions!G36 -> 6.5 | N40: =Divisions!I36 -> 5.5 | O40: 45.5 | P40: =SUM(Divisions!O36:Y36)*2 -> 11 | Q40: 11 | X40: 3
A41: =IF(O41=O40, IF(P41=P40,"",9),9) -> 9 | B41: =Divisions!B41 -> 436 LSV-Chesspirant 1 | C41: =Divisions!G41 -> 2 | D41: =Divisions!E41 -> 3 | E41: =Divisions!I41 -> 6.5 | F41: =Divisions!H41 -> 2 | G41: =Divisions!D41 -> 5.5 | H41: =Divisions!M41 -> 3 | I41: =Divisions!K41 -> 3.5 | J41: =Divisions!L41 -> 6 | K41: XX | L41: =Divisions!J41 -> 3 | M41: =Divisions!F41 -> 7 | N41: =Divisions!C41 -> 4 | O41: 45.5 | P41: =SUM(Divisions!O41:Y41)*2 -> 9 | Q41: 11 | X41: 7
A42: =IF(O42=O41, IF(P42=P41,"",10),10) -> 10 | B42: =Divisions!B34 -> 462 Zottegem 1 | C42: =Divisions!K34 -> 3 | D42: =Divisions!I34 -> 5 | E42: =Divisions!M34 -> 3 | F42: =Divisions!L34 -> 4 | G42: =Divisions!H34 -> 2 | H42: =Divisions!F34 -> 4 | I42: =Divisions!D34 -> 3.5 | J42: =Divisions!E34 -> 3.5 | K42: =Divisions!J34 -> 5 | L42: XX | M42: =Divisions!C34 -> 3.5 | N42: =Divisions!G34 -> 2.5 | O42: 39.0 | P42: =SUM(Divisions!O34:Y34)*2 -> 6 | Q42: 11 | X42: 6
A43: =IF(O43=O42, IF(P43=P42,"",11),11) -> 11 | B43: =Divisions!B45 -> 143 Boey Temse 1 | C43: =Divisions!H45 -> 1.5 | D43: =Divisions!D45 -> 2.5 | E43: =Divisions!L45 -> 1 | F43: =Divisions!J45 -> 4 | G43: =Divisions!M45 -> 2.5 | H43: =Divisions!I45 -> 4 | I43: =Divisions!E45 -> 2.5 | J43: =Divisions!G45 -> 1.5 | K43: =Divisions!F45 -> 1 | L43: =Divisions!C45 -> 4.5 | M43: XX | N43: =Divisions!K45 -> 5 | O43: 30.0 | P43: =SUM(Divisions!O45:Y45)*2 -> 6 | Q43: 11 | X43: 5
A44: =IF(O44=O43, IF(P44=P43,"",12),12) -> 12 | B44: =Divisions!B38 -> 401 KGSRL 3 | C44: =Divisions!D38 -> 2 | D44: =Divisions!M38 -> 3.5 | E44: =Divisions!F38 -> 2.5 | F44: =Divisions!E38 -> 3.5 | G44: =Divisions!L38 -> 4.5 | H44: =Divisions!J38 -> 2.5 | I44: =Divisions!H38 -> 3 | J44: =Divisions!I38 -> 2.5 | K44: =Divisions!C38 -> 4 | L44: =Divisions!G38 -> 5.5 | M44: =Divisions!K38 -> 3 | N44: XX | O44: 36.5 | P44: =SUM(Divisions!O38:Y38)*2 -> 5 | Q44: 11 | X44: 4
B46: =Divisions!$B47 -> Afdeling/Division 3A
A47: R | B47: TEAM | C47: =MATCH("XX",C48:C59,0) -> 1 | D47: 2 | E47: 3 | F47: 4 | G47: 5 | H47: 6 | I47: 7 | J47: 8 | K47: 9 | L47: 10 | M47: 11 | N47: 12 | O47: BP | P47: MP | Q47: #
A48: 1 | B48: =Divisions!B49 -> 548 Caissa Europe 1 | C48: XX | D48: =Divisions!I49 -> 3 | E48: =Divisions!E49 -> 4 | F48: =Divisions!C49 -> 4 | G48: =Divisions!F49 -> 4.5 | H48: =Divisions!M49 -> 3.5 | I48: =Divisions!K49 -> 6 | J48: =Divisions!L49 -> 3 | K48: =Divisions!G49 -> 3 | L48: =Divisions!D49 -> 5.5 | M48: =Divisions!J49 -> 5 | N48: =Divisions!H49 -> 4 | O48: =SUM(C48:N48) -> 45.5 | P48: =SUM(Divisions!O49:Y49)*2 -> 19 | Q48: =COUNT(C48:N48) -> 11 | X48: 11
A49: =IF(O49=O48, IF(P49=P48,"",2),2) -> 2 | B49: =Divisions!B55 -> 401 KGSRL 4 | C49: =Divisions!I55 -> 3 | D49: XX | E49: =Divisions!K55 -> 2.5 | F49: =Divisions!D55 -> 4 | G49: =Divisions!L55 -> 3 | H49: =Divisions!H55 -> 4.5 | I49: =Divisions!F55 -> 3.5 | J49: =Divisions!G55 -> 5 | K49: =Divisions!M55 -> 3.5 | L49: =Divisions!J55 -> 3.5 | M49: =Divisions!E55 -> 3.5 | N49: =Divisions!C55 -> 4 | O49: 40.0 | P49: =SUM(Divisions!O55:Y55)*2 -> 18 | Q49: 11 | X49: 12
A50: =IF(O50=O49, IF(P50=P49,"",3),3) -> 3 | B50: =Divisions!B51 -> 228 Dworp 1 | C50: =Divisions!E51 -> 2 | D50: =Divisions!K51 -> 3.5 | E50: XX | F50: =Divisions!G51 -> 2.5 | G50: =Divisions!H51 -> 2.5 | H50: =Divisions!D51 -> 4 | I50: =Divisions!M51 -> 6 | J50: =Divisions!C51 -> 2.5 | K50: =Divisions!I51 -> 5.5 | L50: =Divisions!F51 -> 2.5 | M50: =Divisions!L51 -> 5.5 | N50: =Divisions!J51 -> 4.5 | O50: 41.0 | P50: =SUM(Divisions!O51:Y51)*2 -> 12 | Q50: 11 | X50: 10
A51: =IF(O51=O50, IF(P51=P50,"",4),4) -> 4 | B51: =Divisions!B60 -> 239 Boitsfort 2 | C51: =Divisions!C60 -> 2 | D51: =Divisions!D60 -> 2 | E51: =Divisions!G60 -> 3.5 | F51: XX | G51: =Divisions!I60 -> 1 | H51: =Divisions!L60 -> 4 | I51: =Divisions!H60 -> 5 | J51: =Divisions!J60 -> 0.5 | K51: =Divisions!K60 -> 2 | L51: =Divisions!E60 -> 4 | M51: =Divisions!F60 -> 5 | N51: =Divisions!M60 -> 4.5 | O51: 33.5 | P51: =SUM(Divisions!O60:Y60)*2 -> 12 | Q51: 11 | X51: 7
A52: =IF(O52=O51, IF(P52=P51,"",5),5) -> 5 | B52: =Divisions!B52 -> 226 Europchess 2 | C52: =Divisions!F52 -> 1.5 | D52: =Divisions!L52 -> 3 | E52: =Divisions!H52 -> 3.5 | F52: =Divisions!I52 -> 5 | G52: XX | H52: =Divisions!E52 -> 0.5 | I52: =Divisions!C52 -> 4.5 | J52: =Divisions!D52 -> 3.5 | K52: =Divisions!J52 -> 3.5 | L52: =Divisions!G52 -> 1 | M52: =Divisions!M52 -> 2 | N52: =Divisions!K52 -> 2.5 | O52: 30.5 | P52: =SUM(Divisions!O52:Y52)*2 -> 11 | Q52: 11 | X52: 3
A53: =IF(O53=O52, IF(P53=P52,"",6),6) -> 6 | B53: =Divisions!B59 -> 244 Brussels 1 | C53: =Divisions!M59 -> 2.5 | D53: =Divisions!H59 -> 1.5 | E53: =Divisions!D59 -> 2 | F53: =Divisions!L59 -> 2 | G53: =Divisions!E59 -> 5.5 | H53: XX | I53: =Divisions!J59 -> 4 | J53: =Divisions!K59 -> 3.5 | K53: =Divisions!F59 -> 4 | L53: =Divisions!C59 -> 3 | M53: =Divisions!I59 -> 2 | N53: =Divisions!G59 -> 3 | O53: 33.0 | P53: =SUM(Divisions!O59:Y59)*2 -> 10 | Q53: 11 | X53: 4
A54: =IF(O54=O53, IF(P54=P53,"",7),7) -> 7 | B54: =Divisions!B57 -> 174 Brasschaat 2 | C54: =Divisions!K57 -> 0 | D54: =Divisions!F57 -> 2.5 | E54: =Divisions!M57 -> 0 | F54: =Divisions!H57 -> 1 | G54: =Divisions!C57 -> 1.5 | H54: =Divisions!J57 -> 2 | I54: XX | J54: =Divisions!I57 -> 3.5 | K54: =Divisions!D57 -> 3.5 | L54: =Divisions!L57 -> 4 | M54: =Divisions!G57 -> 4 | N54: =Divisions!E57 -> 4 | O54: 26.0 | P54: =SUM(Divisions!O57:Y57)*2 -> 10 | Q54: 11 | X54: 8
A55: =IF(O55=O54, IF(P55=P54,"",8),8) -> 8 | B55: =Divisions!B58 -> 511 EDC 1 | C55: =Divisions!L58 -> 3 | D55: =Divisions!G58 -> 1 | E55: =Divisions!C58 -> 3.5 | F55: =Divisions!J58 -> 5.5 | G55: =Divisions!D58 -> 2.5 | H55: =Divisions!K58 -> 2.5 | I55: =Divisions!I58 -> 2.5 | J55: XX | K55: =Divisions!E58 -> 2.5 | L55: =Divisions!M58 -> 2.5 | M55: =Divisions!H58 -> 5 | N55: =Divisions!F58 -> 5.5 | O55: 36.0 | P55: =SUM(Divisions!O58:Y58)*2 -> 9 | Q55: 11 | X55: 5
A56: =IF(O56=O55, IF(P56=P55,"",9),9) -> 9 | B56: =Divisions!B53 -> 417 Pion-Aalst 1 | C56: =Divisions!G53 -> 3 | D56: =Divisions!M53 -> 2.5 | E56: =Divisions!I53 -> 0.5 | F56: =Divisions!K53 -> 4 | G56: =Divisions!J53 -> 2.5 | H56: =Divisions!F53 -> 2 | I56: =Divisions!D53 -> 2.5 | J56: =Divisions!E53 -> 3.5 | K56: XX | L56: =Divisions!H53 -> 2 | M56: =Divisions!C53 -> 4 | N56: =Divisions!L53 -> 5 | O56: 31.5 | P56: =SUM(Divisions!O53:Y53)*2 -> 9 | Q56: 11 | X56: 2
A57: =IF(O57=O56, IF(P57=P56,"",10),10) -> 10 | B57: =Divisions!B50 -> 541 Leuze-En-Hainaut 1 | C57: =Divisions!D50 -> 0.5 | D57: =Divisions!J50 -> 2.5 | E57: =Divisions!F50 -> 3.5 | F57: =Divisions!E50 -> 2 | G57: =Divisions!G50 -> 5 | H57: =Divisions!C50 -> 3 | I57: =Divisions!L50 -> 2 | J57: =Divisions!M50 -> 3.5 | K57: =Divisions!H50 -> 4 | L57: XX | M57: =Divisions!K50 -> 1.5 | N57: =Divisions!I50 -> 2 | O57: 29.5 | P57: =SUM(Divisions!O50:Y50)*2 -> 9 | Q57: 11 | X57: 6
A58: =IF(O58=O57, IF(P58=P57,"",11),11) -> 11 | B58: =Divisions!B56 -> 909 Philippeville 1 | C58: =Divisions!J56 -> 1 | D58: =Divisions!E56 -> 2.5 | E58: =Divisions!L56 -> 0.5 | F58: =Divisions!F56 -> 1 | G58: =Divisions!M56 -> 4 | H58: =Divisions!I56 -> 4 | I58: =Divisions!G56 -> 2 | J58: =Divisions!H56 -> 1 | K58: =Divisions!C56 -> 2 | L58: =Divisions!K56 -> 4.5 | M58: XX | N58: =Divisions!D56 -> 4.5 | O58: 27.0 | P58: =SUM(Divisions!O56:Y56)*2 -> 8 | Q58: 11 | X58: 9
A59: =IF(O59=O58, IF(P59=P58,"",12),12) -> 12 | B59: =Divisions!B54 -> 201 CREB Bruxelles 2 | C59: =Divisions!H54 -> 2 | D59: =Divisions!C54 -> 2 | E59: =Divisions!J54 -> 1.5 | F59: =Divisions!M54 -> 1.5 | G59: =Divisions!K54 -> 3.5 | H59: =Divisions!G54 -> 3 | I59: =Divisions!E54 -> 2 | J59: =Divisions!F54 -> 0.5 | K59: =Divisions!L54 -> 1 | L59: =Divisions!I54 -> 4 | M59: =Divisions!D54 -> 1.5 | N59: XX | O59: 22.5 | P59: =SUM(Divisions!O54:Y54)*2 -> 5 | Q59: 11 | X59: 1
B61: =Divisions!$B62 -> Afdeling/Division 3B
A62: R | B62: TEAM | C62: =MATCH("XX",C63:C74,0) -> 1 | D62: 2 | E62: 3 | F62: 4 | G62: 5 | H62: 6 | I62: 7 | J62: 8 | K62: 9 | L62: 10 | M62: 11 | N62: 12 | O62: BP | P62: MP | Q62: #
A63: 1 | B63: =Divisions!B68 -> 301 KOSK Oostende 2 | C63: XX | D63: =Divisions!C68 -> 2 | E63: =Divisions!L68 -> 4.5 | F63: =Divisions!J68 -> 3 | G63: =Divisions!H68 -> 4 | H63: =Divisions!K68 -> 2 | I63: =Divisions!M68 -> 4.5 | J63: =Divisions!I68 -> 4.5 | K63: =Divisions!D68 -> 4.5 | L63: =Divisions!F68 -> 3.5 | M63: =Divisions!E68 -> 4 | N63: =Divisions!G68 -> 3.5 | O63: =SUM(C63:N63) -> 40.0 | P63: =SUM(Divisions!O68:Y68)*2 -> 17 | Q63: =COUNT(C63:N63) -> 11 | X63: 6
A64: =IF(O64=O63, IF(P64=P63,"",2),2) -> 2 | B64: =Divisions!B71 -> 472 De Mercatel 1 | C64: =Divisions!C71 -> 4 | D64: XX | E64: =Divisions!D71 -> 3.5 | F64: =Divisions!M71 -> 2 | G64: =Divisions!K71 -> 4.5 | H64: =Divisions!F71 -> 5.5 | I64: =Divisions!E71 -> 1.5 | J64: =Divisions!L71 -> 2.5 | K64: =Divisions!G71 -> 3.5 | L64: =Divisions!I71 -> 4.5 | M64: =Divisions!H71 -> 5.5 | N64: =Divisions!J71 -> 3.5 | O64: 40.5 | P64: =SUM(Divisions!O71:Y71)*2 -> 16 | Q64: 11 | X64: 12
A65: =IF(O65=O64, IF(P65=P64,"",3),3) -> 3 | B65: =Divisions!B69 -> 313 KWSLE 1 | C65: =Divisions!L69 -> 1.5 | D65: =Divisions!D69 -> 2.5 | E65: XX | F65: =Divisions!K69 -> 2.5 | G65: =Divisions!I69 -> 3.5 | H65: =Divisions!M69 -> 3.5 | I65: =Divisions!C69 -> 4.5 | J65: =Divisions!J69 -> 3 | K65: =Divisions!E69 -> 2 | L65: =Divisions!G69 -> 5 | M65: =Divisions!F69 -> 3.5 | N65: =Divisions!H69 -> 3.5 | O65: 35.0 | P65: =SUM(Divisions!O69:Y69)*2 -> 13 | Q65: 11 | X65: 1
A66: =IF(O66=O65, IF(P66=P65,"",4),4) -> 4 | B66: =Divisions!B67 -> 309 KRST 1 | C66: =Divisions!J67 -> 3 | D66: =Divisions!M67 -> 4 | E66: =Divisions!K67 -> 3.5 | F66: XX | G66: =Divisions!G67 -> 3 | H66: =Divisions!I67 -> 3.5 | I66: =Divisions!L67 -> 2.5 | J66: =Divisions!H67 -> 4.5 | K66: =Divisions!C67 -> 1 | L66: =Divisions!E67 -> 4.5 | M66: =Divisions!D67 -> 3 | N66: =Divisions!F67 -> 2 | O66: 34.5 | P66: =SUM(Divisions!O67:Y67)*2 -> 13 | Q66: 11 | X66: 4
A67: =IF(O67=O66, IF(P67=P66,"",5),5) -> 5 | B67: =Divisions!B65 -> 303 KBSK Brugge 3 | C67: =Divisions!H65 -> 2 | D67: =Divisions!K65 -> 1.5 | E67: =Divisions!I65 -> 2.5 | F67: =Divisions!G65 -> 3 | G67: XX | H67: =Divisions!E65 -> 3.5 | I67: =Divisions!J65 -> 5.5 | J67: =Divisions!F65 -> 2.5 | K67: =Divisions!L65 -> 3 | L67: =Divisions!C65 -> 6 | M67: =Divisions!M65 -> 4 | N67: =Divisions!D65 -> 4.5 | O67: 38.0 | P67: =SUM(Divisions!O65:Y65)*2 -> 12 | Q67: 11 | X67: 7
A68: =IF(O68=O67, IF(P68=P67,"",6),6) -> 6 | B68: =Divisions!B75 -> 432 Wetteren 2 | C68: =Divisions!K75 -> 4 | D68: =Divisions!F75 -> 0.5 | E68: =Divisions!M75 -> 2.5 | F68: =Divisions!I75 -> 2.5 | G68: =Divisions!E75 -> 2.5 | H68: XX | I68: =Divisions!D75 -> 4 | J68: =Divisions!G75 -> 5.5 | K68: =Divisions!H75 -> 4.5 | L68: =Divisions!L75 -> 3 | M68: =Divisions!J75 -> 4.5 | N68: =Divisions!C75 -> 3 | O68: 36.5 | P68: =SUM(Divisions!O75:Y75)*2 -> 12 | Q68: 11 | X68: 3
A69: =IF(O69=O68, IF(P69=P68,"",7),7) -> 7 | B69: =Divisions!B70 -> 302 KISK Ieper 1 | C69: =Divisions!M70 -> 1.5 | D69: =Divisions!E70 -> 4.5 | E69: =Divisions!C70 -> 1.5 | F69: =Divisions!L70 -> 3.5 | G69: =Divisions!J70 -> 0.5 | H69: =Divisions!D70 -> 2 | I69: XX | J69: =Divisions!K70 -> 2.5 | K69: =Divisions!F70 -> 4.5 | L69: =Divisions!H70 -> 5 | M69: =Divisions!G70 -> 4 | N69: =Divisions!I70 -> 4 | O69: 33.5 | P69: =SUM(Divisions!O70:Y70)*2 -> 12 | Q69: 11 | X69: 2
A70: =IF(O70=O69, IF(P70=P69,"",8),8) -> 8 | B70: =Divisions!B66 -> 436 LSV-Chesspirant 2 | C70: =Divisions!I66 -> 1.5 | D70: =Divisions!L66 -> 3.5 | E70: =Divisions!J66 -> 3 | F70: =Divisions!H66 -> 1.5 | G70: =Divisions!F66 -> 3.5 | H70: =Divisions!G66 -> 0.5 | I70: =Divisions!K66 -> 3.5 | J70: XX | K70: =Divisions!M66 -> 2.5 | L70: =Divisions!D66 -> 2 | M70: =Divisions!C66 -> 4.5 | N70: =Divisions!E66 -> 4 | O70: 30.0 | P70: =SUM(Divisions!O66:Y66)*2 -> 11 | Q70: 11 | X70: 5
A71: =IF(O71=O70, IF(P71=P70,"",9),9) -> 9 | B71: =Divisions!B72 -> 521 Tournai 1 | C71: =Divisions!D72 -> 1.5 | D71: =Divisions!G72 -> 2.5 | E71: =Divisions!E72 -> 4 | F71: =Divisions!C72 -> 5 | G71: =Divisions!L72 -> 3 | H71: =Divisions!H72 -> 1.5 | I71: =Divisions!F72 -> 1.5 | J71: =Divisions!M72 -> 3.5 | K71: XX | L71: =Divisions!J72 -> 2.5 | M71: =Divisions!I72 -> 3 | N71: =Divisions!K72 -> 3 | O71: 31.0 | P71: =SUM(Divisions!O72:Y72)*2 -> 9 | Q71: 11 | X71: 9
A72: =IF(O72=O71, IF(P72=P71,"",10),10) -> 10 | B72: =Divisions!B74 -> 401 KGSRL 6 | C72: =Divisions!F74 -> 2.5 | D72: =Divisions!I74 -> 1.5 | E72: =Divisions!G74 -> 1 | F72: =Divisions!E74 -> 1.5 | G72: =Divisions!C74 -> 0 | H72: =Divisions!L74 -> 3 | I72: =Divisions!H74 -> 1 | J72: =Divisions!D74 -> 4 | K72: =Divisions!J74 -> 3.5 | L72: XX | M72: =Divisions!K74 -> 1.5 | N72: =Divisions!M74 -> 4 | O72: 23.5 | P72: =SUM(Divisions!O74:Y74)*2 -> 7 | Q72: 11 | X72: 8
A73: =IF(O73=O72, IF(P73=P72,"",11),11) -> 11 | B73: =Divisions!B73 -> 471 Wachtebeke 2 | C73: =Divisions!E73 -> 2 | D73: =Divisions!H73 -> 0.5 | E73: =Divisions!F73 -> 2.5 | F73: =Divisions!D73 -> 3 | G73: =Divisions!M73 -> 2 | H73: =Divisions!J73 -> 1.5 | I73: =Divisions!G73 -> 2 | J73: =Divisions!C73 -> 1.5 | K73: =Divisions!I73 -> 3 | L73: =Divisions!K73 -> 4.5 | M73: XX | N73: =Divisions!L73 -> 5.5 | O73: 28.0 | P73: =SUM(Divisions!O73:Y73)*2 -> 6 | Q73: 11 | X73: 11
A74: =IF(O74=O73, IF(P74=P73,"",12),12) -> 12 | B74: =Divisions!B64 -> 401 KGSRL 5 | C74: =Divisions!G64 -> 2.5 | D74: =Divisions!J64 -> 2.5 | E74: =Divisions!H64 -> 2.5 | F74: =Divisions!F64 -> 4 | G74: =Divisions!D64 -> 1.5 | H74: =Divisions!C64 -> 3 | I74: =Divisions!I64 -> 2 | J74: =Divisions!E64 -> 2 | K74: =Divisions!K64 -> 3 | L74: =Divisions!M64 -> 2 | M74: =Divisions!L64 -> 0.5 | N74: XX | O74: 25.5 | P74: =SUM(Divisions!O64:Y64)*2 -> 4 | Q74: 11 | X74: 10
B76: =Divisions!$B77 -> Afdeling/Division 3C
A77: R | B77: TEAM | C77: =MATCH("XX",C78:C89,0) -> 1 | D77: 2 | E77: 3 | F77: 4 | G77: 5 | H77: 6 | I77: 7 | J77: 8 | K77: 9 | L77: 10 | M77: 11 | N77: 12 | O77: BP | P77: MP | Q77: #
A78: 1 | B78: =Divisions!B85 -> 607 Roch. Eupen-Kelmis 3 | C78: XX | D78: =Divisions!G85 -> 5 | E78: =Divisions!C85 -> 4.5 | F78: =Divisions!L85 -> 3.5 | G78: =Divisions!H85 -> 4 | H78: =Divisions!J85 -> 4 | I78: =Divisions!D85 -> 4 | J78: =Divisions!M85 -> 3 | K78: =Divisions!K85 -> 6 | L78: =Divisions!E85 -> 5 | M78: =Divisions!F85 -> 6 | N78: =Divisions!I85 -> 3.5 | O78: =SUM(C78:N78) -> 48.5 | P78: =SUM(Divisions!O85:Y85)*2 -> 21 | Q78: =COUNT(C78:N78) -> 11 | X78: 2
A79: =IF(O79=O78, IF(P79=P78,"",2),2) -> 2 | B79: =Divisions!B88 -> 703 Eisden/MSK-Dilsen 1 | C79: =Divisions!G88 -> 1 | D79: XX | E79: =Divisions!F88 -> 5 | F79: =Divisions!D88 -> 3.5 | G79: =Divisions!K88 -> 3.5 | H79: =Divisions!M88 -> 4 | I79: =Divisions!J88 -> 5.5 | J79: =Divisions!E88 -> 5 | K79: =Divisions!C88 -> 5 | L79: =Divisions!H88 -> 5.5 | M79: =Divisions!I88 -> 3.5 | N79: =Divisions!L88 -> 5.5 | O79: 47.0 | P79: =SUM(Divisions!O88:Y88)*2 -> 20 | Q79: 11 | X79: 9
A80: =IF(O80=O79, IF(P80=P79,"",3),3) -> 3 | B80: =Divisions!B84 -> 607 Roch. Eupen-Kelmis 2 | C80: =Divisions!C84 -> 1.5 | D80: =Divisions!F84 -> 1 | E80: XX | F80: =Divisions!K84 -> 3.5 | G80: =Divisions!G84 -> 2 | H80: =Divisions!I84 -> 3.5 | I80: =Divisions!M84 -> 3.5 | J80: =Divisions!L84 -> 4.5 | K80: =Divisions!J84 -> 4.5 | L80: =Divisions!D84 -> 5 | M80: =Divisions!E84 -> 4 | N80: =Divisions!H84 -> 4.5 | O80: 37.5 | P80: =SUM(Divisions!O84:Y84)*2 -> 16 | Q80: 11 | X80: 4
A81: =IF(O81=O80, IF(P81=P80,"",4),4) -> 4 | B81: =Divisions!B82 -> 627 Wirtzfeld 2 | C81: =Divisions!L82 -> 2.5 | D81: =Divisions!D82 -> 2.5 | E81: =Divisions!K82 -> 2.5 | F81: XX | G81: =Divisions!E82 -> 3.5 | H81: =Divisions!G82 -> 4.5 | I81: =Divisions!I82 -> 2.5 | J81: =Divisions!J82 -> 4 | K81: =Divisions!H82 -> 3.5 | L81: =Divisions!M82 -> 4 | M81: =Divisions!C82 -> 6 | N81: =Divisions!F82 -> 4 | O81: 39.5 | P81: =SUM(Divisions!O82:Y82)*2 -> 14 | Q81: 11 | X81: 12
A82: =IF(O82=O81, IF(P82=P81,"",5),5) -> 5 | B82: =Divisions!B89 -> 604 KSK47-Eynatten 1 | C82: =Divisions!H89 -> 2 | D82: =Divisions!K89 -> 2.5 | E82: =Divisions!G89 -> 4 | F82: =Divisions!E89 -> 2.5 | G82: XX | H82: =Divisions!C89 -> 0.5 | I82: =Divisions!L89 -> 5.5 | J82: =Divisions!F89 -> 4.5 | K82: =Divisions!D89 -> 3 | L82: =Divisions!I89 -> 4.5 | M82: =Divisions!J89 -> 5 | N82: =Divisions!M89 -> 3.5 | O82: 37.5 | P82: =SUM(Divisions!O89:Y89)*2 -> 13 | Q82: 11 | X82: 10
A83: =IF(O83=O82, IF(P83=P82,"",6),6) -> 6 | B83: =Divisions!B80 -> 727 Midden-Limburg 1 | C83: =Divisions!J80 -> 2 | D83: =Divisions!M80 -> 2 | E83: =Divisions!I80 -> 2.5 | F83: =Divisions!G80 -> 1.5 | G83: =Divisions!C80 -> 5.5 | H83: XX | I83: =Divisions!E80 -> 5 | J83: =Divisions!H80 -> 3.5 | K83: =Divisions!F80 -> 3.5 | L83: =Divisions!K80 -> 4 | M83: =Divisions!L80 -> 2 | N83: =Divisions!D80 -> 3.5 | O83: 35.0 | P83: =SUM(Divisions!O80:Y80)*2 -> 12 | Q83: 11 | X83: 6
A84: =IF(O84=O83, IF(P84=P83,"",7),7) -> 7 | B84: =Divisions!B90 -> 230 Leuven Centraal 2 | C84: =Divisions!D90 -> 2 | D84: =Divisions!J90 -> 0.5 | E84: =Divisions!M90 -> 2.5 | F84: =Divisions!I90 -> 3.5 | G84: =Divisions!L90 -> 0.5 | H84: =Divisions!E90 -> 1 | I84: XX | J84: =Divisions!K90 -> 1.5 | K84: =Divisions!G90 -> 3.5 | L84: =Divisions!F90 -> 3.5 | M84: =Divisions!H90 -> 4.5 | N84: =Divisions!C90 -> 5.5 | O84: 28.5 | P84: =SUM(Divisions!O90:Y90)*2 -> 10 | Q84: 11 | X84: 5
A85: =IF(O85=O84, IF(P85=P84,"",8),8) -> 8 | B85: =Divisions!B83 -> 135 Geel 1 | C85: =Divisions!M83 -> 3 | D85: =Divisions!E83 -> 1 | E85: =Divisions!L83 -> 1.5 | F85: =Divisions!J83 -> 2 | G85: =Divisions!F83 -> 1.5 | H85: =Divisions!H83 -> 2.5 | I85: =Divisions!K83 -> 4.5 | J85: XX | K85: =Divisions!I83 -> 2.5 | L85: =Divisions!C83 -> 5 | M85: =Divisions!D83 -> 5 | N85: =Divisions!G83 -> 5.5 | O85: 34.0 | P85: =SUM(Divisions!O83:Y83)*2 -> 9 | Q85: 11 | X85: 11
A86: =IF(O86=O85, IF(P86=P85,"",9),9) -> 9 | B86: =Divisions!B81 -> 601 CRELEL Liège 3 | C86: =Divisions!K81 -> 0 | D86: =Divisions!C81 -> 1 | E86: =Divisions!J81 -> 1.5 | F86: =Divisions!H81 -> 2.5 | G86: =Divisions!D81 -> 3 | H86: =Divisions!F81 -> 2.5 | I86: =Divisions!G81 -> 2.5 | J86: =Divisions!I81 -> 3.5 | K86: XX | L86: =Divisions!L81 -> 1.5 | M86: =Divisions!M81 -> 4.5 | N86: =Divisions!E81 -> 4.5 | O86: 27.0 | P86: =SUM(Divisions!O81:Y81)*2 -> 7 | Q86: 11 | X86: 3
A87: =IF(O87=O86, IF(P87=P86,"",10),10) -> 10 | B87: =Divisions!B86 -> 901 Namur Echecs 2 | C87: =Divisions!E86 -> 1 | D87: =Divisions!H86 -> 0.5 | E87: =Divisions!D86 -> 1 | F87: =Divisions!M86 -> 2 | G87: =Divisions!I86 -> 1.5 | H87: =Divisions!K86 -> 2 | I87: =Divisions!F86 -> 2.5 | J87: =Divisions!C86 -> 1 | K87: =Divisions!L86 -> 4.5 | L87: XX | M87: =Divisions!G86 -> 4 | N87: =Divisions!J86 -> 3.5 | O87: 23.5 | P87: =SUM(Divisions!O86:Y86)*2 -> 6 | Q87: 11 | X87: 8
A88: =IF(O88=O87, IF(P88=P87,"",11),11) -> 11 | B88: =Divisions!B87 -> 174 Brasschaat 3 | C88: =Divisions!F87 -> 0 | D88: =Divisions!I87 -> 2.5 | E88: =Divisions!E87 -> 2 | F88: =Divisions!C87 -> 0 | G88: =Divisions!J87 -> 1 | H88: =Divisions!L87 -> 4 | I88: =Divisions!H87 -> 1.5 | J88: =Divisions!D87 -> 1 | K88: =Divisions!M87 -> 1.5 | L88: =Divisions!G87 -> 2 | M88: XX | N88: =Divisions!K87 -> 4 | O88: 19.5 | P88: =SUM(Divisions!O87:Y87)*2 -> 4 | Q88: 11 | X88: 1
A89: =IF(O89=O88, IF(P89=P88,"",12),12) -> 12 | B89: =Divisions!B79 -> 621 T.A.L. 2 | C89: =Divisions!I79 -> 2.5 | D89: =Divisions!L79 -> 0.5 | E89: =Divisions!H79 -> 1.5 | F89: =Divisions!F79 -> 2 | G89: =Divisions!M79 -> 2.5 | H89: =Divisions!D79 -> 2.5 | I89: =Divisions!C79 -> 0.5 | J89: =Divisions!G79 -> 0.5 | K89: =Divisions!E79 -> 1.5 | L89: =Divisions!J79 -> 2.5 | M89: =Divisions!K79 -> 2 | N89: XX | O89: 18.5 | P89: =SUM(Divisions!O79:Y79)*2 -> 0 | Q89: 11 | X89: 7
B91: =Divisions!$B92 -> Afdeling/Division 3D
A92: R | B92: TEAM | C92: =MATCH("XX",C93:C104,0) -> 1 | D92: 2 | E92: 3 | F92: 4 | G92: 5 | H92: 6 | I92: 7 | J92: 8 | K92: 9 | L92: 10 | M92: 11 | N92: 12 | O92: BP | P92: MP | Q92: #
A93: 1 | B93: =Divisions!B100 -> 166 TSM Mechelen 2 | C93: XX | D93: =Divisions!M100 -> 3 | E93: =Divisions!L100 -> 3 | F93: =Divisions!H100 -> 4.5 | G93: =Divisions!I100 -> 1.5 | H93: =Divisions!E100 -> 4 | I93: =Divisions!D100 -> 4.5 | J93: =Divisions!C100 -> 1 | K93: =Divisions!G100 -> 4.5 | L93: =Divisions!J100 -> 3.5 | M93: =Divisions!K100 -> 5 | N93: =Divisions!F100 -> 4 | O93: =SUM(C93:N93) -> 38.5 | P93: =SUM(Divisions!O100:Y100)*2 -> 16 | Q93: =COUNT(C93:N93) -> 11 | X93: 1
A94: =IF(O94=O93, IF(P94=P93,"",2),2) -> 2 | B94: =Divisions!B98 -> 128 Beveren 1 | C94: =Divisions!M98 -> 3 | D94: XX | E94: =Divisions!J98 -> 2 | F94: =Divisions!F98 -> 2.5 | G94: =Divisions!G98 -> 3.5 | H94: =Divisions!C98 -> 6 | I94: =Divisions!K98 -> 3 | J94: =Divisions!L98 -> 3 | K94: =Divisions!E98 -> 4 | L94: =Divisions!H98 -> 3.5 | M94: =Divisions!I98 -> 5.5 | N94: =Divisions!D98 -> 5.5 | O94: 41.5 | P94: =SUM(Divisions!O98:Y98)*2 -> 15 | Q94: 11 | X94: 7
A95: =IF(O95=O94, IF(P95=P94,"",3),3) -> 3 | B95: =Divisions!B97 -> 101 KASK 1 | C95: =Divisions!L97 -> 3 | D95: =Divisions!J97 -> 4 | E95: XX | F95: =Divisions!E97 -> 3.5 | G95: =Divisions!F97 -> 3 | H95: =Divisions!M97 -> 2.5 | I95: =Divisions!I97 -> 3 | J95: =Divisions!K97 -> 2 | K95: =Divisions!D97 -> 5.5 | L95: =Divisions!G97 -> 4.5 | M95: =Divisions!H97 -> 4.5 | N95: =Divisions!C97 -> 4.5 | O95: 40.0 | P95: =SUM(Divisions!O97:Y97)*2 -> 15 | Q95: 11 | X95: 6
A96: =IF(O96=O95, IF(P96=P95,"",4),4) -> 4 | B96: =Divisions!B104 -> 244 Brussels 2 | C96: =Divisions!H104 -> 1.5 | D96: =Divisions!F104 -> 3.5 | E96: =Divisions!E104 -> 2.5 | F96: XX | G96: =Divisions!M104 -> 2.5 | H96: =Divisions!I104 -> 3 | I96: =Divisions!L104 -> 3.5 | J96: =Divisions!G104 -> 3 | K96: =Divisions!K104 -> 3 | L96: =Divisions!C104 -> 3.5 | M96: =Divisions!D104 -> 6 | N96: =Divisions!J104 -> 6 | O96: 38.0 | P96: =SUM(Divisions!O104:Y104)*2 -> 13 | Q96: 11 | X96: 5
A97: =IF(O97=O96, IF(P97=P96,"",5),5) -> 5 | B97: =Divisions!B94 -> 410 St.-Niklaas 1 | C97: =Divisions!I94 -> 4.5 | D97: =Divisions!G94 -> 2.5 | E97: =Divisions!F94 -> 3 | F97: =Divisions!M94 -> 3.5 | G97: XX | H97: =Divisions!J94 -> 3.5 | I97: =Divisions!C94 -> 3 | J97: =Divisions!H94 -> 4 | K97: =Divisions!L94 -> 0.5 | L97: =Divisions!D94 -> 3 | M97: =Divisions!E94 -> 4.5 | N97: =Divisions!K94 -> 2.5 | O97: 34.5 | P97: =SUM(Divisions!O94:Y94)*2 -> 13 | Q97: 11 | X97: 3
A98: =IF(O98=O97, IF(P98=P97,"",6),6) -> 6 | B98: =Divisions!B101 -> 401 KGSRL 7 | C98: =Divisions!E101 -> 2 | D98: =Divisions!C101 -> 0 | E98: =Divisions!M101 -> 3.5 | F98: =Divisions!I101 -> 3 | G98: =Divisions!J101 -> 2.5 | H98: XX | I98: =Divisions!F101 -> 4.5 | J98: =Divisions!D101 -> 3 | K98: =Divisions!H101 -> 4 | L98: =Divisions!K101 -> 1.5 | M98: =Divisions!L101 -> 4 | N98: =Divisions!G101 -> 4 | O98: 32.0 | P98: =SUM(Divisions!O101:Y101)*2 -> 12 | Q98: 11 | X98: 4
A99: =IF(O99=O98, IF(P99=P98,"",7),7) -> 7 | B99: =Divisions!B105 -> 708 NLS Lommel 1 | C99: =Divisions!D105 -> 1.5 | D99: =Divisions!K105 -> 3 | E99: =Divisions!I105 -> 3 | F99: =Divisions!L105 -> 2.5 | G99: =Divisions!C105 -> 3 | H99: =Divisions!F105 -> 1.5 | I99: XX | J99: =Divisions!M105 -> 3.5 | K99: =Divisions!J105 -> 3.5 | L99: =Divisions!E105 -> 4 | M99: =Divisions!G105 -> 2.5 | N99: =Divisions!H105 -> 4.5 | O99: 32.5 | P99: =SUM(Divisions!O105:Y105)*2 -> 11 | Q99: 11 | X99: 8
A100: =IF(O100=O99, IF(P100=P99,"",8),8) -> 8 | B100: =Divisions!B99 -> 114 Mechelen 2 | C100: =Divisions!C99 -> 5 | D100: =Divisions!L99 -> 3 | E100: =Divisions!K99 -> 4 | F100: =Divisions!G99 -> 3 | G100: =Divisions!H99 -> 2 | H100: =Divisions!D99 -> 3 | I100: =Divisions!M99 -> 2.5 | J100: XX | K100: =Divisions!F99 -> 3 | L100: =Divisions!I99 -> 2.5 | M100: =Divisions!J99 -> 1.5 | N100: =Divisions!E99 -> 5 | O100: 34.5 | P100: =SUM(Divisions!O99:Y99)*2 -> 10 | Q100: 11 | X100: 12
A101: =IF(O101=O100, IF(P101=P100,"",9),9) -> 9 | B101: =Divisions!B103 -> 260 Kapelle-op-den Bos 1 | C101: =Divisions!G103 -> 1.5 | D101: =Divisions!E103 -> 2 | E101: =Divisions!D103 -> 0.5 | F101: =Divisions!K103 -> 3 | G101: =Divisions!L103 -> 5.5 | H101: =Divisions!H103 -> 2 | I101: =Divisions!J103 -> 2.5 | J101: =Divisions!F103 -> 3 | K101: XX | L101: =Divisions!M103 -> 4 | M101: =Divisions!C103 -> 4 | N101: =Divisions!I103 -> 3.5 | O101: 31.5 | P101: =SUM(Divisions!O103:Y103)*2 -> 10 | Q101: 11 | X101: 9
A102: =IF(O102=O101, IF(P102=P101,"",10),10) -> 10 | B102: =Divisions!B95 -> 425 Dendermonde 1 | C102: =Divisions!J95 -> 2.5 | D102: =Divisions!H95 -> 2.5 | E102: =Divisions!G95 -> 1.5 | F102: =Divisions!C95 -> 2.5 | G102: =Divisions!D95 -> 3 | H102: =Divisions!K95 -> 4.5 | I102: =Divisions!E95 -> 2 | J102: =Divisions!I95 -> 3.5 | K102: =Divisions!M95 -> 2 | L102: XX | M102: =Divisions!F95 -> 3 | N102: =Divisions!L95 -> 5 | O102: 32.0 | P102: =SUM(Divisions!O95:Y95)*2 -> 8 | Q102: 11 | X102: 2
A103: =IF(O103=O102, IF(P103=P102,"",11),11) -> 11 | B103: =Divisions!B96 -> 109 Borgerhout 2 | C103: =Divisions!K96 -> 1 | D103: =Divisions!I96 -> 0.5 | E103: =Divisions!H96 -> 1.5 | F103: =Divisions!D96 -> 0 | G103: =Divisions!E96 -> 1.5 | H103: =Divisions!L96 -> 2 | I103: =Divisions!G96 -> 3.5 | J103: =Divisions!J96 -> 4.5 | K103: =Divisions!C96 -> 2 | L103: =Divisions!F96 -> 3 | M103: XX | N103: =Divisions!M96 -> 2 | O103: 21.5 | P103: =SUM(Divisions!O96:Y96)*2 -> 5 | Q103: 11 | X103: 10
A104: =IF(O104=O103, IF(P104=P103,"",12),12) -> 12 | B104: =Divisions!B102 -> 174 Brasschaat 4 | C104: =Divisions!F102 -> 2 | D104: =Divisions!D102 -> 0.5 | E104: =Divisions!C102 -> 1.5 | F104: =Divisions!J102 -> 0 | G104: =Divisions!K102 -> 3.5 | H104: =Divisions!G102 -> 2 | I104: =Divisions!H102 -> 1.5 | J104: =Divisions!E102 -> 1 | K104: =Divisions!I102 -> 2.5 | L104: =Divisions!L102 -> 1 | M104: =Divisions!M102 -> 4 | N104: XX | O104: 19.5 | P104: =SUM(Divisions!O102:Y102)*2 -> 4 | Q104: 11 | X104: 11
B106: =Divisions!$B107 -> Afdeling/Division 4A
A107: R | B107: TEAM | C107: =MATCH("XX",C108:C119,0) -> 1 | D107: 2 | E107: 3 | F107: 4 | G107: 5 | H107: 6 | I107: 7 | J107: 8 | K107: 9 | L107: 10 | M107: 11 | N107: 12 | O107: BP | P107: MP | Q107: #
A108: 1 | B108: =Divisions!B117 -> 207 2 Fous Diogène 1 | C108: XX | D108: =Divisions!G117 -> 2 | E108: =Divisions!M117 -> 2.5 | F108: =Divisions!K117 -> 2.5 | G108: =Divisions!F117 -> 3.5 | H108: =Divisions!J117 -> 3 | I108: =Divisions!L117 -> 4 | J108: =Divisions!E117 -> 2 | K108: =Divisions!C117 -> 3.5 | L108: =Divisions!D117 -> 4 | M108: =Divisions!H117 -> 3.5 | N108: =Divisions!I117 -> 4 | O108: =SUM(C108:N108) -> 34.5 | P108: =SUM(Divisions!O117:Y117)*2 -> 20 | Q108: =COUNT(C108:N108) -> 11 | X108: 9
A109: =IF(O109=O108, IF(P109=P108,"",2),2) -> 2 | B109: =Divisions!B116 -> 229 Woluwe 1 | C109: =Divisions!G116 -> 2 | D109: XX | E109: =Divisions!L116 -> 2.5 | F109: =Divisions!J116 -> 2.5 | G109: =Divisions!E116 -> 2.5 | H109: =Divisions!I116 -> 2 | I109: =Divisions!K116 -> 2 | J109: =Divisions!D116 -> 3.5 | K109: =Divisions!M116 -> 2.5 | L109: =Divisions!C116 -> 3 | M109: =Divisions!F116 -> 2 | N109: =Divisions!H116 -> 4 | O109: 28.5 | P109: =SUM(Divisions!O116:Y116)*2 -> 18 | Q109: 11 | X109: 2
A110: =IF(O110=O109, IF(P110=P109,"",3),3) -> 3 | B110: =Divisions!B111 -> 194 ChessLooks Lier 1 | C110: =Divisions!M111 -> 1.5 | D110: =Divisions!L111 -> 1.5 | E110: XX | F110: =Divisions!E111 -> 2.5 | G110: =Divisions!K111 -> 3.5 | H110: =Divisions!D111 -> 1 | I110: =Divisions!F111 -> 3.5 | J110: =Divisions!J111 -> 3 | K110: =Divisions!H111 -> 3 | L110: =Divisions!I111 -> 2.5 | M110: =Divisions!G111 -> 3.5 | N110: =Divisions!C111 -> 4 | O110: 29.5 | P110: =SUM(Divisions!O111:Y111)*2 -> 16 | Q110: 11 | X110: 12
A111: =IF(O111=O110, IF(P111=P110,"",4),4) -> 4 | B111: =Divisions!B109 -> 230 Leuven Centraal 3 | C111: =Divisions!K109 -> 1.5 | D111: =Divisions!J109 -> 1.5 | E111: =Divisions!E109 -> 1.5 | F111: XX | G111: =Divisions!I109 -> 2.5 | H111: =Divisions!M109 -> 3.5 | I111: =Divisions!D109 -> 4 | J111: =Divisions!H109 -> 2 | K111: =Divisions!F109 -> 3.5 | L111: =Divisions!G109 -> 2.5 | M111: =Divisions!C109 -> 4 | N111: =Divisions!L109 -> 3.5 | O111: 30.0 | P111: =SUM(Divisions!O109:Y109)*2 -> 15 | Q111: 11 | X111: 10
A112: =IF(O112=O111, IF(P112=P111,"",5),5) -> 5 | B112: =Divisions!B115 -> 166 TSM Mechelen 3 | C112: =Divisions!F115 -> 0.5 | D112: =Divisions!E115 -> 1.5 | E112: =Divisions!K115 -> 0.5 | F112: =Divisions!I115 -> 1.5 | G112: XX | H112: =Divisions!H115 -> 2.5 | I112: =Divisions!J115 -> 2 | J112: =Divisions!C115 -> 3 | K112: =Divisions!L115 -> 2 | L112: =Divisions!M115 -> 3 | M112: =Divisions!D115 -> 3 | N112: =Divisions!G115 -> 3.5 | O112: 23.0 | P112: =SUM(Divisions!O115:Y115)*2 -> 12 | Q112: 11 | X112: 11
A113: =IF(O113=O112, IF(P113=P112,"",6),6) -> 6 | B113: =Divisions!B119 -> 261 Opwijk 2 | C113: =Divisions!J119 -> 1 | D113: =Divisions!I119 -> 2 | E113: =Divisions!D119 -> 3 | F113: =Divisions!M119 -> 0.5 | G113: =Divisions!H119 -> 1.5 | H113: XX | I113: =Divisions!C119 -> 0.5 | J113: =Divisions!G119 -> 3 | K113: =Divisions!E119 -> 2 | L113: =Divisions!F119 -> 2 | M113: =Divisions!L119 -> 1 | N113: =Divisions!K119 -> 4 | O113: 20.5 | P113: =SUM(Divisions!O119:Y119)*2 -> 9 | Q113: 11 | X113: 5
A114: =IF(O114=O113, IF(P114=P113,"",7),7) -> 7 | B114: =Divisions!B110 -> 121 Turnhout 1 | C114: =Divisions!L110 -> 0 | D114: =Divisions!K110 -> 2 | E114: =Divisions!F110 -> 0.5 | F114: =Divisions!D110 -> 0 | G114: =Divisions!J110 -> 2 | H114: =Divisions!C110 -> 3.5 | I114: XX | J114: =Divisions!I110 -> 1.5 | K114: =Divisions!G110 -> 1.5 | L114: =Divisions!H110 -> 2 | M114: =Divisions!E110 -> 2.5 | N114: =Divisions!M110 -> 4 | O114: 19.5 | P114: =SUM(Divisions!O110:Y110)*2 -> 9 | Q114: 11 | X114: 6
A115: =IF(O115=O114, IF(P115=P114,"",8),8) -> 8 | B115: =Divisions!B114 -> 114 Mechelen 3 | C115: =Divisions!E114 -> 2 | D115: =Divisions!D114 -> 0.5 | E115: =Divisions!J114 -> 1 | F115: =Divisions!H114 -> 2 | G115: =Divisions!C114 -> 1 | H115: =Divisions!G114 -> 1 | I115: =Divisions!I114 -> 2.5 | J115: XX | K115: =Divisions!K114 -> 1.5 | L115: =Divisions!L114 -> 2 | M115: =Divisions!M114 -> 2.5 | N115: =Divisions!F114 -> 3 | O115: 19.0 | P115: =SUM(Divisions!O114:Y114)*2 -> 9 | Q115: 11 | X115: 8
A116: =IF(O116=O115, IF(P116=P115,"",9),9) -> 9 | B116: =Divisions!B112 -> 226 Europchess 3 | C116: =Divisions!C112 -> 0.5 | D116: =Divisions!M112 -> 1.5 | E116: =Divisions!H112 -> 1 | F116: =Divisions!F112 -> 0.5 | G116: =Divisions!L112 -> 2 | H116: =Divisions!E112 -> 2 | I116: =Divisions!G112 -> 2.5 | J116: =Divisions!K112 -> 2.5 | K116: XX | L116: =Divisions!J112 -> 3 | M116: =Divisions!I112 -> 1.5 | N116: =Divisions!D112 -> 1.5 | O116: 18.5 | P116: =SUM(Divisions!O112:Y112)*2 -> 8 | Q116: 11 | X116: 1
A117: =IF(O117=O116, IF(P117=P116,"",10),10) -> 10 | B117: =Divisions!B113 -> 278 Pantin 2 | C117: =Divisions!D113 -> 0 | D117: =Divisions!C113 -> 1 | E117: =Divisions!I113 -> 1.5 | F117: =Divisions!G113 -> 1.5 | G117: =Divisions!M113 -> 1 | H117: =Divisions!F113 -> 2 | I117: =Divisions!H113 -> 2 | J117: =Divisions!L113 -> 2 | K117: =Divisions!J113 -> 1 | L117: XX | M117: =Divisions!K113 -> 3 | N117: =Divisions!E113 -> 3 | O117: 18.0 | P117: =SUM(Divisions!O113:Y113)*2 -> 7 | Q117: 11 | X117: 3
A118: =IF(O118=O117, IF(P118=P117,"",11),11) -> 11 | B118: =Divisions!B120 -> 239 Boitsfort 3 | C118: =Divisions!H120 -> 0.5 | D118: =Divisions!F120 -> 2 | E118: =Divisions!G120 -> 0.5 | F118: =Divisions!C120 -> 0 | G118: =Divisions!D120 -> 1 | H118: =Divisions!L120 -> 3 | I118: =Divisions!E120 -> 1.5 | J118: =Divisions!M120 -> 1.5 | K118: =Divisions!I120 -> 2.5 | L118: =Divisions!K120 -> 1 | M118: XX | N118: =Divisions!J120 -> 3.5 | O118: 17.0 | P118: =SUM(Divisions!O120:Y120)*2 -> 7 | Q118: 11 | X118: 4
A119: =IF(O119=O118, IF(P119=P118,"",12),12) -> 12 | B119: =Divisions!B118 -> 240 SCRR 1 | C119: =Divisions!I118 -> 0 | D119: =Divisions!H118 -> 0 | E119: =Divisions!C118 -> 0 | F119: =Divisions!L118 -> 0.5 | G119: =Divisions!G118 -> 0.5 | H119: =Divisions!K118 -> 0 | I119: =Divisions!M118 -> 0 | J119: =Divisions!F118 -> 1 | K119: =Divisions!D118 -> 2.5 | L119: =Divisions!E118 -> 1 | M119: =Divisions!J118 -> 0.5 | N119: XX | O119: 6.0 | P119: =SUM(Divisions!O118:Y118)*2 -> 2 | Q119: 11 | X119: 7
B121: =Divisions!$B122 -> Afdeling/Division 4B
A122: R | B122: TEAM | C122: =MATCH("XX",C123:C134,0) -> 1 | D122: 2 | E122: 3 | F122: 4 | G122: 5 | H122: 6 | I122: 7 | J122: 8 | K122: 9 | L122: 10 | M122: 11 | N122: 12 | O122: BP | P122: MP | Q122: #
A123: 1 | B123: =Divisions!B134 -> 231 Dolle Toren Leuven 2 | C123: XX | D123: =Divisions!F134 -> 0.5 | E123: =Divisions!M134 -> 3 | F123: =Divisions!K134 -> 3 | G123: =Divisions!H134 -> 2 | H123: =Divisions!C134 -> 2.5 | I123: =Divisions!J134 -> 2.5 | J123: =Divisions!D134 -> 3.5 | K123: =Divisions!E134 -> 4 | L123: =Divisions!G134 -> 3.5 | M123: =Divisions!L134 -> 3 | N123: =Divisions!I134 -> 2.5 | O123: =SUM(C123:N123) -> 30.0 | P123: =SUM(Divisions!O134:Y134)*2 -> 19 | Q123: =COUNT(C123:N123) -> 11 | X123: 8
A124: =IF(O124=O123, IF(P124=P123,"",2),2) -> 2 | B124: =Divisions!B128 -> 278 Pantin 3 | C124: =Divisions!F128 -> 3.5 | D124: XX | E124: =Divisions!G128 -> 3.5 | F124: =Divisions!E128 -> 1.5 | G124: =Divisions!M128 -> 0.5 | H124: =Divisions!H128 -> 4 | I124: =Divisions!D128 -> 3.5 | J124: =Divisions!I128 -> 2.5 | K124: =Divisions!J128 -> 4 | L124: =Divisions!L128 -> 2.5 | M124: =Divisions!K128 -> 2.5 | N124: =Divisions!C128 -> 4 | O124: 32.0 | P124: =SUM(Divisions!O128:Y128)*2 -> 18 | Q124: 11 | X124: 12
A125: =IF(O125=O124, IF(P125=P124,"",3),3) -> 3 | B125: =Divisions!B124 -> 525 CELB Anderlues 1 | C125: =Divisions!M124 -> 1 | D125: =Divisions!G124 -> 0.5 | E125: XX | F125: =Divisions!L124 -> 2.5 | G125: =Divisions!I124 -> 2.5 | H125: =Divisions!D124 -> 2 | I125: =Divisions!K124 -> 2 | J125: =Divisions!E124 -> 2 | K125: =Divisions!F124 -> 1 | L125: =Divisions!H124 -> 2.5 | M125: =Divisions!C124 -> 2.5 | N125: =Divisions!J124 -> 3 | O125: 21.5 | P125: =SUM(Divisions!O124:Y124)*2 -> 13 | Q125: 11 | X125: 6
A126: =IF(O126=O125, IF(P126=P125,"",4),4) -> 4 | B126: =Divisions!B133 -> 209 The Belgian CC 2 | C126: =Divisions!K133 -> 1 | D126: =Divisions!E133 -> 2.5 | E126: =Divisions!L133 -> 1.5 | F126: XX | G126: =Divisions!G133 -> 2 | H126: =Divisions!M133 -> 2 | I126: =Divisions!I133 -> 2 | J126: =Divisions!C133 -> 1.5 | K126: =Divisions!D133 -> 2 | L126: =Divisions!F133 -> 3 | M126: =Divisions!J133 -> 2.5 | N126: =Divisions!H133 -> 3.5 | O126: 23.5 | P126: =SUM(Divisions!O133:Y133)*2 -> 12 | Q126: 11 | X126: 11
A127: =IF(O127=O126, IF(P127=P126,"",5),5) ->  | B127: =Divisions!B130 -> 961 Braine Echecs 1 | C127: =Divisions!H130 -> 2 | D127: =Divisions!M130 -> 3.5 | E127: =Divisions!I130 -> 1.5 | F127: =Divisions!G130 -> 2 | G127: XX | H127: =Divisions!J130 -> 3 | I127: =Divisions!F130 -> 1.5 | J127: =Divisions!K130 -> 1 | K127: =Divisions!L130 -> 2.5 | L127: =Divisions!C130 -> 3 | M127: =Divisions!D130 -> 0 | N127: =Divisions!E130 -> 3.5 | O127: 23.5 | P127: =SUM(Divisions!O130:Y130)*2 -> 12 | Q127: 11 | X127: 1
A128: =IF(O128=O127, IF(P128=P127,"",6),6) -> 6 | B128: =Divisions!B125 -> 601 CRELEL Liège 4 | C128: =Divisions!C125 -> 1.5 | D128: =Divisions!H125 -> 0 | E128: =Divisions!D125 -> 2 | F128: =Divisions!M125 -> 2 | G128: =Divisions!J125 -> 1 | H128: XX | I128: =Divisions!L125 -> 2 | J128: =Divisions!F125 -> 3 | K128: =Divisions!G125 -> 1 | L128: =Divisions!I125 -> 3.5 | M128: =Divisions!E125 -> 3 | N128: =Divisions!K125 -> 2.5 | O128: 21.5 | P128: =SUM(Divisions!O125:Y125)*2 -> 11 | Q128: 11 | X128: 4
A129: =IF(O129=O128, IF(P129=P128,"",7),7) -> 7 | B129: =Divisions!B132 -> 207 2 Fous Diogène 2 | C129: =Divisions!J132 -> 1.5 | D129: =Divisions!D132 -> 0.5 | E129: =Divisions!K132 -> 2 | F129: =Divisions!I132 -> 2 | G129: =Divisions!F132 -> 2.5 | H129: =Divisions!L132 -> 2 | I129: XX | J129: =Divisions!M132 -> 2 | K129: =Divisions!C132 -> 2.5 | L129: =Divisions!E132 -> 2.5 | M129: =Divisions!H132 -> 2 | N129: =Divisions!G132 -> 1 | O129: 20.5 | P129: =SUM(Divisions!O132:Y132)*2 -> 11 | Q129: 11 | X129: 7
A130: =IF(O130=O129, IF(P130=P129,"",8),8) -> 8 | B130: =Divisions!B126 -> 952 CEW 3 | C130: =Divisions!D126 -> 0.5 | D130: =Divisions!I126 -> 1.5 | E130: =Divisions!E126 -> 2 | F130: =Divisions!C126 -> 2.5 | G130: =Divisions!K126 -> 3 | H130: =Divisions!F126 -> 1 | I130: =Divisions!M126 -> 2 | J130: XX | K130: =Divisions!H126 -> 1.5 | L130: =Divisions!J126 -> 1.5 | M130: =Divisions!G126 -> 3 | N130: =Divisions!L126 -> 4 | O130: 22.5 | P130: =SUM(Divisions!O126:Y126)*2 -> 10 | Q130: 11 | X130: 10
A131: =IF(O131=O130, IF(P131=P130,"",9),9) -> 9 | B131: =Divisions!B127 -> 226 Europchess 4 | C131: =Divisions!E127 -> 0 | D131: =Divisions!J127 -> 0 | E131: =Divisions!F127 -> 3 | F131: =Divisions!D127 -> 2 | G131: =Divisions!L127 -> 1.5 | H131: =Divisions!G127 -> 3 | I131: =Divisions!C127 -> 1.5 | J131: =Divisions!H127 -> 2.5 | K131: XX | L131: =Divisions!K127 -> 1.5 | M131: =Divisions!I127 -> 0.5 | N131: =Divisions!M127 -> 2.5 | O131: 18.0 | P131: =SUM(Divisions!O127:Y127)*2 -> 9 | Q131: 11 | X131: 5
A132: =IF(O132=O131, IF(P132=P131,"",10),10) -> 10 | B132: =Divisions!B129 -> 607 Roch. Eupen-Kelmis 4 | C132: =Divisions!G129 -> 0.5 | D132: =Divisions!L129 -> 1.5 | E132: =Divisions!H129 -> 1.5 | F132: =Divisions!F129 -> 1 | G132: =Divisions!C129 -> 1 | H132: =Divisions!I129 -> 0.5 | I132: =Divisions!E129 -> 1.5 | J132: =Divisions!J129 -> 2.5 | K132: =Divisions!K129 -> 2.5 | L132: XX | M132: =Divisions!M129 -> 3.5 | N132: =Divisions!D129 -> 3.5 | O132: 19.5 | P132: =SUM(Divisions!O129:Y129)*2 -> 8 | Q132: 11 | X132: 3
A133: =IF(O133=O132, IF(P133=P132,"",11),11) -> 11 | B133: =Divisions!B135 -> 952 CEW 2 | C133: =Divisions!L135 -> 1 | D133: =Divisions!K135 -> 1.5 | E133: =Divisions!C135 -> 1.5 | F133: =Divisions!J135 -> 1.5 | G133: =Divisions!D135 -> 4 | H133: =Divisions!E135 -> 1 | I133: =Divisions!H135 -> 2 | J133: =Divisions!G135 -> 1 | K133: =Divisions!I135 -> 3.5 | L133: =Divisions!M135 -> 0.5 | M133: XX | N133: =Divisions!F135 -> 3.5 | O133: 21.0 | P133: =SUM(Divisions!O135:Y135)*2 -> 7 | Q133: 11 | X133: 2
A134: =IF(O134=O133, IF(P134=P133,"",12),12) -> 12 | B134: =Divisions!B131 -> 901 Namur Echecs 3 | C134: =Divisions!I131 -> 1.5 | D134: =Divisions!C131 -> 0 | E134: =Divisions!J131 -> 1 | F134: =Divisions!H131 -> 0.5 | G134: =Divisions!E131 -> 0.5 | H134: =Divisions!K131 -> 1.5 | I134: =Divisions!G131 -> 3 | J134: =Divisions!L131 -> 0 | K134: =Divisions!M131 -> 1.5 | L134: =Divisions!D131 -> 0.5 | M134: =Divisions!F131 -> 0.5 | N134: XX | O134: 10.5 | P134: =SUM(Divisions!O131:Y131)*2 -> 2 | Q134: 11 | X134: 9
B136: =Divisions!$B137 -> Afdeling/Division 4C
A137: R | B137: TEAM | C137: =MATCH("XX",C138:C149,0) -> 1 | D137: 2 | E137: 3 | F137: 4 | G137: 5 | H137: 6 | I137: 7 | J137: 8 | K137: 9 | L137: 10 | M137: 11 | N137: 12 | O137: BP | P137: MP | Q137: #
A138: 1 | B138: =Divisions!B143 -> 810 Marche-en-Famenne 1 | C138: XX | D138: =Divisions!K143 -> 2 | E138: =Divisions!L143 -> 3 | F138: =Divisions!M143 -> 2 | G138: =Divisions!H143 -> 2.5 | H138: =Divisions!D143 -> 3 | I138: =Divisions!E143 -> 3 | J138: =Divisions!I143 -> 4 | K138: =Divisions!J143 -> 4 | L138: =Divisions!C143 -> 3.5 | M138: =Divisions!G143 -> 3.5 | N138: =Divisions!F143 ->  | O138: =SUM(C138:N138) -> 30.5 | P138: =SUM(Divisions!O143:Y143)*2 -> 18 | Q138: =COUNT(C138:N138) -> 10 | X138: 11
A139: =IF(O139=O138, IF(P139=P138,"",2),2) -> 2 | B139: =Divisions!B150 -> 712 Landen 1 | C139: =Divisions!K150 -> 2 | D139: XX | E139: =Divisions!M150 -> 1.5 | F139: =Divisions!D150 -> 2 | G139: =Divisions!E150 -> 3 | H139: =Divisions!H150 -> 3 | I139: =Divisions!J150 -> 2 | J139: =Divisions!G150 -> 2 | K139: =Divisions!I150 -> 2 | L139: =Divisions!F150 -> 2 | M139: =Divisions!C150 -> 3 | N139: =Divisions!L150 ->  | O139: 22.5 | P139: =SUM(Divisions!O150:Y150)*2 -> 12 | Q139: 10 | X139: 8
A140: =IF(O140=O139, IF(P140=P139,"",3),3) -> 3 | B140: =Divisions!B144 -> 607 Roch. Eupen-Kelmis 5 | C140: =Divisions!L144 -> 1 | D140: =Divisions!M144 -> 2.5 | E140: XX | F140: =Divisions!C144 -> 2.5 | G140: =Divisions!I144 -> 2.5 | H140: =Divisions!E144 -> 2 | I140: =Divisions!F144 -> 3.5 | J140: =Divisions!J144 -> 1.5 | K140: =Divisions!K144 -> 1.5 | L140: =Divisions!D144 -> 3 | M140: =Divisions!H144 -> 2 | N140: =Divisions!G144 ->  | O140: 22.0 | P140: =SUM(Divisions!O144:Y144)*2 -> 12 | Q140: 10 | X140: 1
A141: =IF(O141=O140, IF(P141=P140,"",4),4) -> 4 | B141: =Divisions!B145 -> 607 Roch. Eupen-Kelmis 6 | C141: =Divisions!M145 -> 2 | D141: =Divisions!D145 -> 2 | E141: =Divisions!C145 -> 1.5 | F141: XX | G141: =Divisions!J145 -> 2.5 | H141: =Divisions!F145 -> 2.5 | I141: =Divisions!G145 -> 2.5 | J141: =Divisions!K145 -> 3 | K141: =Divisions!L145 -> 1.5 | L141: =Divisions!E145 -> 4 | M141: =Divisions!I145 -> 0 | N141: =Divisions!H145 ->  | O141: 21.5 | P141: =SUM(Divisions!O145:Y145)*2 -> 12 | Q141: 10 | X141: 12
A142: =IF(O142=O141, IF(P142=P141,"",5),5) -> 5 | B142: =Divisions!B140 -> 601 CRELEL Liège 5 | C142: =Divisions!H140 -> 1.5 | D142: =Divisions!E140 -> 1 | E142: =Divisions!I140 -> 1.5 | F142: =Divisions!J140 -> 1.5 | G142: XX | H142: =Divisions!L140 -> 2.5 | I142: =Divisions!M140 -> 1.5 | J142: =Divisions!F140 -> 4 | K142: =Divisions!G140 -> 2 | L142: =Divisions!K140 -> 3 | M142: =Divisions!D140 -> 4 | N142: =Divisions!C140 ->  | O142: 22.5 | P142: =SUM(Divisions!O140:Y140)*2 -> 9 | Q142: 10 | X142: 3
A143: =IF(O143=O142, IF(P143=P142,"",6),6) -> 6 | B143: =Divisions!B147 -> 622 Herve 1 | C143: =Divisions!D147 -> 1 | D143: =Divisions!H147 -> 1 | E143: =Divisions!E147 -> 2 | F143: =Divisions!F147 -> 1.5 | G143: =Divisions!L147 -> 1.5 | H143: XX | I143: =Divisions!I147 -> 3 | J143: =Divisions!M147 -> 3.5 | K143: =Divisions!C147 -> 3 | L143: =Divisions!G147 -> 0.5 | M143: =Divisions!K147 -> 3 | N143: =Divisions!J147 ->  | O143: 20.0 | P143: =SUM(Divisions!O147:Y147)*2 -> 9 | Q143: 10 | X143: 5
A144: =IF(O144=O143, IF(P144=P143,"",7),7) -> 7 | B144: =Divisions!B148 -> 618 Echiquier Mosan 2 | C144: =Divisions!E148 -> 1 | D144: =Divisions!J148 -> 2 | E144: =Divisions!F148 -> 0.5 | F144: =Divisions!G148 -> 1.5 | G144: =Divisions!M148 -> 2.5 | H144: =Divisions!I148 -> 1 | I144: XX | J144: =Divisions!C148 -> 0 | K144: =Divisions!D148 -> 3 | L144: =Divisions!H148 -> 2.5 | M144: =Divisions!L148 -> 3 | N144: =Divisions!K148 ->  | O144: 17.0 | P144: =SUM(Divisions!O148:Y148)*2 -> 9 | Q144: 10 | X144: 7
A145: =IF(O145=O144, IF(P145=P144,"",8),8) -> 8 | B145: =Divisions!B141 -> 601 CRELEL Liège 6 | C145: =Divisions!I141 -> 0 | D145: =Divisions!G141 -> 2 | E145: =Divisions!J141 -> 2.5 | F145: =Divisions!K141 -> 1 | G145: =Divisions!F141 -> 0 | H145: =Divisions!M141 -> 0.5 | I145: =Divisions!C141 -> 4 | J145: XX | K145: =Divisions!H141 -> 3 | L145: =Divisions!L141 -> 0 | M145: =Divisions!E141 -> 2.5 | N145: =Divisions!D141 ->  | O145: 15.5 | P145: =SUM(Divisions!O141:Y141)*2 -> 9 | Q145: 10 | X145: 10
A146: =IF(O146=O145, IF(P146=P145,"",9),9) -> 9 | B146: =Divisions!B142 -> 627 Wirtzfeld 3 | C146: =Divisions!J142 -> 0 | D146: =Divisions!I142 -> 2 | E146: =Divisions!K142 -> 2.5 | F146: =Divisions!L142 -> 2.5 | G146: =Divisions!G142 -> 2 | H146: =Divisions!C142 -> 1 | I146: =Divisions!D142 -> 1 | J146: =Divisions!H142 -> 1 | K146: XX | L146: =Divisions!M142 -> 1 | M146: =Divisions!F142 -> 2.5 | N146: =Divisions!E142 ->  | O146: 15.5 | P146: =SUM(Divisions!O142:Y142)*2 -> 8 | Q146: 10 | X146: 6
A147: =IF(O147=O146, IF(P147=P146,"",10),10) -> 10 | B147: =Divisions!B146 -> 901 Namur Echecs 4 | C147: =Divisions!C146 -> 0.5 | D147: =Divisions!F146 -> 2 | E147: =Divisions!D146 -> 1 | F147: =Divisions!E146 -> 0 | G147: =Divisions!K146 -> 1 | H147: =Divisions!G146 -> 3.5 | I147: =Divisions!H146 -> 1.5 | J147: =Divisions!L146 -> 4 | K147: =Divisions!M146 -> 3 | L147: XX | M147: =Divisions!J146 -> 1.5 | N147: =Divisions!I146 ->  | O147: 18.0 | P147: =SUM(Divisions!O146:Y146)*2 -> 7 | Q147: 10 | X147: 2
A148: =IF(O148=O147, IF(P148=P147,"",11),11) -> 11 | B148: =Divisions!B139 -> 621 T.A.L. 3 | C148: =Divisions!G139 -> 0.5 | D148: =Divisions!C139 -> 1 | E148: =Divisions!H139 -> 2 | F148: =Divisions!I139 -> 4 | G148: =Divisions!D139 -> 0 | H148: =Divisions!K139 -> 1 | I148: =Divisions!L139 -> 1 | J148: =Divisions!E139 -> 1.5 | K148: =Divisions!F139 -> 1.5 | L148: =Divisions!J139 -> 2.5 | M148: XX | N148: =Divisions!M139 ->  | O148: 15.0 | P148: =SUM(Divisions!O139:Y139)*2 -> 5 | Q148: 10 | X148: 9
A149: =IF(O149=O148, IF(P149=P148,"",12),12) -> 12 | B149: =Divisions!B149 -> 604 KSK47-Eynatten 2 - FF | C149: =Divisions!F149 ->  | D149: =Divisions!L149 ->  | E149: =Divisions!G149 ->  | F149: =Divisions!H149 ->  | G149: =Divisions!C149 ->  | H149: =Divisions!J149 ->  | I149: =Divisions!K149 ->  | J149: =Divisions!D149 ->  | K149: =Divisions!E149 ->  | L149: =Divisions!I149 ->  | M149: =Divisions!M149 ->  | N149: XX | O149: 0.0 | P149: =SUM(Divisions!O149:Y149)*2 -> 0 | Q149: 0 | X149: 4
B151: =Divisions!$B152 -> Afdeling/Division 4D
A152: R | B152: TEAM | C152: =MATCH("XX",C153:C164,0) -> 1 | D152: 2 | E152: 3 | F152: 4 | G152: 5 | H152: 6 | I152: 7 | J152: 8 | K152: 9 | L152: 10 | M152: 11 | N152: 12 | O152: BP | P152: MP | Q152: #
A153: 1 | B153: =Divisions!B163 -> 340 Izegem 1 | C153: XX | D153: =Divisions!L163 -> 1.5 | E153: =Divisions!J163 -> 2.5 | F153: =Divisions!K163 -> 3.5 | G153: =Divisions!H163 -> 3 | H153: =Divisions!E163 -> 3 | I153: =Divisions!I163 -> 2.5 | J153: =Divisions!D163 -> 3.5 | K153: =Divisions!M163 -> 2.5 | L153: =Divisions!G163 -> 2.5 | M153: =Divisions!F163 -> 2.5 | N153: =Divisions!C163 -> 3.5 | O153: =SUM(C153:N153) -> 30.5 | P153: =SUM(Divisions!O163:Y163)*2 -> 20 | Q153: =COUNT(C153:N153) -> 11 | X153: 3
A154: =IF(O154=O153, IF(P154=P153,"",2),2) -> 2 | B154: =Divisions!B154 -> 465 SK Artevelde 1 | C154: =Divisions!L154 -> 2.5 | D154: XX | E154: =Divisions!C154 -> 2.5 | F154: =Divisions!M154 -> 2.5 | G154: =Divisions!J154 -> 2 | H154: =Divisions!G154 -> 2 | I154: =Divisions!K154 -> 3.5 | J154: =Divisions!F154 -> 3.5 | K154: =Divisions!D154 -> 2.5 | L154: =Divisions!I154 -> 2.5 | M154: =Divisions!H154 -> 2.5 | N154: =Divisions!E154 -> 2 | O154: 28.0 | P154: =SUM(Divisions!O154:Y154)*2 -> 19 | Q154: 11 | X154: 10
A155: =IF(O155=O154, IF(P155=P154,"",3),3) -> 3 | B155: =Divisions!B165 -> 432 Wetteren 3 | C155: =Divisions!J165 -> 1.5 | D155: =Divisions!C165 -> 1.5 | E155: XX | F155: =Divisions!L165 -> 3.5 | G155: =Divisions!F165 -> 2.5 | H155: =Divisions!K165 -> 2.5 | I155: =Divisions!H165 -> 3.5 | J155: =Divisions!I165 -> 2.5 | K155: =Divisions!E165 -> 1.5 | L155: =Divisions!D165 -> 3.5 | M155: =Divisions!M165 -> 1 | N155: =Divisions!G165 -> 3.5 | O155: 27.0 | P155: =SUM(Divisions!O165:Y165)*2 -> 14 | Q155: 11 | X155: 1
A156: =IF(O156=O155, IF(P156=P155,"",4),4) -> 4 | B156: =Divisions!B164 -> 304 Tielt 1 | C156: =Divisions!K164 -> 0.5 | D156: =Divisions!M164 -> 1.5 | E156: =Divisions!L164 -> 0.5 | F156: XX | G156: =Divisions!I164 -> 3 | H156: =Divisions!F164 -> 0.5 | I156: =Divisions!J164 -> 3 | J156: =Divisions!E164 -> 2.5 | K156: =Divisions!C164 -> 2 | L156: =Divisions!H164 -> 3 | M156: =Divisions!G164 -> 4 | N156: =Divisions!D164 -> 3.5 | O156: 24.0 | P156: =SUM(Divisions!O164:Y164)*2 -> 13 | Q156: 11 | X156: 8
A157: =IF(O157=O156, IF(P157=P156,"",5),5) -> 5 | B157: =Divisions!B161 -> 307 Bredene 1 | C157: =Divisions!H161 -> 1 | D157: =Divisions!J161 -> 2 | E157: =Divisions!F161 -> 1.5 | F157: =Divisions!I161 -> 1 | G157: XX | H157: =Divisions!C161 -> 2 | I157: =Divisions!G161 -> 3.5 | J157: =Divisions!M161 -> 2 | K157: =Divisions!K161 -> 2.5 | L157: =Divisions!E161 -> 3 | M157: =Divisions!D161 -> 2 | N157: =Divisions!L161 -> 3.5 | O157: 24.0 | P157: =SUM(Divisions!O161:Y161)*2 -> 12 | Q157: 11 | X157: 11
A158: =IF(O158=O157, IF(P158=P157,"",6),6) -> 6 | B158: =Divisions!B158 -> 301 KOSK Oostende 3 | C158: =Divisions!E158 -> 1 | D158: =Divisions!G158 -> 2 | E158: =Divisions!K158 -> 1.5 | F158: =Divisions!F158 -> 3.5 | G158: =Divisions!C158 -> 2 | H158: XX | I158: =Divisions!D158 -> 1 | J158: =Divisions!J158 -> 2 | K158: =Divisions!H158 -> 2.5 | L158: =Divisions!M158 -> 1.5 | M158: =Divisions!L158 -> 3 | N158: =Divisions!I158 -> 4 | O158: 24.0 | P158: =SUM(Divisions!O158:Y158)*2 -> 11 | Q158: 11 | X158: 9
A159: =IF(O159=O158, IF(P159=P158,"",7),7) -> 7 | B159: =Divisions!B162 -> 422 MSV 1 | C159: =Divisions!I162 -> 1.5 | D159: =Divisions!K162 -> 0.5 | E159: =Divisions!H162 -> 0.5 | F159: =Divisions!J162 -> 1 | G159: =Divisions!G162 -> 0.5 | H159: =Divisions!D162 -> 3 | I159: XX | J159: =Divisions!C162 -> 2 | K159: =Divisions!L162 -> 2.5 | L159: =Divisions!F162 -> 4 | M159: =Divisions!E162 -> 2.5 | N159: =Divisions!M162 -> 3 | O159: 21.0 | P159: =SUM(Divisions!O162:Y162)*2 -> 11 | Q159: 11 | X159: 12
A160: =IF(O160=O159, IF(P160=P159,"",8),8) -> 8 | B160: =Divisions!B157 -> 430 Landegem 1 | C160: =Divisions!D157 -> 0.5 | D160: =Divisions!F157 -> 0.5 | E160: =Divisions!I157 -> 1.5 | F160: =Divisions!E157 -> 1.5 | G160: =Divisions!M157 -> 2 | H160: =Divisions!J157 -> 2 | I160: =Divisions!C157 -> 2 | J160: XX | K160: =Divisions!G157 -> 2 | L160: =Divisions!L157 -> 3.5 | M160: =Divisions!K157 -> 2 | N160: =Divisions!H157 -> 4 | O160: 21.5 | P160: =SUM(Divisions!O157:Y157)*2 -> 9 | Q160: 11 | X160: 5
A161: =IF(O161=O160, IF(P161=P160,"",9),9) -> 9 | B161: =Divisions!B155 -> 303 KBSK Brugge 4 | C161: =Divisions!M155 -> 1.5 | D161: =Divisions!D155 -> 1.5 | E161: =Divisions!E155 -> 2.5 | F161: =Divisions!C155 -> 2 | G161: =Divisions!K155 -> 1.5 | H161: =Divisions!H155 -> 1.5 | I161: =Divisions!L155 -> 1.5 | J161: =Divisions!G155 -> 2 | K161: XX | L161: =Divisions!J155 -> 1.5 | M161: =Divisions!I155 -> 3.5 | N161: =Divisions!F155 -> 3 | O161: 22.0 | P161: =SUM(Divisions!O155:Y155)*2 -> 8 | Q161: 11 | X161: 2
A162: =IF(O162=O161, IF(P162=P161,"",10),10) -> 10 | B162: =Divisions!B160 -> 302 KISK Ieper 2 | C162: =Divisions!G160 -> 1.5 | D162: =Divisions!I160 -> 1.5 | E162: =Divisions!D160 -> 0.5 | F162: =Divisions!H160 -> 1 | G162: =Divisions!E160 -> 1 | H162: =Divisions!M160 -> 2.5 | I162: =Divisions!F160 -> 0 | J162: =Divisions!L160 -> 0.5 | K162: =Divisions!J160 -> 2.5 | L162: XX | M162: =Divisions!C160 -> 2.5 | N162: =Divisions!K160 -> 2.5 | O162: 16.0 | P162: =SUM(Divisions!O160:Y160)*2 -> 8 | Q162: 11 | X162: 7
A163: =IF(O163=O162, IF(P163=P162,"",11),11) -> 11 | B163: =Divisions!B159 -> 313 KWSLE 2 | C163: =Divisions!F159 -> 1.5 | D163: =Divisions!H159 -> 1.5 | E163: =Divisions!M159 -> 3 | F163: =Divisions!G159 -> 0 | G163: =Divisions!D159 -> 2 | H163: =Divisions!L159 -> 1 | I163: =Divisions!E159 -> 1.5 | J163: =Divisions!K159 -> 2 | K163: =Divisions!I159 -> 0.5 | L163: =Divisions!C159 -> 1.5 | M163: XX | N163: =Divisions!J159 -> 2.5 | O163: 17.0 | P163: =SUM(Divisions!O159:Y159)*2 -> 6 | Q163: 11 | X163: 6
A164: =IF(O164=O163, IF(P164=P163,"",12),12) -> 12 | B164: =Divisions!B156 -> 475 Rapid Aalter 1 | C164: =Divisions!C156 -> 0.5 | D164: =Divisions!E156 -> 2 | E164: =Divisions!G156 -> 0.5 | F164: =Divisions!D156 -> 0.5 | G164: =Divisions!L156 -> 0.5 | H164: =Divisions!I156 -> 0 | I164: =Divisions!M156 -> 1 | J164: =Divisions!H156 -> 0 | K164: =Divisions!F156 -> 1 | L164: =Divisions!K156 -> 1.5 | M164: =Divisions!J156 -> 1.5 | N164: XX | O164: 9.0 | P164: =SUM(Divisions!O156:Y156)*2 -> 1 | Q164: 11 | X164: 4
B166: =Divisions!$B167 -> Afdeling/Division 4E
A167: R | B167: TEAM | C167: =MATCH("XX",C168:C179,0) -> 1 | D167: 2 | E167: 3 | F167: 4 | G167: 5 | H167: 6 | I167: 7 | J167: 8 | K167: 9 | L167: 10 | M167: 11 | N167: 12 | O167: BP | P167: MP | Q167: #
A168: 1 | B168: =Divisions!B171 -> 418 VPTD 1 | C168: XX | D168: =Divisions!I171 -> 2 | E168: =Divisions!E171 -> 3 | F168: =Divisions!G171 -> 3 | G168: =Divisions!J171 -> 3 | H168: =Divisions!C171 -> 4 | I168: =Divisions!L171 -> 1 | J168: =Divisions!M171 -> 3.5 | K168: =Divisions!K171 -> 2 | L168: =Divisions!H171 -> 2 | M168: =Divisions!F171 -> 2.5 | N168: =Divisions!D171 -> 3 | O168: =SUM(C168:N168) -> 29.0 | P168: =SUM(Divisions!O171:Y171)*2 -> 17 | Q168: =COUNT(C168:N168) -> 11 | X168: 8
A169: =IF(O169=O168, IF(P169=P168,"",2),2) -> 2 | B169: =Divisions!B173 -> 460 Oudenaarde 1 | C169: =Divisions!I173 -> 2 | D169: XX | E169: =Divisions!G173 -> 3 | F169: =Divisions!K173 -> 3 | G169: =Divisions!L173 -> 3.5 | H169: =Divisions!E173 -> 1 | I169: =Divisions!C173 -> 2.5 | J169: =Divisions!D173 -> 1.5 | K169: =Divisions!M173 -> 2.5 | L169: =Divisions!J173 -> 3 | M169: =Divisions!H173 -> 3 | N169: =Divisions!F173 -> 3.5 | O169: 28.5 | P169: =SUM(Divisions!O173:Y173)*2 -> 17 | Q169: 11 | X169: 7
A170: =IF(O170=O169, IF(P170=P169,"",3),3) -> 3 | B170: =Divisions!B169 -> 462 Zottegem 2 | C170: =Divisions!E169 -> 1 | D170: =Divisions!G169 -> 1 | E170: XX | F170: =Divisions!C169 -> 2 | G170: =Divisions!H169 -> 1.5 | H170: =Divisions!L169 -> 4 | I170: =Divisions!J169 -> 2.5 | J170: =Divisions!K169 -> 4 | K170: =Divisions!I169 -> 3 | L170: =Divisions!F169 -> 3 | M170: =Divisions!D169 -> 3 | N170: =Divisions!M169 -> 2.5 | O170: 27.5 | P170: =SUM(Divisions!O169:Y169)*2 -> 15 | Q170: 11 | X170: 4
A171: =IF(O171=O170, IF(P171=P170,"",4),4) -> 4 | B171: =Divisions!B180 -> 432 Wetteren 4 | C171: =Divisions!G180 -> 1 | D171: =Divisions!K180 -> 1 | E171: =Divisions!C180 -> 2 | F171: XX | G171: =Divisions!M180 -> 3 | H171: =Divisions!J180 -> 3.5 | I171: =Divisions!F180 -> 3.5 | J171: =Divisions!H180 -> 0.5 | K171: =Divisions!D180 -> 1.5 | L171: =Divisions!I180 -> 2.5 | M171: =Divisions!E180 -> 3.5 | N171: =Divisions!L180 -> 2 | O171: 24.0 | P171: =SUM(Divisions!O180:Y180)*2 -> 12 | Q171: 11 | X171: 6
A172: =IF(O172=O171, IF(P172=P171,"",5),5) -> 5 | B172: =Divisions!B174 -> 417 Pion-Aalst 2 | C172: =Divisions!J174 -> 1 | D172: =Divisions!L174 -> 0.5 | E172: =Divisions!H174 -> 2.5 | F172: =Divisions!M174 -> 1 | G172: XX | H172: =Divisions!F174 -> 3 | I172: =Divisions!D174 -> 2.5 | J172: =Divisions!E174 -> 2 | K172: =Divisions!C174 -> 1 | L172: =Divisions!K174 -> 2.5 | M172: =Divisions!I174 -> 3.5 | N172: =Divisions!G174 -> 2 | O172: 21.5 | P172: =SUM(Divisions!O174:Y174)*2 -> 12 | Q172: 11 | X172: 5
A173: =IF(O173=O172, IF(P173=P172,"",6),6) -> 6 | B173: =Divisions!B178 -> 401 KGSRL 8 | C173: =Divisions!C178 -> 0 | D173: =Divisions!E178 -> 3 | E173: =Divisions!L178 -> 0 | F173: =Divisions!J178 -> 0.5 | G173: =Divisions!F178 -> 1 | H173: XX | I173: =Divisions!H178 -> 2.5 | J173: =Divisions!I178 -> 3 | K173: =Divisions!G178 -> 3 | L173: =Divisions!D178 -> 2 | M173: =Divisions!M178 -> 2.5 | N173: =Divisions!K178 -> 2 | O173: 19.5 | P173: =SUM(Divisions!O178:Y178)*2 -> 12 | Q173: 11 | X173: 1
A174: =IF(O174=O173, IF(P174=P173,"",7),7) -> 7 | B174: =Divisions!B176 -> 472 De Mercatel 2 | C174: =Divisions!L176 -> 3 | D174: =Divisions!C176 -> 1.5 | E174: =Divisions!J176 -> 1.5 | F174: =Divisions!F176 -> 0.5 | G174: =Divisions!D176 -> 1.5 | H174: =Divisions!H176 -> 1.5 | I174: XX | J174: =Divisions!G176 -> 2.5 | K174: =Divisions!E176 -> 2 | L174: =Divisions!M176 -> 2.5 | M174: =Divisions!K176 -> 2 | N174: =Divisions!I176 -> 3 | O174: 21.5 | P174: =SUM(Divisions!O176:Y176)*2 -> 10 | Q174: 11 | X174: 3
A175: =IF(O175=O174, IF(P175=P174,"",8),8) -> 8 | B175: =Divisions!B177 -> 402 Jean Jaurès Gent 2 | C175: =Divisions!M177 -> 0.5 | D175: =Divisions!D177 -> 2.5 | E175: =Divisions!K177 -> 0 | F175: =Divisions!H177 -> 3.5 | G175: =Divisions!E177 -> 2 | H175: =Divisions!I177 -> 1 | I175: =Divisions!G177 -> 1.5 | J175: XX | K175: =Divisions!F177 -> 3 | L175: =Divisions!C177 -> 2 | M175: =Divisions!L177 -> 1.5 | N175: =Divisions!J177 -> 2.5 | O175: 20.0 | P175: =SUM(Divisions!O177:Y177)*2 -> 10 | Q175: 11 | X175: 2
A176: =IF(O176=O175, IF(P176=P175,"",9),9) -> 9 | B176: =Divisions!B175 -> 438 Deinze 1 | C176: =Divisions!K175 -> 2 | D176: =Divisions!M175 -> 1.5 | E176: =Divisions!I175 -> 1 | F176: =Divisions!D175 -> 2.5 | G176: =Divisions!C175 -> 3 | H176: =Divisions!G175 -> 1 | I176: =Divisions!E175 -> 2 | J176: =Divisions!F175 -> 1 | K176: XX | L176: =Divisions!L175 -> 1.5 | M176: =Divisions!J175 -> 1.5 | N176: =Divisions!H175 -> 4 | O176: 21.0 | P176: =SUM(Divisions!O175:Y175)*2 -> 8 | Q176: 11 | X176: 11
A177: =IF(O177=O176, IF(P177=P176,"",10),10) -> 10 | B177: =Divisions!B172 -> 430 Landegem 2 | C177: =Divisions!H172 -> 2 | D177: =Divisions!J172 -> 1 | E177: =Divisions!F172 -> 1 | F177: =Divisions!I172 -> 1.5 | G177: =Divisions!K172 -> 1.5 | H177: =Divisions!D172 -> 2 | I177: =Divisions!M172 -> 1.5 | J177: =Divisions!C172 -> 2 | K177: =Divisions!L172 -> 2.5 | L177: XX | M177: =Divisions!G172 -> 2.5 | N177: =Divisions!E172 -> 1.5 | O177: 19.0 | P177: =SUM(Divisions!O172:Y172)*2 -> 7 | Q177: 11 | X177: 10
A178: =IF(O178=O177, IF(P178=P177,"",11),11) -> 11 | B178: =Divisions!B170 -> 541 Leuze-En-Hainaut 2 | C178: =Divisions!F170 -> 1.5 | D178: =Divisions!H170 -> 1 | E178: =Divisions!D170 -> 1 | F178: =Divisions!E170 -> 0.5 | G178: =Divisions!I170 -> 0.5 | H178: =Divisions!M170 -> 1.5 | I178: =Divisions!K170 -> 2 | J178: =Divisions!L170 -> 2.5 | K178: =Divisions!J170 -> 2.5 | L178: =Divisions!G170 -> 1.5 | M178: XX | N178: =Divisions!C170 -> 4 | O178: 18.5 | P178: =SUM(Divisions!O170:Y170)*2 -> 7 | Q178: 11 | X178: 9
A179: =IF(O179=O178, IF(P179=P178,"",12),12) -> 12 | B179: =Divisions!B179 -> 304 Tielt 2 | C179: =Divisions!D179 -> 1 | D179: =Divisions!F179 -> 0.5 | E179: =Divisions!M179 -> 1.5 | F179: =Divisions!L179 -> 2 | G179: =Divisions!G179 -> 2 | H179: =Divisions!K179 -> 2 | I179: =Divisions!I179 -> 1 | J179: =Divisions!J179 -> 1.5 | K179: =Divisions!H179 -> 0 | L179: =Divisions!E179 -> 2.5 | M179: =Divisions!C179 -> 0 | N179: XX | O179: 14.0 | P179: =SUM(Divisions!O179:Y179)*2 -> 5 | Q179: 11 | X179: 12
B181: =Divisions!$B182 -> Afdeling/Division 4F
A182: R | B182: TEAM | C182: =MATCH("XX",C183:C194,0) -> 1 | D182: 2 | E182: 3 | F182: 4 | G182: 5 | H182: 6 | I182: 7 | J182: 8 | K182: 9 | L182: 10 | M182: 11 | N182: 12 | O182: BP | P182: MP | Q182: #
A183: 1 | B183: =Divisions!B195 -> 548 Caissa Europe 2 | C183: XX | D183: =Divisions!C195 -> 3 | E183: =Divisions!M195 -> 3.5 | F183: =Divisions!K195 -> 4 | G183: =Divisions!D195 -> 2.5 | H183: =Divisions!L195 -> 3 | I183: =Divisions!G195 -> 2 | J183: =Divisions!J195 -> 3 | K183: =Divisions!H195 -> 2.5 | L183: =Divisions!I195 -> 1.5 | M183: =Divisions!F195 -> 3.5 | N183: =Divisions!E195 -> 2.5 | O183: =SUM(C183:N183) -> 31.0 | P183: =SUM(Divisions!O195:Y195)*2 -> 19 | Q183: =COUNT(C183:N183) -> 11 | X183: 5
A184: =IF(O184=O183, IF(P184=P183,"",2),2) -> 2 | B184: =Divisions!B184 -> 525 CELB Anderlues 2 | C184: =Divisions!C184 -> 1 | D184: XX | E184: =Divisions!H184 -> 3.5 | F184: =Divisions!G184 -> 2.5 | G184: =Divisions!I184 -> 1 | H184: =Divisions!M184 -> 3 | I184: =Divisions!E184 -> 2.5 | J184: =Divisions!L184 -> 2.5 | K184: =Divisions!K184 -> 3 | L184: =Divisions!F184 -> 3.5 | M184: =Divisions!J184 -> 4 | N184: =Divisions!D184 -> 3 | O184: 29.5 | P184: =SUM(Divisions!O184:Y184)*2 -> 18 | Q184: 11 | X184: 12
A185: =IF(O185=O184, IF(P185=P184,"",3),3) -> 3 | B185: =Divisions!B189 -> 902 CES 1 | C185: =Divisions!M189 -> 0.5 | D185: =Divisions!H189 -> 0.5 | E185: XX | F185: =Divisions!L189 -> 1.5 | G185: =Divisions!C189 -> 2.5 | H185: =Divisions!G189 -> 2 | I185: =Divisions!J189 -> 3.5 | J185: =Divisions!F189 -> 3.5 | K185: =Divisions!E189 -> 4 | L185: =Divisions!K189 -> 3 | M185: =Divisions!D189 -> 2.5 | N185: =Divisions!I189 -> 4 | O185: 27.5 | P185: =SUM(Divisions!O189:Y189)*2 -> 15 | Q185: 11 | X185: 2
A186: =IF(O186=O185, IF(P186=P185,"",4),4) -> 4 | B186: =Divisions!B188 -> 278 Pantin 4 | C186: =Divisions!K188 -> 0 | D186: =Divisions!G188 -> 1.5 | E186: =Divisions!L188 -> 2.5 | F186: XX | G186: =Divisions!M188 -> 3.5 | H186: =Divisions!F188 -> 2 | I186: =Divisions!I188 -> 3.5 | J186: =Divisions!E188 -> 2.5 | K186: =Divisions!D188 -> 2 | L186: =Divisions!J188 -> 2 | M186: =Divisions!C188 -> 3 | N186: =Divisions!H188 -> 2 | O186: 24.5 | P186: =SUM(Divisions!O188:Y188)*2 -> 14 | Q186: 11 | X186: 11
A187: =IF(O187=O186, IF(P187=P186,"",5),5) -> 5 | B187: =Divisions!B190 -> 501 CREC Charleroi 2 | C187: =Divisions!D190 -> 1.5 | D187: =Divisions!I190 -> 3 | E187: =Divisions!C190 -> 1.5 | F187: =Divisions!M190 -> 0.5 | G187: XX | H187: =Divisions!H190 -> 3.5 | I187: =Divisions!K190 -> 2.5 | J187: =Divisions!G190 -> 2.5 | K187: =Divisions!F190 -> 1 | L187: =Divisions!L190 -> 3.5 | M187: =Divisions!E190 -> 3.5 | N187: =Divisions!J190 -> 2 | O187: 25.0 | P187: =SUM(Divisions!O190:Y190)*2 -> 13 | Q187: 11 | X187: 10
A188: =IF(O188=O187, IF(P188=P187,"",6),6) -> 6 | B188: =Divisions!B194 -> 547 Ren. Binchois 1 | C188: =Divisions!L194 -> 1 | D188: =Divisions!M194 -> 1 | E188: =Divisions!G194 -> 2 | F188: =Divisions!F194 -> 2 | G188: =Divisions!H194 -> 0.5 | H188: XX | I188: =Divisions!D194 -> 2 | J188: =Divisions!K194 -> 2.5 | K188: =Divisions!J194 -> 4 | L188: =Divisions!E194 -> 1.5 | M188: =Divisions!I194 -> 2.5 | N188: =Divisions!C194 -> 3 | O188: 22.0 | P188: =SUM(Divisions!O194:Y194)*2 -> 11 | Q188: 11 | X188: 6
A189: =IF(O189=O188, IF(P189=P188,"",7),7) -> 7 | B189: =Divisions!B186 -> 228 Dworp 2 | C189: =Divisions!G186 -> 2 | D189: =Divisions!E186 -> 1.5 | E189: =Divisions!J186 -> 0.5 | F189: =Divisions!I186 -> 0.5 | G189: =Divisions!K186 -> 1.5 | H189: =Divisions!D186 -> 2 | I189: XX | J189: =Divisions!C186 -> 2 | K189: =Divisions!M186 -> 2 | L189: =Divisions!H186 -> 2 | M189: =Divisions!L186 -> 3.5 | N189: =Divisions!F186 -> 2.5 | O189: 20.0 | P189: =SUM(Divisions!O186:Y186)*2 -> 9 | Q189: 11 | X189: 4
A190: =IF(O190=O189, IF(P190=P189,"",8),8) -> 8 | B190: =Divisions!B193 -> 233 DZD Halle 1 | C190: =Divisions!J193 -> 1 | D190: =Divisions!L193 -> 1.5 | E190: =Divisions!F193 -> 0.5 | F190: =Divisions!E193 -> 1.5 | G190: =Divisions!G193 -> 1.5 | H190: =Divisions!K193 -> 1.5 | I190: =Divisions!C193 -> 2 | J190: XX | K190: =Divisions!I193 -> 2 | L190: =Divisions!D193 -> 3 | M190: =Divisions!H193 -> 3 | N190: =Divisions!M193 -> 3.5 | O190: 21.0 | P190: =SUM(Divisions!O193:Y193)*2 -> 8 | Q190: 11 | X190: 9
A191: =IF(O191=O190, IF(P191=P190,"",9),9) -> 9 | B191: =Divisions!B192 -> 207 2 Fous Diogène 3 | C191: =Divisions!H192 -> 1.5 | D191: =Divisions!K192 -> 1 | E191: =Divisions!E192 -> 0 | F191: =Divisions!D192 -> 2 | G191: =Divisions!F192 -> 3 | H191: =Divisions!J192 -> 0 | I191: =Divisions!M192 -> 2 | J191: =Divisions!I192 -> 2 | K191: XX | L191: =Divisions!C192 -> 1 | M191: =Divisions!G192 -> 2 | N191: =Divisions!L192 -> 3 | O191: 17.5 | P191: =SUM(Divisions!O192:Y192)*2 -> 8 | Q191: 11 | X191: 8
A192: =IF(O192=O191, IF(P192=P191,"",10),10) -> 10 | B192: =Divisions!B187 -> 551 HCC Jurbise 1 | C192: =Divisions!I187 -> 2.5 | D192: =Divisions!F187 -> 0.5 | E192: =Divisions!K187 -> 1 | F192: =Divisions!J187 -> 2 | G192: =Divisions!L187 -> 0.5 | H192: =Divisions!E187 -> 2.5 | I192: =Divisions!H187 -> 2 | J192: =Divisions!D187 -> 1 | K192: =Divisions!C187 -> 3 | L192: XX | M192: =Divisions!M187 -> 1 | N192: =Divisions!G187 -> 0.5 | O192: 16.5 | P192: =SUM(Divisions!O187:Y187)*2 -> 8 | Q192: 11 | X192: 7
A193: =IF(O193=O192, IF(P193=P192,"",11),11) -> 11 | B193: =Divisions!B191 -> 909 Philippeville 2 | C193: =Divisions!F191 -> 0.5 | D193: =Divisions!J191 -> 0 | E193: =Divisions!D191 -> 1.5 | F193: =Divisions!C191 -> 1 | G193: =Divisions!E191 -> 0.5 | H193: =Divisions!I191 -> 1.5 | I193: =Divisions!L191 -> 0.5 | J193: =Divisions!H191 -> 1 | K193: =Divisions!G191 -> 2 | L193: =Divisions!M191 -> 3 | M193: XX | N193: =Divisions!K191 -> 4 | O193: 15.5 | P193: =SUM(Divisions!O191:Y191)*2 -> 5 | Q193: 11 | X193: 3
A194: =IF(O194=O193, IF(P194=P193,"",12),12) -> 12 | B194: =Divisions!B185 -> 541 Leuze-En-Hainaut 3 | C194: =Divisions!E185 -> 1.5 | D194: =Divisions!D185 -> 1 | E194: =Divisions!I185 -> 0 | F194: =Divisions!H185 -> 2 | G194: =Divisions!J185 -> 2 | H194: =Divisions!C185 -> 1 | I194: =Divisions!F185 -> 1.5 | J194: =Divisions!M185 -> 0.5 | K194: =Divisions!L185 -> 1 | L194: =Divisions!G185 -> 3.5 | M194: =Divisions!K185 -> 0 | N194: XX | O194: 14.0 | P194: =SUM(Divisions!O185:Y185)*2 -> 4 | Q194: 11 | X194: 1
B196: =Divisions!$B197 -> Afdeling/Division 4G
A197: R | B197: TEAM | C197: =MATCH("XX",C198:C209,0) -> 1 | D197: 2 | E197: 3 | F197: 4 | G197: 5 | H197: 6 | I197: 7 | J197: 8 | K197: 9 | L197: 10 | M197: 11 | N197: 12 | O197: BP | P197: MP | Q197: #
A198: 1 | B198: =Divisions!B202 -> 430 Landegem 3 | C198: XX | D198: =Divisions!E202 -> 2 | E198: =Divisions!L202 -> 3 | F198: =Divisions!D202 -> 2 | G198: =Divisions!K202 -> 2 | H198: =Divisions!M202 -> 3 | I198: =Divisions!F202 -> 3.5 | J198: =Divisions!C202 -> 2.5 | K198: =Divisions!J202 -> 2.5 | L198: =Divisions!G202 -> 3 | M198: =Divisions!I202 -> 2 | N198: =Divisions!H202 -> 3 | O198: =SUM(C198:N198) -> 28.5 | P198: =SUM(Divisions!O202:Y202)*2 -> 18 | Q198: =COUNT(C198:N198) -> 11 | X198: 7
A199: =IF(O199=O198, IF(P199=P198,"",2),2) -> 2 | B199: =Divisions!B209 -> 130 Hoboken 1 | C199: =Divisions!E209 -> 2 | D199: XX | E199: =Divisions!H209 -> 3 | F199: =Divisions!K209 -> 1.5 | G199: =Divisions!G209 -> 3.5 | H199: =Divisions!I209 -> 2 | I199: =Divisions!M209 -> 1 | J199: =Divisions!J209 -> 4 | K199: =Divisions!F209 -> 2 | L199: =Divisions!C209 -> 2.5 | M199: =Divisions!L209 -> 3 | N199: =Divisions!D209 -> 2 | O199: 26.5 | P199: =SUM(Divisions!O209:Y209)*2 -> 14 | Q199: 11 | X199: 1
A200: =IF(O200=O199, IF(P200=P199,"",3),3) -> 3 | B200: =Divisions!B205 -> 436 LSV-Chesspirant 4 | C200: =Divisions!L205 -> 1 | D200: =Divisions!H205 -> 1 | E200: XX | F200: =Divisions!G205 -> 3.5 | G200: =Divisions!C205 -> 3 | H200: =Divisions!E205 -> 3.5 | I200: =Divisions!I205 -> 1.5 | J200: =Divisions!F205 -> 2 | K200: =Divisions!M205 -> 2 | L200: =Divisions!J205 -> 2 | M200: =Divisions!D205 -> 2.5 | N200: =Divisions!K205 -> 3.5 | O200: 25.5 | P200: =SUM(Divisions!O205:Y205)*2 -> 13 | Q200: 11 | X200: 11
A201: =IF(O201=O200, IF(P201=P200,"",4),4) -> 4 | B201: =Divisions!B208 -> 471 Wachtebeke 3 | C201: =Divisions!D208 -> 2 | D201: =Divisions!K208 -> 2.5 | E201: =Divisions!G208 -> 0.5 | F201: XX | G201: =Divisions!F208 -> 3.5 | H201: =Divisions!H208 -> 1.5 | I201: =Divisions!L208 -> 2.5 | J201: =Divisions!I208 -> 2 | K201: =Divisions!E208 -> 1 | L201: =Divisions!M208 -> 3 | M201: =Divisions!J208 -> 2 | N201: =Divisions!C208 -> 3 | O201: 23.5 | P201: =SUM(Divisions!O208:Y208)*2 -> 13 | Q201: 11 | X201: 6
A202: =IF(O202=O201, IF(P202=P201,"",5),5) ->  | B202: =Divisions!B204 -> 124 Deurne 2 | C202: =Divisions!K204 -> 2 | D202: =Divisions!G204 -> 0.5 | E202: =Divisions!C204 -> 1 | F202: =Divisions!F204 -> 0.5 | G202: XX | H202: =Divisions!D204 -> 2 | I202: =Divisions!H204 -> 2 | J202: =Divisions!E204 -> 3 | K202: =Divisions!L204 -> 4 | L202: =Divisions!I204 -> 2.5 | M202: =Divisions!M204 -> 3 | N202: =Divisions!J204 -> 3 | O202: 23.5 | P202: =SUM(Divisions!O204:Y204)*2 -> 13 | Q202: 11 | X202: 9
A203: =IF(O203=O202, IF(P203=P202,"",6),6) -> 6 | B203: =Divisions!B206 -> 132 SK Oude God 1 | C203: =Divisions!M206 -> 1 | D203: =Divisions!I206 -> 2 | E203: =Divisions!E206 -> 0.5 | F203: =Divisions!H206 -> 2.5 | G203: =Divisions!D206 -> 2 | H203: XX | I203: =Divisions!J206 -> 2 | J203: =Divisions!G206 -> 2 | K203: =Divisions!C206 -> 4 | L203: =Divisions!K206 -> 2 | M203: =Divisions!F206 -> 2 | N203: =Divisions!L206 -> 3.5 | O203: 23.5 | P203: =SUM(Divisions!O206:Y206)*2 -> 12 | Q203: 11 | X203: 3
A204: =IF(O204=O203, IF(P204=P203,"",7),7) -> 7 | B204: =Divisions!B199 -> 465 SK Artevelde 2 | C204: =Divisions!F199 -> 0.5 | D204: =Divisions!M199 -> 3 | E204: =Divisions!I199 -> 2.5 | F204: =Divisions!L199 -> 1.5 | G204: =Divisions!H199 -> 2 | H204: =Divisions!J199 -> 2 | I204: XX | J204: =Divisions!K199 -> 2.5 | K204: =Divisions!G199 -> 2 | L204: =Divisions!D199 -> 1.5 | M204: =Divisions!C199 -> 4 | N204: =Divisions!E199 -> 1.5 | O204: 23.0 | P204: =SUM(Divisions!O199:Y199)*2 -> 11 | Q204: 11 | X204: 12
A205: =IF(O205=O204, IF(P205=P204,"",8),8) -> 8 | B205: =Divisions!B207 -> 422 MSV 2 | C205: =Divisions!C207 -> 1.5 | D205: =Divisions!J207 -> 0 | E205: =Divisions!F207 -> 2 | F205: =Divisions!I207 -> 2 | G205: =Divisions!E207 -> 1 | H205: =Divisions!G207 -> 2 | I205: =Divisions!K207 -> 1.5 | J205: XX | K205: =Divisions!D207 -> 3.5 | L205: =Divisions!L207 -> 2.5 | M205: =Divisions!H207 -> 2 | N205: =Divisions!M207 -> 3 | O205: 21.0 | P205: =SUM(Divisions!O207:Y207)*2 -> 10 | Q205: 11 | X205: 4
A206: =IF(O206=O205, IF(P206=P205,"",9),9) -> 9 | B206: =Divisions!B203 -> 401 KGSRL 9 | C206: =Divisions!J203 -> 1.5 | D206: =Divisions!F203 -> 2 | E206: =Divisions!M203 -> 2 | F206: =Divisions!E203 -> 3 | G206: =Divisions!L203 -> 0 | H206: =Divisions!C203 -> 0 | I206: =Divisions!G203 -> 2 | J206: =Divisions!D203 -> 0.5 | K206: XX | L206: =Divisions!H203 -> 2 | M206: =Divisions!K203 -> 3 | N206: =Divisions!I203 -> 3 | O206: 19.0 | P206: =SUM(Divisions!O203:Y203)*2 -> 10 | Q206: 11 | X206: 8
A207: =IF(O207=O206, IF(P207=P206,"",10),10) -> 10 | B207: =Divisions!B200 -> 121 Turnhout 2 | C207: =Divisions!G200 -> 1 | D207: =Divisions!C200 -> 1.5 | E207: =Divisions!J200 -> 2 | F207: =Divisions!M200 -> 1 | G207: =Divisions!I200 -> 1.5 | H207: =Divisions!K200 -> 2 | I207: =Divisions!D200 -> 2.5 | J207: =Divisions!L200 -> 1.5 | K207: =Divisions!H200 -> 2 | L207: XX | M207: =Divisions!E200 -> 2 | N207: =Divisions!F200 -> 3 | O207: 20.0 | P207: =SUM(Divisions!O200:Y200)*2 -> 8 | Q207: 11 | X207: 10
A208: =IF(O208=O207, IF(P208=P207,"",11),11) -> 11 | B208: =Divisions!B210 -> 143 Boey Temse 2 | C208: =Divisions!I210 -> 2 | D208: =Divisions!L210 -> 1 | E208: =Divisions!D210 -> 1.5 | F208: =Divisions!J210 -> 2 | G208: =Divisions!M210 -> 1 | H208: =Divisions!F210 -> 2 | I208: =Divisions!C210 -> 0 | J208: =Divisions!H210 -> 2 | K208: =Divisions!K210 -> 1 | L208: =Divisions!E210 -> 2 | M208: XX | N208: =Divisions!G210 -> 2 | O208: 16.5 | P208: =SUM(Divisions!O210:Y210)*2 -> 6 | Q208: 11 | X208: 2
A209: =IF(O209=O208, IF(P209=P208,"",12),12) -> 12 | B209: =Divisions!B201 -> 436 LSV-Chesspirant 3 | C209: =Divisions!H201 -> 1 | D209: =Divisions!D201 -> 2 | E209: =Divisions!K201 -> 0.5 | F209: =Divisions!C201 -> 1 | G209: =Divisions!J201 -> 1 | H209: =Divisions!L201 -> 0.5 | I209: =Divisions!E201 -> 2.5 | J209: =Divisions!M201 -> 1 | K209: =Divisions!I201 -> 1 | L209: =Divisions!F201 -> 1 | M209: =Divisions!G201 -> 2 | N209: XX | O209: 13.5 | P209: =SUM(Divisions!O201:Y201)*2 -> 4 | Q209: 11 | X209: 5
B211: =Divisions!$B212 -> Afdeling/Division 4H
A212: R | B212: TEAM | C212: =MATCH("XX",C213:C224,0) -> 1 | D212: 2 | E212: 3 | F212: 4 | G212: 5 | H212: 6 | I212: 7 | J212: 8 | K212: 9 | L212: 10 | M212: 11 | N212: 12 | O212: BP | P212: MP | Q212: #
A213: 1 | B213: =Divisions!B221 -> 132 SK Oude God 2 | C213: XX | D213: =Divisions!K221 -> 2.5 | E213: =Divisions!F221 -> 3.5 | F213: =Divisions!J221 -> 3.5 | G213: =Divisions!C221 -> 3 | H213: =Divisions!H221 -> 3 | I213: =Divisions!E221 -> 3 | J213: =Divisions!M221 -> 3.5 | K213: =Divisions!I221 -> 3.5 | L213: =Divisions!L221 -> 4 | M213: =Divisions!D221 -> 4 | N213: =Divisions!G221 -> 2.5 | O213: =SUM(C213:N213) -> 36.0 | P213: =SUM(Divisions!O221:Y221)*2 -> 22 | Q213: =COUNT(C213:N213) -> 11 | X213: 12
A214: =IF(O214=O213, IF(P214=P213,"",2),2) -> 2 | B214: =Divisions!B215 -> 727 Midden-Limburg 2 | C214: =Divisions!K215 -> 1.5 | D214: XX | E214: =Divisions!E215 -> 2 | F214: =Divisions!D215 -> 2.5 | G214: =Divisions!H215 -> 2.5 | H214: =Divisions!M215 -> 2.5 | I214: =Divisions!J215 -> 2 | J214: =Divisions!G215 -> 3 | K214: =Divisions!C215 -> 2.5 | L214: =Divisions!F215 -> 2.5 | M214: =Divisions!I215 -> 4 | N214: =Divisions!L215 -> 4 | O214: 29.0 | P214: =SUM(Divisions!O215:Y215)*2 -> 18 | Q214: 11 | X214: 5
... 206 more rows

Sheet R1
G1: =CONCATENATE("INTERCLUBS NATIONAUX ",Data!$B$1) -> INTERCLUBS NATIONAUX 2022-2023
G2: =CONCATENATE("NATIONALE INTERCLUBS ",Data!$B$1) -> NATIONALE INTERCLUBS 2022-2023
G5: Ronde 1: | H5: =VLOOKUP(G5,Data,2,FALSE) -> 2022-09-25
A7: Afdeling/Division 1 | G7: Afdeling/Division 2A | M7: Afdeling/Division 2B
A8: =VLOOKUP($R$8,Division1,2,FALSE) -> 621 T.A.L. 1 | B8: =VLOOKUP($S$8,Division1,2,FALSE) -> 432 Wetteren 1 | C8: 3.5 | D8: - | E8: 4.5 | G8: =VLOOKUP($R$8,Division2a,2,FALSE) -> 230 Leuven Centraal 1 | H8: =VLOOKUP($S$8,Division2a,2,FALSE) -> 239 Boitsfort 1 | I8: 6 | J8: - | K8: 2 | M8: =VLOOKUP($R$8,Division2b,2,FALSE) -> 462 Zottegem 1 | N8: =VLOOKUP($S$8,Division2b,2,FALSE) -> 143 Boey Temse 1 | O8: 3.5 | P8: - | Q8: 4.5 | R8: 1 | S8: 12
A9: =VLOOKUP($R$9,Division1,2,FALSE) -> 303 KBSK Brugge 1 | B9: =VLOOKUP($S$9,Division1,2,FALSE) -> 401 KGSRL 1 | C9: 6.5 | D9: - | E9: 1.5 | G9: =VLOOKUP($R$9,Division2a,2,FALSE) -> 514 MCC 1 | H9: =VLOOKUP($S$9,Division2a,2,FALSE) -> 231 Dolle Toren Leuven 1 | I9: 2 | J9: - | K9: 6 | M9: =VLOOKUP($R$9,Division2b,2,FALSE) -> 303 KBSK Brugge 2 | N9: =VLOOKUP($S$9,Division2b,2,FALSE) -> 261 Opwijk 1 | O9: 3.5 | P9: - | Q9: 4.5 | R9: 2 | S9: 11
A10: =VLOOKUP($R$10,Division1,2,FALSE) -> 601 CRELEL Liège 1 | B10: =VLOOKUP($S$10,Division1,2,FALSE) -> 471 Wachtebeke 1 | C10: 3 | D10: - | E10: 5 | G10: =VLOOKUP($R$10,Division2a,2,FALSE) -> 601 CRELEL Liège 2 | H10: =VLOOKUP($S$10,Division2a,2,FALSE) -> 618 Echiquier Mosan 1 | I10: 3 | J10: - | K10: 5 | M10: =VLOOKUP($R$10,Division2b,2,FALSE) -> 109 Borgerhout 1 | N10: =VLOOKUP($S$10,Division2b,2,FALSE) -> 209 The Belgian CC 1 | O10: 4 | P10: - | Q10: 4 | R10: 3 | S10: 10
A11: =VLOOKUP($R$11,Division1,2,FALSE) -> 627 Wirtzfeld 1 | B11: =VLOOKUP($S$11,Division1,2,FALSE) -> 174 Brasschaat 1 | C11: 7.5 | D11: - | E11: 0.5 | G11: =VLOOKUP($R$11,Division2a,2,FALSE) -> 401 KGSRL 2 | H11: =VLOOKUP($S$11,Division2a,2,FALSE) -> 176 Westerlo 1 | I11: 5.5 | J11: - | K11: 2.5 | M11: =VLOOKUP($R$11,Division2b,2,FALSE) -> 226 Europchess 1 | N11: =VLOOKUP($S$11,Division2b,2,FALSE) -> 402 Jean Jaurès Gent 1 | O11: 2.5 | P11: - | Q11: 5.5 | R11: 4 | S11: 9
A12: =VLOOKUP($R$12,Division1,2,FALSE) -> 301 KOSK Oostende 1 | B12: =VLOOKUP($S$12,Division1,2,FALSE) -> 166 TSM Mechelen 1 | C12: 2.5 | D12: - | E12: 5.5 | G12: =VLOOKUP($R$12,Division2a,2,FALSE) -> 278 Pantin 1 | H12: =VLOOKUP($S$12,Division2a,2,FALSE) -> 901 Namur Echecs 1 | I12: 4 | J12: - | K12: 4 | M12: =VLOOKUP($R$12,Division2b,2,FALSE) -> 401 KGSRL 3 | N12: =VLOOKUP($S$12,Division2b,2,FALSE) -> 436 LSV-Chesspirant 1 | O12: 4 | P12: - | Q12: 4 | R12: 5 | S12: 8
A13: =VLOOKUP($R$13,Division1,2,FALSE) -> 607 Roch. Eupen-Kelmis 1 | B13: =VLOOKUP($S$13,Division1,2,FALSE) -> 501 CREC Charleroi 1 | C13: 6.5 | D13: - | E13: 1.5 | G13: =VLOOKUP($R$13,Division2a,2,FALSE) -> 201 CREB Bruxelles 1 | H13: =VLOOKUP($S$13,Division2a,2,FALSE) -> 952 CEW 1 | I13: 4 | J13: - | K13: 4 | M13: =VLOOKUP($R$13,Division2b,2,FALSE) -> 114 Mechelen 1 | N13: =VLOOKUP($S$13,Division2b,2,FALSE) -> 124 Deurne 1 | O13: 5.5 | P13: - | Q13: 2.5 | R13: 6 | S13: 7
A15: Afdeling/Division 3A | G15: Afdeling/Division 3B | M15: Afdeling/Division 3C
A16: =VLOOKUP($R$8,Division3a,2,FALSE) -> 548 Caissa Europe 1 | B16: =VLOOKUP($S$8,Division3a,2,FALSE) -> 239 Boitsfort 2 | C16: 4 | D16: - | E16: 2 | G16: =VLOOKUP($R$8,Division3b,2,FALSE) -> 401 KGSRL 5 | H16: =VLOOKUP($S$8,Division3b,2,FALSE) -> 432 Wetteren 2 | I16: 3 | J16: - | K16: 3 | M16: =VLOOKUP($R$8,Division3c,2,FALSE) -> 621 T.A.L. 2 | N16: =VLOOKUP($S$8,Division3c,2,FALSE) -> 230 Leuven Centraal 2 | O16: 0.5 | P16: - | Q16: 5.5
A17: =VLOOKUP($R$9,Division3a,2,FALSE) -> 541 Leuze-En-Hainaut 1 | B17: =VLOOKUP($S$9,Division3a,2,FALSE) -> 244 Brussels 1 | C17: 3 | D17: - | E17: 3 | G17: =VLOOKUP($R$9,Division3b,2,FALSE) -> 303 KBSK Brugge 3 | H17: =VLOOKUP($S$9,Division3b,2,FALSE) -> 401 KGSRL 6 | I17: 6 | J17: - | K17: 0 | M17: =VLOOKUP($R$9,Division3c,2,FALSE) -> 727 Midden-Limburg 1 | N17: =VLOOKUP($S$9,Division3c,2,FALSE) -> 604 KSK47-Eynatten 1 | O17: 5.5 | P17: - | Q17: 0.5
A18: =VLOOKUP($R$10,Division3a,2,FALSE) -> 228 Dworp 1 | B18: =VLOOKUP($S$10,Division3a,2,FALSE) -> 511 EDC 1 | C18: 2.5 | D18: - | E18: 3.5 | G18: =VLOOKUP($R$10,Division3b,2,FALSE) -> 436 LSV-Chesspirant 2 | H18: =VLOOKUP($S$10,Division3b,2,FALSE) -> 471 Wachtebeke 2 | I18: 4.5 | J18: - | K18: 1.5 | M18: =VLOOKUP($R$10,Division3c,2,FALSE) -> 601 CRELEL Liège 3 | N18: =VLOOKUP($S$10,Division3c,2,FALSE) -> 703 Eisden/MSK-Dilsen 1 | O18: 1 | P18: - | Q18: 5
A19: =VLOOKUP($R$11,Division3a,2,FALSE) -> 226 Europchess 2 | B19: =VLOOKUP($S$11,Division3a,2,FALSE) -> 174 Brasschaat 2 | C19: 4.5 | D19: - | E19: 1.5 | G19: =VLOOKUP($R$11,Division3b,2,FALSE) -> 309 KRST 1 | H19: =VLOOKUP($S$11,Division3b,2,FALSE) -> 521 Tournai 1 | I19: 1 | J19: - | K19: 5 | M19: =VLOOKUP($R$11,Division3c,2,FALSE) -> 627 Wirtzfeld 2 | N19: =VLOOKUP($S$11,Division3c,2,FALSE) -> 174 Brasschaat 3 | O19: 6 | P19: - | Q19: 0
A20: =VLOOKUP($R$12,Division3a,2,FALSE) -> 417 Pion-Aalst 1 | B20: =VLOOKUP($S$12,Division3a,2,FALSE) -> 909 Philippeville 1 | C20: 4 | D20: - | E20: 2 | G20: =VLOOKUP($R$12,Division3b,2,FALSE) -> 301 KOSK Oostende 2 | H20: =VLOOKUP($S$12,Division3b,2,FALSE) -> 472 De Mercatel 1 | I20: 2 | J20: - | K20: 4 | M20: =VLOOKUP($R$12,Division3c,2,FALSE) -> 135 Geel 1 | N20: =VLOOKUP($S$12,Division3c,2,FALSE) -> 901 Namur Echecs 2 | O20: 5 | P20: - | Q20: 1
A21: =VLOOKUP($R$13,Division3a,2,FALSE) -> 201 CREB Bruxelles 2 | B21: =VLOOKUP($S$13,Division3a,2,FALSE) -> 401 KGSRL 4 | C21: 2 | D21: - | E21: 4 | G21: =VLOOKUP($R$13,Division3b,2,FALSE) -> 313 KWSLE 1 | H21: =VLOOKUP($S$13,Division3b,2,FALSE) -> 302 KISK Ieper 1 | I21: 4.5 | J21: - | K21: 1.5 | M21: =VLOOKUP($R$13,Division3c,2,FALSE) -> 607 Roch. Eupen-Kelmis 2 | N21: =VLOOKUP($S$13,Division3c,2,FALSE) -> 607 Roch. Eupen-Kelmis 3 | O21: 1.5 | P21: - | Q21: 4.5
A23: Afdeling/Division 3D | G23: Afdeling/Division 4A | M23: Afdeling/Division 4B
A24: =VLOOKUP($R$8,Division3d,2,FALSE) -> 410 St.-Niklaas 1 | B24: =VLOOKUP($S$8,Division3d,2,FALSE) -> 708 NLS Lommel 1 | C24: 3 | D24: - | E24: 3 | G24: =VLOOKUP($R$8,Division4a,2,FALSE) -> 230 Leuven Centraal 3 | H24: =VLOOKUP($S$8,Division4a,2,FALSE) -> 239 Boitsfort 3 | I24: 4 | J24: - | K24: 0 | M24: =VLOOKUP($R$8,Division4b,2,FALSE) -> 525 CELB Anderlues 1 | N24: =VLOOKUP($S$8,Division4b,2,FALSE) -> 952 CEW 2 | O24: 2.5 | P24: - | Q24: 1.5
A25: =VLOOKUP($R$9,Division3d,2,FALSE) -> 425 Dendermonde 1 | B25: =VLOOKUP($S$9,Division3d,2,FALSE) -> 244 Brussels 2 | C25: 2.5 | D25: - | E25: 3.5 | G25: =VLOOKUP($R$9,Division4a,2,FALSE) -> 121 Turnhout 1 | H25: =VLOOKUP($S$9,Division4a,2,FALSE) -> 261 Opwijk 2 | I25: 3.5 | J25: - | K25: 0.5 | M25: =VLOOKUP($R$9,Division4b,2,FALSE) -> 601 CRELEL Liège 4 | N25: =VLOOKUP($S$9,Division4b,2,FALSE) -> 231 Dolle Toren Leuven 2 | O25: 1.5 | P25: - | Q25: 2.5
A26: =VLOOKUP($R$10,Division3d,2,FALSE) -> 109 Borgerhout 2 | B26: =VLOOKUP($S$10,Division3d,2,FALSE) -> 260 Kapelle-op-den Bos 1 | C26: 2 | D26: - | E26: 4 | G26: =VLOOKUP($R$10,Division4a,2,FALSE) -> 194 ChessLooks Lier 1 | H26: =VLOOKUP($S$10,Division4a,2,FALSE) -> 240 SCRR 1 | I26: 4 | J26: - | K26: 0 | M26: =VLOOKUP($R$10,Division4b,2,FALSE) -> 952 CEW 3 | N26: =VLOOKUP($S$10,Division4b,2,FALSE) -> 209 The Belgian CC 2 | O26: 2.5 | P26: - | Q26: 1.5
A27: =VLOOKUP($R$11,Division3d,2,FALSE) -> 101 KASK 1 | B27: =VLOOKUP($S$11,Division3d,2,FALSE) -> 174 Brasschaat 4 | C27: 4.5 | D27: - | E27: 1.5 | G27: =VLOOKUP($R$11,Division4a,2,FALSE) -> 226 Europchess 3 | H27: =VLOOKUP($S$11,Division4a,2,FALSE) -> 207 2 Fous Diogène 1 | I27: 0.5 | J27: - | K27: 3.5 | M27: =VLOOKUP($R$11,Division4b,2,FALSE) -> 226 Europchess 4 | N27: =VLOOKUP($S$11,Division4b,2,FALSE) -> 207 2 Fous Diogène 2 | O27: 1.5 | P27: - | Q27: 2.5
A28: =VLOOKUP($R$12,Division3d,2,FALSE) -> 128 Beveren 1 | B28: =VLOOKUP($S$12,Division3d,2,FALSE) -> 401 KGSRL 7 | C28: 6 | D28: - | E28: 0 | G28: =VLOOKUP($R$12,Division4a,2,FALSE) -> 278 Pantin 2 | H28: =VLOOKUP($S$12,Division4a,2,FALSE) -> 229 Woluwe 1 | I28: 1 | J28: - | K28: 3 | M28: =VLOOKUP($R$12,Division4b,2,FALSE) -> 278 Pantin 3 | N28: =VLOOKUP($S$12,Division4b,2,FALSE) -> 901 Namur Echecs 3 | O28: 4 | P28: - | Q28: 0
A29: =VLOOKUP($R$13,Division3d,2,FALSE) -> 114 Mechelen 2 | B29: =VLOOKUP($S$13,Division3d,2,FALSE) -> 166 TSM Mechelen 2 | C29: 5 | D29: - | E29: 1 | G29: =VLOOKUP($R$13,Division4a,2,FALSE) -> 114 Mechelen 3 | H29: =VLOOKUP($S$13,Division4a,2,FALSE) -> 166 TSM Mechelen 3 | I29: 1 | J29: - | K29: 3 | M29: =VLOOKUP($R$13,Division4b,2,FALSE) -> 607 Roch. Eupen-Kelmis 4 | N29: =VLOOKUP($S$13,Division4b,2,FALSE) -> 961 Braine Echecs 1 | O29: 1 | P29: - | Q29: 3
A31: Afdeling/Division 4C | G31: Afdeling/Division 4D | M31: Afdeling/Division 4E
A32: =VLOOKUP($R$8,Division4c,2,FALSE) -> 621 T.A.L. 3 | B32: =VLOOKUP($S$8,Division4c,2,FALSE) -> 712 Landen 1 | C32: 1 | D32: - | E32: 3 | G32: =VLOOKUP($R$8,Division4d,2,FALSE) -> 465 SK Artevelde 1 | H32: =VLOOKUP($S$8,Division4d,2,FALSE) -> 432 Wetteren 3 | I32: 2.5 | J32: - | K32: 1.5 | M32: =VLOOKUP($R$8,Division4e,2,FALSE) -> 462 Zottegem 2 | N32: =VLOOKUP($S$8,Division4e,2,FALSE) -> 432 Wetteren 4 | O32: 2 | P32: - | Q32: 2
A33: =VLOOKUP($R$9,Division4c,2,FALSE) -> 601 CRELEL Liège 5 | B33: =VLOOKUP($S$9,Division4c,2,FALSE) -> 604 KSK47-Eynatten 2 - FF | D33: - | G33: =VLOOKUP($R$9,Division4d,2,FALSE) -> 303 KBSK Brugge 4 | H33: =VLOOKUP($S$9,Division4d,2,FALSE) -> 304 Tielt 1 | I33: 2 | J33: - | K33: 2 | M33: =VLOOKUP($R$9,Division4e,2,FALSE) -> 541 Leuze-En-Hainaut 2 | N33: =VLOOKUP($S$9,Division4e,2,FALSE) -> 304 Tielt 2 | O33: 4 | P33: - | Q33: 0
A34: =VLOOKUP($R$10,Division4c,2,FALSE) -> 601 CRELEL Liège 6 | B34: =VLOOKUP($S$10,Division4c,2,FALSE) -> 618 Echiquier Mosan 2 | C34: 4 | D34: - | E34: 0 | G34: =VLOOKUP($R$10,Division4d,2,FALSE) -> 475 Rapid Aalter 1 | H34: =VLOOKUP($S$10,Division4d,2,FALSE) -> 340 Izegem 1 | I34: 0.5 | J34: - | K34: 3.5 | M34: =VLOOKUP($R$10,Division4e,2,FALSE) -> 418 VPTD 1 | N34: =VLOOKUP($S$10,Division4e,2,FALSE) -> 401 KGSRL 8 | O34: 4 | P34: - | Q34: 0
A35: =VLOOKUP($R$11,Division4c,2,FALSE) -> 627 Wirtzfeld 3 | B35: =VLOOKUP($S$11,Division4c,2,FALSE) -> 622 Herve 1 | C35: 1 | D35: - | E35: 3 | G35: =VLOOKUP($R$11,Division4d,2,FALSE) -> 430 Landegem 1 | H35: =VLOOKUP($S$11,Division4d,2,FALSE) -> 422 MSV 1 | I35: 2 | J35: - | K35: 2 | M35: =VLOOKUP($R$11,Division4e,2,FALSE) -> 430 Landegem 2 | N35: =VLOOKUP($S$11,Division4e,2,FALSE) -> 402 Jean Jaurès Gent 2 | O35: 2 | P35: - | Q35: 2
A36: =VLOOKUP($R$12,Division4c,2,FALSE) -> 810 Marche-en-Famenne 1 | B36: =VLOOKUP($S$12,Division4c,2,FALSE) -> 901 Namur Echecs 4 | C36: 3.5 | D36: - | E36: 0.5 | G36: =VLOOKUP($R$12,Division4d,2,FALSE) -> 301 KOSK Oostende 3 | H36: =VLOOKUP($S$12,Division4d,2,FALSE) -> 307 Bredene 1 | I36: 2 | J36: - | K36: 2 | M36: =VLOOKUP($R$12,Division4e,2,FALSE) -> 460 Oudenaarde 1 | N36: =VLOOKUP($S$12,Division4e,2,FALSE) -> 472 De Mercatel 2 | O36: 2.5 | P36: - | Q36: 1.5
A37: =VLOOKUP($R$13,Division4c,2,FALSE) -> 607 Roch. Eupen-Kelmis 5 | B37: =VLOOKUP($S$13,Division4c,2,FALSE) -> 607 Roch. Eupen-Kelmis 6 | C37: 2.5 | D37: - | E37: 1.5 | G37: =VLOOKUP($R$13,Division4d,2,FALSE) -> 313 KWSLE 2 | H37: =VLOOKUP($S$13,Division4d,2,FALSE) -> 302 KISK Ieper 2 | I37: 1.5 | J37: - | K37: 2.5 | M37: =VLOOKUP($R$13,Division4e,2,FALSE) -> 417 Pion-Aalst 2 | N37: =VLOOKUP($S$13,Division4e,2,FALSE) -> 438 Deinze 1 | O37: 1 | P37: - | Q37: 3
A39: Afdeling/Division 4F | G39: Afdeling/Division 4G | M39: Afdeling/Division 4H
A40: =VLOOKUP($R$8,Division4f,2,FALSE) -> 525 CELB Anderlues 2 | B40: =VLOOKUP($S$8,Division4f,2,FALSE) -> 548 Caissa Europe 2 | C40: 1 | D40: - | E40: 3 | G40: =VLOOKUP($R$8,Division4g,2,FALSE) -> 465 SK Artevelde 2 | H40: =VLOOKUP($S$8,Division4g,2,FALSE) -> 143 Boey Temse 2 | I40: 4 | J40: - | K40: 0 | M40: =VLOOKUP($R$8,Division4h,2,FALSE) -> 121 Turnhout 3 | N40: =VLOOKUP($S$8,Division4h,2,FALSE) -> 230 Leuven Centraal 4 | O40: 2 | P40: - | Q40: 2
A41: =VLOOKUP($R$9,Division4f,2,FALSE) -> 541 Leuze-En-Hainaut 3 | B41: =VLOOKUP($S$9,Division4f,2,FALSE) -> 547 Ren. Binchois 1 | C41: 1 | D41: - | E41: 3 | G41: =VLOOKUP($R$9,Division4g,2,FALSE) -> 121 Turnhout 2 | H41: =VLOOKUP($S$9,Division4g,2,FALSE) -> 130 Hoboken 1 | I41: 1.5 | J41: - | K41: 2.5 | M41: =VLOOKUP($R$9,Division4h,2,FALSE) -> 727 Midden-Limburg 2 | N41: =VLOOKUP($S$9,Division4h,2,FALSE) -> 130 Hoboken 2 | O41: 2.5 | P41: - | Q41: 1.5
A42: =VLOOKUP($R$10,Division4f,2,FALSE) -> 228 Dworp 2 | B42: =VLOOKUP($S$10,Division4f,2,FALSE) -> 233 DZD Halle 1 | C42: 2 | D42: - | E42: 2 | G42: =VLOOKUP($R$10,Division4g,2,FALSE) -> 436 LSV-Chesspirant 3 | H42: =VLOOKUP($S$10,Division4g,2,FALSE) -> 471 Wachtebeke 3 | I42: 1 | J42: - | K42: 3 | M42: =VLOOKUP($R$10,Division4h,2,FALSE) -> 194 ChessLooks Lier 2 | N42: =VLOOKUP($S$10,Division4h,2,FALSE) -> 714 Pelt 1 | O42: 1.5 | P42: - | Q42: 2.5
A43: =VLOOKUP($R$11,Division4f,2,FALSE) -> 551 HCC Jurbise 1 | B43: =VLOOKUP($S$11,Division4f,2,FALSE) -> 207 2 Fous Diogène 3 | C43: 3 | D43: - | E43: 1 | G43: =VLOOKUP($R$11,Division4g,2,FALSE) -> 430 Landegem 3 | H43: =VLOOKUP($S$11,Division4g,2,FALSE) -> 422 MSV 2 | I43: 2.5 | J43: - | K43: 1.5 | M43: =VLOOKUP($R$11,Division4h,2,FALSE) -> 101 KASK 2 | N43: =VLOOKUP($S$11,Division4h,2,FALSE) -> 176 Westerlo 2 | O43: 3.5 | P43: - | Q43: 0.5
A44: =VLOOKUP($R$12,Division4f,2,FALSE) -> 278 Pantin 4 | B44: =VLOOKUP($S$12,Division4f,2,FALSE) -> 909 Philippeville 2 | C44: 3 | D44: - | E44: 1 | G44: =VLOOKUP($R$12,Division4g,2,FALSE) -> 401 KGSRL 9 | H44: =VLOOKUP($S$12,Division4g,2,FALSE) -> 132 SK Oude God 1 | I44: 0 | J44: - | K44: 4 | M44: =VLOOKUP($R$12,Division4h,2,FALSE) -> 135 Geel 2 | N44: =VLOOKUP($S$12,Division4h,2,FALSE) -> 132 SK Oude God 2 | O44: 1 | P44: - | Q44: 3
A45: =VLOOKUP($R$13,Division4f,2,FALSE) -> 902 CES 1 | B45: =VLOOKUP($S$13,Division4f,2,FALSE) -> 501 CREC Charleroi 2 | C45: 2.5 | D45: - | E45: 1.5 | G45: =VLOOKUP($R$13,Division4g,2,FALSE) -> 124 Deurne 2 | H45: =VLOOKUP($S$13,Division4g,2,FALSE) -> 436 LSV-Chesspirant 4 | I45: 1 | J45: - | K45: 3 | M45: =VLOOKUP($R$13,Division4h,2,FALSE) -> 114 Mechelen 4 | N45: =VLOOKUP($S$13,Division4h,2,FALSE) -> 124 Deurne 3 | O45: 1.5 | P45: - | Q45: 2.5
A47: Afdeling/Division 5A | G47: Afdeling/Division 5B | M47: Afdeling/Division 5C
A48: =VLOOKUP($R$8,Division5a,2,FALSE) -> 609 Anthisnes 1 | B48: =VLOOKUP($S$8,Division5a,2,FALSE) -> 712 Landen 2 | C48: 2 | D48: - | E48: 2 | G48: =VLOOKUP($R$8,Division5b,2,FALSE) -> 230 Leuven Centraal 5 | H48: =VLOOKUP($S$8,Division5b,2,FALSE) -> 209 The Belgian CC 3 | I48: 2 | J48: - | K48: 2 | M48: =VLOOKUP($R$8,Division5c,2,FALSE) -> 525 CELB Anderlues 3 | N48: =VLOOKUP($S$8,Division5c,2,FALSE) -> 549 Saint-Ghislain 1 | O48: 4 | P48: - | Q48: 0
A49: =VLOOKUP($R$9,Division5a,2,FALSE) -> 601 CRELEL Liège 7 | B49: =VLOOKUP($S$9,Division5a,2,FALSE) -> 604 KSK47-Eynatten 3 | C49: 1 | D49: - | E49: 3 | G49: =VLOOKUP($R$9,Division5b,2,FALSE) -> 514 MCC 2 | H49: =VLOOKUP($S$9,Division5b,2,FALSE) -> 244 Brussels 3 | I49: 0 | J49: - | K49: 4 | M49: =VLOOKUP($R$9,Division5c,2,FALSE) -> 514 MCC 3 | N49: =VLOOKUP($S$9,Division5c,2,FALSE) -> 000 BYE 5C | P49: -
A50: =VLOOKUP($R$10,Division5a,2,FALSE) -> 601 CRELEL Liège 8 | B50: =VLOOKUP($S$10,Division5a,2,FALSE) -> 618 Echiquier Mosan 3 | C50: 0 | D50: - | E50: 4 | G50: =VLOOKUP($R$10,Division5b,2,FALSE) -> 204 Excelsior 1 | H50: =VLOOKUP($S$10,Division5b,2,FALSE) -> 233 DZD Halle 2 | I50: 1.5 | J50: - | K50: 2.5 | M50: =VLOOKUP($R$10,Division5c,2,FALSE) -> 953 Nivelles 1 | N50: =VLOOKUP($S$10,Division5c,2,FALSE) -> 511 EDC 2 | O50: 2 | P50: - | Q50: 2
A51: =VLOOKUP($R$11,Division5a,2,FALSE) -> 703 Eisden/MSK-Dilsen 2 | B51: =VLOOKUP($S$11,Division5a,2,FALSE) -> 000 BYE 5A | D51: - | G51: =VLOOKUP($R$11,Division5b,2,FALSE) -> 226 Europchess 5 | H51: =VLOOKUP($S$11,Division5b,2,FALSE) -> 207 2 Fous Diogène 4 | I51: 3 | J51: - | K51: 1 | M51: =VLOOKUP($R$11,Division5c,2,FALSE) -> 551 HCC Jurbise 2 | N51: =VLOOKUP($S$11,Division5c,2,FALSE) -> 548 Caissa Europe 3 | O51: 2.5 | P51: - | Q51: 1.5
A52: =VLOOKUP($R$12,Division5a,2,FALSE) -> 810 Marche-en-Famenne 2 | B52: =VLOOKUP($S$12,Division5a,2,FALSE) -> 901 Namur Echecs 5 - FF | D52: - | G52: =VLOOKUP($R$12,Division5b,2,FALSE) -> 278 Pantin 5 | H52: =VLOOKUP($S$12,Division5b,2,FALSE) -> 952 CEW 4 | I52: 3.5 | J52: - | K52: 0.5 | M52: =VLOOKUP($R$12,Division5c,2,FALSE) -> 902 CES 2 | N52: =VLOOKUP($S$12,Division5c,2,FALSE) -> 901 Namur Echecs 6 | O52: 3.5 | P52: - | Q52: 0.5
A53: =VLOOKUP($R$13,Division5a,2,FALSE) -> 607 Roch. Eupen-Kelmis 7 | B53: =VLOOKUP($S$13,Division5a,2,FALSE) -> 733 St.-Truiden 1 | C53: 2.5 | D53: - | E53: 1.5 | G53: =VLOOKUP($R$13,Division5b,2,FALSE) -> 961 Braine Echecs 2 | H53: =VLOOKUP($S$13,Division5b,2,FALSE) -> 501 CREC Charleroi 3 | I53: 2 | J53: - | K53: 2 | M53: =VLOOKUP($R$13,Division5c,2,FALSE) -> 961 Braine Echecs 3 | N53: =VLOOKUP($S$13,Division5c,2,FALSE) -> 501 CREC Charleroi 4 | O53: 2 | P53: - | Q53: 2
A55: Afdeling/Division 5D | G55: Afdeling/Division 5E | M55: Afdeling/Division 5F
A56: =VLOOKUP($R$8,Division5d,2,FALSE) -> 621 T.A.L. 4 | B56: =VLOOKUP($S$8,Division5d,2,FALSE) -> 000 BYE 5D | D56: - | G56: =VLOOKUP($R$8,Division5e,2,FALSE) -> 410 St.-Niklaas 2 | H56: =VLOOKUP($S$8,Division5e,2,FALSE) -> 143 Boey Temse 3 | I56: 1.5 | J56: - | K56: 2.5 | M56: =VLOOKUP($R$8,Division5f,2,FALSE) -> 462 Zottegem 3 | N56: =VLOOKUP($S$8,Division5f,2,FALSE) -> 432 Wetteren 5 | O56: 1 | P56: - | Q56: 3
A57: =VLOOKUP($R$9,Division5d,2,FALSE) -> 601 CRELEL Liège 9 | B57: =VLOOKUP($S$9,Division5d,2,FALSE) -> 604 KSK47-Eynatten 4 | C57: 4 | D57: - | E57: 0 | G57: =VLOOKUP($R$9,Division5e,2,FALSE) -> 190 Burcht 1 | H57: =VLOOKUP($S$9,Division5e,2,FALSE) -> 130 Hoboken 3 | I57: 0 | J57: - | K57: 4 | M57: =VLOOKUP($R$9,Division5f,2,FALSE) -> 541 Leuze-En-Hainaut 4 | N57: =VLOOKUP($S$9,Division5f,2,FALSE) -> 401 KGSRL 11 | O57: 2 | P57: - | Q57: 2
A58: =VLOOKUP($R$10,Division5d,2,FALSE) -> 601 CRELEL Liège 10 | B58: =VLOOKUP($S$10,Division5d,2,FALSE) -> 619 Welkenraedt 1 | C58: 1.5 | D58: - | E58: 2.5 | G58: =VLOOKUP($R$10,Division5e,2,FALSE) -> 109 Borgerhout 3 | H58: =VLOOKUP($S$10,Division5e,2,FALSE) -> 401 KGSRL 10 | I58: 2.5 | J58: - | K58: 1.5 | M58: =VLOOKUP($R$10,Division5f,2,FALSE) -> 436 LSV-Chesspirant 6 | N58: =VLOOKUP($S$10,Division5f,2,FALSE) -> 340 Izegem 2 | O58: 2 | P58: - | Q58: 2
A59: =VLOOKUP($R$11,Division5d,2,FALSE) -> 703 Eisden/MSK-Dilsen 3 | B59: =VLOOKUP($S$11,Division5d,2,FALSE) -> 623 Sankt Vith 1 | C59: 0 | D59: - | E59: 4 | G59: =VLOOKUP($R$11,Division5e,2,FALSE) -> 101 KASK 3 | H59: =VLOOKUP($S$11,Division5e,2,FALSE) -> 174 Brasschaat 5 | I59: 0 | J59: - | K59: 4 | M59: =VLOOKUP($R$11,Division5f,2,FALSE) -> 309 KRST 2 | N59: =VLOOKUP($S$11,Division5f,2,FALSE) -> 521 Tournai 2 | O59: 1 | P59: - | Q59: 3
A60: =VLOOKUP($R$12,Division5d,2,FALSE) -> 627 Wirtzfeld 4 | B60: =VLOOKUP($S$12,Division5d,2,FALSE) -> 703 Eisden/MSK-Dilsen 4 | C60: 0 | D60: - | E60: 4 | G60: =VLOOKUP($R$12,Division5e,2,FALSE) -> 128 Beveren 2 | H60: =VLOOKUP($S$12,Division5e,2,FALSE) -> 132 SK Oude God 3 | I60: 3.5 | J60: - | K60: 0.5 | M60: =VLOOKUP($R$12,Division5f,2,FALSE) -> 460 Oudenaarde 2 | N60: =VLOOKUP($S$12,Division5f,2,FALSE) -> 000 BYE 5F | P60: -
A61: =VLOOKUP($R$13,Division5d,2,FALSE) -> 607 Roch. Eupen-Kelmis 8 | B61: =VLOOKUP($S$13,Division5d,2,FALSE) -> 609 Anthisnes 2 | C61: 4 | D61: - | E61: 0 | G61: =VLOOKUP($R$13,Division5e,2,FALSE) -> 114 Mechelen 5 | H61: =VLOOKUP($S$13,Division5e,2,FALSE) -> 436 LSV-Chesspirant 5 | I61: 1 | J61: - | K61: 3 | M61: =VLOOKUP($R$13,Division5f,2,FALSE) -> 313 KWSLE 3 | N61: =VLOOKUP($S$13,Division5f,2,FALSE) -> 438 Deinze 2 | O61: 3 | P61: - | Q61: 1
A63: Afdeling/Division 5G | G63: Afdeling/Division 5H | M63: Afdeling/Division 5I
A64: =VLOOKUP($R$8,Division5g,2,FALSE) -> 465 SK Artevelde 3 | B64: =VLOOKUP($S$8,Division5g,2,FALSE) -> 432 Wetteren 6 | C64: 2 | D64: - | E64: 2 | G64: =VLOOKUP($R$8,Division5h,2,FALSE) -> 322 Veurne 1 | H64: =VLOOKUP($S$8,Division5h,2,FALSE) -> 000 BYE 5H | J64: - | M64: =VLOOKUP($R$8,Division5i,2,FALSE) -> 230 Leuven Centraal 6 | N64: =VLOOKUP($S$8,Division5i,2,FALSE) -> 239 Boitsfort 4 | O64: 3.5 | P64: - | Q64: 0.5
A65: =VLOOKUP($R$9,Division5g,2,FALSE) -> 303 KBSK Brugge 5 | B65: =VLOOKUP($S$9,Division5g,2,FALSE) -> 401 KGSRL 13 | C65: 2.5 | D65: - | E65: 1.5 | G65: =VLOOKUP($R$9,Division5h,2,FALSE) -> 303 KBSK Brugge 6 | H65: =VLOOKUP($S$9,Division5h,2,FALSE) -> 305 Kortrijk 1 | I65: 3 | J65: - | K65: 1 | M65: =VLOOKUP($R$9,Division5i,2,FALSE) -> 401 KGSRL 15 | N65: =VLOOKUP($S$9,Division5i,2,FALSE) -> 244 Brussels 4 | O65: 2 | P65: - | Q65: 2
A66: =VLOOKUP($R$10,Division5g,2,FALSE) -> 436 LSV-Chesspirant 7 | B66: =VLOOKUP($S$10,Division5g,2,FALSE) -> 471 Wachtebeke 4 | C66: 2.5 | D66: - | E66: 1.5 | G66: =VLOOKUP($R$10,Division5h,2,FALSE) -> 475 Rapid Aalter 2 | H66: =VLOOKUP($S$10,Division5h,2,FALSE) -> 340 Izegem 3 | I66: 1 | J66: - | K66: 3 | M66: =VLOOKUP($R$10,Division5i,2,FALSE) -> 204 Excelsior 2 | N66: =VLOOKUP($S$10,Division5i,2,FALSE) -> 209 The Belgian CC 4 | O66: 0 | P66: - | Q66: 4
A67: =VLOOKUP($R$11,Division5g,2,FALSE) -> 430 Landegem 4 | B67: =VLOOKUP($S$11,Division5g,2,FALSE) -> 422 MSV 3 | C67: 2 | D67: - | E67: 2 | G67: =VLOOKUP($R$11,Division5h,2,FALSE) -> 309 KRST 3 | H67: =VLOOKUP($S$11,Division5h,2,FALSE) -> 351 Knokke Schaak 1 | I67: 2 | J67: - | K67: 2 | M67: =VLOOKUP($R$11,Division5i,2,FALSE) -> 260 Kapelle-op-den Bos 2 | N67: =VLOOKUP($S$11,Division5i,2,FALSE) -> 207 2 Fous Diogène 5 | O67: 3 | P67: - | Q67: 1
A68: =VLOOKUP($R$12,Division5g,2,FALSE) -> 301 KOSK Oostende 4 | B68: =VLOOKUP($S$12,Division5g,2,FALSE) -> 472 De Mercatel 3 | C68: 2.5 | D68: - | E68: 1.5 | G68: =VLOOKUP($R$12,Division5h,2,FALSE) -> 301 KOSK Oostende 5 | H68: =VLOOKUP($S$12,Division5h,2,FALSE) -> 307 Bredene 2 | I68: 3 | J68: - | K68: 1 | M68: =VLOOKUP($R$12,Division5i,2,FALSE) -> 278 Pantin 6 | N68: =VLOOKUP($S$12,Division5i,2,FALSE) -> 229 Woluwe 2 | O68: 3 | P68: - | Q68: 1
A69: =VLOOKUP($R$13,Division5g,2,FALSE) -> 313 KWSLE 4 | B69: =VLOOKUP($S$13,Division5g,2,FALSE) -> 401 KGSRL 12 | C69: 3.5 | D69: - | E69: 0.5 | G69: =VLOOKUP($R$13,Division5h,2,FALSE) -> 401 KGSRL 14 | H69: =VLOOKUP($S$13,Division5h,2,FALSE) -> 302 KISK Ieper 3 | I69: 1.5 | J69: - | K69: 2.5 | M69: =VLOOKUP($R$13,Division5i,2,FALSE) -> 201 CREB Bruxelles 3 | N69: =VLOOKUP($S$13,Division5i,2,FALSE) -> 000 BYE 5I | P69: -
A71: Afdeling/Division 5J | G71: Afdeling/Division 5K | M71: Afdeling/Division 5L
A72: =VLOOKUP($R$8,Division5j,2,FALSE) -> 230 Leuven Centraal 7 | B72: =VLOOKUP($S$8,Division5j,2,FALSE) -> 196 De Rode Loper 1 | C72: 2.5 | D72: - | E72: 1.5 | G72: =VLOOKUP($R$8,Division5k,2,FALSE) -> 230 Leuven Centraal 8 | H72: =VLOOKUP($S$8,Division5k,2,FALSE) -> 121 Turnhout 4 | I72: 2.5 | J72: - | K72: 1.5 | M72: =VLOOKUP($R$8,Division5l,2,FALSE) -> 462 Zottegem 4 | N72: =VLOOKUP($S$8,Division5l,2,FALSE) -> 432 Wetteren 7 | O72: 1 | P72: - | Q72: 3
A73: =VLOOKUP($R$9,Division5j,2,FALSE) -> 190 Burcht 2 | B73: =VLOOKUP($S$9,Division5j,2,FALSE) -> 130 Hoboken 4 | C73: 3.5 | D73: - | E73: 0.5 | G73: =VLOOKUP($R$9,Division5k,2,FALSE) -> 727 Midden-Limburg 3 | H73: =VLOOKUP($S$9,Division5k,2,FALSE) -> 231 Dolle Toren Leuven 3 | I73: 1 | J73: - | K73: 3 | M73: =VLOOKUP($R$9,Division5l,2,FALSE) -> 425 Dendermonde 2 | N73: =VLOOKUP($S$9,Division5l,2,FALSE) -> 261 Opwijk 3 | O73: 2 | P73: - | Q73: 2
A74: =VLOOKUP($R$10,Division5j,2,FALSE) -> 109 Borgerhout 4 | B74: =VLOOKUP($S$10,Division5j,2,FALSE) -> 195 Kapellen 1 | C74: 4 | D74: - | E74: 0 | G74: =VLOOKUP($R$10,Division5k,2,FALSE) -> 194 ChessLooks Lier 3 | H74: =VLOOKUP($S$10,Division5k,2,FALSE) -> 182 Noorderwijk 1 | I74: 3 | J74: - | K74: 1 | M74: =VLOOKUP($R$10,Division5l,2,FALSE) -> 436 LSV-Chesspirant 8 | N74: =VLOOKUP($S$10,Division5l,2,FALSE) -> 000 BYE 5L | P74: -
A75: =VLOOKUP($R$11,Division5j,2,FALSE) -> 401 KGSRL 16 | B75: =VLOOKUP($S$11,Division5j,2,FALSE) -> 174 Brasschaat 6 | C75: 3 | D75: - | E75: 1 | G75: =VLOOKUP($R$11,Division5k,2,FALSE) -> 162 Molse SC 1 | H75: =VLOOKUP($S$11,Division5k,2,FALSE) -> 176 Westerlo 3 | I75: 2 | J75: - | K75: 2 | M75: =VLOOKUP($R$11,Division5l,2,FALSE) -> 404 Drie Torens 1 | N75: =VLOOKUP($S$11,Division5l,2,FALSE) -> 422 MSV 4 | O75: 4 | P75: - | Q75: 0
A76: =VLOOKUP($R$12,Division5j,2,FALSE) -> 128 Beveren 3 | B76: =VLOOKUP($S$12,Division5j,2,FALSE) -> 132 SK Oude God 4 | C76: 3 | D76: - | E76: 1 | G76: =VLOOKUP($R$12,Division5k,2,FALSE) -> 401 KGSRL 17 | H76: =VLOOKUP($S$12,Division5k,2,FALSE) -> 132 SK Oude God 5 | I76: 1.5 | J76: - | K76: 2.5 | M76: =VLOOKUP($R$12,Division5l,2,FALSE) -> 128 Beveren 4 | N76: =VLOOKUP($S$12,Division5l,2,FALSE) -> 436 LSV-Chesspirant 9 | O76: 1 | P76: - | Q76: 3
A77: =VLOOKUP($R$13,Division5j,2,FALSE) -> 124 Deurne 4 | B77: =VLOOKUP($S$13,Division5j,2,FALSE) -> 114 Mechelen 6 | C77: 1.5 | D77: - | E77: 2.5 | G77: =VLOOKUP($R$13,Division5k,2,FALSE) -> 114 Mechelen 7 | H77: =VLOOKUP($S$13,Division5k,2,FALSE) -> 166 TSM Mechelen 4 | I77: 2 | J77: - | K77: 2 | M77: =VLOOKUP($R$13,Division5l,2,FALSE) -> 417 Pion-Aalst 3 | N77: =VLOOKUP($S$13,Division5l,2,FALSE) -> 401 KGSRL 18 | O77: 2.5 | P77: - | Q77: 1.5
A79: Afdeling/Division 5M | G79: Afdeling/Division 5N
A80: =VLOOKUP($R$8,Division5m,2,FALSE) -> 121 Turnhout 5 | B80: =VLOOKUP($S$8,Division5m,2,FALSE) -> 230 Leuven Centraal 9 | C80: 3 | D80: - | E80: 1 | G80: =VLOOKUP($R$8,Division5n,2,FALSE) -> 230 Leuven Centraal 10 | H80: =VLOOKUP($S$8,Division5n,2,FALSE) -> 549 Saint-Ghislain 2 | I80: 3.5 | J80: - | K80: 0.5
A81: =VLOOKUP($R$9,Division5m,2,FALSE) -> 727 Midden-Limburg 4 | B81: =VLOOKUP($S$9,Division5m,2,FALSE) -> 231 Dolle Toren Leuven 4 | C81: 0.5 | D81: - | E81: 3.5 | G81: =VLOOKUP($R$9,Division5n,2,FALSE) -> 514 MCC 4 | H81: =VLOOKUP($S$9,Division5n,2,FALSE) -> 518 Soignies 1 | I81: 3 | J81: - | K81: 1
A82: =VLOOKUP($R$10,Division5m,2,FALSE) -> 666 666 1 | B82: =VLOOKUP($S$10,Division5m,2,FALSE) -> 714 Pelt 2 | C82: 2.5 | D82: - | E82: 1.5 | G82: =VLOOKUP($R$10,Division5n,2,FALSE) -> 228 Dworp 3 | H82: =VLOOKUP($S$10,Division5n,2,FALSE) -> 000 BYE 5N | J82: -
A83: =VLOOKUP($R$11,Division5m,2,FALSE) -> 162 Molse SC 2 | B83: =VLOOKUP($S$11,Division5m,2,FALSE) -> 176 Westerlo 4 | C83: 2 | D83: - | E83: 2 | G83: =VLOOKUP($R$11,Division5n,2,FALSE) -> 551 HCC Jurbise 3 | H83: =VLOOKUP($S$11,Division5n,2,FALSE) -> 952 CEW 5 | I83: 1.5 | J83: - | K83: 2.5
A84: =VLOOKUP($R$12,Division5m,2,FALSE) -> 135 Geel 3 | B84: =VLOOKUP($S$12,Division5m,2,FALSE) -> 132 SK Oude God 6 | C84: 1 | D84: - | E84: 3 | G84: =VLOOKUP($R$12,Division5n,2,FALSE) -> 902 CES 3 | H84: =VLOOKUP($S$12,Division5n,2,FALSE) -> 901 Namur Echecs 7 | I84: 1 | J84: - | K84: 3
A85: =VLOOKUP($R$13,Division5m,2,FALSE) -> 114 Mechelen 8 | B85: =VLOOKUP($S$13,Division5m,2,FALSE) -> 166 TSM Mechelen 5 | C85: 2.5 | D85: - | E85: 1.5 | G85: =VLOOKUP($R$13,Division5n,2,FALSE) -> 548 Caissa Europe 4 | H85: =VLOOKUP($S$13,Division5n,2,FALSE) -> 501 CREC Charleroi 5 | I85: 3.5 | J85: - | K85: 0.5

Sheet R2
G1: =CONCATENATE("INTERCLUBS NATIONAUX ",Data!$B$1) -> INTERCLUBS NATIONAUX 2022-2023
G2: =CONCATENATE("NATIONALE INTERCLUBS ",Data!$B$1) -> NATIONALE INTERCLUBS 2022-2023
G5: Ronde 2: | H5: =VLOOKUP(G5,Data,2,FALSE) -> 2022-10-16
A7: Afdeling/Division 1 | G7: Afdeling/Division 2A | M7: Afdeling/Division 2B
A8: =VLOOKUP($R$8,Division1,2,FALSE) -> 432 Wetteren 1 | B8: =VLOOKUP($S$8,Division1,2,FALSE) -> 501 CREC Charleroi 1 | C8: 6.5 | D8: - | E8: 1.5 | G8: =VLOOKUP($R$8,Division2a,2,FALSE) -> 239 Boitsfort 1 | H8: =VLOOKUP($S$8,Division2a,2,FALSE) -> 952 CEW 1 | I8: 4 | J8: - | K8: 4 | M8: =VLOOKUP($R$8,Division2b,2,FALSE) -> 143 Boey Temse 1 | N8: =VLOOKUP($S$8,Division2b,2,FALSE) -> 124 Deurne 1 | O8: 2.5 | P8: - | Q8: 5.5 | R8: 12 | S8: 7
A9: =VLOOKUP($R$9,Division1,2,FALSE) -> 166 TSM Mechelen 1 | B9: =VLOOKUP($S$9,Division1,2,FALSE) -> 607 Roch. Eupen-Kelmis 1 | C9: 2 | D9: - | E9: 6 | G9: =VLOOKUP($R$9,Division2a,2,FALSE) -> 901 Namur Echecs 1 | H9: =VLOOKUP($S$9,Division2a,2,FALSE) -> 201 CREB Bruxelles 1 | I9: 6.5 | J9: - | K9: 1.5 | M9: =VLOOKUP($R$9,Division2b,2,FALSE) -> 436 LSV-Chesspirant 1 | N9: =VLOOKUP($S$9,Division2b,2,FALSE) -> 114 Mechelen 1 | O9: 5.5 | P9: - | Q9: 2.5 | R9: 8 | S9: 6
A10: =VLOOKUP($R$10,Division1,2,FALSE) -> 174 Brasschaat 1 | B10: =VLOOKUP($S$10,Division1,2,FALSE) -> 301 KOSK Oostende 1 | C10: 3.5 | D10: - | E10: 4.5 | G10: =VLOOKUP($R$10,Division2a,2,FALSE) -> 176 Westerlo 1 | H10: =VLOOKUP($S$10,Division2a,2,FALSE) -> 278 Pantin 1 | I10: 7.5 | J10: - | K10: 0.5 | M10: =VLOOKUP($R$10,Division2b,2,FALSE) -> 402 Jean Jaurès Gent 1 | N10: =VLOOKUP($S$10,Division2b,2,FALSE) -> 401 KGSRL 3 | O10: 6 | P10: - | Q10: 2 | R10: 9 | S10: 5
A11: =VLOOKUP($R$11,Division1,2,FALSE) -> 471 Wachtebeke 1 | B11: =VLOOKUP($S$11,Division1,2,FALSE) -> 627 Wirtzfeld 1 | C11: 4.5 | D11: - | E11: 3.5 | G11: =VLOOKUP($R$11,Division2a,2,FALSE) -> 618 Echiquier Mosan 1 | H11: =VLOOKUP($S$11,Division2a,2,FALSE) -> 401 KGSRL 2 | I11: 2 | J11: - | K11: 6 | M11: =VLOOKUP($R$11,Division2b,2,FALSE) -> 209 The Belgian CC 1 | N11: =VLOOKUP($S$11,Division2b,2,FALSE) -> 226 Europchess 1 | O11: 4 | P11: - | Q11: 4 | R11: 10 | S11: 4
A12: =VLOOKUP($R$12,Division1,2,FALSE) -> 401 KGSRL 1 | B12: =VLOOKUP($S$12,Division1,2,FALSE) -> 601 CRELEL Liège 1 | C12: 4 | D12: - | E12: 4 | G12: =VLOOKUP($R$12,Division2a,2,FALSE) -> 231 Dolle Toren Leuven 1 | H12: =VLOOKUP($S$12,Division2a,2,FALSE) -> 601 CRELEL Liège 2 | I12: 6.5 | J12: - | K12: 1.5 | M12: =VLOOKUP($R$12,Division2b,2,FALSE) -> 261 Opwijk 1 | N12: =VLOOKUP($S$12,Division2b,2,FALSE) -> 109 Borgerhout 1 | O12: 4 | P12: - | Q12: 4 | R12: 11 | S12: 3
A13: =VLOOKUP($R$13,Division1,2,FALSE) -> 621 T.A.L. 1 | B13: =VLOOKUP($S$13,Division1,2,FALSE) -> 303 KBSK Brugge 1 | C13: 3 | D13: - | E13: 5 | G13: =VLOOKUP($R$13,Division2a,2,FALSE) -> 230 Leuven Centraal 1 | H13: =VLOOKUP($S$13,Division2a,2,FALSE) -> 514 MCC 1 | I13: 5.5 | J13: - | K13: 2.5 | M13: =VLOOKUP($R$13,Division2b,2,FALSE) -> 462 Zottegem 1 | N13: =VLOOKUP($S$13,Division2b,2,FALSE) -> 303 KBSK Brugge 2 | O13: 3.5 | P13: - | Q13: 4.5 | R13: 1 | S13: 2
A15: Afdeling/Division 3A | G15: Afdeling/Division 3B | M15: Afdeling/Division 3C
A16: =VLOOKUP($R$8,Division3a,2,FALSE) -> 239 Boitsfort 2 | B16: =VLOOKUP($S$8,Division3a,2,FALSE) -> 401 KGSRL 4 | C16: 2 | D16: - | E16: 4 | G16: =VLOOKUP($R$8,Division3b,2,FALSE) -> 432 Wetteren 2 | H16: =VLOOKUP($S$8,Division3b,2,FALSE) -> 302 KISK Ieper 1 | I16: 4 | J16: - | K16: 2 | M16: =VLOOKUP($R$8,Division3c,2,FALSE) -> 230 Leuven Centraal 2 | N16: =VLOOKUP($S$8,Division3c,2,FALSE) -> 607 Roch. Eupen-Kelmis 3 | O16: 2 | P16: - | Q16: 4
A17: =VLOOKUP($R$9,Division3a,2,FALSE) -> 909 Philippeville 1 | B17: =VLOOKUP($S$9,Division3a,2,FALSE) -> 201 CREB Bruxelles 2 | C17: 4.5 | D17: - | E17: 1.5 | G17: =VLOOKUP($R$9,Division3b,2,FALSE) -> 472 De Mercatel 1 | H17: =VLOOKUP($S$9,Division3b,2,FALSE) -> 313 KWSLE 1 | I17: 3.5 | J17: - | K17: 2.5 | M17: =VLOOKUP($R$9,Division3c,2,FALSE) -> 901 Namur Echecs 2 | N17: =VLOOKUP($S$9,Division3c,2,FALSE) -> 607 Roch. Eupen-Kelmis 2 | O17: 1 | P17: - | Q17: 5
A18: =VLOOKUP($R$10,Division3a,2,FALSE) -> 174 Brasschaat 2 | B18: =VLOOKUP($S$10,Division3a,2,FALSE) -> 417 Pion-Aalst 1 | C18: 3.5 | D18: - | E18: 2.5 | G18: =VLOOKUP($R$10,Division3b,2,FALSE) -> 521 Tournai 1 | H18: =VLOOKUP($S$10,Division3b,2,FALSE) -> 301 KOSK Oostende 2 | I18: 1.5 | J18: - | K18: 4.5 | M18: =VLOOKUP($R$10,Division3c,2,FALSE) -> 174 Brasschaat 3 | N18: =VLOOKUP($S$10,Division3c,2,FALSE) -> 135 Geel 1 | O18: 1 | P18: - | Q18: 5
A19: =VLOOKUP($R$11,Division3a,2,FALSE) -> 511 EDC 1 | B19: =VLOOKUP($S$11,Division3a,2,FALSE) -> 226 Europchess 2 | C19: 2.5 | D19: - | E19: 3.5 | G19: =VLOOKUP($R$11,Division3b,2,FALSE) -> 471 Wachtebeke 2 | H19: =VLOOKUP($S$11,Division3b,2,FALSE) -> 309 KRST 1 | I19: 3 | J19: - | K19: 3 | M19: =VLOOKUP($R$11,Division3c,2,FALSE) -> 703 Eisden/MSK-Dilsen 1 | N19: =VLOOKUP($S$11,Division3c,2,FALSE) -> 627 Wirtzfeld 2 | O19: 3.5 | P19: - | Q19: 2.5
A20: =VLOOKUP($R$12,Division3a,2,FALSE) -> 244 Brussels 1 | B20: =VLOOKUP($S$12,Division3a,2,FALSE) -> 228 Dworp 1 | C20: 2 | D20: - | E20: 4 | G20: =VLOOKUP($R$12,Division3b,2,FALSE) -> 401 KGSRL 6 | H20: =VLOOKUP($S$12,Division3b,2,FALSE) -> 436 LSV-Chesspirant 2 | I20: 4 | J20: - | K20: 2 | M20: =VLOOKUP($R$12,Division3c,2,FALSE) -> 604 KSK47-Eynatten 1 | N20: =VLOOKUP($S$12,Division3c,2,FALSE) -> 601 CRELEL Liège 3 | O20: 3 | P20: - | Q20: 3
A21: =VLOOKUP($R$13,Division3a,2,FALSE) -> 548 Caissa Europe 1 | B21: =VLOOKUP($S$13,Division3a,2,FALSE) -> 541 Leuze-En-Hainaut 1 | C21: 5.5 | D21: - | E21: 0.5 | G21: =VLOOKUP($R$13,Division3b,2,FALSE) -> 401 KGSRL 5 | H21: =VLOOKUP($S$13,Division3b,2,FALSE) -> 303 KBSK Brugge 3 | I21: 1.5 | J21: - | K21: 4.5 | M21: =VLOOKUP($R$13,Division3c,2,FALSE) -> 621 T.A.L. 2 | N21: =VLOOKUP($S$13,Division3c,2,FALSE) -> 727 Midden-Limburg 1 | O21: 2.5 | P21: - | Q21: 3.5
A23: Afdeling/Division 3D | G23: Afdeling/Division 4A | M23: Afdeling/Division 4B
A24: =VLOOKUP($R$8,Division3d,2,FALSE) -> 708 NLS Lommel 1 | B24: =VLOOKUP($S$8,Division3d,2,FALSE) -> 166 TSM Mechelen 2 | C24: 1.5 | D24: - | E24: 4.5 | G24: =VLOOKUP($R$8,Division4a,2,FALSE) -> 239 Boitsfort 3 | H24: =VLOOKUP($S$8,Division4a,2,FALSE) -> 166 TSM Mechelen 3 | I24: 1 | J24: - | K24: 3 | M24: =VLOOKUP($R$8,Division4b,2,FALSE) -> 952 CEW 2 | N24: =VLOOKUP($S$8,Division4b,2,FALSE) -> 961 Braine Echecs 1 | O24: 4 | P24: - | Q24: 0
A25: =VLOOKUP($R$9,Division3d,2,FALSE) -> 401 KGSRL 7 | B25: =VLOOKUP($S$9,Division3d,2,FALSE) -> 114 Mechelen 2 | C25: 3 | D25: - | E25: 3 | G25: =VLOOKUP($R$9,Division4a,2,FALSE) -> 229 Woluwe 1 | H25: =VLOOKUP($S$9,Division4a,2,FALSE) -> 114 Mechelen 3 | I25: 3.5 | J25: - | K25: 0.5 | M25: =VLOOKUP($R$9,Division4b,2,FALSE) -> 901 Namur Echecs 3 | N25: =VLOOKUP($S$9,Division4b,2,FALSE) -> 607 Roch. Eupen-Kelmis 4 | O25: 0.5 | P25: - | Q25: 3.5
A26: =VLOOKUP($R$10,Division3d,2,FALSE) -> 174 Brasschaat 4 | B26: =VLOOKUP($S$10,Division3d,2,FALSE) -> 128 Beveren 1 | C26: 0.5 | D26: - | E26: 5.5 | G26: =VLOOKUP($R$10,Division4a,2,FALSE) -> 207 2 Fous Diogène 1 | H26: =VLOOKUP($S$10,Division4a,2,FALSE) -> 278 Pantin 2 | I26: 4 | J26: - | K26: 0 | M26: =VLOOKUP($R$10,Division4b,2,FALSE) -> 207 2 Fous Diogène 2 | N26: =VLOOKUP($S$10,Division4b,2,FALSE) -> 278 Pantin 3 | O26: 0.5 | P26: - | Q26: 3.5
A27: =VLOOKUP($R$11,Division3d,2,FALSE) -> 260 Kapelle-op-den Bos 1 | B27: =VLOOKUP($S$11,Division3d,2,FALSE) -> 101 KASK 1 | C27: 0.5 | D27: - | E27: 5.5 | G27: =VLOOKUP($R$11,Division4a,2,FALSE) -> 240 SCRR 1 | H27: =VLOOKUP($S$11,Division4a,2,FALSE) -> 226 Europchess 3 | I27: 2.5 | J27: - | K27: 1.5 | M27: =VLOOKUP($R$11,Division4b,2,FALSE) -> 209 The Belgian CC 2 | N27: =VLOOKUP($S$11,Division4b,2,FALSE) -> 226 Europchess 4 | O27: 2 | P27: - | Q27: 2
A28: =VLOOKUP($R$12,Division3d,2,FALSE) -> 244 Brussels 2 | B28: =VLOOKUP($S$12,Division3d,2,FALSE) -> 109 Borgerhout 2 | C28: 6 | D28: - | E28: 0 | G28: =VLOOKUP($R$12,Division4a,2,FALSE) -> 261 Opwijk 2 | H28: =VLOOKUP($S$12,Division4a,2,FALSE) -> 194 ChessLooks Lier 1 | I28: 3 | J28: - | K28: 1 | M28: =VLOOKUP($R$12,Division4b,2,FALSE) -> 231 Dolle Toren Leuven 2 | N28: =VLOOKUP($S$12,Division4b,2,FALSE) -> 952 CEW 3 | O28: 3.5 | P28: - | Q28: 0.5
A29: =VLOOKUP($R$13,Division3d,2,FALSE) -> 410 St.-Niklaas 1 | B29: =VLOOKUP($S$13,Division3d,2,FALSE) -> 425 Dendermonde 1 | C29: 3 | D29: - | E29: 3 | G29: =VLOOKUP($R$13,Division4a,2,FALSE) -> 230 Leuven Centraal 3 | H29: =VLOOKUP($S$13,Division4a,2,FALSE) -> 121 Turnhout 1 | I29: 4 | J29: - | K29: 0 | M29: =VLOOKUP($R$13,Division4b,2,FALSE) -> 525 CELB Anderlues 1 | N29: =VLOOKUP($S$13,Division4b,2,FALSE) -> 601 CRELEL Liège 4 | O29: 2 | P29: - | Q29: 2
A31: Afdeling/Division 4C | G31: Afdeling/Division 4D | M31: Afdeling/Division 4E
A32: =VLOOKUP($R$8,Division4c,2,FALSE) -> 712 Landen 1 | B32: =VLOOKUP($S$8,Division4c,2,FALSE) -> 607 Roch. Eupen-Kelmis 6 | C32: 2 | D32: - | E32: 2 | G32: =VLOOKUP($R$8,Division4d,2,FALSE) -> 432 Wetteren 3 | H32: =VLOOKUP($S$8,Division4d,2,FALSE) -> 302 KISK Ieper 2 | I32: 3.5 | J32: - | K32: 0.5 | M32: =VLOOKUP($R$8,Division4e,2,FALSE) -> 432 Wetteren 4 | N32: =VLOOKUP($S$8,Division4e,2,FALSE) -> 438 Deinze 1 | O32: 1.5 | P32: - | Q32: 2.5
A33: =VLOOKUP($R$9,Division4c,2,FALSE) -> 901 Namur Echecs 4 | B33: =VLOOKUP($S$9,Division4c,2,FALSE) -> 607 Roch. Eupen-Kelmis 5 | C33: 1 | D33: - | E33: 3 | G33: =VLOOKUP($R$9,Division4d,2,FALSE) -> 307 Bredene 1 | H33: =VLOOKUP($S$9,Division4d,2,FALSE) -> 313 KWSLE 2 | I33: 2 | J33: - | K33: 2 | M33: =VLOOKUP($R$9,Division4e,2,FALSE) -> 472 De Mercatel 2 | N33: =VLOOKUP($S$9,Division4e,2,FALSE) -> 417 Pion-Aalst 2 | O33: 1.5 | P33: - | Q33: 2.5
A34: =VLOOKUP($R$10,Division4c,2,FALSE) -> 622 Herve 1 | B34: =VLOOKUP($S$10,Division4c,2,FALSE) -> 810 Marche-en-Famenne 1 | C34: 1 | D34: - | E34: 3 | G34: =VLOOKUP($R$10,Division4d,2,FALSE) -> 422 MSV 1 | H34: =VLOOKUP($S$10,Division4d,2,FALSE) -> 301 KOSK Oostende 3 | I34: 3 | J34: - | K34: 1 | M34: =VLOOKUP($R$10,Division4e,2,FALSE) -> 402 Jean Jaurès Gent 2 | N34: =VLOOKUP($S$10,Division4e,2,FALSE) -> 460 Oudenaarde 1 | O34: 2.5 | P34: - | Q34: 1.5
A35: =VLOOKUP($R$11,Division4c,2,FALSE) -> 618 Echiquier Mosan 2 | B35: =VLOOKUP($S$11,Division4c,2,FALSE) -> 627 Wirtzfeld 3 | C35: 3 | D35: - | E35: 1 | G35: =VLOOKUP($R$11,Division4d,2,FALSE) -> 340 Izegem 1 | H35: =VLOOKUP($S$11,Division4d,2,FALSE) -> 430 Landegem 1 | I35: 3.5 | J35: - | K35: 0.5 | M35: =VLOOKUP($R$11,Division4e,2,FALSE) -> 401 KGSRL 8 | N35: =VLOOKUP($S$11,Division4e,2,FALSE) -> 430 Landegem 2 | O35: 2 | P35: - | Q35: 2
A36: =VLOOKUP($R$12,Division4c,2,FALSE) -> 604 KSK47-Eynatten 2 - FF | B36: =VLOOKUP($S$12,Division4c,2,FALSE) -> 601 CRELEL Liège 6 | D36: - | G36: =VLOOKUP($R$12,Division4d,2,FALSE) -> 304 Tielt 1 | H36: =VLOOKUP($S$12,Division4d,2,FALSE) -> 475 Rapid Aalter 1 | I36: 3.5 | J36: - | K36: 0.5 | M36: =VLOOKUP($R$12,Division4e,2,FALSE) -> 304 Tielt 2 | N36: =VLOOKUP($S$12,Division4e,2,FALSE) -> 418 VPTD 1 | O36: 1 | P36: - | Q36: 3
A37: =VLOOKUP($R$13,Division4c,2,FALSE) -> 621 T.A.L. 3 | B37: =VLOOKUP($S$13,Division4c,2,FALSE) -> 601 CRELEL Liège 5 | C37: 0 | D37: - | E37: 4 | G37: =VLOOKUP($R$13,Division4d,2,FALSE) -> 465 SK Artevelde 1 | H37: =VLOOKUP($S$13,Division4d,2,FALSE) -> 303 KBSK Brugge 4 | I37: 2.5 | J37: - | K37: 1.5 | M37: =VLOOKUP($R$13,Division4e,2,FALSE) -> 462 Zottegem 2 | N37: =VLOOKUP($S$13,Division4e,2,FALSE) -> 541 Leuze-En-Hainaut 2 | O37: 3 | P37: - | Q37: 1
A39: Afdeling/Division 4F | G39: Afdeling/Division 4G | M39: Afdeling/Division 4H
A40: =VLOOKUP($R$8,Division4f,2,FALSE) -> 548 Caissa Europe 2 | B40: =VLOOKUP($S$8,Division4f,2,FALSE) -> 501 CREC Charleroi 2 | C40: 2.5 | D40: - | E40: 1.5 | G40: =VLOOKUP($R$8,Division4g,2,FALSE) -> 143 Boey Temse 2 | H40: =VLOOKUP($S$8,Division4g,2,FALSE) -> 436 LSV-Chesspirant 4 | I40: 1.5 | J40: - | K40: 2.5 | M40: =VLOOKUP($R$8,Division4h,2,FALSE) -> 230 Leuven Centraal 4 | N40: =VLOOKUP($S$8,Division4h,2,FALSE) -> 124 Deurne 3 | O40: 2.5 | P40: - | Q40: 1.5
A41: =VLOOKUP($R$9,Division4f,2,FALSE) -> 909 Philippeville 2 | B41: =VLOOKUP($S$9,Division4f,2,FALSE) -> 902 CES 1 | C41: 1.5 | D41: - | E41: 2.5 | G41: =VLOOKUP($R$9,Division4g,2,FALSE) -> 132 SK Oude God 1 | H41: =VLOOKUP($S$9,Division4g,2,FALSE) -> 124 Deurne 2 | I41: 2 | J41: - | K41: 2 | M41: =VLOOKUP($R$9,Division4h,2,FALSE) -> 132 SK Oude God 2 | N41: =VLOOKUP($S$9,Division4h,2,FALSE) -> 114 Mechelen 4 | O41: 4 | P41: - | Q41: 0
A42: =VLOOKUP($R$10,Division4f,2,FALSE) -> 207 2 Fous Diogène 3 | B42: =VLOOKUP($S$10,Division4f,2,FALSE) -> 278 Pantin 4 | C42: 2 | D42: - | E42: 2 | G42: =VLOOKUP($R$10,Division4g,2,FALSE) -> 422 MSV 2 | H42: =VLOOKUP($S$10,Division4g,2,FALSE) -> 401 KGSRL 9 | I42: 3.5 | J42: - | K42: 0.5 | M42: =VLOOKUP($R$10,Division4h,2,FALSE) -> 176 Westerlo 2 | N42: =VLOOKUP($S$10,Division4h,2,FALSE) -> 135 Geel 2 | O42: 2.5 | P42: - | Q42: 1.5
A43: =VLOOKUP($R$11,Division4f,2,FALSE) -> 233 DZD Halle 1 | B43: =VLOOKUP($S$11,Division4f,2,FALSE) -> 551 HCC Jurbise 1 | C43: 3 | D43: - | E43: 1 | G43: =VLOOKUP($R$11,Division4g,2,FALSE) -> 471 Wachtebeke 3 | H43: =VLOOKUP($S$11,Division4g,2,FALSE) -> 430 Landegem 3 | I43: 2 | J43: - | K43: 2 | M43: =VLOOKUP($R$11,Division4h,2,FALSE) -> 714 Pelt 1 | N43: =VLOOKUP($S$11,Division4h,2,FALSE) -> 101 KASK 2 | O43: 1.5 | P43: - | Q43: 2.5
A44: =VLOOKUP($R$12,Division4f,2,FALSE) -> 547 Ren. Binchois 1 | B44: =VLOOKUP($S$12,Division4f,2,FALSE) -> 228 Dworp 2 | C44: 2 | D44: - | E44: 2 | G44: =VLOOKUP($R$12,Division4g,2,FALSE) -> 130 Hoboken 1 | H44: =VLOOKUP($S$12,Division4g,2,FALSE) -> 436 LSV-Chesspirant 3 | I44: 2 | J44: - | K44: 2 | M44: =VLOOKUP($R$12,Division4h,2,FALSE) -> 130 Hoboken 2 | N44: =VLOOKUP($S$12,Division4h,2,FALSE) -> 194 ChessLooks Lier 2 | O44: 3 | P44: - | Q44: 1
A45: =VLOOKUP($R$13,Division4f,2,FALSE) -> 525 CELB Anderlues 2 | B45: =VLOOKUP($S$13,Division4f,2,FALSE) -> 541 Leuze-En-Hainaut 3 | C45: 3 | D45: - | E45: 1 | G45: =VLOOKUP($R$13,Division4g,2,FALSE) -> 465 SK Artevelde 2 | H45: =VLOOKUP($S$13,Division4g,2,FALSE) -> 121 Turnhout 2 | I45: 1.5 | J45: - | K45: 2.5 | M45: =VLOOKUP($R$13,Division4h,2,FALSE) -> 121 Turnhout 3 | N45: =VLOOKUP($S$13,Division4h,2,FALSE) -> 727 Midden-Limburg 2 | O45: 1.5 | P45: - | Q45: 2.5
A47: Afdeling/Division 5A | G47: Afdeling/Division 5B | M47: Afdeling/Division 5C
A48: =VLOOKUP($R$8,Division5a,2,FALSE) -> 712 Landen 2 | B48: =VLOOKUP($S$8,Division5a,2,FALSE) -> 733 St.-Truiden 1 | C48: 2.5 | D48: - | E48: 1.5 | G48: =VLOOKUP($R$8,Division5b,2,FALSE) -> 209 The Belgian CC 3 | H48: =VLOOKUP($S$8,Division5b,2,FALSE) -> 501 CREC Charleroi 3 | I48: 1 | J48: - | K48: 3 | M48: =VLOOKUP($R$8,Division5c,2,FALSE) -> 549 Saint-Ghislain 1 | N48: =VLOOKUP($S$8,Division5c,2,FALSE) -> 501 CREC Charleroi 4 | O48: 1.5 | P48: - | Q48: 2.5
A49: =VLOOKUP($R$9,Division5a,2,FALSE) -> 901 Namur Echecs 5 - FF | B49: =VLOOKUP($S$9,Division5a,2,FALSE) -> 607 Roch. Eupen-Kelmis 7 | D49: - | G49: =VLOOKUP($R$9,Division5b,2,FALSE) -> 952 CEW 4 | H49: =VLOOKUP($S$9,Division5b,2,FALSE) -> 961 Braine Echecs 2 | I49: 2 | J49: - | K49: 2 | M49: =VLOOKUP($R$9,Division5c,2,FALSE) -> 901 Namur Echecs 6 | N49: =VLOOKUP($S$9,Division5c,2,FALSE) -> 961 Braine Echecs 3 | O49: 3 | P49: - | Q49: 1
A50: =VLOOKUP($R$10,Division5a,2,FALSE) -> 000 BYE 5A | B50: =VLOOKUP($S$10,Division5a,2,FALSE) -> 810 Marche-en-Famenne 2 | D50: - | G50: =VLOOKUP($R$10,Division5b,2,FALSE) -> 207 2 Fous Diogène 4 | H50: =VLOOKUP($S$10,Division5b,2,FALSE) -> 278 Pantin 5 | I50: 1 | J50: - | K50: 3 | M50: =VLOOKUP($R$10,Division5c,2,FALSE) -> 548 Caissa Europe 3 | N50: =VLOOKUP($S$10,Division5c,2,FALSE) -> 902 CES 2 | O50: 2.5 | P50: - | Q50: 1.5
A51: =VLOOKUP($R$11,Division5a,2,FALSE) -> 618 Echiquier Mosan 3 | B51: =VLOOKUP($S$11,Division5a,2,FALSE) -> 703 Eisden/MSK-Dilsen 2 | C51: 1.5 | D51: - | E51: 2.5 | G51: =VLOOKUP($R$11,Division5b,2,FALSE) -> 233 DZD Halle 2 | H51: =VLOOKUP($S$11,Division5b,2,FALSE) -> 226 Europchess 5 | I51: 2 | J51: - | K51: 2 | M51: =VLOOKUP($R$11,Division5c,2,FALSE) -> 511 EDC 2 | N51: =VLOOKUP($S$11,Division5c,2,FALSE) -> 551 HCC Jurbise 2 | O51: 2.5 | P51: - | Q51: 1.5
A52: =VLOOKUP($R$12,Division5a,2,FALSE) -> 604 KSK47-Eynatten 3 | B52: =VLOOKUP($S$12,Division5a,2,FALSE) -> 601 CRELEL Liège 8 | C52: 3 | D52: - | E52: 1 | G52: =VLOOKUP($R$12,Division5b,2,FALSE) -> 244 Brussels 3 | H52: =VLOOKUP($S$12,Division5b,2,FALSE) -> 204 Excelsior 1 | I52: 3 | J52: - | K52: 1 | M52: =VLOOKUP($R$12,Division5c,2,FALSE) -> 000 BYE 5C | N52: =VLOOKUP($S$12,Division5c,2,FALSE) -> 953 Nivelles 1 | P52: -
A53: =VLOOKUP($R$13,Division5a,2,FALSE) -> 609 Anthisnes 1 | B53: =VLOOKUP($S$13,Division5a,2,FALSE) -> 601 CRELEL Liège 7 | C53: 3.5 | D53: - | E53: 0.5 | G53: =VLOOKUP($R$13,Division5b,2,FALSE) -> 230 Leuven Centraal 5 | H53: =VLOOKUP($S$13,Division5b,2,FALSE) -> 514 MCC 2 | I53: 3.5 | J53: - | K53: 0.5 | M53: =VLOOKUP($R$13,Division5c,2,FALSE) -> 525 CELB Anderlues 3 | N53: =VLOOKUP($S$13,Division5c,2,FALSE) -> 514 MCC 3 | O53: 3 | P53: - | Q53: 1
A55: Afdeling/Division 5D | G55: Afdeling/Division 5E | M55: Afdeling/Division 5F
A56: =VLOOKUP($R$8,Division5d,2,FALSE) -> 000 BYE 5D | B56: =VLOOKUP($S$8,Division5d,2,FALSE) -> 609 Anthisnes 2 | D56: - | G56: =VLOOKUP($R$8,Division5e,2,FALSE) -> 143 Boey Temse 3 | H56: =VLOOKUP($S$8,Division5e,2,FALSE) -> 436 LSV-Chesspirant 5 | I56: 1.5 | J56: - | K56: 2.5 | M56: =VLOOKUP($R$8,Division5f,2,FALSE) -> 432 Wetteren 5 | N56: =VLOOKUP($S$8,Division5f,2,FALSE) -> 438 Deinze 2 | O56: 4 | P56: - | Q56: 0
A57: =VLOOKUP($R$9,Division5d,2,FALSE) -> 703 Eisden/MSK-Dilsen 4 | B57: =VLOOKUP($S$9,Division5d,2,FALSE) -> 607 Roch. Eupen-Kelmis 8 | C57: 3 | D57: - | E57: 1 | G57: =VLOOKUP($R$9,Division5e,2,FALSE) -> 132 SK Oude God 3 | H57: =VLOOKUP($S$9,Division5e,2,FALSE) -> 114 Mechelen 5 | I57: 0.5 | J57: - | K57: 3.5 | M57: =VLOOKUP($R$9,Division5f,2,FALSE) -> 000 BYE 5F | N57: =VLOOKUP($S$9,Division5f,2,FALSE) -> 313 KWSLE 3 | P57: -
A58: =VLOOKUP($R$10,Division5d,2,FALSE) -> 623 Sankt Vith 1 | B58: =VLOOKUP($S$10,Division5d,2,FALSE) -> 627 Wirtzfeld 4 | C58: 3 | D58: - | E58: 1 | G58: =VLOOKUP($R$10,Division5e,2,FALSE) -> 174 Brasschaat 5 | H58: =VLOOKUP($S$10,Division5e,2,FALSE) -> 128 Beveren 2 | I58: 2 | J58: - | K58: 2 | M58: =VLOOKUP($R$10,Division5f,2,FALSE) -> 521 Tournai 2 | N58: =VLOOKUP($S$10,Division5f,2,FALSE) -> 460 Oudenaarde 2 | O58: 2.5 | P58: - | Q58: 1.5
A59: =VLOOKUP($R$11,Division5d,2,FALSE) -> 619 Welkenraedt 1 | B59: =VLOOKUP($S$11,Division5d,2,FALSE) -> 703 Eisden/MSK-Dilsen 3 | C59: 1 | D59: - | E59: 3 | G59: =VLOOKUP($R$11,Division5e,2,FALSE) -> 401 KGSRL 10 | H59: =VLOOKUP($S$11,Division5e,2,FALSE) -> 101 KASK 3 | I59: 3 | J59: - | K59: 1 | M59: =VLOOKUP($R$11,Division5f,2,FALSE) -> 340 Izegem 2 | N59: =VLOOKUP($S$11,Division5f,2,FALSE) -> 309 KRST 2 | O59: 2.5 | P59: - | Q59: 1.5
A60: =VLOOKUP($R$12,Division5d,2,FALSE) -> 604 KSK47-Eynatten 4 | B60: =VLOOKUP($S$12,Division5d,2,FALSE) -> 601 CRELEL Liège 10 | C60: 2.5 | D60: - | E60: 1.5 | G60: =VLOOKUP($R$12,Division5e,2,FALSE) -> 130 Hoboken 3 | H60: =VLOOKUP($S$12,Division5e,2,FALSE) -> 109 Borgerhout 3 | I60: 1.5 | J60: - | K60: 2.5 | M60: =VLOOKUP($R$12,Division5f,2,FALSE) -> 401 KGSRL 11 | N60: =VLOOKUP($S$12,Division5f,2,FALSE) -> 436 LSV-Chesspirant 6 | O60: 1 | P60: - | Q60: 3
A61: =VLOOKUP($R$13,Division5d,2,FALSE) -> 621 T.A.L. 4 | B61: =VLOOKUP($S$13,Division5d,2,FALSE) -> 601 CRELEL Liège 9 | C61: 1 | D61: - | E61: 3 | G61: =VLOOKUP($R$13,Division5e,2,FALSE) -> 410 St.-Niklaas 2 | H61: =VLOOKUP($S$13,Division5e,2,FALSE) -> 190 Burcht 1 | I61: 2 | J61: - | K61: 2 | M61: =VLOOKUP($R$13,Division5f,2,FALSE) -> 462 Zottegem 3 | N61: =VLOOKUP($S$13,Division5f,2,FALSE) -> 541 Leuze-En-Hainaut 4 | O61: 3 | P61: - | Q61: 1
A63: Afdeling/Division 5G | G63: Afdeling/Division 5H | M63: Afdeling/Division 5I
A64: =VLOOKUP($R$8,Division5g,2,FALSE) -> 432 Wetteren 6 | B64: =VLOOKUP($S$8,Division5g,2,FALSE) -> 401 KGSRL 12 | C64: 1.5 | D64: - | E64: 2.5 | G64: =VLOOKUP($R$8,Division5h,2,FALSE) -> 000 BYE 5H | H64: =VLOOKUP($S$8,Division5h,2,FALSE) -> 302 KISK Ieper 3 | J64: - | M64: =VLOOKUP($R$8,Division5i,2,FALSE) -> 239 Boitsfort 4 | N64: =VLOOKUP($S$8,Division5i,2,FALSE) -> 000 BYE 5I | P64: -
A65: =VLOOKUP($R$9,Division5g,2,FALSE) -> 472 De Mercatel 3 | B65: =VLOOKUP($S$9,Division5g,2,FALSE) -> 313 KWSLE 4 | C65: 3 | D65: - | E65: 1 | G65: =VLOOKUP($R$9,Division5h,2,FALSE) -> 307 Bredene 2 | H65: =VLOOKUP($S$9,Division5h,2,FALSE) -> 401 KGSRL 14 | I65: 1.5 | J65: - | K65: 2.5 | M65: =VLOOKUP($R$9,Division5i,2,FALSE) -> 229 Woluwe 2 | N65: =VLOOKUP($S$9,Division5i,2,FALSE) -> 201 CREB Bruxelles 3 | O65: 0.5 | P65: - | Q65: 3.5
A66: =VLOOKUP($R$10,Division5g,2,FALSE) -> 422 MSV 3 | B66: =VLOOKUP($S$10,Division5g,2,FALSE) -> 301 KOSK Oostende 4 | C66: 2 | D66: - | E66: 2 | G66: =VLOOKUP($R$10,Division5h,2,FALSE) -> 351 Knokke Schaak 1 | H66: =VLOOKUP($S$10,Division5h,2,FALSE) -> 301 KOSK Oostende 5 | I66: 3 | J66: - | K66: 1 | M66: =VLOOKUP($R$10,Division5i,2,FALSE) -> 207 2 Fous Diogène 5 | N66: =VLOOKUP($S$10,Division5i,2,FALSE) -> 278 Pantin 6 | O66: 0 | P66: - | Q66: 4
A67: =VLOOKUP($R$11,Division5g,2,FALSE) -> 471 Wachtebeke 4 | B67: =VLOOKUP($S$11,Division5g,2,FALSE) -> 430 Landegem 4 | C67: 2 | D67: - | E67: 2 | G67: =VLOOKUP($R$11,Division5h,2,FALSE) -> 340 Izegem 3 | H67: =VLOOKUP($S$11,Division5h,2,FALSE) -> 309 KRST 3 | I67: 1.5 | J67: - | K67: 2.5 | M67: =VLOOKUP($R$11,Division5i,2,FALSE) -> 209 The Belgian CC 4 | N67: =VLOOKUP($S$11,Division5i,2,FALSE) -> 260 Kapelle-op-den Bos 2 | O67: 2.5 | P67: - | Q67: 1.5
A68: =VLOOKUP($R$12,Division5g,2,FALSE) -> 401 KGSRL 13 | B68: =VLOOKUP($S$12,Division5g,2,FALSE) -> 436 LSV-Chesspirant 7 | C68: 1.5 | D68: - | E68: 2.5 | G68: =VLOOKUP($R$12,Division5h,2,FALSE) -> 305 Kortrijk 1 | H68: =VLOOKUP($S$12,Division5h,2,FALSE) -> 475 Rapid Aalter 2 | I68: 1.5 | J68: - | K68: 2.5 | M68: =VLOOKUP($R$12,Division5i,2,FALSE) -> 244 Brussels 4 | N68: =VLOOKUP($S$12,Division5i,2,FALSE) -> 204 Excelsior 2 | O68: 4 | P68: - | Q68: 0
A69: =VLOOKUP($R$13,Division5g,2,FALSE) -> 465 SK Artevelde 3 | B69: =VLOOKUP($S$13,Division5g,2,FALSE) -> 303 KBSK Brugge 5 | C69: 2.5 | D69: - | E69: 1.5 | G69: =VLOOKUP($R$13,Division5h,2,FALSE) -> 322 Veurne 1 | H69: =VLOOKUP($S$13,Division5h,2,FALSE) -> 303 KBSK Brugge 6 | I69: 2 | J69: - | K69: 2 | M69: =VLOOKUP($R$13,Division5i,2,FALSE) -> 230 Leuven Centraal 6 | N69: =VLOOKUP($S$13,Division5i,2,FALSE) -> 401 KGSRL 15 | O69: 0.5 | P69: - | Q69: 3.5
A71: Afdeling/Division 5J | G71: Afdeling/Division 5K | M71: Afdeling/Division 5L
A72: =VLOOKUP($R$8,Division5j,2,FALSE) -> 196 De Rode Loper 1 | B72: =VLOOKUP($S$8,Division5j,2,FALSE) -> 114 Mechelen 6 | C72: 3 | D72: - | E72: 1 | G72: =VLOOKUP($R$8,Division5k,2,FALSE) -> 121 Turnhout 4 | H72: =VLOOKUP($S$8,Division5k,2,FALSE) -> 166 TSM Mechelen 4 | I72: 1 | J72: - | K72: 3 | M72: =VLOOKUP($R$8,Division5l,2,FALSE) -> 432 Wetteren 7 | N72: =VLOOKUP($S$8,Division5l,2,FALSE) -> 401 KGSRL 18 | O72: 2 | P72: - | Q72: 2
A73: =VLOOKUP($R$9,Division5j,2,FALSE) -> 132 SK Oude God 4 | B73: =VLOOKUP($S$9,Division5j,2,FALSE) -> 124 Deurne 4 | C73: 2 | D73: - | E73: 2 | G73: =VLOOKUP($R$9,Division5k,2,FALSE) -> 132 SK Oude God 5 | H73: =VLOOKUP($S$9,Division5k,2,FALSE) -> 114 Mechelen 7 | I73: 1.5 | J73: - | K73: 2.5 | M73: =VLOOKUP($R$9,Division5l,2,FALSE) -> 436 LSV-Chesspirant 9 | N73: =VLOOKUP($S$9,Division5l,2,FALSE) -> 417 Pion-Aalst 3 | O73: 4 | P73: - | Q73: 0
A74: =VLOOKUP($R$10,Division5j,2,FALSE) -> 174 Brasschaat 6 | B74: =VLOOKUP($S$10,Division5j,2,FALSE) -> 128 Beveren 3 | C74: 1 | D74: - | E74: 3 | G74: =VLOOKUP($R$10,Division5k,2,FALSE) -> 176 Westerlo 3 | H74: =VLOOKUP($S$10,Division5k,2,FALSE) -> 401 KGSRL 17 | I74: 3 | J74: - | K74: 1 | M74: =VLOOKUP($R$10,Division5l,2,FALSE) -> 422 MSV 4 | N74: =VLOOKUP($S$10,Division5l,2,FALSE) -> 128 Beveren 4 | O74: 1 | P74: - | Q74: 3
A75: =VLOOKUP($R$11,Division5j,2,FALSE) -> 195 Kapellen 1 | B75: =VLOOKUP($S$11,Division5j,2,FALSE) -> 401 KGSRL 16 | C75: 2.5 | D75: - | E75: 1.5 | G75: =VLOOKUP($R$11,Division5k,2,FALSE) -> 182 Noorderwijk 1 | H75: =VLOOKUP($S$11,Division5k,2,FALSE) -> 162 Molse SC 1 | I75: 2 | J75: - | K75: 2 | M75: =VLOOKUP($R$11,Division5l,2,FALSE) -> 000 BYE 5L | N75: =VLOOKUP($S$11,Division5l,2,FALSE) -> 404 Drie Torens 1 | P75: -
A76: =VLOOKUP($R$12,Division5j,2,FALSE) -> 130 Hoboken 4 | B76: =VLOOKUP($S$12,Division5j,2,FALSE) -> 109 Borgerhout 4 | C76: 0 | D76: - | E76: 4 | G76: =VLOOKUP($R$12,Division5k,2,FALSE) -> 231 Dolle Toren Leuven 3 | H76: =VLOOKUP($S$12,Division5k,2,FALSE) -> 194 ChessLooks Lier 3 | I76: 3.5 | J76: - | K76: 0.5 | M76: =VLOOKUP($R$12,Division5l,2,FALSE) -> 261 Opwijk 3 | N76: =VLOOKUP($S$12,Division5l,2,FALSE) -> 436 LSV-Chesspirant 8 | O76: 0.5 | P76: - | Q76: 3.5
A77: =VLOOKUP($R$13,Division5j,2,FALSE) -> 230 Leuven Centraal 7 | B77: =VLOOKUP($S$13,Division5j,2,FALSE) -> 190 Burcht 2 | C77: 3 | D77: - | E77: 1 | G77: =VLOOKUP($R$13,Division5k,2,FALSE) -> 230 Leuven Centraal 8 | H77: =VLOOKUP($S$13,Division5k,2,FALSE) -> 727 Midden-Limburg 3 | I77: 0.5 | J77: - | K77: 3.5 | M77: =VLOOKUP($R$13,Division5l,2,FALSE) -> 462 Zottegem 4 | N77: =VLOOKUP($S$13,Division5l,2,FALSE) -> 425 Dendermonde 2 | O77: 2 | P77: - | Q77: 2
A79: Afdeling/Division 5M | G79: Afdeling/Division 5N
A80: =VLOOKUP($R$8,Division5m,2,FALSE) -> 230 Leuven Centraal 9 | B80: =VLOOKUP($S$8,Division5m,2,FALSE) -> 166 TSM Mechelen 5 | C80: 2 | D80: - | E80: 2 | G80: =VLOOKUP($R$8,Division5n,2,FALSE) -> 549 Saint-Ghislain 2 | H80: =VLOOKUP($S$8,Division5n,2,FALSE) -> 501 CREC Charleroi 5 | I80: 2 | J80: - | K80: 2
A81: =VLOOKUP($R$9,Division5m,2,FALSE) -> 132 SK Oude God 6 | B81: =VLOOKUP($S$9,Division5m,2,FALSE) -> 114 Mechelen 8 | C81: 3 | D81: - | E81: 1 | G81: =VLOOKUP($R$9,Division5n,2,FALSE) -> 901 Namur Echecs 7 | H81: =VLOOKUP($S$9,Division5n,2,FALSE) -> 548 Caissa Europe 4 | I81: 0.5 | J81: - | K81: 3.5
A82: =VLOOKUP($R$10,Division5m,2,FALSE) -> 176 Westerlo 4 | B82: =VLOOKUP($S$10,Division5m,2,FALSE) -> 135 Geel 3 | C82: 0 | D82: - | E82: 4 | G82: =VLOOKUP($R$10,Division5n,2,FALSE) -> 952 CEW 5 | H82: =VLOOKUP($S$10,Division5n,2,FALSE) -> 902 CES 3 | I82: 3.5 | J82: - | K82: 0.5
A83: =VLOOKUP($R$11,Division5m,2,FALSE) -> 714 Pelt 2 | B83: =VLOOKUP($S$11,Division5m,2,FALSE) -> 162 Molse SC 2 | C83: 3 | D83: - | E83: 1 | G83: =VLOOKUP($R$11,Division5n,2,FALSE) -> 000 BYE 5N | H83: =VLOOKUP($S$11,Division5n,2,FALSE) -> 551 HCC Jurbise 3 | J83: -
A84: =VLOOKUP($R$12,Division5m,2,FALSE) -> 231 Dolle Toren Leuven 4 | B84: =VLOOKUP($S$12,Division5m,2,FALSE) -> 666 666 1 | C84: 1.5 | D84: - | E84: 2.5 | G84: =VLOOKUP($R$12,Division5n,2,FALSE) -> 518 Soignies 1 | H84: =VLOOKUP($S$12,Division5n,2,FALSE) -> 228 Dworp 3 | I84: 4 | J84: - | K84: 0
A85: =VLOOKUP($R$13,Division5m,2,FALSE) -> 121 Turnhout 5 | B85: =VLOOKUP($S$13,Division5m,2,FALSE) -> 727 Midden-Limburg 4 | C85: 1.5 | D85: - | E85: 2.5 | G85: =VLOOKUP($R$13,Division5n,2,FALSE) -> 230 Leuven Centraal 10 | H85: =VLOOKUP($S$13,Division5n,2,FALSE) -> 514 MCC 4 | I85: 1 | J85: - | K85: 3

Sheet R3
G1: =CONCATENATE("INTERCLUBS NATIONAUX ",Data!$B$1) -> INTERCLUBS NATIONAUX 2022-2023
G2: =CONCATENATE("NATIONALE INTERCLUBS ",Data!$B$1) -> NATIONALE INTERCLUBS 2022-2023
G5: Ronde 3: | H5: =VLOOKUP(G5,Data,2,FALSE) -> 2022-11-06
A7: Afdeling/Division 1 | G7: Afdeling/Division 2A | M7: Afdeling/Division 2B
A8: =VLOOKUP($R$8,Division1,2,FALSE) -> 303 KBSK Brugge 1 | B8: =VLOOKUP($S$8,Division1,2,FALSE) -> 432 Wetteren 1 | C8: 4.5 | D8: - | E8: 3.5 | G8: =VLOOKUP($R$8,Division2a,2,FALSE) -> 514 MCC 1 | H8: =VLOOKUP($S$8,Division2a,2,FALSE) -> 239 Boitsfort 1 | I8: 3 | J8: - | K8: 5 | M8: =VLOOKUP($R$8,Division2b,2,FALSE) -> 303 KBSK Brugge 2 | N8: =VLOOKUP($S$8,Division2b,2,FALSE) -> 143 Boey Temse 1 | O8: 5.5 | P8: - | Q8: 2.5 | R8: 2 | S8: 12
A9: =VLOOKUP($R$9,Division1,2,FALSE) -> 601 CRELEL Liège 1 | B9: =VLOOKUP($S$9,Division1,2,FALSE) -> 621 T.A.L. 1 | C9: 5 | D9: - | E9: 3 | G9: =VLOOKUP($R$9,Division2a,2,FALSE) -> 601 CRELEL Liège 2 | H9: =VLOOKUP($S$9,Division2a,2,FALSE) -> 230 Leuven Centraal 1 | I9: 0.5 | J9: - | K9: 7.5 | M9: =VLOOKUP($R$9,Division2b,2,FALSE) -> 109 Borgerhout 1 | N9: =VLOOKUP($S$9,Division2b,2,FALSE) -> 462 Zottegem 1 | O9: 4.5 | P9: - | Q9: 3.5 | R9: 3 | S9: 1
A10: =VLOOKUP($R$10,Division1,2,FALSE) -> 627 Wirtzfeld 1 | B10: =VLOOKUP($S$10,Division1,2,FALSE) -> 401 KGSRL 1 | C10: 6.5 | D10: - | E10: 1.5 | G10: =VLOOKUP($R$10,Division2a,2,FALSE) -> 401 KGSRL 2 | H10: =VLOOKUP($S$10,Division2a,2,FALSE) -> 231 Dolle Toren Leuven 1 | I10: 2 | J10: - | K10: 6 | M10: =VLOOKUP($R$10,Division2b,2,FALSE) -> 226 Europchess 1 | N10: =VLOOKUP($S$10,Division2b,2,FALSE) -> 261 Opwijk 1 | O10: 4.5 | P10: - | Q10: 3.5 | R10: 4 | S10: 11
A11: =VLOOKUP($R$11,Division1,2,FALSE) -> 301 KOSK Oostende 1 | B11: =VLOOKUP($S$11,Division1,2,FALSE) -> 471 Wachtebeke 1 | C11: 3.5 | D11: - | E11: 4.5 | G11: =VLOOKUP($R$11,Division2a,2,FALSE) -> 278 Pantin 1 | H11: =VLOOKUP($S$11,Division2a,2,FALSE) -> 618 Echiquier Mosan 1 | I11: 4 | J11: - | K11: 4 | M11: =VLOOKUP($R$11,Division2b,2,FALSE) -> 401 KGSRL 3 | N11: =VLOOKUP($S$11,Division2b,2,FALSE) -> 209 The Belgian CC 1 | O11: 3.5 | P11: - | Q11: 4.5 | R11: 5 | S11: 10
A12: =VLOOKUP($R$12,Division1,2,FALSE) -> 607 Roch. Eupen-Kelmis 1 | B12: =VLOOKUP($S$12,Division1,2,FALSE) -> 174 Brasschaat 1 | C12: 5.5 | D12: - | E12: 2.5 | G12: =VLOOKUP($R$12,Division2a,2,FALSE) -> 201 CREB Bruxelles 1 | H12: =VLOOKUP($S$12,Division2a,2,FALSE) -> 176 Westerlo 1 | I12: 4 | J12: - | K12: 4 | M12: =VLOOKUP($R$12,Division2b,2,FALSE) -> 114 Mechelen 1 | N12: =VLOOKUP($S$12,Division2b,2,FALSE) -> 402 Jean Jaurès Gent 1 | O12: 3.5 | P12: - | Q12: 4.5 | R12: 6 | S12: 9
A13: =VLOOKUP($R$13,Division1,2,FALSE) -> 501 CREC Charleroi 1 | B13: =VLOOKUP($S$13,Division1,2,FALSE) -> 166 TSM Mechelen 1 | C13: 3.5 | D13: - | E13: 4.5 | G13: =VLOOKUP($R$13,Division2a,2,FALSE) -> 952 CEW 1 | H13: =VLOOKUP($S$13,Division2a,2,FALSE) -> 901 Namur Echecs 1 | I13: 5 | J13: - | K13: 3 | M13: =VLOOKUP($R$13,Division2b,2,FALSE) -> 124 Deurne 1 | N13: =VLOOKUP($S$13,Division2b,2,FALSE) -> 436 LSV-Chesspirant 1 | O13: 5 | P13: - | Q13: 3 | R13: 7 | S13: 8
A15: Afdeling/Division 3A | G15: Afdeling/Division 3B | M15: Afdeling/Division 3C
A16: =VLOOKUP($R$8,Division3a,2,FALSE) -> 541 Leuze-En-Hainaut 1 | B16: =VLOOKUP($S$8,Division3a,2,FALSE) -> 239 Boitsfort 2 | C16: 2 | D16: - | E16: 4 | G16: =VLOOKUP($R$8,Division3b,2,FALSE) -> 303 KBSK Brugge 3 | H16: =VLOOKUP($S$8,Division3b,2,FALSE) -> 432 Wetteren 2 | I16: 3.5 | J16: - | K16: 2.5 | M16: =VLOOKUP($R$8,Division3c,2,FALSE) -> 727 Midden-Limburg 1 | N16: =VLOOKUP($S$8,Division3c,2,FALSE) -> 230 Leuven Centraal 2 | O16: 5 | P16: - | Q16: 1
A17: =VLOOKUP($R$9,Division3a,2,FALSE) -> 228 Dworp 1 | B17: =VLOOKUP($S$9,Division3a,2,FALSE) -> 548 Caissa Europe 1 | C17: 2 | D17: - | E17: 4 | G17: =VLOOKUP($R$9,Division3b,2,FALSE) -> 436 LSV-Chesspirant 2 | H17: =VLOOKUP($S$9,Division3b,2,FALSE) -> 401 KGSRL 5 | I17: 4 | J17: - | K17: 2 | M17: =VLOOKUP($R$9,Division3c,2,FALSE) -> 601 CRELEL Liège 3 | N17: =VLOOKUP($S$9,Division3c,2,FALSE) -> 621 T.A.L. 2 | O17: 4.5 | P17: - | Q17: 1.5
A18: =VLOOKUP($R$10,Division3a,2,FALSE) -> 226 Europchess 2 | B18: =VLOOKUP($S$10,Division3a,2,FALSE) -> 244 Brussels 1 | C18: 0.5 | D18: - | E18: 5.5 | G18: =VLOOKUP($R$10,Division3b,2,FALSE) -> 309 KRST 1 | H18: =VLOOKUP($S$10,Division3b,2,FALSE) -> 401 KGSRL 6 | I18: 4.5 | J18: - | K18: 1.5 | M18: =VLOOKUP($R$10,Division3c,2,FALSE) -> 627 Wirtzfeld 2 | N18: =VLOOKUP($S$10,Division3c,2,FALSE) -> 604 KSK47-Eynatten 1 | O18: 3.5 | P18: - | Q18: 2.5
A19: =VLOOKUP($R$11,Division3a,2,FALSE) -> 417 Pion-Aalst 1 | B19: =VLOOKUP($S$11,Division3a,2,FALSE) -> 511 EDC 1 | C19: 3.5 | D19: - | E19: 2.5 | G19: =VLOOKUP($R$11,Division3b,2,FALSE) -> 301 KOSK Oostende 2 | H19: =VLOOKUP($S$11,Division3b,2,FALSE) -> 471 Wachtebeke 2 | I19: 4 | J19: - | K19: 2 | M19: =VLOOKUP($R$11,Division3c,2,FALSE) -> 135 Geel 1 | N19: =VLOOKUP($S$11,Division3c,2,FALSE) -> 703 Eisden/MSK-Dilsen 1 | O19: 1 | P19: - | Q19: 5
A20: =VLOOKUP($R$12,Division3a,2,FALSE) -> 201 CREB Bruxelles 2 | B20: =VLOOKUP($S$12,Division3a,2,FALSE) -> 174 Brasschaat 2 | C20: 2 | D20: - | E20: 4 | G20: =VLOOKUP($R$12,Division3b,2,FALSE) -> 313 KWSLE 1 | H20: =VLOOKUP($S$12,Division3b,2,FALSE) -> 521 Tournai 1 | I20: 2 | J20: - | K20: 4 | M20: =VLOOKUP($R$12,Division3c,2,FALSE) -> 607 Roch. Eupen-Kelmis 2 | N20: =VLOOKUP($S$12,Division3c,2,FALSE) -> 174 Brasschaat 3 | O20: 4 | P20: - | Q20: 2
A21: =VLOOKUP($R$13,Division3a,2,FALSE) -> 401 KGSRL 4 | B21: =VLOOKUP($S$13,Division3a,2,FALSE) -> 909 Philippeville 1 | C21: 3.5 | D21: - | E21: 2.5 | G21: =VLOOKUP($R$13,Division3b,2,FALSE) -> 302 KISK Ieper 1 | H21: =VLOOKUP($S$13,Division3b,2,FALSE) -> 472 De Mercatel 1 | I21: 4.5 | J21: - | K21: 1.5 | M21: =VLOOKUP($R$13,Division3c,2,FALSE) -> 607 Roch. Eupen-Kelmis 3 | N21: =VLOOKUP($S$13,Division3c,2,FALSE) -> 901 Namur Echecs 2 | O21: 5 | P21: - | Q21: 1
A23: Afdeling/Division 3D | G23: Afdeling/Division 4A | M23: Afdeling/Division 4B
A24: =VLOOKUP($R$8,Division3d,2,FALSE) -> 425 Dendermonde 1 | B24: =VLOOKUP($S$8,Division3d,2,FALSE) -> 708 NLS Lommel 1 | C24: 2 | D24: - | E24: 4 | G24: =VLOOKUP($R$8,Division4a,2,FALSE) -> 121 Turnhout 1 | H24: =VLOOKUP($S$8,Division4a,2,FALSE) -> 239 Boitsfort 3 | I24: 2.5 | J24: - | K24: 1.5 | M24: =VLOOKUP($R$8,Division4b,2,FALSE) -> 601 CRELEL Liège 4 | N24: =VLOOKUP($S$8,Division4b,2,FALSE) -> 952 CEW 2 | O24: 3 | P24: - | Q24: 1
A25: =VLOOKUP($R$9,Division3d,2,FALSE) -> 109 Borgerhout 2 | B25: =VLOOKUP($S$9,Division3d,2,FALSE) -> 410 St.-Niklaas 1 | C25: 1.5 | D25: - | E25: 4.5 | G25: =VLOOKUP($R$9,Division4a,2,FALSE) -> 194 ChessLooks Lier 1 | H25: =VLOOKUP($S$9,Division4a,2,FALSE) -> 230 Leuven Centraal 3 | I25: 2.5 | J25: - | K25: 1.5 | M25: =VLOOKUP($R$9,Division4b,2,FALSE) -> 952 CEW 3 | N25: =VLOOKUP($S$9,Division4b,2,FALSE) -> 525 CELB Anderlues 1 | O25: 2 | P25: - | Q25: 2
A26: =VLOOKUP($R$10,Division3d,2,FALSE) -> 101 KASK 1 | B26: =VLOOKUP($S$10,Division3d,2,FALSE) -> 244 Brussels 2 | C26: 3.5 | D26: - | E26: 2.5 | G26: =VLOOKUP($R$10,Division4a,2,FALSE) -> 226 Europchess 3 | H26: =VLOOKUP($S$10,Division4a,2,FALSE) -> 261 Opwijk 2 | I26: 2 | J26: - | K26: 2 | M26: =VLOOKUP($R$10,Division4b,2,FALSE) -> 226 Europchess 4 | N26: =VLOOKUP($S$10,Division4b,2,FALSE) -> 231 Dolle Toren Leuven 2 | O26: 0 | P26: - | Q26: 4
A27: =VLOOKUP($R$11,Division3d,2,FALSE) -> 128 Beveren 1 | B27: =VLOOKUP($S$11,Division3d,2,FALSE) -> 260 Kapelle-op-den Bos 1 | C27: 4 | D27: - | E27: 2 | G27: =VLOOKUP($R$11,Division4a,2,FALSE) -> 278 Pantin 2 | H27: =VLOOKUP($S$11,Division4a,2,FALSE) -> 240 SCRR 1 | I27: 3 | J27: - | K27: 1 | M27: =VLOOKUP($R$11,Division4b,2,FALSE) -> 278 Pantin 3 | N27: =VLOOKUP($S$11,Division4b,2,FALSE) -> 209 The Belgian CC 2 | O27: 1.5 | P27: - | Q27: 2.5
A28: =VLOOKUP($R$12,Division3d,2,FALSE) -> 114 Mechelen 2 | B28: =VLOOKUP($S$12,Division3d,2,FALSE) -> 174 Brasschaat 4 | C28: 5 | D28: - | E28: 1 | G28: =VLOOKUP($R$12,Division4a,2,FALSE) -> 114 Mechelen 3 | H28: =VLOOKUP($S$12,Division4a,2,FALSE) -> 207 2 Fous Diogène 1 | I28: 2 | J28: - | K28: 2 | M28: =VLOOKUP($R$12,Division4b,2,FALSE) -> 607 Roch. Eupen-Kelmis 4 | N28: =VLOOKUP($S$12,Division4b,2,FALSE) -> 207 2 Fous Diogène 2 | O28: 1.5 | P28: - | Q28: 2.5
A29: =VLOOKUP($R$13,Division3d,2,FALSE) -> 166 TSM Mechelen 2 | B29: =VLOOKUP($S$13,Division3d,2,FALSE) -> 401 KGSRL 7 | C29: 4 | D29: - | E29: 2 | G29: =VLOOKUP($R$13,Division4a,2,FALSE) -> 166 TSM Mechelen 3 | H29: =VLOOKUP($S$13,Division4a,2,FALSE) -> 229 Woluwe 1 | I29: 1.5 | J29: - | K29: 2.5 | M29: =VLOOKUP($R$13,Division4b,2,FALSE) -> 961 Braine Echecs 1 | N29: =VLOOKUP($S$13,Division4b,2,FALSE) -> 901 Namur Echecs 3 | O29: 3.5 | P29: - | Q29: 0.5
A31: Afdeling/Division 4C | G31: Afdeling/Division 4D | M31: Afdeling/Division 4E
A32: =VLOOKUP($R$8,Division4c,2,FALSE) -> 601 CRELEL Liège 5 | B32: =VLOOKUP($S$8,Division4c,2,FALSE) -> 712 Landen 1 | C32: 1 | D32: - | E32: 3 | G32: =VLOOKUP($R$8,Division4d,2,FALSE) -> 303 KBSK Brugge 4 | H32: =VLOOKUP($S$8,Division4d,2,FALSE) -> 432 Wetteren 3 | I32: 2.5 | J32: - | K32: 1.5 | M32: =VLOOKUP($R$8,Division4e,2,FALSE) -> 541 Leuze-En-Hainaut 2 | N32: =VLOOKUP($S$8,Division4e,2,FALSE) -> 432 Wetteren 4 | O32: 0.5 | P32: - | Q32: 3.5
A33: =VLOOKUP($R$9,Division4c,2,FALSE) -> 601 CRELEL Liège 6 | B33: =VLOOKUP($S$9,Division4c,2,FALSE) -> 621 T.A.L. 3 | C33: 2.5 | D33: - | E33: 1.5 | G33: =VLOOKUP($R$9,Division4d,2,FALSE) -> 475 Rapid Aalter 1 | H33: =VLOOKUP($S$9,Division4d,2,FALSE) -> 465 SK Artevelde 1 | I33: 2 | J33: - | K33: 2 | M33: =VLOOKUP($R$9,Division4e,2,FALSE) -> 418 VPTD 1 | N33: =VLOOKUP($S$9,Division4e,2,FALSE) -> 462 Zottegem 2 | O33: 3 | P33: - | Q33: 1
A34: =VLOOKUP($R$10,Division4c,2,FALSE) -> 627 Wirtzfeld 3 | B34: =VLOOKUP($S$10,Division4c,2,FALSE) -> 604 KSK47-Eynatten 2 - FF | D34: - | G34: =VLOOKUP($R$10,Division4d,2,FALSE) -> 430 Landegem 1 | H34: =VLOOKUP($S$10,Division4d,2,FALSE) -> 304 Tielt 1 | I34: 1.5 | J34: - | K34: 2.5 | M34: =VLOOKUP($R$10,Division4e,2,FALSE) -> 430 Landegem 2 | N34: =VLOOKUP($S$10,Division4e,2,FALSE) -> 304 Tielt 2 | O34: 1.5 | P34: - | Q34: 2.5
A35: =VLOOKUP($R$11,Division4c,2,FALSE) -> 810 Marche-en-Famenne 1 | B35: =VLOOKUP($S$11,Division4c,2,FALSE) -> 618 Echiquier Mosan 2 | C35: 3 | D35: - | E35: 1 | G35: =VLOOKUP($R$11,Division4d,2,FALSE) -> 301 KOSK Oostende 3 | H35: =VLOOKUP($S$11,Division4d,2,FALSE) -> 340 Izegem 1 | I35: 1 | J35: - | K35: 3 | M35: =VLOOKUP($R$11,Division4e,2,FALSE) -> 460 Oudenaarde 1 | N35: =VLOOKUP($S$11,Division4e,2,FALSE) -> 401 KGSRL 8 | O35: 1 | P35: - | Q35: 3
A36: =VLOOKUP($R$12,Division4c,2,FALSE) -> 607 Roch. Eupen-Kelmis 5 | B36: =VLOOKUP($S$12,Division4c,2,FALSE) -> 622 Herve 1 | C36: 2 | D36: - | E36: 2 | G36: =VLOOKUP($R$12,Division4d,2,FALSE) -> 313 KWSLE 2 | H36: =VLOOKUP($S$12,Division4d,2,FALSE) -> 422 MSV 1 | I36: 1.5 | J36: - | K36: 2.5 | M36: =VLOOKUP($R$12,Division4e,2,FALSE) -> 417 Pion-Aalst 2 | N36: =VLOOKUP($S$12,Division4e,2,FALSE) -> 402 Jean Jaurès Gent 2 | O36: 2 | P36: - | Q36: 2
A37: =VLOOKUP($R$13,Division4c,2,FALSE) -> 607 Roch. Eupen-Kelmis 6 | B37: =VLOOKUP($S$13,Division4c,2,FALSE) -> 901 Namur Echecs 4 | C37: 4 | D37: - | E37: 0 | G37: =VLOOKUP($R$13,Division4d,2,FALSE) -> 302 KISK Ieper 2 | H37: =VLOOKUP($S$13,Division4d,2,FALSE) -> 307 Bredene 1 | I37: 1 | J37: - | K37: 3 | M37: =VLOOKUP($R$13,Division4e,2,FALSE) -> 438 Deinze 1 | N37: =VLOOKUP($S$13,Division4e,2,FALSE) -> 472 De Mercatel 2 | O37: 2 | P37: - | Q37: 2
A39: Afdeling/Division 4F | G39: Afdeling/Division 4G | M39: Afdeling/Division 4H
A40: =VLOOKUP($R$8,Division4f,2,FALSE) -> 541 Leuze-En-Hainaut 3 | B40: =VLOOKUP($S$8,Division4f,2,FALSE) -> 548 Caissa Europe 2 | C40: 1.5 | D40: - | E40: 2.5 | G40: =VLOOKUP($R$8,Division4g,2,FALSE) -> 121 Turnhout 2 | H40: =VLOOKUP($S$8,Division4g,2,FALSE) -> 143 Boey Temse 2 | I40: 2 | J40: - | K40: 2 | M40: =VLOOKUP($R$8,Division4h,2,FALSE) -> 727 Midden-Limburg 2 | N40: =VLOOKUP($S$8,Division4h,2,FALSE) -> 230 Leuven Centraal 4 | O40: 2 | P40: - | Q40: 2
A41: =VLOOKUP($R$9,Division4f,2,FALSE) -> 228 Dworp 2 | B41: =VLOOKUP($S$9,Division4f,2,FALSE) -> 525 CELB Anderlues 2 | C41: 1.5 | D41: - | E41: 2.5 | G41: =VLOOKUP($R$9,Division4g,2,FALSE) -> 436 LSV-Chesspirant 3 | H41: =VLOOKUP($S$9,Division4g,2,FALSE) -> 465 SK Artevelde 2 | I41: 2.5 | J41: - | K41: 1.5 | M41: =VLOOKUP($R$9,Division4h,2,FALSE) -> 194 ChessLooks Lier 2 | N41: =VLOOKUP($S$9,Division4h,2,FALSE) -> 121 Turnhout 3 | O41: 2 | P41: - | Q41: 2
A42: =VLOOKUP($R$10,Division4f,2,FALSE) -> 551 HCC Jurbise 1 | B42: =VLOOKUP($S$10,Division4f,2,FALSE) -> 547 Ren. Binchois 1 | C42: 2.5 | D42: - | E42: 1.5 | G42: =VLOOKUP($R$10,Division4g,2,FALSE) -> 430 Landegem 3 | H42: =VLOOKUP($S$10,Division4g,2,FALSE) -> 130 Hoboken 1 | I42: 2 | J42: - | K42: 2 | M42: =VLOOKUP($R$10,Division4h,2,FALSE) -> 101 KASK 2 | N42: =VLOOKUP($S$10,Division4h,2,FALSE) -> 130 Hoboken 2 | O42: 2 | P42: - | Q42: 2
A43: =VLOOKUP($R$11,Division4f,2,FALSE) -> 278 Pantin 4 | B43: =VLOOKUP($S$11,Division4f,2,FALSE) -> 233 DZD Halle 1 | C43: 2.5 | D43: - | E43: 1.5 | G43: =VLOOKUP($R$11,Division4g,2,FALSE) -> 401 KGSRL 9 | H43: =VLOOKUP($S$11,Division4g,2,FALSE) -> 471 Wachtebeke 3 | I43: 3 | J43: - | K43: 1 | M43: =VLOOKUP($R$11,Division4h,2,FALSE) -> 135 Geel 2 | N43: =VLOOKUP($S$11,Division4h,2,FALSE) -> 714 Pelt 1 | O43: 2 | P43: - | Q43: 2
A44: =VLOOKUP($R$12,Division4f,2,FALSE) -> 902 CES 1 | B44: =VLOOKUP($S$12,Division4f,2,FALSE) -> 207 2 Fous Diogène 3 | C44: 4 | D44: - | E44: 0 | G44: =VLOOKUP($R$12,Division4g,2,FALSE) -> 124 Deurne 2 | H44: =VLOOKUP($S$12,Division4g,2,FALSE) -> 422 MSV 2 | I44: 3 | J44: - | K44: 1 | M44: =VLOOKUP($R$12,Division4h,2,FALSE) -> 114 Mechelen 4 | N44: =VLOOKUP($S$12,Division4h,2,FALSE) -> 176 Westerlo 2 | O44: 2 | P44: - | Q44: 2
A45: =VLOOKUP($R$13,Division4f,2,FALSE) -> 501 CREC Charleroi 2 | B45: =VLOOKUP($S$13,Division4f,2,FALSE) -> 909 Philippeville 2 | C45: 3.5 | D45: - | E45: 0.5 | G45: =VLOOKUP($R$13,Division4g,2,FALSE) -> 436 LSV-Chesspirant 4 | H45: =VLOOKUP($S$13,Division4g,2,FALSE) -> 132 SK Oude God 1 | I45: 3.5 | J45: - | K45: 0.5 | M45: =VLOOKUP($R$13,Division4h,2,FALSE) -> 124 Deurne 3 | N45: =VLOOKUP($S$13,Division4h,2,FALSE) -> 132 SK Oude God 2 | O45: 1 | P45: - | Q45: 3
A47: Afdeling/Division 5A | G47: Afdeling/Division 5B | M47: Afdeling/Division 5C
A48: =VLOOKUP($R$8,Division5a,2,FALSE) -> 601 CRELEL Liège 7 | B48: =VLOOKUP($S$8,Division5a,2,FALSE) -> 712 Landen 2 | C48: 1.5 | D48: - | E48: 2.5 | G48: =VLOOKUP($R$8,Division5b,2,FALSE) -> 514 MCC 2 | H48: =VLOOKUP($S$8,Division5b,2,FALSE) -> 209 The Belgian CC 3 | I48: 3 | J48: - | K48: 1 | M48: =VLOOKUP($R$8,Division5c,2,FALSE) -> 514 MCC 3 | N48: =VLOOKUP($S$8,Division5c,2,FALSE) -> 549 Saint-Ghislain 1 | O48: 1 | P48: - | Q48: 3
A49: =VLOOKUP($R$9,Division5a,2,FALSE) -> 601 CRELEL Liège 8 | B49: =VLOOKUP($S$9,Division5a,2,FALSE) -> 609 Anthisnes 1 | C49: 0.5 | D49: - | E49: 3.5 | G49: =VLOOKUP($R$9,Division5b,2,FALSE) -> 204 Excelsior 1 | H49: =VLOOKUP($S$9,Division5b,2,FALSE) -> 230 Leuven Centraal 5 | I49: 1.5 | J49: - | K49: 2.5 | M49: =VLOOKUP($R$9,Division5c,2,FALSE) -> 953 Nivelles 1 | N49: =VLOOKUP($S$9,Division5c,2,FALSE) -> 525 CELB Anderlues 3 | O49: 2.5 | P49: - | Q49: 1.5
A50: =VLOOKUP($R$10,Division5a,2,FALSE) -> 703 Eisden/MSK-Dilsen 2 | B50: =VLOOKUP($S$10,Division5a,2,FALSE) -> 604 KSK47-Eynatten 3 | C50: 0 | D50: - | E50: 4 | G50: =VLOOKUP($R$10,Division5b,2,FALSE) -> 226 Europchess 5 | H50: =VLOOKUP($S$10,Division5b,2,FALSE) -> 244 Brussels 3 | I50: 0 | J50: - | K50: 4 | M50: =VLOOKUP($R$10,Division5c,2,FALSE) -> 551 HCC Jurbise 2 | N50: =VLOOKUP($S$10,Division5c,2,FALSE) -> 000 BYE 5C | P50: -
A51: =VLOOKUP($R$11,Division5a,2,FALSE) -> 810 Marche-en-Famenne 2 | B51: =VLOOKUP($S$11,Division5a,2,FALSE) -> 618 Echiquier Mosan 3 | C51: 3.5 | D51: - | E51: 0.5 | G51: =VLOOKUP($R$11,Division5b,2,FALSE) -> 278 Pantin 5 | H51: =VLOOKUP($S$11,Division5b,2,FALSE) -> 233 DZD Halle 2 | I51: 2.5 | J51: - | K51: 1.5 | M51: =VLOOKUP($R$11,Division5c,2,FALSE) -> 902 CES 2 | N51: =VLOOKUP($S$11,Division5c,2,FALSE) -> 511 EDC 2 | O51: 3 | P51: - | Q51: 1
A52: =VLOOKUP($R$12,Division5a,2,FALSE) -> 607 Roch. Eupen-Kelmis 7 | B52: =VLOOKUP($S$12,Division5a,2,FALSE) -> 000 BYE 5A | D52: - | G52: =VLOOKUP($R$12,Division5b,2,FALSE) -> 961 Braine Echecs 2 | H52: =VLOOKUP($S$12,Division5b,2,FALSE) -> 207 2 Fous Diogène 4 | I52: 2 | J52: - | K52: 2 | M52: =VLOOKUP($R$12,Division5c,2,FALSE) -> 961 Braine Echecs 3 | N52: =VLOOKUP($S$12,Division5c,2,FALSE) -> 548 Caissa Europe 3 | O52: 1.5 | P52: - | Q52: 2.5
A53: =VLOOKUP($R$13,Division5a,2,FALSE) -> 733 St.-Truiden 1 | B53: =VLOOKUP($S$13,Division5a,2,FALSE) -> 901 Namur Echecs 5 - FF | D53: - | G53: =VLOOKUP($R$13,Division5b,2,FALSE) -> 501 CREC Charleroi 3 | H53: =VLOOKUP($S$13,Division5b,2,FALSE) -> 952 CEW 4 | I53: 3 | J53: - | K53: 1 | M53: =VLOOKUP($R$13,Division5c,2,FALSE) -> 501 CREC Charleroi 4 | N53: =VLOOKUP($S$13,Division5c,2,FALSE) -> 901 Namur Echecs 6 | O53: 2 | P53: - | Q53: 2
A55: Afdeling/Division 5D | G55: Afdeling/Division 5E | M55: Afdeling/Division 5F
A56: =VLOOKUP($R$8,Division5d,2,FALSE) -> 601 CRELEL Liège 9 | B56: =VLOOKUP($S$8,Division5d,2,FALSE) -> 000 BYE 5D | D56: - | G56: =VLOOKUP($R$8,Division5e,2,FALSE) -> 190 Burcht 1 | H56: =VLOOKUP($S$8,Division5e,2,FALSE) -> 143 Boey Temse 3 | I56: 0.5 | J56: - | K56: 3.5 | M56: =VLOOKUP($R$8,Division5f,2,FALSE) -> 541 Leuze-En-Hainaut 4 | N56: =VLOOKUP($S$8,Division5f,2,FALSE) -> 432 Wetteren 5 | O56: 0 | P56: - | Q56: 4
A57: =VLOOKUP($R$9,Division5d,2,FALSE) -> 601 CRELEL Liège 10 | B57: =VLOOKUP($S$9,Division5d,2,FALSE) -> 621 T.A.L. 4 | C57: 1 | D57: - | E57: 3 | G57: =VLOOKUP($R$9,Division5e,2,FALSE) -> 109 Borgerhout 3 | H57: =VLOOKUP($S$9,Division5e,2,FALSE) -> 410 St.-Niklaas 2 | I57: 2.5 | J57: - | K57: 1.5 | M57: =VLOOKUP($R$9,Division5f,2,FALSE) -> 436 LSV-Chesspirant 6 | N57: =VLOOKUP($S$9,Division5f,2,FALSE) -> 462 Zottegem 3 | O57: 1.5 | P57: - | Q57: 2.5
A58: =VLOOKUP($R$10,Division5d,2,FALSE) -> 703 Eisden/MSK-Dilsen 3 | B58: =VLOOKUP($S$10,Division5d,2,FALSE) -> 604 KSK47-Eynatten 4 | C58: 3 | D58: - | E58: 1 | G58: =VLOOKUP($R$10,Division5e,2,FALSE) -> 101 KASK 3 | H58: =VLOOKUP($S$10,Division5e,2,FALSE) -> 130 Hoboken 3 | I58: 1 | J58: - | K58: 3 | M58: =VLOOKUP($R$10,Division5f,2,FALSE) -> 309 KRST 2 | N58: =VLOOKUP($S$10,Division5f,2,FALSE) -> 401 KGSRL 11 | O58: 2.5 | P58: - | Q58: 1.5
A59: =VLOOKUP($R$11,Division5d,2,FALSE) -> 627 Wirtzfeld 4 | B59: =VLOOKUP($S$11,Division5d,2,FALSE) -> 619 Welkenraedt 1 | C59: 1.5 | D59: - | E59: 2.5 | G59: =VLOOKUP($R$11,Division5e,2,FALSE) -> 128 Beveren 2 | H59: =VLOOKUP($S$11,Division5e,2,FALSE) -> 401 KGSRL 10 | I59: 4 | J59: - | K59: 0 | M59: =VLOOKUP($R$11,Division5f,2,FALSE) -> 460 Oudenaarde 2 | N59: =VLOOKUP($S$11,Division5f,2,FALSE) -> 340 Izegem 2 | O59: 1 | P59: - | Q59: 3
A60: =VLOOKUP($R$12,Division5d,2,FALSE) -> 607 Roch. Eupen-Kelmis 8 | B60: =VLOOKUP($S$12,Division5d,2,FALSE) -> 623 Sankt Vith 1 | C60: 2.5 | D60: - | E60: 1.5 | G60: =VLOOKUP($R$12,Division5e,2,FALSE) -> 114 Mechelen 5 | H60: =VLOOKUP($S$12,Division5e,2,FALSE) -> 174 Brasschaat 5 | I60: 0 | J60: - | K60: 4 | M60: =VLOOKUP($R$12,Division5f,2,FALSE) -> 313 KWSLE 3 | N60: =VLOOKUP($S$12,Division5f,2,FALSE) -> 521 Tournai 2 | O60: 0 | P60: - | Q60: 4
A61: =VLOOKUP($R$13,Division5d,2,FALSE) -> 609 Anthisnes 2 | B61: =VLOOKUP($S$13,Division5d,2,FALSE) -> 703 Eisden/MSK-Dilsen 4 | C61: 3 | D61: - | E61: 1 | G61: =VLOOKUP($R$13,Division5e,2,FALSE) -> 436 LSV-Chesspirant 5 | H61: =VLOOKUP($S$13,Division5e,2,FALSE) -> 132 SK Oude God 3 | I61: 4 | J61: - | K61: 0 | M61: =VLOOKUP($R$13,Division5f,2,FALSE) -> 438 Deinze 2 | N61: =VLOOKUP($S$13,Division5f,2,FALSE) -> 000 BYE 5F | P61: -
A63: Afdeling/Division 5G | G63: Afdeling/Division 5H | M63: Afdeling/Division 5I
A64: =VLOOKUP($R$8,Division5g,2,FALSE) -> 303 KBSK Brugge 5 | B64: =VLOOKUP($S$8,Division5g,2,FALSE) -> 432 Wetteren 6 | C64: 3 | D64: - | E64: 1 | G64: =VLOOKUP($R$8,Division5h,2,FALSE) -> 303 KBSK Brugge 6 | H64: =VLOOKUP($S$8,Division5h,2,FALSE) -> 000 BYE 5H | J64: - | M64: =VLOOKUP($R$8,Division5i,2,FALSE) -> 401 KGSRL 15 | N64: =VLOOKUP($S$8,Division5i,2,FALSE) -> 239 Boitsfort 4 | O64: 3 | P64: - | Q64: 1
A65: =VLOOKUP($R$9,Division5g,2,FALSE) -> 436 LSV-Chesspirant 7 | B65: =VLOOKUP($S$9,Division5g,2,FALSE) -> 465 SK Artevelde 3 | C65: 0 | D65: - | E65: 4 | G65: =VLOOKUP($R$9,Division5h,2,FALSE) -> 475 Rapid Aalter 2 | H65: =VLOOKUP($S$9,Division5h,2,FALSE) -> 322 Veurne 1 | I65: 0 | J65: - | K65: 4 | M65: =VLOOKUP($R$9,Division5i,2,FALSE) -> 204 Excelsior 2 | N65: =VLOOKUP($S$9,Division5i,2,FALSE) -> 230 Leuven Centraal 6 | O65: 0.5 | P65: - | Q65: 3.5
A66: =VLOOKUP($R$10,Division5g,2,FALSE) -> 430 Landegem 4 | B66: =VLOOKUP($S$10,Division5g,2,FALSE) -> 401 KGSRL 13 | C66: 2 | D66: - | E66: 2 | G66: =VLOOKUP($R$10,Division5h,2,FALSE) -> 309 KRST 3 | H66: =VLOOKUP($S$10,Division5h,2,FALSE) -> 305 Kortrijk 1 | I66: 2 | J66: - | K66: 2 | M66: =VLOOKUP($R$10,Division5i,2,FALSE) -> 260 Kapelle-op-den Bos 2 | N66: =VLOOKUP($S$10,Division5i,2,FALSE) -> 244 Brussels 4 | O66: 1 | P66: - | Q66: 3
A67: =VLOOKUP($R$11,Division5g,2,FALSE) -> 301 KOSK Oostende 4 | B67: =VLOOKUP($S$11,Division5g,2,FALSE) -> 471 Wachtebeke 4 | C67: 3 | D67: - | E67: 1 | G67: =VLOOKUP($R$11,Division5h,2,FALSE) -> 301 KOSK Oostende 5 | H67: =VLOOKUP($S$11,Division5h,2,FALSE) -> 340 Izegem 3 | I67: 3 | J67: - | K67: 1 | M67: =VLOOKUP($R$11,Division5i,2,FALSE) -> 278 Pantin 6 | N67: =VLOOKUP($S$11,Division5i,2,FALSE) -> 209 The Belgian CC 4 | O67: 1 | P67: - | Q67: 3
A68: =VLOOKUP($R$12,Division5g,2,FALSE) -> 313 KWSLE 4 | B68: =VLOOKUP($S$12,Division5g,2,FALSE) -> 422 MSV 3 | C68: 1.5 | D68: - | E68: 2.5 | G68: =VLOOKUP($R$12,Division5h,2,FALSE) -> 401 KGSRL 14 | H68: =VLOOKUP($S$12,Division5h,2,FALSE) -> 351 Knokke Schaak 1 | I68: 3.5 | J68: - | K68: 0.5 | M68: =VLOOKUP($R$12,Division5i,2,FALSE) -> 201 CREB Bruxelles 3 | N68: =VLOOKUP($S$12,Division5i,2,FALSE) -> 207 2 Fous Diogène 5 | O68: 1.5 | P68: - | Q68: 2.5
A69: =VLOOKUP($R$13,Division5g,2,FALSE) -> 401 KGSRL 12 | B69: =VLOOKUP($S$13,Division5g,2,FALSE) -> 472 De Mercatel 3 | C69: 1 | D69: - | E69: 3 | G69: =VLOOKUP($R$13,Division5h,2,FALSE) -> 302 KISK Ieper 3 | H69: =VLOOKUP($S$13,Division5h,2,FALSE) -> 307 Bredene 2 | I69: 0 | J69: - | K69: 4 | M69: =VLOOKUP($R$13,Division5i,2,FALSE) -> 000 BYE 5I | N69: =VLOOKUP($S$13,Division5i,2,FALSE) -> 229 Woluwe 2 | P69: -
A71: Afdeling/Division 5J | G71: Afdeling/Division 5K | M71: Afdeling/Division 5L
A72: =VLOOKUP($R$8,Division5j,2,FALSE) -> 190 Burcht 2 | B72: =VLOOKUP($S$8,Division5j,2,FALSE) -> 196 De Rode Loper 1 | C72: 1 | D72: - | E72: 3 | G72: =VLOOKUP($R$8,Division5k,2,FALSE) -> 727 Midden-Limburg 3 | H72: =VLOOKUP($S$8,Division5k,2,FALSE) -> 121 Turnhout 4 | I72: 4 | J72: - | K72: 0 | M72: =VLOOKUP($R$8,Division5l,2,FALSE) -> 425 Dendermonde 2 | N72: =VLOOKUP($S$8,Division5l,2,FALSE) -> 432 Wetteren 7 | O72: 0 | P72: - | Q72: 4
A73: =VLOOKUP($R$9,Division5j,2,FALSE) -> 109 Borgerhout 4 | B73: =VLOOKUP($S$9,Division5j,2,FALSE) -> 230 Leuven Centraal 7 | C73: 4 | D73: - | E73: 0 | G73: =VLOOKUP($R$9,Division5k,2,FALSE) -> 194 ChessLooks Lier 3 | H73: =VLOOKUP($S$9,Division5k,2,FALSE) -> 230 Leuven Centraal 8 | I73: 2 | J73: - | K73: 2 | M73: =VLOOKUP($R$9,Division5l,2,FALSE) -> 436 LSV-Chesspirant 8 | N73: =VLOOKUP($S$9,Division5l,2,FALSE) -> 462 Zottegem 4 | O73: 1 | P73: - | Q73: 3
A74: =VLOOKUP($R$10,Division5j,2,FALSE) -> 401 KGSRL 16 | B74: =VLOOKUP($S$10,Division5j,2,FALSE) -> 130 Hoboken 4 | C74: 4 | D74: - | E74: 0 | G74: =VLOOKUP($R$10,Division5k,2,FALSE) -> 162 Molse SC 1 | H74: =VLOOKUP($S$10,Division5k,2,FALSE) -> 231 Dolle Toren Leuven 3 | I74: 1 | J74: - | K74: 3 | M74: =VLOOKUP($R$10,Division5l,2,FALSE) -> 404 Drie Torens 1 | N74: =VLOOKUP($S$10,Division5l,2,FALSE) -> 261 Opwijk 3 | O74: 2 | P74: - | Q74: 2
A75: =VLOOKUP($R$11,Division5j,2,FALSE) -> 128 Beveren 3 | B75: =VLOOKUP($S$11,Division5j,2,FALSE) -> 195 Kapellen 1 | C75: 2 | D75: - | E75: 2 | G75: =VLOOKUP($R$11,Division5k,2,FALSE) -> 401 KGSRL 17 | H75: =VLOOKUP($S$11,Division5k,2,FALSE) -> 182 Noorderwijk 1 | I75: 3 | J75: - | K75: 1 | M75: =VLOOKUP($R$11,Division5l,2,FALSE) -> 128 Beveren 4 | N75: =VLOOKUP($S$11,Division5l,2,FALSE) -> 000 BYE 5L | P75: -
A76: =VLOOKUP($R$12,Division5j,2,FALSE) -> 124 Deurne 4 | B76: =VLOOKUP($S$12,Division5j,2,FALSE) -> 174 Brasschaat 6 | C76: 0 | D76: - | E76: 4 | G76: =VLOOKUP($R$12,Division5k,2,FALSE) -> 114 Mechelen 7 | H76: =VLOOKUP($S$12,Division5k,2,FALSE) -> 176 Westerlo 3 | I76: 2 | J76: - | K76: 2 | M76: =VLOOKUP($R$12,Division5l,2,FALSE) -> 417 Pion-Aalst 3 | N76: =VLOOKUP($S$12,Division5l,2,FALSE) -> 422 MSV 4 | O76: 2.5 | P76: - | Q76: 1.5
A77: =VLOOKUP($R$13,Division5j,2,FALSE) -> 114 Mechelen 6 | B77: =VLOOKUP($S$13,Division5j,2,FALSE) -> 132 SK Oude God 4 | C77: 2 | D77: - | E77: 2 | G77: =VLOOKUP($R$13,Division5k,2,FALSE) -> 166 TSM Mechelen 4 | H77: =VLOOKUP($S$13,Division5k,2,FALSE) -> 132 SK Oude God 5 | I77: 3.5 | J77: - | K77: 0.5 | M77: =VLOOKUP($R$13,Division5l,2,FALSE) -> 401 KGSRL 18 | N77: =VLOOKUP($S$13,Division5l,2,FALSE) -> 436 LSV-Chesspirant 9 | O77: 1 | P77: - | Q77: 3
A79: Afdeling/Division 5M | G79: Afdeling/Division 5N
A80: =VLOOKUP($R$8,Division5m,2,FALSE) -> 727 Midden-Limburg 4 | B80: =VLOOKUP($S$8,Division5m,2,FALSE) -> 230 Leuven Centraal 9 | C80: 2.5 | D80: - | E80: 1.5 | G80: =VLOOKUP($R$8,Division5n,2,FALSE) -> 514 MCC 4 | H80: =VLOOKUP($S$8,Division5n,2,FALSE) -> 549 Saint-Ghislain 2 | I80: 4 | J80: - | K80: 0
A81: =VLOOKUP($R$9,Division5m,2,FALSE) -> 666 666 1 | B81: =VLOOKUP($S$9,Division5m,2,FALSE) -> 121 Turnhout 5 | C81: 3 | D81: - | E81: 1 | G81: =VLOOKUP($R$9,Division5n,2,FALSE) -> 228 Dworp 3 | H81: =VLOOKUP($S$9,Division5n,2,FALSE) -> 230 Leuven Centraal 10 | I81: 4 | J81: - | K81: 0
A82: =VLOOKUP($R$10,Division5m,2,FALSE) -> 162 Molse SC 2 | B82: =VLOOKUP($S$10,Division5m,2,FALSE) -> 231 Dolle Toren Leuven 4 | C82: 0.5 | D82: - | E82: 3.5 | G82: =VLOOKUP($R$10,Division5n,2,FALSE) -> 551 HCC Jurbise 3 | H82: =VLOOKUP($S$10,Division5n,2,FALSE) -> 518 Soignies 1 | I82: 2 | J82: - | K82: 2
A83: =VLOOKUP($R$11,Division5m,2,FALSE) -> 135 Geel 3 | B83: =VLOOKUP($S$11,Division5m,2,FALSE) -> 714 Pelt 2 | C83: 1 | D83: - | E83: 3 | G83: =VLOOKUP($R$11,Division5n,2,FALSE) -> 902 CES 3 | H83: =VLOOKUP($S$11,Division5n,2,FALSE) -> 000 BYE 5N | J83: -
A84: =VLOOKUP($R$12,Division5m,2,FALSE) -> 114 Mechelen 8 | B84: =VLOOKUP($S$12,Division5m,2,FALSE) -> 176 Westerlo 4 | C84: 1 | D84: - | E84: 3 | G84: =VLOOKUP($R$12,Division5n,2,FALSE) -> 548 Caissa Europe 4 | H84: =VLOOKUP($S$12,Division5n,2,FALSE) -> 952 CEW 5 | I84: 3 | J84: - | K84: 1
A85: =VLOOKUP($R$13,Division5m,2,FALSE) -> 166 TSM Mechelen 5 | B85: =VLOOKUP($S$13,Division5m,2,FALSE) -> 132 SK Oude God 6 | C85: 2 | D85: - | E85: 2 | G85: =VLOOKUP($R$13,Division5n,2,FALSE) -> 501 CREC Charleroi 5 | H85: =VLOOKUP($S$13,Division5n,2,FALSE) -> 901 Namur Echecs 7 | I85: 4 | J85: - | K85: 0

Sheet R4
G1: =CONCATENATE("INTERCLUBS NATIONAUX ",Data!$B$1) -> INTERCLUBS NATIONAUX 2022-2023
G2: =CONCATENATE("NATIONALE INTERCLUBS ",Data!$B$1) -> NATIONALE INTERCLUBS 2022-2023
G5: Ronde 4: | H5: =VLOOKUP(G5,Data,2,FALSE) -> 2022-11-20
A7: Afdeling/Division 1 | G7: Afdeling/Division 2A | M7: Afdeling/Division 2B
A8: =VLOOKUP($R$8,Division1,2,FALSE) -> 432 Wetteren 1 | B8: =VLOOKUP($S$8,Division1,2,FALSE) -> 166 TSM Mechelen 1 | C8: 4.5 | D8: - | E8: 3.5 | G8: =VLOOKUP($R$8,Division2a,2,FALSE) -> 239 Boitsfort 1 | H8: =VLOOKUP($S$8,Division2a,2,FALSE) -> 901 Namur Echecs 1 | I8: 2 | J8: - | K8: 6 | M8: =VLOOKUP($R$8,Division2b,2,FALSE) -> 143 Boey Temse 1 | N8: =VLOOKUP($S$8,Division2b,2,FALSE) -> 436 LSV-Chesspirant 1 | O8: 1 | P8: - | Q8: 7 | R8: 12 | S8: 8
A9: =VLOOKUP($R$9,Division1,2,FALSE) -> 174 Brasschaat 1 | B9: =VLOOKUP($S$9,Division1,2,FALSE) -> 501 CREC Charleroi 1 | C9: 4.5 | D9: - | E9: 3.5 | G9: =VLOOKUP($R$9,Division2a,2,FALSE) -> 176 Westerlo 1 | H9: =VLOOKUP($S$9,Division2a,2,FALSE) -> 952 CEW 1 | I9: 3.5 | J9: - | K9: 4.5 | M9: =VLOOKUP($R$9,Division2b,2,FALSE) -> 402 Jean Jaurès Gent 1 | N9: =VLOOKUP($S$9,Division2b,2,FALSE) -> 124 Deurne 1 | O9: 5 | P9: - | Q9: 3 | R9: 9 | S9: 7
A10: =VLOOKUP($R$10,Division1,2,FALSE) -> 471 Wachtebeke 1 | B10: =VLOOKUP($S$10,Division1,2,FALSE) -> 607 Roch. Eupen-Kelmis 1 | C10: 3.5 | D10: - | E10: 4.5 | G10: =VLOOKUP($R$10,Division2a,2,FALSE) -> 618 Echiquier Mosan 1 | H10: =VLOOKUP($S$10,Division2a,2,FALSE) -> 201 CREB Bruxelles 1 | I10: 6.5 | J10: - | K10: 1.5 | M10: =VLOOKUP($R$10,Division2b,2,FALSE) -> 209 The Belgian CC 1 | N10: =VLOOKUP($S$10,Division2b,2,FALSE) -> 114 Mechelen 1 | O10: 4.5 | P10: - | Q10: 3.5 | R10: 10 | S10: 6
A11: =VLOOKUP($R$11,Division1,2,FALSE) -> 401 KGSRL 1 | B11: =VLOOKUP($S$11,Division1,2,FALSE) -> 301 KOSK Oostende 1 | C11: 5.5 | D11: - | E11: 2.5 | G11: =VLOOKUP($R$11,Division2a,2,FALSE) -> 231 Dolle Toren Leuven 1 | H11: =VLOOKUP($S$11,Division2a,2,FALSE) -> 278 Pantin 1 | I11: 5 | J11: - | K11: 3 | M11: =VLOOKUP($R$11,Division2b,2,FALSE) -> 261 Opwijk 1 | N11: =VLOOKUP($S$11,Division2b,2,FALSE) -> 401 KGSRL 3 | O11: 5.5 | P11: - | Q11: 2.5 | R11: 11 | S11: 5
A12: =VLOOKUP($R$12,Division1,2,FALSE) -> 621 T.A.L. 1 | B12: =VLOOKUP($S$12,Division1,2,FALSE) -> 627 Wirtzfeld 1 | C12: 0.5 | D12: - | E12: 7.5 | G12: =VLOOKUP($R$12,Division2a,2,FALSE) -> 230 Leuven Centraal 1 | H12: =VLOOKUP($S$12,Division2a,2,FALSE) -> 401 KGSRL 2 | I12: 6 | J12: - | K12: 2 | M12: =VLOOKUP($R$12,Division2b,2,FALSE) -> 462 Zottegem 1 | N12: =VLOOKUP($S$12,Division2b,2,FALSE) -> 226 Europchess 1 | O12: 4 | P12: - | Q12: 4 | R12: 1 | S12: 4
A13: =VLOOKUP($R$13,Division1,2,FALSE) -> 303 KBSK Brugge 1 | B13: =VLOOKUP($S$13,Division1,2,FALSE) -> 601 CRELEL Liège 1 | C13: 6 | D13: - | E13: 2 | G13: =VLOOKUP($R$13,Division2a,2,FALSE) -> 514 MCC 1 | H13: =VLOOKUP($S$13,Division2a,2,FALSE) -> 601 CRELEL Liège 2 | I13: 4 | J13: - | K13: 4 | M13: =VLOOKUP($R$13,Division2b,2,FALSE) -> 303 KBSK Brugge 2 | N13: =VLOOKUP($S$13,Division2b,2,FALSE) -> 109 Borgerhout 1 | O13: 4.5 | P13: - | Q13: 3.5 | R13: 2 | S13: 3
A15: Afdeling/Division 3A | G15: Afdeling/Division 3B | M15: Afdeling/Division 3C
A16: =VLOOKUP($R$8,Division3a,2,FALSE) -> 239 Boitsfort 2 | B16: =VLOOKUP($S$8,Division3a,2,FALSE) -> 909 Philippeville 1 | C16: 5 | D16: - | E16: 1 | G16: =VLOOKUP($R$8,Division3b,2,FALSE) -> 432 Wetteren 2 | H16: =VLOOKUP($S$8,Division3b,2,FALSE) -> 472 De Mercatel 1 | I16: 0.5 | J16: - | K16: 5.5 | M16: =VLOOKUP($R$8,Division3c,2,FALSE) -> 230 Leuven Centraal 2 | N16: =VLOOKUP($S$8,Division3c,2,FALSE) -> 901 Namur Echecs 2 | O16: 3.5 | P16: - | Q16: 2.5
A17: =VLOOKUP($R$9,Division3a,2,FALSE) -> 174 Brasschaat 2 | B17: =VLOOKUP($S$9,Division3a,2,FALSE) -> 401 KGSRL 4 | C17: 2.5 | D17: - | E17: 3.5 | G17: =VLOOKUP($R$9,Division3b,2,FALSE) -> 521 Tournai 1 | H17: =VLOOKUP($S$9,Division3b,2,FALSE) -> 302 KISK Ieper 1 | I17: 1.5 | J17: - | K17: 4.5 | M17: =VLOOKUP($R$9,Division3c,2,FALSE) -> 174 Brasschaat 3 | N17: =VLOOKUP($S$9,Division3c,2,FALSE) -> 607 Roch. Eupen-Kelmis 3 | O17: 0 | P17: - | Q17: 6
A18: =VLOOKUP($R$10,Division3a,2,FALSE) -> 511 EDC 1 | B18: =VLOOKUP($S$10,Division3a,2,FALSE) -> 201 CREB Bruxelles 2 | C18: 5.5 | D18: - | E18: 0.5 | G18: =VLOOKUP($R$10,Division3b,2,FALSE) -> 471 Wachtebeke 2 | H18: =VLOOKUP($S$10,Division3b,2,FALSE) -> 313 KWSLE 1 | I18: 2.5 | J18: - | K18: 3.5 | M18: =VLOOKUP($R$10,Division3c,2,FALSE) -> 703 Eisden/MSK-Dilsen 1 | N18: =VLOOKUP($S$10,Division3c,2,FALSE) -> 607 Roch. Eupen-Kelmis 2 | O18: 5 | P18: - | Q18: 1
A19: =VLOOKUP($R$11,Division3a,2,FALSE) -> 244 Brussels 1 | B19: =VLOOKUP($S$11,Division3a,2,FALSE) -> 417 Pion-Aalst 1 | C19: 4 | D19: - | E19: 2 | G19: =VLOOKUP($R$11,Division3b,2,FALSE) -> 401 KGSRL 6 | H19: =VLOOKUP($S$11,Division3b,2,FALSE) -> 301 KOSK Oostende 2 | I19: 2.5 | J19: - | K19: 3.5 | M19: =VLOOKUP($R$11,Division3c,2,FALSE) -> 604 KSK47-Eynatten 1 | N19: =VLOOKUP($S$11,Division3c,2,FALSE) -> 135 Geel 1 | O19: 4.5 | P19: - | Q19: 1.5
A20: =VLOOKUP($R$12,Division3a,2,FALSE) -> 548 Caissa Europe 1 | B20: =VLOOKUP($S$12,Division3a,2,FALSE) -> 226 Europchess 2 | C20: 4.5 | D20: - | E20: 1.5 | G20: =VLOOKUP($R$12,Division3b,2,FALSE) -> 401 KGSRL 5 | H20: =VLOOKUP($S$12,Division3b,2,FALSE) -> 309 KRST 1 | I20: 4 | J20: - | K20: 2 | M20: =VLOOKUP($R$12,Division3c,2,FALSE) -> 621 T.A.L. 2 | N20: =VLOOKUP($S$12,Division3c,2,FALSE) -> 627 Wirtzfeld 2 | O20: 2 | P20: - | Q20: 4
A21: =VLOOKUP($R$13,Division3a,2,FALSE) -> 541 Leuze-En-Hainaut 1 | B21: =VLOOKUP($S$13,Division3a,2,FALSE) -> 228 Dworp 1 | C21: 3.5 | D21: - | E21: 2.5 | G21: =VLOOKUP($R$13,Division3b,2,FALSE) -> 303 KBSK Brugge 3 | H21: =VLOOKUP($S$13,Division3b,2,FALSE) -> 436 LSV-Chesspirant 2 | I21: 2.5 | J21: - | K21: 3.5 | M21: =VLOOKUP($R$13,Division3c,2,FALSE) -> 727 Midden-Limburg 1 | N21: =VLOOKUP($S$13,Division3c,2,FALSE) -> 601 CRELEL Liège 3 | O21: 3.5 | P21: - | Q21: 2.5
A23: Afdeling/Division 3D | G23: Afdeling/Division 4A | M23: Afdeling/Division 4B
A24: =VLOOKUP($R$8,Division3d,2,FALSE) -> 708 NLS Lommel 1 | B24: =VLOOKUP($S$8,Division3d,2,FALSE) -> 401 KGSRL 7 | C24: 1.5 | D24: - | E24: 4.5 | G24: =VLOOKUP($R$8,Division4a,2,FALSE) -> 239 Boitsfort 3 | H24: =VLOOKUP($S$8,Division4a,2,FALSE) -> 229 Woluwe 1 | I24: 2 | J24: - | K24: 2 | M24: =VLOOKUP($R$8,Division4b,2,FALSE) -> 952 CEW 2 | N24: =VLOOKUP($S$8,Division4b,2,FALSE) -> 901 Namur Echecs 3 | O24: 3.5 | P24: - | Q24: 0.5
A25: =VLOOKUP($R$9,Division3d,2,FALSE) -> 174 Brasschaat 4 | B25: =VLOOKUP($S$9,Division3d,2,FALSE) -> 166 TSM Mechelen 2 | C25: 2 | D25: - | E25: 4 | G25: =VLOOKUP($R$9,Division4a,2,FALSE) -> 207 2 Fous Diogène 1 | H25: =VLOOKUP($S$9,Division4a,2,FALSE) -> 166 TSM Mechelen 3 | I25: 3.5 | J25: - | K25: 0.5 | M25: =VLOOKUP($R$9,Division4b,2,FALSE) -> 207 2 Fous Diogène 2 | N25: =VLOOKUP($S$9,Division4b,2,FALSE) -> 961 Braine Echecs 1 | O25: 2.5 | P25: - | Q25: 1.5
A26: =VLOOKUP($R$10,Division3d,2,FALSE) -> 260 Kapelle-op-den Bos 1 | B26: =VLOOKUP($S$10,Division3d,2,FALSE) -> 114 Mechelen 2 | C26: 3 | D26: - | E26: 3 | G26: =VLOOKUP($R$10,Division4a,2,FALSE) -> 240 SCRR 1 | H26: =VLOOKUP($S$10,Division4a,2,FALSE) -> 114 Mechelen 3 | I26: 1 | J26: - | K26: 3 | M26: =VLOOKUP($R$10,Division4b,2,FALSE) -> 209 The Belgian CC 2 | N26: =VLOOKUP($S$10,Division4b,2,FALSE) -> 607 Roch. Eupen-Kelmis 4 | O26: 3 | P26: - | Q26: 1
A27: =VLOOKUP($R$11,Division3d,2,FALSE) -> 244 Brussels 2 | B27: =VLOOKUP($S$11,Division3d,2,FALSE) -> 128 Beveren 1 | C27: 3.5 | D27: - | E27: 2.5 | G27: =VLOOKUP($R$11,Division4a,2,FALSE) -> 261 Opwijk 2 | H27: =VLOOKUP($S$11,Division4a,2,FALSE) -> 278 Pantin 2 | I27: 2 | J27: - | K27: 2 | M27: =VLOOKUP($R$11,Division4b,2,FALSE) -> 231 Dolle Toren Leuven 2 | N27: =VLOOKUP($S$11,Division4b,2,FALSE) -> 278 Pantin 3 | O27: 0.5 | P27: - | Q27: 3.5
A28: =VLOOKUP($R$12,Division3d,2,FALSE) -> 410 St.-Niklaas 1 | B28: =VLOOKUP($S$12,Division3d,2,FALSE) -> 101 KASK 1 | C28: 3 | D28: - | E28: 3 | G28: =VLOOKUP($R$12,Division4a,2,FALSE) -> 230 Leuven Centraal 3 | H28: =VLOOKUP($S$12,Division4a,2,FALSE) -> 226 Europchess 3 | I28: 3.5 | J28: - | K28: 0.5 | M28: =VLOOKUP($R$12,Division4b,2,FALSE) -> 525 CELB Anderlues 1 | N28: =VLOOKUP($S$12,Division4b,2,FALSE) -> 226 Europchess 4 | O28: 1 | P28: - | Q28: 3
A29: =VLOOKUP($R$13,Division3d,2,FALSE) -> 425 Dendermonde 1 | B29: =VLOOKUP($S$13,Division3d,2,FALSE) -> 109 Borgerhout 2 | C29: 3 | D29: - | E29: 3 | G29: =VLOOKUP($R$13,Division4a,2,FALSE) -> 121 Turnhout 1 | H29: =VLOOKUP($S$13,Division4a,2,FALSE) -> 194 ChessLooks Lier 1 | I29: 0.5 | J29: - | K29: 3.5 | M29: =VLOOKUP($R$13,Division4b,2,FALSE) -> 601 CRELEL Liège 4 | N29: =VLOOKUP($S$13,Division4b,2,FALSE) -> 952 CEW 3 | O29: 3 | P29: - | Q29: 1
A31: Afdeling/Division 4C | G31: Afdeling/Division 4D | M31: Afdeling/Division 4E
A32: =VLOOKUP($R$8,Division4c,2,FALSE) -> 712 Landen 1 | B32: =VLOOKUP($S$8,Division4c,2,FALSE) -> 901 Namur Echecs 4 | C32: 2 | D32: - | E32: 2 | G32: =VLOOKUP($R$8,Division4d,2,FALSE) -> 432 Wetteren 3 | H32: =VLOOKUP($S$8,Division4d,2,FALSE) -> 307 Bredene 1 | I32: 2.5 | J32: - | K32: 1.5 | M32: =VLOOKUP($R$8,Division4e,2,FALSE) -> 432 Wetteren 4 | N32: =VLOOKUP($S$8,Division4e,2,FALSE) -> 472 De Mercatel 2 | O32: 3.5 | P32: - | Q32: 0.5
A33: =VLOOKUP($R$9,Division4c,2,FALSE) -> 622 Herve 1 | B33: =VLOOKUP($S$9,Division4c,2,FALSE) -> 607 Roch. Eupen-Kelmis 6 | C33: 1.5 | D33: - | E33: 2.5 | G33: =VLOOKUP($R$9,Division4d,2,FALSE) -> 422 MSV 1 | H33: =VLOOKUP($S$9,Division4d,2,FALSE) -> 302 KISK Ieper 2 | I33: 4 | J33: - | K33: 0 | M33: =VLOOKUP($R$9,Division4e,2,FALSE) -> 402 Jean Jaurès Gent 2 | N33: =VLOOKUP($S$9,Division4e,2,FALSE) -> 438 Deinze 1 | O33: 3 | P33: - | Q33: 1
A34: =VLOOKUP($R$10,Division4c,2,FALSE) -> 618 Echiquier Mosan 2 | B34: =VLOOKUP($S$10,Division4c,2,FALSE) -> 607 Roch. Eupen-Kelmis 5 | C34: 0.5 | D34: - | E34: 3.5 | G34: =VLOOKUP($R$10,Division4d,2,FALSE) -> 340 Izegem 1 | H34: =VLOOKUP($S$10,Division4d,2,FALSE) -> 313 KWSLE 2 | I34: 2.5 | J34: - | K34: 1.5 | M34: =VLOOKUP($R$10,Division4e,2,FALSE) -> 401 KGSRL 8 | N34: =VLOOKUP($S$10,Division4e,2,FALSE) -> 417 Pion-Aalst 2 | O34: 1 | P34: - | Q34: 3
A35: =VLOOKUP($R$11,Division4c,2,FALSE) -> 604 KSK47-Eynatten 2 - FF | B35: =VLOOKUP($S$11,Division4c,2,FALSE) -> 810 Marche-en-Famenne 1 | D35: - | G35: =VLOOKUP($R$11,Division4d,2,FALSE) -> 304 Tielt 1 | H35: =VLOOKUP($S$11,Division4d,2,FALSE) -> 301 KOSK Oostende 3 | I35: 0.5 | J35: - | K35: 3.5 | M35: =VLOOKUP($R$11,Division4e,2,FALSE) -> 304 Tielt 2 | N35: =VLOOKUP($S$11,Division4e,2,FALSE) -> 460 Oudenaarde 1 | O35: 0.5 | P35: - | Q35: 3.5
A36: =VLOOKUP($R$12,Division4c,2,FALSE) -> 621 T.A.L. 3 | B36: =VLOOKUP($S$12,Division4c,2,FALSE) -> 627 Wirtzfeld 3 | C36: 1.5 | D36: - | E36: 2.5 | G36: =VLOOKUP($R$12,Division4d,2,FALSE) -> 465 SK Artevelde 1 | H36: =VLOOKUP($S$12,Division4d,2,FALSE) -> 430 Landegem 1 | I36: 3.5 | J36: - | K36: 0.5 | M36: =VLOOKUP($R$12,Division4e,2,FALSE) -> 462 Zottegem 2 | N36: =VLOOKUP($S$12,Division4e,2,FALSE) -> 430 Landegem 2 | O36: 3 | P36: - | Q36: 1
A37: =VLOOKUP($R$13,Division4c,2,FALSE) -> 601 CRELEL Liège 5 | B37: =VLOOKUP($S$13,Division4c,2,FALSE) -> 601 CRELEL Liège 6 | C37: 4 | D37: - | E37: 0 | G37: =VLOOKUP($R$13,Division4d,2,FALSE) -> 303 KBSK Brugge 4 | H37: =VLOOKUP($S$13,Division4d,2,FALSE) -> 475 Rapid Aalter 1 | I37: 3 | J37: - | K37: 1 | M37: =VLOOKUP($R$13,Division4e,2,FALSE) -> 541 Leuze-En-Hainaut 2 | N37: =VLOOKUP($S$13,Division4e,2,FALSE) -> 418 VPTD 1 | O37: 1.5 | P37: - | Q37: 2.5
A39: Afdeling/Division 4F | G39: Afdeling/Division 4G | M39: Afdeling/Division 4H
A40: =VLOOKUP($R$8,Division4f,2,FALSE) -> 548 Caissa Europe 2 | B40: =VLOOKUP($S$8,Division4f,2,FALSE) -> 909 Philippeville 2 | C40: 3.5 | D40: - | E40: 0.5 | G40: =VLOOKUP($R$8,Division4g,2,FALSE) -> 143 Boey Temse 2 | H40: =VLOOKUP($S$8,Division4g,2,FALSE) -> 132 SK Oude God 1 | I40: 2 | J40: - | K40: 2 | M40: =VLOOKUP($R$8,Division4h,2,FALSE) -> 230 Leuven Centraal 4 | N40: =VLOOKUP($S$8,Division4h,2,FALSE) -> 132 SK Oude God 2 | O40: 0.5 | P40: - | Q40: 3.5
A41: =VLOOKUP($R$9,Division4f,2,FALSE) -> 207 2 Fous Diogène 3 | B41: =VLOOKUP($S$9,Division4f,2,FALSE) -> 501 CREC Charleroi 2 | C41: 3 | D41: - | E41: 1 | G41: =VLOOKUP($R$9,Division4g,2,FALSE) -> 422 MSV 2 | H41: =VLOOKUP($S$9,Division4g,2,FALSE) -> 436 LSV-Chesspirant 4 | I41: 2 | J41: - | K41: 2 | M41: =VLOOKUP($R$9,Division4h,2,FALSE) -> 176 Westerlo 2 | N41: =VLOOKUP($S$9,Division4h,2,FALSE) -> 124 Deurne 3 | O41: 2 | P41: - | Q41: 2
A42: =VLOOKUP($R$10,Division4f,2,FALSE) -> 233 DZD Halle 1 | B42: =VLOOKUP($S$10,Division4f,2,FALSE) -> 902 CES 1 | C42: 0.5 | D42: - | E42: 3.5 | G42: =VLOOKUP($R$10,Division4g,2,FALSE) -> 471 Wachtebeke 3 | H42: =VLOOKUP($S$10,Division4g,2,FALSE) -> 124 Deurne 2 | I42: 3.5 | J42: - | K42: 0.5 | M42: =VLOOKUP($R$10,Division4h,2,FALSE) -> 714 Pelt 1 | N42: =VLOOKUP($S$10,Division4h,2,FALSE) -> 114 Mechelen 4 | O42: 3.5 | P42: - | Q42: 0.5
A43: =VLOOKUP($R$11,Division4f,2,FALSE) -> 547 Ren. Binchois 1 | B43: =VLOOKUP($S$11,Division4f,2,FALSE) -> 278 Pantin 4 | C43: 2 | D43: - | E43: 2 | G43: =VLOOKUP($R$11,Division4g,2,FALSE) -> 130 Hoboken 1 | H43: =VLOOKUP($S$11,Division4g,2,FALSE) -> 401 KGSRL 9 | I43: 2 | J43: - | K43: 2 | M43: =VLOOKUP($R$11,Division4h,2,FALSE) -> 130 Hoboken 2 | N43: =VLOOKUP($S$11,Division4h,2,FALSE) -> 135 Geel 2 | O43: 0.5 | P43: - | Q43: 3.5
A44: =VLOOKUP($R$12,Division4f,2,FALSE) -> 525 CELB Anderlues 2 | B44: =VLOOKUP($S$12,Division4f,2,FALSE) -> 551 HCC Jurbise 1 | C44: 3.5 | D44: - | E44: 0.5 | G44: =VLOOKUP($R$12,Division4g,2,FALSE) -> 465 SK Artevelde 2 | H44: =VLOOKUP($S$12,Division4g,2,FALSE) -> 430 Landegem 3 | I44: 0.5 | J44: - | K44: 3.5 | M44: =VLOOKUP($R$12,Division4h,2,FALSE) -> 121 Turnhout 3 | N44: =VLOOKUP($S$12,Division4h,2,FALSE) -> 101 KASK 2 | O44: 3.5 | P44: - | Q44: 0.5
A45: =VLOOKUP($R$13,Division4f,2,FALSE) -> 541 Leuze-En-Hainaut 3 | B45: =VLOOKUP($S$13,Division4f,2,FALSE) -> 228 Dworp 2 | C45: 1.5 | D45: - | E45: 2.5 | G45: =VLOOKUP($R$13,Division4g,2,FALSE) -> 121 Turnhout 2 | H45: =VLOOKUP($S$13,Division4g,2,FALSE) -> 436 LSV-Chesspirant 3 | I45: 3 | J45: - | K45: 1 | M45: =VLOOKUP($R$13,Division4h,2,FALSE) -> 727 Midden-Limburg 2 | N45: =VLOOKUP($S$13,Division4h,2,FALSE) -> 194 ChessLooks Lier 2 | O45: 2.5 | P45: - | Q45: 1.5
A47: Afdeling/Division 5A | G47: Afdeling/Division 5B | M47: Afdeling/Division 5C
A48: =VLOOKUP($R$8,Division5a,2,FALSE) -> 712 Landen 2 | B48: =VLOOKUP($S$8,Division5a,2,FALSE) -> 901 Namur Echecs 5 - FF | D48: - | G48: =VLOOKUP($R$8,Division5b,2,FALSE) -> 209 The Belgian CC 3 | H48: =VLOOKUP($S$8,Division5b,2,FALSE) -> 952 CEW 4 | I48: 2 | J48: - | K48: 2 | M48: =VLOOKUP($R$8,Division5c,2,FALSE) -> 549 Saint-Ghislain 1 | N48: =VLOOKUP($S$8,Division5c,2,FALSE) -> 901 Namur Echecs 6 | O48: 3 | P48: - | Q48: 1
A49: =VLOOKUP($R$9,Division5a,2,FALSE) -> 000 BYE 5A | B49: =VLOOKUP($S$9,Division5a,2,FALSE) -> 733 St.-Truiden 1 | D49: - | G49: =VLOOKUP($R$9,Division5b,2,FALSE) -> 207 2 Fous Diogène 4 | H49: =VLOOKUP($S$9,Division5b,2,FALSE) -> 501 CREC Charleroi 3 | I49: 1.5 | J49: - | K49: 2.5 | M49: =VLOOKUP($R$9,Division5c,2,FALSE) -> 548 Caissa Europe 3 | N49: =VLOOKUP($S$9,Division5c,2,FALSE) -> 501 CREC Charleroi 4 | O49: 3 | P49: - | Q49: 1
A50: =VLOOKUP($R$10,Division5a,2,FALSE) -> 618 Echiquier Mosan 3 | B50: =VLOOKUP($S$10,Division5a,2,FALSE) -> 607 Roch. Eupen-Kelmis 7 | C50: 0 | D50: - | E50: 4 | G50: =VLOOKUP($R$10,Division5b,2,FALSE) -> 233 DZD Halle 2 | H50: =VLOOKUP($S$10,Division5b,2,FALSE) -> 961 Braine Echecs 2 | I50: 2.5 | J50: - | K50: 1.5 | M50: =VLOOKUP($R$10,Division5c,2,FALSE) -> 511 EDC 2 | N50: =VLOOKUP($S$10,Division5c,2,FALSE) -> 961 Braine Echecs 3 | O50: 1.5 | P50: - | Q50: 2.5
A51: =VLOOKUP($R$11,Division5a,2,FALSE) -> 604 KSK47-Eynatten 3 | B51: =VLOOKUP($S$11,Division5a,2,FALSE) -> 810 Marche-en-Famenne 2 | C51: 3 | D51: - | E51: 1 | G51: =VLOOKUP($R$11,Division5b,2,FALSE) -> 244 Brussels 3 | H51: =VLOOKUP($S$11,Division5b,2,FALSE) -> 278 Pantin 5 | I51: 3.5 | J51: - | K51: 0.5 | M51: =VLOOKUP($R$11,Division5c,2,FALSE) -> 000 BYE 5C | N51: =VLOOKUP($S$11,Division5c,2,FALSE) -> 902 CES 2 | P51: -
A52: =VLOOKUP($R$12,Division5a,2,FALSE) -> 609 Anthisnes 1 | B52: =VLOOKUP($S$12,Division5a,2,FALSE) -> 703 Eisden/MSK-Dilsen 2 | C52: 3.5 | D52: - | E52: 0.5 | G52: =VLOOKUP($R$12,Division5b,2,FALSE) -> 230 Leuven Centraal 5 | H52: =VLOOKUP($S$12,Division5b,2,FALSE) -> 226 Europchess 5 | I52: 4 | J52: - | K52: 0 | M52: =VLOOKUP($R$12,Division5c,2,FALSE) -> 525 CELB Anderlues 3 | N52: =VLOOKUP($S$12,Division5c,2,FALSE) -> 551 HCC Jurbise 2 | O52: 0 | P52: - | Q52: 4
A53: =VLOOKUP($R$13,Division5a,2,FALSE) -> 601 CRELEL Liège 7 | B53: =VLOOKUP($S$13,Division5a,2,FALSE) -> 601 CRELEL Liège 8 | C53: 2.5 | D53: - | E53: 1.5 | G53: =VLOOKUP($R$13,Division5b,2,FALSE) -> 514 MCC 2 | H53: =VLOOKUP($S$13,Division5b,2,FALSE) -> 204 Excelsior 1 | I53: 1 | J53: - | K53: 3 | M53: =VLOOKUP($R$13,Division5c,2,FALSE) -> 514 MCC 3 | N53: =VLOOKUP($S$13,Division5c,2,FALSE) -> 953 Nivelles 1 | O53: 2.5 | P53: - | Q53: 1.5
A55: Afdeling/Division 5D | G55: Afdeling/Division 5E | M55: Afdeling/Division 5F
A56: =VLOOKUP($R$8,Division5d,2,FALSE) -> 000 BYE 5D | B56: =VLOOKUP($S$8,Division5d,2,FALSE) -> 703 Eisden/MSK-Dilsen 4 | D56: - | G56: =VLOOKUP($R$8,Division5e,2,FALSE) -> 143 Boey Temse 3 | H56: =VLOOKUP($S$8,Division5e,2,FALSE) -> 132 SK Oude God 3 | I56: 2.5 | J56: - | K56: 1.5 | M56: =VLOOKUP($R$8,Division5f,2,FALSE) -> 432 Wetteren 5 | N56: =VLOOKUP($S$8,Division5f,2,FALSE) -> 000 BYE 5F | P56: -
A57: =VLOOKUP($R$9,Division5d,2,FALSE) -> 623 Sankt Vith 1 | B57: =VLOOKUP($S$9,Division5d,2,FALSE) -> 609 Anthisnes 2 | C57: 3 | D57: - | E57: 1 | G57: =VLOOKUP($R$9,Division5e,2,FALSE) -> 174 Brasschaat 5 | H57: =VLOOKUP($S$9,Division5e,2,FALSE) -> 436 LSV-Chesspirant 5 | I57: 2 | J57: - | K57: 2 | M57: =VLOOKUP($R$9,Division5f,2,FALSE) -> 521 Tournai 2 | N57: =VLOOKUP($S$9,Division5f,2,FALSE) -> 438 Deinze 2 | O57: 4 | P57: - | Q57: 0
A58: =VLOOKUP($R$10,Division5d,2,FALSE) -> 619 Welkenraedt 1 | B58: =VLOOKUP($S$10,Division5d,2,FALSE) -> 607 Roch. Eupen-Kelmis 8 | C58: 0.5 | D58: - | E58: 3.5 | G58: =VLOOKUP($R$10,Division5e,2,FALSE) -> 401 KGSRL 10 | H58: =VLOOKUP($S$10,Division5e,2,FALSE) -> 114 Mechelen 5 | I58: 0.5 | J58: - | K58: 3.5 | M58: =VLOOKUP($R$10,Division5f,2,FALSE) -> 340 Izegem 2 | N58: =VLOOKUP($S$10,Division5f,2,FALSE) -> 313 KWSLE 3 | O58: 3.5 | P58: - | Q58: 0.5
A59: =VLOOKUP($R$11,Division5d,2,FALSE) -> 604 KSK47-Eynatten 4 | B59: =VLOOKUP($S$11,Division5d,2,FALSE) -> 627 Wirtzfeld 4 | C59: 2.5 | D59: - | E59: 1.5 | G59: =VLOOKUP($R$11,Division5e,2,FALSE) -> 130 Hoboken 3 | H59: =VLOOKUP($S$11,Division5e,2,FALSE) -> 128 Beveren 2 | I59: 2.5 | J59: - | K59: 1.5 | M59: =VLOOKUP($R$11,Division5f,2,FALSE) -> 401 KGSRL 11 | N59: =VLOOKUP($S$11,Division5f,2,FALSE) -> 460 Oudenaarde 2 | O59: 1.5 | P59: - | Q59: 2.5
A60: =VLOOKUP($R$12,Division5d,2,FALSE) -> 621 T.A.L. 4 | B60: =VLOOKUP($S$12,Division5d,2,FALSE) -> 703 Eisden/MSK-Dilsen 3 | C60: 1 | D60: - | E60: 3 | G60: =VLOOKUP($R$12,Division5e,2,FALSE) -> 410 St.-Niklaas 2 | H60: =VLOOKUP($S$12,Division5e,2,FALSE) -> 101 KASK 3 | I60: 1.5 | J60: - | K60: 2.5 | M60: =VLOOKUP($R$12,Division5f,2,FALSE) -> 462 Zottegem 3 | N60: =VLOOKUP($S$12,Division5f,2,FALSE) -> 309 KRST 2 | O60: 3.5 | P60: - | Q60: 0.5
A61: =VLOOKUP($R$13,Division5d,2,FALSE) -> 601 CRELEL Liège 9 | B61: =VLOOKUP($S$13,Division5d,2,FALSE) -> 601 CRELEL Liège 10 | C61: 3 | D61: - | E61: 1 | G61: =VLOOKUP($R$13,Division5e,2,FALSE) -> 190 Burcht 1 | H61: =VLOOKUP($S$13,Division5e,2,FALSE) -> 109 Borgerhout 3 | I61: 0 | J61: - | K61: 4 | M61: =VLOOKUP($R$13,Division5f,2,FALSE) -> 541 Leuze-En-Hainaut 4 | N61: =VLOOKUP($S$13,Division5f,2,FALSE) -> 436 LSV-Chesspirant 6 | O61: 1 | P61: - | Q61: 3
A63: Afdeling/Division 5G | G63: Afdeling/Division 5H | M63: Afdeling/Division 5I
A64: =VLOOKUP($R$8,Division5g,2,FALSE) -> 432 Wetteren 6 | B64: =VLOOKUP($S$8,Division5g,2,FALSE) -> 472 De Mercatel 3 | C64: 1.5 | D64: - | E64: 2.5 | G64: =VLOOKUP($R$8,Division5h,2,FALSE) -> 000 BYE 5H | H64: =VLOOKUP($S$8,Division5h,2,FALSE) -> 307 Bredene 2 | J64: - | M64: =VLOOKUP($R$8,Division5i,2,FALSE) -> 239 Boitsfort 4 | N64: =VLOOKUP($S$8,Division5i,2,FALSE) -> 229 Woluwe 2 | O64: 0.5 | P64: - | Q64: 3.5
A65: =VLOOKUP($R$9,Division5g,2,FALSE) -> 422 MSV 3 | B65: =VLOOKUP($S$9,Division5g,2,FALSE) -> 401 KGSRL 12 | C65: 2.5 | D65: - | E65: 1.5 | G65: =VLOOKUP($R$9,Division5h,2,FALSE) -> 351 Knokke Schaak 1 | H65: =VLOOKUP($S$9,Division5h,2,FALSE) -> 302 KISK Ieper 3 | I65: 2.5 | J65: - | K65: 1.5 | M65: =VLOOKUP($R$9,Division5i,2,FALSE) -> 207 2 Fous Diogène 5 | N65: =VLOOKUP($S$9,Division5i,2,FALSE) -> 000 BYE 5I | P65: -
A66: =VLOOKUP($R$10,Division5g,2,FALSE) -> 471 Wachtebeke 4 | B66: =VLOOKUP($S$10,Division5g,2,FALSE) -> 313 KWSLE 4 | C66: 1 | D66: - | E66: 3 | G66: =VLOOKUP($R$10,Division5h,2,FALSE) -> 340 Izegem 3 | H66: =VLOOKUP($S$10,Division5h,2,FALSE) -> 401 KGSRL 14 | I66: 2.5 | J66: - | K66: 1.5 | M66: =VLOOKUP($R$10,Division5i,2,FALSE) -> 209 The Belgian CC 4 | N66: =VLOOKUP($S$10,Division5i,2,FALSE) -> 201 CREB Bruxelles 3 | O66: 4 | P66: - | Q66: 0
A67: =VLOOKUP($R$11,Division5g,2,FALSE) -> 401 KGSRL 13 | B67: =VLOOKUP($S$11,Division5g,2,FALSE) -> 301 KOSK Oostende 4 | C67: 1 | D67: - | E67: 3 | G67: =VLOOKUP($R$11,Division5h,2,FALSE) -> 305 Kortrijk 1 | H67: =VLOOKUP($S$11,Division5h,2,FALSE) -> 301 KOSK Oostende 5 | I67: 3 | J67: - | K67: 1 | M67: =VLOOKUP($R$11,Division5i,2,FALSE) -> 244 Brussels 4 | N67: =VLOOKUP($S$11,Division5i,2,FALSE) -> 278 Pantin 6 | O67: 2 | P67: - | Q67: 2
A68: =VLOOKUP($R$12,Division5g,2,FALSE) -> 465 SK Artevelde 3 | B68: =VLOOKUP($S$12,Division5g,2,FALSE) -> 430 Landegem 4 | C68: 2 | D68: - | E68: 2 | G68: =VLOOKUP($R$12,Division5h,2,FALSE) -> 322 Veurne 1 | H68: =VLOOKUP($S$12,Division5h,2,FALSE) -> 309 KRST 3 | I68: 2.5 | J68: - | K68: 1.5 | M68: =VLOOKUP($R$12,Division5i,2,FALSE) -> 230 Leuven Centraal 6 | N68: =VLOOKUP($S$12,Division5i,2,FALSE) -> 260 Kapelle-op-den Bos 2 | O68: 2.5 | P68: - | Q68: 1.5
A69: =VLOOKUP($R$13,Division5g,2,FALSE) -> 303 KBSK Brugge 5 | B69: =VLOOKUP($S$13,Division5g,2,FALSE) -> 436 LSV-Chesspirant 7 | C69: 4 | D69: - | E69: 0 | G69: =VLOOKUP($R$13,Division5h,2,FALSE) -> 303 KBSK Brugge 6 | H69: =VLOOKUP($S$13,Division5h,2,FALSE) -> 475 Rapid Aalter 2 | I69: 3 | J69: - | K69: 1 | M69: =VLOOKUP($R$13,Division5i,2,FALSE) -> 401 KGSRL 15 | N69: =VLOOKUP($S$13,Division5i,2,FALSE) -> 204 Excelsior 2 | O69: 3 | P69: - | Q69: 1
A71: Afdeling/Division 5J | G71: Afdeling/Division 5K | M71: Afdeling/Division 5L
A72: =VLOOKUP($R$8,Division5j,2,FALSE) -> 196 De Rode Loper 1 | B72: =VLOOKUP($S$8,Division5j,2,FALSE) -> 132 SK Oude God 4 | C72: 2.5 | D72: - | E72: 1.5 | G72: =VLOOKUP($R$8,Division5k,2,FALSE) -> 121 Turnhout 4 | H72: =VLOOKUP($S$8,Division5k,2,FALSE) -> 132 SK Oude God 5 | I72: 1.5 | J72: - | K72: 2.5 | M72: =VLOOKUP($R$8,Division5l,2,FALSE) -> 432 Wetteren 7 | N72: =VLOOKUP($S$8,Division5l,2,FALSE) -> 436 LSV-Chesspirant 9 | O72: 2 | P72: - | Q72: 2
A73: =VLOOKUP($R$9,Division5j,2,FALSE) -> 174 Brasschaat 6 | B73: =VLOOKUP($S$9,Division5j,2,FALSE) -> 114 Mechelen 6 | C73: 3 | D73: - | E73: 1 | G73: =VLOOKUP($R$9,Division5k,2,FALSE) -> 176 Westerlo 3 | H73: =VLOOKUP($S$9,Division5k,2,FALSE) -> 166 TSM Mechelen 4 | I73: 1.5 | J73: - | K73: 2.5 | M73: =VLOOKUP($R$9,Division5l,2,FALSE) -> 422 MSV 4 | N73: =VLOOKUP($S$9,Division5l,2,FALSE) -> 401 KGSRL 18 | O73: 1 | P73: - | Q73: 3
A74: =VLOOKUP($R$10,Division5j,2,FALSE) -> 195 Kapellen 1 | B74: =VLOOKUP($S$10,Division5j,2,FALSE) -> 124 Deurne 4 | C74: 1 | D74: - | E74: 3 | G74: =VLOOKUP($R$10,Division5k,2,FALSE) -> 182 Noorderwijk 1 | H74: =VLOOKUP($S$10,Division5k,2,FALSE) -> 114 Mechelen 7 | I74: 2.5 | J74: - | K74: 1.5 | M74: =VLOOKUP($R$10,Division5l,2,FALSE) -> 000 BYE 5L | N74: =VLOOKUP($S$10,Division5l,2,FALSE) -> 417 Pion-Aalst 3 | P74: -
A75: =VLOOKUP($R$11,Division5j,2,FALSE) -> 130 Hoboken 4 | B75: =VLOOKUP($S$11,Division5j,2,FALSE) -> 128 Beveren 3 | C75: 0 | D75: - | E75: 4 | G75: =VLOOKUP($R$11,Division5k,2,FALSE) -> 231 Dolle Toren Leuven 3 | H75: =VLOOKUP($S$11,Division5k,2,FALSE) -> 401 KGSRL 17 | I75: 3 | J75: - | K75: 1 | M75: =VLOOKUP($R$11,Division5l,2,FALSE) -> 261 Opwijk 3 | N75: =VLOOKUP($S$11,Division5l,2,FALSE) -> 128 Beveren 4 | O75: 2 | P75: - | Q75: 2
A76: =VLOOKUP($R$12,Division5j,2,FALSE) -> 230 Leuven Centraal 7 | B76: =VLOOKUP($S$12,Division5j,2,FALSE) -> 401 KGSRL 16 | C76: 3.5 | D76: - | E76: 0.5 | G76: =VLOOKUP($R$12,Division5k,2,FALSE) -> 230 Leuven Centraal 8 | H76: =VLOOKUP($S$12,Division5k,2,FALSE) -> 162 Molse SC 1 | I76: 2 | J76: - | K76: 2 | M76: =VLOOKUP($R$12,Division5l,2,FALSE) -> 462 Zottegem 4 | N76: =VLOOKUP($S$12,Division5l,2,FALSE) -> 404 Drie Torens 1 | O76: 3 | P76: - | Q76: 1
A77: =VLOOKUP($R$13,Division5j,2,FALSE) -> 190 Burcht 2 | B77: =VLOOKUP($S$13,Division5j,2,FALSE) -> 109 Borgerhout 4 | C77: 1 | D77: - | E77: 3 | G77: =VLOOKUP($R$13,Division5k,2,FALSE) -> 727 Midden-Limburg 3 | H77: =VLOOKUP($S$13,Division5k,2,FALSE) -> 194 ChessLooks Lier 3 | I77: 1 | J77: - | K77: 3 | M77: =VLOOKUP($R$13,Division5l,2,FALSE) -> 425 Dendermonde 2 | N77: =VLOOKUP($S$13,Division5l,2,FALSE) -> 436 LSV-Chesspirant 8 | O77: 2 | P77: - | Q77: 2
A79: Afdeling/Division 5M | G79: Afdeling/Division 5N
A80: =VLOOKUP($R$8,Division5m,2,FALSE) -> 230 Leuven Centraal 9 | B80: =VLOOKUP($S$8,Division5m,2,FALSE) -> 132 SK Oude God 6 | C80: 0 | D80: - | E80: 4 | G80: =VLOOKUP($R$8,Division5n,2,FALSE) -> 549 Saint-Ghislain 2 | H80: =VLOOKUP($S$8,Division5n,2,FALSE) -> 901 Namur Echecs 7 | I80: 1 | J80: - | K80: 3
A81: =VLOOKUP($R$9,Division5m,2,FALSE) -> 176 Westerlo 4 | B81: =VLOOKUP($S$9,Division5m,2,FALSE) -> 166 TSM Mechelen 5 | C81: 1 | D81: - | E81: 3 | G81: =VLOOKUP($R$9,Division5n,2,FALSE) -> 952 CEW 5 | H81: =VLOOKUP($S$9,Division5n,2,FALSE) -> 501 CREC Charleroi 5 | I81: 3 | J81: - | K81: 1
A82: =VLOOKUP($R$10,Division5m,2,FALSE) -> 714 Pelt 2 | B82: =VLOOKUP($S$10,Division5m,2,FALSE) -> 114 Mechelen 8 | C82: 3.5 | D82: - | E82: 0.5 | G82: =VLOOKUP($R$10,Division5n,2,FALSE) -> 000 BYE 5N | H82: =VLOOKUP($S$10,Division5n,2,FALSE) -> 548 Caissa Europe 4 | J82: -
A83: =VLOOKUP($R$11,Division5m,2,FALSE) -> 231 Dolle Toren Leuven 4 | B83: =VLOOKUP($S$11,Division5m,2,FALSE) -> 135 Geel 3 | C83: 2.5 | D83: - | E83: 1.5 | G83: =VLOOKUP($R$11,Division5n,2,FALSE) -> 518 Soignies 1 | H83: =VLOOKUP($S$11,Division5n,2,FALSE) -> 902 CES 3 | I83: 2.5 | J83: - | K83: 1.5
A84: =VLOOKUP($R$12,Division5m,2,FALSE) -> 121 Turnhout 5 | B84: =VLOOKUP($S$12,Division5m,2,FALSE) -> 162 Molse SC 2 | C84: 3.5 | D84: - | E84: 0.5 | G84: =VLOOKUP($R$12,Division5n,2,FALSE) -> 230 Leuven Centraal 10 | H84: =VLOOKUP($S$12,Division5n,2,FALSE) -> 551 HCC Jurbise 3 | I84: 3 | J84: - | K84: 1
A85: =VLOOKUP($R$13,Division5m,2,FALSE) -> 727 Midden-Limburg 4 | B85: =VLOOKUP($S$13,Division5m,2,FALSE) -> 666 666 1 | C85: 1 | D85: - | E85: 3 | G85: =VLOOKUP($R$13,Division5n,2,FALSE) -> 514 MCC 4 | H85: =VLOOKUP($S$13,Division5n,2,FALSE) -> 228 Dworp 3 | I85: 3 | J85: - | K85: 1

Sheet R5
G1: =CONCATENATE("INTERCLUBS NATIONAUX ",Data!$B$1) -> INTERCLUBS NATIONAUX 2022-2023
G2: =CONCATENATE("NATIONALE INTERCLUBS ",Data!$B$1) -> NATIONALE INTERCLUBS 2022-2023
G5: Ronde 5: | H5: =VLOOKUP(G5,Data,2,FALSE) -> 2022-12-04
A7: Afdeling/Division 1 | G7: Afdeling/Division 2A | M7: Afdeling/Division 2B
A8: =VLOOKUP($R$8,Division1,2,FALSE) -> 601 CRELEL Liège 1 | B8: =VLOOKUP($S$8,Division1,2,FALSE) -> 432 Wetteren 1 | C8: 3 | D8: - | E8: 5 | G8: =VLOOKUP($R$8,Division2a,2,FALSE) -> 601 CRELEL Liège 2 | H8: =VLOOKUP($S$8,Division2a,2,FALSE) -> 239 Boitsfort 1 | I8: 3.5 | J8: - | K8: 4.5 | M8: =VLOOKUP($R$8,Division2b,2,FALSE) -> 109 Borgerhout 1 | N8: =VLOOKUP($S$8,Division2b,2,FALSE) -> 143 Boey Temse 1 | O8: 6.5 | P8: - | Q8: 1.5 | R8: 3 | S8: 12
A9: =VLOOKUP($R$9,Division1,2,FALSE) -> 627 Wirtzfeld 1 | B9: =VLOOKUP($S$9,Division1,2,FALSE) -> 303 KBSK Brugge 1 | C9: 4 | D9: - | E9: 4 | G9: =VLOOKUP($R$9,Division2a,2,FALSE) -> 401 KGSRL 2 | H9: =VLOOKUP($S$9,Division2a,2,FALSE) -> 514 MCC 1 | I9: 3 | J9: - | K9: 5 | M9: =VLOOKUP($R$9,Division2b,2,FALSE) -> 226 Europchess 1 | N9: =VLOOKUP($S$9,Division2b,2,FALSE) -> 303 KBSK Brugge 2 | O9: 6 | P9: - | Q9: 2 | R9: 4 | S9: 2
A10: =VLOOKUP($R$10,Division1,2,FALSE) -> 301 KOSK Oostende 1 | B10: =VLOOKUP($S$10,Division1,2,FALSE) -> 621 T.A.L. 1 | C10: 3.5 | D10: - | E10: 4.5 | G10: =VLOOKUP($R$10,Division2a,2,FALSE) -> 278 Pantin 1 | H10: =VLOOKUP($S$10,Division2a,2,FALSE) -> 230 Leuven Centraal 1 | I10: 1.5 | J10: - | K10: 6.5 | M10: =VLOOKUP($R$10,Division2b,2,FALSE) -> 401 KGSRL 3 | N10: =VLOOKUP($S$10,Division2b,2,FALSE) -> 462 Zottegem 1 | O10: 5.5 | P10: - | Q10: 2.5 | R10: 5 | S10: 1
A11: =VLOOKUP($R$11,Division1,2,FALSE) -> 607 Roch. Eupen-Kelmis 1 | B11: =VLOOKUP($S$11,Division1,2,FALSE) -> 401 KGSRL 1 | C11: 5 | D11: - | E11: 3 | G11: =VLOOKUP($R$11,Division2a,2,FALSE) -> 201 CREB Bruxelles 1 | H11: =VLOOKUP($S$11,Division2a,2,FALSE) -> 231 Dolle Toren Leuven 1 | I11: 2.5 | J11: - | K11: 5.5 | M11: =VLOOKUP($R$11,Division2b,2,FALSE) -> 114 Mechelen 1 | N11: =VLOOKUP($S$11,Division2b,2,FALSE) -> 261 Opwijk 1 | O11: 3.5 | P11: - | Q11: 4.5 | R11: 6 | S11: 11
A12: =VLOOKUP($R$12,Division1,2,FALSE) -> 501 CREC Charleroi 1 | B12: =VLOOKUP($S$12,Division1,2,FALSE) -> 471 Wachtebeke 1 | C12: 4 | D12: - | E12: 4 | G12: =VLOOKUP($R$12,Division2a,2,FALSE) -> 952 CEW 1 | H12: =VLOOKUP($S$12,Division2a,2,FALSE) -> 618 Echiquier Mosan 1 | I12: 3 | J12: - | K12: 5 | M12: =VLOOKUP($R$12,Division2b,2,FALSE) -> 124 Deurne 1 | N12: =VLOOKUP($S$12,Division2b,2,FALSE) -> 209 The Belgian CC 1 | O12: 4.5 | P12: - | Q12: 3.5 | R12: 7 | S12: 10
A13: =VLOOKUP($R$13,Division1,2,FALSE) -> 166 TSM Mechelen 1 | B13: =VLOOKUP($S$13,Division1,2,FALSE) -> 174 Brasschaat 1 | C13: 7 | D13: - | E13: 1 | G13: =VLOOKUP($R$13,Division2a,2,FALSE) -> 901 Namur Echecs 1 | H13: =VLOOKUP($S$13,Division2a,2,FALSE) -> 176 Westerlo 1 | I13: 7.5 | J13: - | K13: 0.5 | M13: =VLOOKUP($R$13,Division2b,2,FALSE) -> 436 LSV-Chesspirant 1 | N13: =VLOOKUP($S$13,Division2b,2,FALSE) -> 402 Jean Jaurès Gent 1 | O13: 2 | P13: - | Q13: 6 | R13: 8 | S13: 9
A15: Afdeling/Division 3A | G15: Afdeling/Division 3B | M15: Afdeling/Division 3C
A16: =VLOOKUP($R$8,Division3a,2,FALSE) -> 228 Dworp 1 | B16: =VLOOKUP($S$8,Division3a,2,FALSE) -> 239 Boitsfort 2 | C16: 2.5 | D16: - | E16: 3.5 | G16: =VLOOKUP($R$8,Division3b,2,FALSE) -> 436 LSV-Chesspirant 2 | H16: =VLOOKUP($S$8,Division3b,2,FALSE) -> 432 Wetteren 2 | I16: 0.5 | J16: - | K16: 5.5 | M16: =VLOOKUP($R$8,Division3c,2,FALSE) -> 601 CRELEL Liège 3 | N16: =VLOOKUP($S$8,Division3c,2,FALSE) -> 230 Leuven Centraal 2 | O16: 2.5 | P16: - | Q16: 3.5
A17: =VLOOKUP($R$9,Division3a,2,FALSE) -> 226 Europchess 2 | B17: =VLOOKUP($S$9,Division3a,2,FALSE) -> 541 Leuze-En-Hainaut 1 | C17: 1 | D17: - | E17: 5 | G17: =VLOOKUP($R$9,Division3b,2,FALSE) -> 309 KRST 1 | H17: =VLOOKUP($S$9,Division3b,2,FALSE) -> 303 KBSK Brugge 3 | I17: 3 | J17: - | K17: 3 | M17: =VLOOKUP($R$9,Division3c,2,FALSE) -> 627 Wirtzfeld 2 | N17: =VLOOKUP($S$9,Division3c,2,FALSE) -> 727 Midden-Limburg 1 | O17: 4.5 | P17: - | Q17: 1.5
A18: =VLOOKUP($R$10,Division3a,2,FALSE) -> 417 Pion-Aalst 1 | B18: =VLOOKUP($S$10,Division3a,2,FALSE) -> 548 Caissa Europe 1 | C18: 3 | D18: - | E18: 3 | G18: =VLOOKUP($R$10,Division3b,2,FALSE) -> 301 KOSK Oostende 2 | H18: =VLOOKUP($S$10,Division3b,2,FALSE) -> 401 KGSRL 5 | I18: 3.5 | J18: - | K18: 2.5 | M18: =VLOOKUP($R$10,Division3c,2,FALSE) -> 135 Geel 1 | N18: =VLOOKUP($S$10,Division3c,2,FALSE) -> 621 T.A.L. 2 | O18: 5.5 | P18: - | Q18: 0.5
A19: =VLOOKUP($R$11,Division3a,2,FALSE) -> 201 CREB Bruxelles 2 | B19: =VLOOKUP($S$11,Division3a,2,FALSE) -> 244 Brussels 1 | C19: 3 | D19: - | E19: 3 | G19: =VLOOKUP($R$11,Division3b,2,FALSE) -> 313 KWSLE 1 | H19: =VLOOKUP($S$11,Division3b,2,FALSE) -> 401 KGSRL 6 | I19: 5 | J19: - | K19: 1 | M19: =VLOOKUP($R$11,Division3c,2,FALSE) -> 607 Roch. Eupen-Kelmis 2 | N19: =VLOOKUP($S$11,Division3c,2,FALSE) -> 604 KSK47-Eynatten 1 | O19: 2 | P19: - | Q19: 4
A20: =VLOOKUP($R$12,Division3a,2,FALSE) -> 401 KGSRL 4 | B20: =VLOOKUP($S$12,Division3a,2,FALSE) -> 511 EDC 1 | C20: 5 | D20: - | E20: 1 | G20: =VLOOKUP($R$12,Division3b,2,FALSE) -> 302 KISK Ieper 1 | H20: =VLOOKUP($S$12,Division3b,2,FALSE) -> 471 Wachtebeke 2 | I20: 4 | J20: - | K20: 2 | M20: =VLOOKUP($R$12,Division3c,2,FALSE) -> 607 Roch. Eupen-Kelmis 3 | N20: =VLOOKUP($S$12,Division3c,2,FALSE) -> 703 Eisden/MSK-Dilsen 1 | O20: 5 | P20: - | Q20: 1
A21: =VLOOKUP($R$13,Division3a,2,FALSE) -> 909 Philippeville 1 | B21: =VLOOKUP($S$13,Division3a,2,FALSE) -> 174 Brasschaat 2 | C21: 2 | D21: - | E21: 4 | G21: =VLOOKUP($R$13,Division3b,2,FALSE) -> 472 De Mercatel 1 | H21: =VLOOKUP($S$13,Division3b,2,FALSE) -> 521 Tournai 1 | I21: 3.5 | J21: - | K21: 2.5 | M21: =VLOOKUP($R$13,Division3c,2,FALSE) -> 901 Namur Echecs 2 | N21: =VLOOKUP($S$13,Division3c,2,FALSE) -> 174 Brasschaat 3 | O21: 4 | P21: - | Q21: 2
A23: Afdeling/Division 3D | G23: Afdeling/Division 4A | M23: Afdeling/Division 4B
A24: =VLOOKUP($R$8,Division3d,2,FALSE) -> 109 Borgerhout 2 | B24: =VLOOKUP($S$8,Division3d,2,FALSE) -> 708 NLS Lommel 1 | C24: 3.5 | D24: - | E24: 2.5 | G24: =VLOOKUP($R$8,Division4a,2,FALSE) -> 194 ChessLooks Lier 1 | H24: =VLOOKUP($S$8,Division4a,2,FALSE) -> 239 Boitsfort 3 | I24: 3.5 | J24: - | K24: 0.5 | M24: =VLOOKUP($R$8,Division4b,2,FALSE) -> 952 CEW 3 | N24: =VLOOKUP($S$8,Division4b,2,FALSE) -> 952 CEW 2 | O24: 3 | P24: - | Q24: 1
A25: =VLOOKUP($R$9,Division3d,2,FALSE) -> 101 KASK 1 | B25: =VLOOKUP($S$9,Division3d,2,FALSE) -> 425 Dendermonde 1 | C25: 4.5 | D25: - | E25: 1.5 | G25: =VLOOKUP($R$9,Division4a,2,FALSE) -> 226 Europchess 3 | H25: =VLOOKUP($S$9,Division4a,2,FALSE) -> 121 Turnhout 1 | I25: 2.5 | J25: - | K25: 1.5 | M25: =VLOOKUP($R$9,Division4b,2,FALSE) -> 226 Europchess 4 | N25: =VLOOKUP($S$9,Division4b,2,FALSE) -> 601 CRELEL Liège 4 | O25: 3 | P25: - | Q25: 1
A26: =VLOOKUP($R$10,Division3d,2,FALSE) -> 128 Beveren 1 | B26: =VLOOKUP($S$10,Division3d,2,FALSE) -> 410 St.-Niklaas 1 | C26: 3.5 | D26: - | E26: 2.5 | G26: =VLOOKUP($R$10,Division4a,2,FALSE) -> 278 Pantin 2 | H26: =VLOOKUP($S$10,Division4a,2,FALSE) -> 230 Leuven Centraal 3 | I26: 1.5 | J26: - | K26: 2.5 | M26: =VLOOKUP($R$10,Division4b,2,FALSE) -> 278 Pantin 3 | N26: =VLOOKUP($S$10,Division4b,2,FALSE) -> 525 CELB Anderlues 1 | O26: 3.5 | P26: - | Q26: 0.5
A27: =VLOOKUP($R$11,Division3d,2,FALSE) -> 114 Mechelen 2 | B27: =VLOOKUP($S$11,Division3d,2,FALSE) -> 244 Brussels 2 | C27: 3 | D27: - | E27: 3 | G27: =VLOOKUP($R$11,Division4a,2,FALSE) -> 114 Mechelen 3 | H27: =VLOOKUP($S$11,Division4a,2,FALSE) -> 261 Opwijk 2 | I27: 1 | J27: - | K27: 3 | M27: =VLOOKUP($R$11,Division4b,2,FALSE) -> 607 Roch. Eupen-Kelmis 4 | N27: =VLOOKUP($S$11,Division4b,2,FALSE) -> 231 Dolle Toren Leuven 2 | O27: 0.5 | P27: - | Q27: 3.5
A28: =VLOOKUP($R$12,Division3d,2,FALSE) -> 166 TSM Mechelen 2 | B28: =VLOOKUP($S$12,Division3d,2,FALSE) -> 260 Kapelle-op-den Bos 1 | C28: 4.5 | D28: - | E28: 1.5 | G28: =VLOOKUP($R$12,Division4a,2,FALSE) -> 166 TSM Mechelen 3 | H28: =VLOOKUP($S$12,Division4a,2,FALSE) -> 240 SCRR 1 | I28: 3.5 | J28: - | K28: 0.5 | M28: =VLOOKUP($R$12,Division4b,2,FALSE) -> 961 Braine Echecs 1 | N28: =VLOOKUP($S$12,Division4b,2,FALSE) -> 209 The Belgian CC 2 | O28: 2 | P28: - | Q28: 2
A29: =VLOOKUP($R$13,Division3d,2,FALSE) -> 401 KGSRL 7 | B29: =VLOOKUP($S$13,Division3d,2,FALSE) -> 174 Brasschaat 4 | C29: 4 | D29: - | E29: 2 | G29: =VLOOKUP($R$13,Division4a,2,FALSE) -> 229 Woluwe 1 | H29: =VLOOKUP($S$13,Division4a,2,FALSE) -> 207 2 Fous Diogène 1 | I29: 2 | J29: - | K29: 2 | M29: =VLOOKUP($R$13,Division4b,2,FALSE) -> 901 Namur Echecs 3 | N29: =VLOOKUP($S$13,Division4b,2,FALSE) -> 207 2 Fous Diogène 2 | O29: 3 | P29: - | Q29: 1
A31: Afdeling/Division 4C | G31: Afdeling/Division 4D | M31: Afdeling/Division 4E
A32: =VLOOKUP($R$8,Division4c,2,FALSE) -> 601 CRELEL Liège 6 | B32: =VLOOKUP($S$8,Division4c,2,FALSE) -> 712 Landen 1 | C32: 2 | D32: - | E32: 2 | G32: =VLOOKUP($R$8,Division4d,2,FALSE) -> 475 Rapid Aalter 1 | H32: =VLOOKUP($S$8,Division4d,2,FALSE) -> 432 Wetteren 3 | I32: 0.5 | J32: - | K32: 3.5 | M32: =VLOOKUP($R$8,Division4e,2,FALSE) -> 418 VPTD 1 | N32: =VLOOKUP($S$8,Division4e,2,FALSE) -> 432 Wetteren 4 | O32: 3 | P32: - | Q32: 1
A33: =VLOOKUP($R$9,Division4c,2,FALSE) -> 627 Wirtzfeld 3 | B33: =VLOOKUP($S$9,Division4c,2,FALSE) -> 601 CRELEL Liège 5 | C33: 2 | D33: - | E33: 2 | G33: =VLOOKUP($R$9,Division4d,2,FALSE) -> 430 Landegem 1 | H33: =VLOOKUP($S$9,Division4d,2,FALSE) -> 303 KBSK Brugge 4 | I33: 2 | J33: - | K33: 2 | M33: =VLOOKUP($R$9,Division4e,2,FALSE) -> 430 Landegem 2 | N33: =VLOOKUP($S$9,Division4e,2,FALSE) -> 541 Leuze-En-Hainaut 2 | O33: 2.5 | P33: - | Q33: 1.5
A34: =VLOOKUP($R$10,Division4c,2,FALSE) -> 810 Marche-en-Famenne 1 | B34: =VLOOKUP($S$10,Division4c,2,FALSE) -> 621 T.A.L. 3 | C34: 3.5 | D34: - | E34: 0.5 | G34: =VLOOKUP($R$10,Division4d,2,FALSE) -> 301 KOSK Oostende 3 | H34: =VLOOKUP($S$10,Division4d,2,FALSE) -> 465 SK Artevelde 1 | I34: 2 | J34: - | K34: 2 | M34: =VLOOKUP($R$10,Division4e,2,FALSE) -> 460 Oudenaarde 1 | N34: =VLOOKUP($S$10,Division4e,2,FALSE) -> 462 Zottegem 2 | O34: 3 | P34: - | Q34: 1
A35: =VLOOKUP($R$11,Division4c,2,FALSE) -> 607 Roch. Eupen-Kelmis 5 | B35: =VLOOKUP($S$11,Division4c,2,FALSE) -> 604 KSK47-Eynatten 2 - FF | D35: - | G35: =VLOOKUP($R$11,Division4d,2,FALSE) -> 313 KWSLE 2 | H35: =VLOOKUP($S$11,Division4d,2,FALSE) -> 304 Tielt 1 | I35: 0 | J35: - | K35: 4 | M35: =VLOOKUP($R$11,Division4e,2,FALSE) -> 417 Pion-Aalst 2 | N35: =VLOOKUP($S$11,Division4e,2,FALSE) -> 304 Tielt 2 | O35: 2 | P35: - | Q35: 2
A36: =VLOOKUP($R$12,Division4c,2,FALSE) -> 607 Roch. Eupen-Kelmis 6 | B36: =VLOOKUP($S$12,Division4c,2,FALSE) -> 618 Echiquier Mosan 2 | C36: 2.5 | D36: - | E36: 1.5 | G36: =VLOOKUP($R$12,Division4d,2,FALSE) -> 302 KISK Ieper 2 | H36: =VLOOKUP($S$12,Division4d,2,FALSE) -> 340 Izegem 1 | I36: 1.5 | J36: - | K36: 2.5 | M36: =VLOOKUP($R$12,Division4e,2,FALSE) -> 438 Deinze 1 | N36: =VLOOKUP($S$12,Division4e,2,FALSE) -> 401 KGSRL 8 | O36: 1 | P36: - | Q36: 3
A37: =VLOOKUP($R$13,Division4c,2,FALSE) -> 901 Namur Echecs 4 | B37: =VLOOKUP($S$13,Division4c,2,FALSE) -> 622 Herve 1 | C37: 3.5 | D37: - | E37: 0.5 | G37: =VLOOKUP($R$13,Division4d,2,FALSE) -> 307 Bredene 1 | H37: =VLOOKUP($S$13,Division4d,2,FALSE) -> 422 MSV 1 | I37: 3.5 | J37: - | K37: 0.5 | M37: =VLOOKUP($R$13,Division4e,2,FALSE) -> 472 De Mercatel 2 | N37: =VLOOKUP($S$13,Division4e,2,FALSE) -> 402 Jean Jaurès Gent 2 | O37: 2.5 | P37: - | Q37: 1.5
A39: Afdeling/Division 4F | G39: Afdeling/Division 4G | M39: Afdeling/Division 4H
A40: =VLOOKUP($R$8,Division4f,2,FALSE) -> 228 Dworp 2 | B40: =VLOOKUP($S$8,Division4f,2,FALSE) -> 548 Caissa Europe 2 | C40: 2 | D40: - | E40: 2 | G40: =VLOOKUP($R$8,Division4g,2,FALSE) -> 436 LSV-Chesspirant 3 | H40: =VLOOKUP($S$8,Division4g,2,FALSE) -> 143 Boey Temse 2 | I40: 2 | J40: - | K40: 2 | M40: =VLOOKUP($R$8,Division4h,2,FALSE) -> 194 ChessLooks Lier 2 | N40: =VLOOKUP($S$8,Division4h,2,FALSE) -> 230 Leuven Centraal 4 | O40: 1 | P40: - | Q40: 3
A41: =VLOOKUP($R$9,Division4f,2,FALSE) -> 551 HCC Jurbise 1 | B41: =VLOOKUP($S$9,Division4f,2,FALSE) -> 541 Leuze-En-Hainaut 3 | C41: 0.5 | D41: - | E41: 3.5 | G41: =VLOOKUP($R$9,Division4g,2,FALSE) -> 430 Landegem 3 | H41: =VLOOKUP($S$9,Division4g,2,FALSE) -> 121 Turnhout 2 | I41: 3 | J41: - | K41: 1 | M41: =VLOOKUP($R$9,Division4h,2,FALSE) -> 101 KASK 2 | N41: =VLOOKUP($S$9,Division4h,2,FALSE) -> 727 Midden-Limburg 2 | O41: 1 | P41: - | Q41: 3
A42: =VLOOKUP($R$10,Division4f,2,FALSE) -> 278 Pantin 4 | B42: =VLOOKUP($S$10,Division4f,2,FALSE) -> 525 CELB Anderlues 2 | C42: 1.5 | D42: - | E42: 2.5 | G42: =VLOOKUP($R$10,Division4g,2,FALSE) -> 401 KGSRL 9 | H42: =VLOOKUP($S$10,Division4g,2,FALSE) -> 465 SK Artevelde 2 | I42: 2 | J42: - | K42: 2 | M42: =VLOOKUP($R$10,Division4h,2,FALSE) -> 135 Geel 2 | N42: =VLOOKUP($S$10,Division4h,2,FALSE) -> 121 Turnhout 3 | O42: 1 | P42: - | Q42: 3
A43: =VLOOKUP($R$11,Division4f,2,FALSE) -> 902 CES 1 | B43: =VLOOKUP($S$11,Division4f,2,FALSE) -> 547 Ren. Binchois 1 | C43: 2 | D43: - | E43: 2 | G43: =VLOOKUP($R$11,Division4g,2,FALSE) -> 124 Deurne 2 | H43: =VLOOKUP($S$11,Division4g,2,FALSE) -> 130 Hoboken 1 | I43: 0.5 | J43: - | K43: 3.5 | M43: =VLOOKUP($R$11,Division4h,2,FALSE) -> 114 Mechelen 4 | N43: =VLOOKUP($S$11,Division4h,2,FALSE) -> 130 Hoboken 2 | O43: 3 | P43: - | Q43: 1
A44: =VLOOKUP($R$12,Division4f,2,FALSE) -> 501 CREC Charleroi 2 | B44: =VLOOKUP($S$12,Division4f,2,FALSE) -> 233 DZD Halle 1 | C44: 2.5 | D44: - | E44: 1.5 | G44: =VLOOKUP($R$12,Division4g,2,FALSE) -> 436 LSV-Chesspirant 4 | H44: =VLOOKUP($S$12,Division4g,2,FALSE) -> 471 Wachtebeke 3 | I44: 3.5 | J44: - | K44: 0.5 | M44: =VLOOKUP($R$12,Division4h,2,FALSE) -> 124 Deurne 3 | N44: =VLOOKUP($S$12,Division4h,2,FALSE) -> 714 Pelt 1 | O44: 2.5 | P44: - | Q44: 1.5
A45: =VLOOKUP($R$13,Division4f,2,FALSE) -> 909 Philippeville 2 | B45: =VLOOKUP($S$13,Division4f,2,FALSE) -> 207 2 Fous Diogène 3 | C45: 2 | D45: - | E45: 2 | G45: =VLOOKUP($R$13,Division4g,2,FALSE) -> 132 SK Oude God 1 | H45: =VLOOKUP($S$13,Division4g,2,FALSE) -> 422 MSV 2 | I45: 2 | J45: - | K45: 2 | M45: =VLOOKUP($R$13,Division4h,2,FALSE) -> 132 SK Oude God 2 | N45: =VLOOKUP($S$13,Division4h,2,FALSE) -> 176 Westerlo 2 | O45: 2.5 | P45: - | Q45: 1.5
A47: Afdeling/Division 5A | G47: Afdeling/Division 5B | M47: Afdeling/Division 5C
A48: =VLOOKUP($R$8,Division5a,2,FALSE) -> 601 CRELEL Liège 8 | B48: =VLOOKUP($S$8,Division5a,2,FALSE) -> 712 Landen 2 | C48: 0 | D48: - | E48: 4 | G48: =VLOOKUP($R$8,Division5b,2,FALSE) -> 204 Excelsior 1 | H48: =VLOOKUP($S$8,Division5b,2,FALSE) -> 209 The Belgian CC 3 | I48: 1.5 | J48: - | K48: 2.5 | M48: =VLOOKUP($R$8,Division5c,2,FALSE) -> 953 Nivelles 1 | N48: =VLOOKUP($S$8,Division5c,2,FALSE) -> 549 Saint-Ghislain 1 | O48: 4 | P48: - | Q48: 0
A49: =VLOOKUP($R$9,Division5a,2,FALSE) -> 703 Eisden/MSK-Dilsen 2 | B49: =VLOOKUP($S$9,Division5a,2,FALSE) -> 601 CRELEL Liège 7 | C49: 1.5 | D49: - | E49: 2.5 | G49: =VLOOKUP($R$9,Division5b,2,FALSE) -> 226 Europchess 5 | H49: =VLOOKUP($S$9,Division5b,2,FALSE) -> 514 MCC 2 | I49: 4 | J49: - | K49: 0 | M49: =VLOOKUP($R$9,Division5c,2,FALSE) -> 551 HCC Jurbise 2 | N49: =VLOOKUP($S$9,Division5c,2,FALSE) -> 514 MCC 3 | O49: 4 | P49: - | Q49: 0
A50: =VLOOKUP($R$10,Division5a,2,FALSE) -> 810 Marche-en-Famenne 2 | B50: =VLOOKUP($S$10,Division5a,2,FALSE) -> 609 Anthisnes 1 | C50: 2.5 | D50: - | E50: 1.5 | G50: =VLOOKUP($R$10,Division5b,2,FALSE) -> 278 Pantin 5 | H50: =VLOOKUP($S$10,Division5b,2,FALSE) -> 230 Leuven Centraal 5 | I50: 1 | J50: - | K50: 3 | M50: =VLOOKUP($R$10,Division5c,2,FALSE) -> 902 CES 2 | N50: =VLOOKUP($S$10,Division5c,2,FALSE) -> 525 CELB Anderlues 3 | O50: 4 | P50: - | Q50: 0
A51: =VLOOKUP($R$11,Division5a,2,FALSE) -> 607 Roch. Eupen-Kelmis 7 | B51: =VLOOKUP($S$11,Division5a,2,FALSE) -> 604 KSK47-Eynatten 3 | C51: 1.5 | D51: - | E51: 2.5 | G51: =VLOOKUP($R$11,Division5b,2,FALSE) -> 961 Braine Echecs 2 | H51: =VLOOKUP($S$11,Division5b,2,FALSE) -> 244 Brussels 3 | I51: 0 | J51: - | K51: 4 | M51: =VLOOKUP($R$11,Division5c,2,FALSE) -> 961 Braine Echecs 3 | N51: =VLOOKUP($S$11,Division5c,2,FALSE) -> 000 BYE 5C | P51: -
A52: =VLOOKUP($R$12,Division5a,2,FALSE) -> 733 St.-Truiden 1 | B52: =VLOOKUP($S$12,Division5a,2,FALSE) -> 618 Echiquier Mosan 3 | C52: 3 | D52: - | E52: 1 | G52: =VLOOKUP($R$12,Division5b,2,FALSE) -> 501 CREC Charleroi 3 | H52: =VLOOKUP($S$12,Division5b,2,FALSE) -> 233 DZD Halle 2 | I52: 2.5 | J52: - | K52: 1.5 | M52: =VLOOKUP($R$12,Division5c,2,FALSE) -> 501 CREC Charleroi 4 | N52: =VLOOKUP($S$12,Division5c,2,FALSE) -> 511 EDC 2 | O52: 2 | P52: - | Q52: 2
A53: =VLOOKUP($R$13,Division5a,2,FALSE) -> 901 Namur Echecs 5 - FF | B53: =VLOOKUP($S$13,Division5a,2,FALSE) -> 000 BYE 5A | D53: - | G53: =VLOOKUP($R$13,Division5b,2,FALSE) -> 952 CEW 4 | H53: =VLOOKUP($S$13,Division5b,2,FALSE) -> 207 2 Fous Diogène 4 | I53: 1 | J53: - | K53: 3 | M53: =VLOOKUP($R$13,Division5c,2,FALSE) -> 901 Namur Echecs 6 | N53: =VLOOKUP($S$13,Division5c,2,FALSE) -> 548 Caissa Europe 3 | O53: 3 | P53: - | Q53: 1
A55: Afdeling/Division 5D | G55: Afdeling/Division 5E | M55: Afdeling/Division 5F
A56: =VLOOKUP($R$8,Division5d,2,FALSE) -> 601 CRELEL Liège 10 | B56: =VLOOKUP($S$8,Division5d,2,FALSE) -> 000 BYE 5D | D56: - | G56: =VLOOKUP($R$8,Division5e,2,FALSE) -> 109 Borgerhout 3 | H56: =VLOOKUP($S$8,Division5e,2,FALSE) -> 143 Boey Temse 3 | I56: 3 | J56: - | K56: 1 | M56: =VLOOKUP($R$8,Division5f,2,FALSE) -> 436 LSV-Chesspirant 6 | N56: =VLOOKUP($S$8,Division5f,2,FALSE) -> 432 Wetteren 5 | O56: 1 | P56: - | Q56: 3
A57: =VLOOKUP($R$9,Division5d,2,FALSE) -> 703 Eisden/MSK-Dilsen 3 | B57: =VLOOKUP($S$9,Division5d,2,FALSE) -> 601 CRELEL Liège 9 | C57: 0 | D57: - | E57: 4 | G57: =VLOOKUP($R$9,Division5e,2,FALSE) -> 101 KASK 3 | H57: =VLOOKUP($S$9,Division5e,2,FALSE) -> 190 Burcht 1 | I57: 2 | J57: - | K57: 2 | M57: =VLOOKUP($R$9,Division5f,2,FALSE) -> 309 KRST 2 | N57: =VLOOKUP($S$9,Division5f,2,FALSE) -> 541 Leuze-En-Hainaut 4 | O57: 3.5 | P57: - | Q57: 0.5
A58: =VLOOKUP($R$10,Division5d,2,FALSE) -> 627 Wirtzfeld 4 | B58: =VLOOKUP($S$10,Division5d,2,FALSE) -> 621 T.A.L. 4 | C58: 1.5 | D58: - | E58: 2.5 | G58: =VLOOKUP($R$10,Division5e,2,FALSE) -> 128 Beveren 2 | H58: =VLOOKUP($S$10,Division5e,2,FALSE) -> 410 St.-Niklaas 2 | I58: 2.5 | J58: - | K58: 1.5 | M58: =VLOOKUP($R$10,Division5f,2,FALSE) -> 460 Oudenaarde 2 | N58: =VLOOKUP($S$10,Division5f,2,FALSE) -> 462 Zottegem 3 | O58: 2 | P58: - | Q58: 2
A59: =VLOOKUP($R$11,Division5d,2,FALSE) -> 607 Roch. Eupen-Kelmis 8 | B59: =VLOOKUP($S$11,Division5d,2,FALSE) -> 604 KSK47-Eynatten 4 | C59: 2.5 | D59: - | E59: 1.5 | G59: =VLOOKUP($R$11,Division5e,2,FALSE) -> 114 Mechelen 5 | H59: =VLOOKUP($S$11,Division5e,2,FALSE) -> 130 Hoboken 3 | I59: 2 | J59: - | K59: 2 | M59: =VLOOKUP($R$11,Division5f,2,FALSE) -> 313 KWSLE 3 | N59: =VLOOKUP($S$11,Division5f,2,FALSE) -> 401 KGSRL 11 | O59: 3.5 | P59: - | Q59: 0.5
A60: =VLOOKUP($R$12,Division5d,2,FALSE) -> 609 Anthisnes 2 | B60: =VLOOKUP($S$12,Division5d,2,FALSE) -> 619 Welkenraedt 1 | C60: 0.5 | D60: - | E60: 3.5 | G60: =VLOOKUP($R$12,Division5e,2,FALSE) -> 436 LSV-Chesspirant 5 | H60: =VLOOKUP($S$12,Division5e,2,FALSE) -> 401 KGSRL 10 | I60: 4 | J60: - | K60: 0 | M60: =VLOOKUP($R$12,Division5f,2,FALSE) -> 438 Deinze 2 | N60: =VLOOKUP($S$12,Division5f,2,FALSE) -> 340 Izegem 2 | O60: 0 | P60: - | Q60: 4
A61: =VLOOKUP($R$13,Division5d,2,FALSE) -> 703 Eisden/MSK-Dilsen 4 | B61: =VLOOKUP($S$13,Division5d,2,FALSE) -> 623 Sankt Vith 1 | C61: 0 | D61: - | E61: 4 | G61: =VLOOKUP($R$13,Division5e,2,FALSE) -> 132 SK Oude God 3 | H61: =VLOOKUP($S$13,Division5e,2,FALSE) -> 174 Brasschaat 5 | I61: 0 | J61: - | K61: 4 | M61: =VLOOKUP($R$13,Division5f,2,FALSE) -> 000 BYE 5F | N61: =VLOOKUP($S$13,Division5f,2,FALSE) -> 521 Tournai 2 | P61: -
A63: Afdeling/Division 5G | G63: Afdeling/Division 5H | M63: Afdeling/Division 5I
A64: =VLOOKUP($R$8,Division5g,2,FALSE) -> 436 LSV-Chesspirant 7 | B64: =VLOOKUP($S$8,Division5g,2,FALSE) -> 432 Wetteren 6 | C64: 1.5 | D64: - | E64: 2.5 | G64: =VLOOKUP($R$8,Division5h,2,FALSE) -> 475 Rapid Aalter 2 | H64: =VLOOKUP($S$8,Division5h,2,FALSE) -> 000 BYE 5H | J64: - | M64: =VLOOKUP($R$8,Division5i,2,FALSE) -> 204 Excelsior 2 | N64: =VLOOKUP($S$8,Division5i,2,FALSE) -> 239 Boitsfort 4 | O64: 1 | P64: - | Q64: 3
A65: =VLOOKUP($R$9,Division5g,2,FALSE) -> 430 Landegem 4 | B65: =VLOOKUP($S$9,Division5g,2,FALSE) -> 303 KBSK Brugge 5 | C65: 1 | D65: - | E65: 3 | G65: =VLOOKUP($R$9,Division5h,2,FALSE) -> 309 KRST 3 | H65: =VLOOKUP($S$9,Division5h,2,FALSE) -> 303 KBSK Brugge 6 | I65: 1 | J65: - | K65: 3 | M65: =VLOOKUP($R$9,Division5i,2,FALSE) -> 260 Kapelle-op-den Bos 2 | N65: =VLOOKUP($S$9,Division5i,2,FALSE) -> 401 KGSRL 15 | O65: 0.5 | P65: - | Q65: 3.5
A66: =VLOOKUP($R$10,Division5g,2,FALSE) -> 301 KOSK Oostende 4 | B66: =VLOOKUP($S$10,Division5g,2,FALSE) -> 465 SK Artevelde 3 | C66: 2.5 | D66: - | E66: 1.5 | G66: =VLOOKUP($R$10,Division5h,2,FALSE) -> 301 KOSK Oostende 5 | H66: =VLOOKUP($S$10,Division5h,2,FALSE) -> 322 Veurne 1 | I66: 2.5 | J66: - | K66: 1.5 | M66: =VLOOKUP($R$10,Division5i,2,FALSE) -> 278 Pantin 6 | N66: =VLOOKUP($S$10,Division5i,2,FALSE) -> 230 Leuven Centraal 6 | O66: 0 | P66: - | Q66: 4
A67: =VLOOKUP($R$11,Division5g,2,FALSE) -> 313 KWSLE 4 | B67: =VLOOKUP($S$11,Division5g,2,FALSE) -> 401 KGSRL 13 | C67: 4 | D67: - | E67: 0 | G67: =VLOOKUP($R$11,Division5h,2,FALSE) -> 401 KGSRL 14 | H67: =VLOOKUP($S$11,Division5h,2,FALSE) -> 305 Kortrijk 1 | I67: 1.5 | J67: - | K67: 2.5 | M67: =VLOOKUP($R$11,Division5i,2,FALSE) -> 201 CREB Bruxelles 3 | N67: =VLOOKUP($S$11,Division5i,2,FALSE) -> 244 Brussels 4 | O67: 1 | P67: - | Q67: 3
A68: =VLOOKUP($R$12,Division5g,2,FALSE) -> 401 KGSRL 12 | B68: =VLOOKUP($S$12,Division5g,2,FALSE) -> 471 Wachtebeke 4 | C68: 2 | D68: - | E68: 2 | G68: =VLOOKUP($R$12,Division5h,2,FALSE) -> 302 KISK Ieper 3 | H68: =VLOOKUP($S$12,Division5h,2,FALSE) -> 340 Izegem 3 | I68: 2 | J68: - | K68: 2 | M68: =VLOOKUP($R$12,Division5i,2,FALSE) -> 000 BYE 5I | N68: =VLOOKUP($S$12,Division5i,2,FALSE) -> 209 The Belgian CC 4 | P68: -
A69: =VLOOKUP($R$13,Division5g,2,FALSE) -> 472 De Mercatel 3 | B69: =VLOOKUP($S$13,Division5g,2,FALSE) -> 422 MSV 3 | C69: 3 | D69: - | E69: 1 | G69: =VLOOKUP($R$13,Division5h,2,FALSE) -> 307 Bredene 2 | H69: =VLOOKUP($S$13,Division5h,2,FALSE) -> 351 Knokke Schaak 1 | I69: 2.5 | J69: - | K69: 1.5 | M69: =VLOOKUP($R$13,Division5i,2,FALSE) -> 229 Woluwe 2 | N69: =VLOOKUP($S$13,Division5i,2,FALSE) -> 207 2 Fous Diogène 5 | O69: 3 | P69: - | Q69: 1
A71: Afdeling/Division 5J | G71: Afdeling/Division 5K | M71: Afdeling/Division 5L
A72: =VLOOKUP($R$8,Division5j,2,FALSE) -> 109 Borgerhout 4 | B72: =VLOOKUP($S$8,Division5j,2,FALSE) -> 196 De Rode Loper 1 | C72: 1.5 | D72: - | E72: 2.5 | G72: =VLOOKUP($R$8,Division5k,2,FALSE) -> 194 ChessLooks Lier 3 | H72: =VLOOKUP($S$8,Division5k,2,FALSE) -> 121 Turnhout 4 | I72: 2.5 | J72: - | K72: 1.5 | M72: =VLOOKUP($R$8,Division5l,2,FALSE) -> 436 LSV-Chesspirant 8 | N72: =VLOOKUP($S$8,Division5l,2,FALSE) -> 432 Wetteren 7 | O72: 0 | P72: - | Q72: 4
A73: =VLOOKUP($R$9,Division5j,2,FALSE) -> 401 KGSRL 16 | B73: =VLOOKUP($S$9,Division5j,2,FALSE) -> 190 Burcht 2 | C73: 2 | D73: - | E73: 2 | G73: =VLOOKUP($R$9,Division5k,2,FALSE) -> 162 Molse SC 1 | H73: =VLOOKUP($S$9,Division5k,2,FALSE) -> 727 Midden-Limburg 3 | I73: 2 | J73: - | K73: 2 | M73: =VLOOKUP($R$9,Division5l,2,FALSE) -> 404 Drie Torens 1 | N73: =VLOOKUP($S$9,Division5l,2,FALSE) -> 425 Dendermonde 2 | O73: 1.5 | P73: - | Q73: 2.5
A74: =VLOOKUP($R$10,Division5j,2,FALSE) -> 128 Beveren 3 | B74: =VLOOKUP($S$10,Division5j,2,FALSE) -> 230 Leuven Centraal 7 | C74: 1 | D74: - | E74: 3 | G74: =VLOOKUP($R$10,Division5k,2,FALSE) -> 401 KGSRL 17 | H74: =VLOOKUP($S$10,Division5k,2,FALSE) -> 230 Leuven Centraal 8 | I74: 2 | J74: - | K74: 2 | M74: =VLOOKUP($R$10,Division5l,2,FALSE) -> 128 Beveren 4 | N74: =VLOOKUP($S$10,Division5l,2,FALSE) -> 462 Zottegem 4 | O74: 1 | P74: - | Q74: 3
A75: =VLOOKUP($R$11,Division5j,2,FALSE) -> 124 Deurne 4 | B75: =VLOOKUP($S$11,Division5j,2,FALSE) -> 130 Hoboken 4 | C75: 0.5 | D75: - | E75: 3.5 | G75: =VLOOKUP($R$11,Division5k,2,FALSE) -> 114 Mechelen 7 | H75: =VLOOKUP($S$11,Division5k,2,FALSE) -> 231 Dolle Toren Leuven 3 | I75: 0.5 | J75: - | K75: 3.5 | M75: =VLOOKUP($R$11,Division5l,2,FALSE) -> 417 Pion-Aalst 3 | N75: =VLOOKUP($S$11,Division5l,2,FALSE) -> 261 Opwijk 3 | O75: 3 | P75: - | Q75: 1
A76: =VLOOKUP($R$12,Division5j,2,FALSE) -> 114 Mechelen 6 | B76: =VLOOKUP($S$12,Division5j,2,FALSE) -> 195 Kapellen 1 | C76: 1.5 | D76: - | E76: 2.5 | G76: =VLOOKUP($R$12,Division5k,2,FALSE) -> 166 TSM Mechelen 4 | H76: =VLOOKUP($S$12,Division5k,2,FALSE) -> 182 Noorderwijk 1 | I76: 3 | J76: - | K76: 1 | M76: =VLOOKUP($R$12,Division5l,2,FALSE) -> 401 KGSRL 18 | N76: =VLOOKUP($S$12,Division5l,2,FALSE) -> 000 BYE 5L | P76: -
A77: =VLOOKUP($R$13,Division5j,2,FALSE) -> 132 SK Oude God 4 | B77: =VLOOKUP($S$13,Division5j,2,FALSE) -> 174 Brasschaat 6 | C77: 1.5 | D77: - | E77: 2.5 | G77: =VLOOKUP($R$13,Division5k,2,FALSE) -> 132 SK Oude God 5 | H77: =VLOOKUP($S$13,Division5k,2,FALSE) -> 176 Westerlo 3 | I77: 2.5 | J77: - | K77: 1.5 | M77: =VLOOKUP($R$13,Division5l,2,FALSE) -> 436 LSV-Chesspirant 9 | N77: =VLOOKUP($S$13,Division5l,2,FALSE) -> 422 MSV 4 | O77: 3 | P77: - | Q77: 1
A79: Afdeling/Division 5M | G79: Afdeling/Division 5N
A80: =VLOOKUP($R$8,Division5m,2,FALSE) -> 666 666 1 | B80: =VLOOKUP($S$8,Division5m,2,FALSE) -> 230 Leuven Centraal 9 | C80: 2 | D80: - | E80: 2 | G80: =VLOOKUP($R$8,Division5n,2,FALSE) -> 228 Dworp 3 | H80: =VLOOKUP($S$8,Division5n,2,FALSE) -> 549 Saint-Ghislain 2 | I80: 1.5 | J80: - | K80: 2.5
A81: =VLOOKUP($R$9,Division5m,2,FALSE) -> 162 Molse SC 2 | B81: =VLOOKUP($S$9,Division5m,2,FALSE) -> 727 Midden-Limburg 4 | C81: 1 | D81: - | E81: 3 | G81: =VLOOKUP($R$9,Division5n,2,FALSE) -> 551 HCC Jurbise 3 | H81: =VLOOKUP($S$9,Division5n,2,FALSE) -> 514 MCC 4 | I81: 2 | J81: - | K81: 2
A82: =VLOOKUP($R$10,Division5m,2,FALSE) -> 135 Geel 3 | B82: =VLOOKUP($S$10,Division5m,2,FALSE) -> 121 Turnhout 5 | C82: 4 | D82: - | E82: 0 | G82: =VLOOKUP($R$10,Division5n,2,FALSE) -> 902 CES 3 | H82: =VLOOKUP($S$10,Division5n,2,FALSE) -> 230 Leuven Centraal 10 | I82: 1.5 | J82: - | K82: 2.5
A83: =VLOOKUP($R$11,Division5m,2,FALSE) -> 114 Mechelen 8 | B83: =VLOOKUP($S$11,Division5m,2,FALSE) -> 231 Dolle Toren Leuven 4 | C83: 3 | D83: - | E83: 1 | G83: =VLOOKUP($R$11,Division5n,2,FALSE) -> 548 Caissa Europe 4 | H83: =VLOOKUP($S$11,Division5n,2,FALSE) -> 518 Soignies 1 | I83: 3 | J83: - | K83: 1
A84: =VLOOKUP($R$12,Division5m,2,FALSE) -> 166 TSM Mechelen 5 | B84: =VLOOKUP($S$12,Division5m,2,FALSE) -> 714 Pelt 2 | C84: 2 | D84: - | E84: 2 | G84: =VLOOKUP($R$12,Division5n,2,FALSE) -> 501 CREC Charleroi 5 | H84: =VLOOKUP($S$12,Division5n,2,FALSE) -> 000 BYE 5N | J84: -
A85: =VLOOKUP($R$13,Division5m,2,FALSE) -> 132 SK Oude God 6 | B85: =VLOOKUP($S$13,Division5m,2,FALSE) -> 176 Westerlo 4 | C85: 2 | D85: - | E85: 2 | G85: =VLOOKUP($R$13,Division5n,2,FALSE) -> 901 Namur Echecs 7 | H85: =VLOOKUP($S$13,Division5n,2,FALSE) -> 952 CEW 5 | I85: 2 | J85: - | K85: 2

Sheet R6
G1: =CONCATENATE("INTERCLUBS NATIONAUX ",Data!$B$1) -> INTERCLUBS NATIONAUX 2022-2023
G2: =CONCATENATE("NATIONALE INTERCLUBS ",Data!$B$1) -> NATIONALE INTERCLUBS 2022-2023
G5: Ronde 6: | H5: =VLOOKUP(G5,Data,2,FALSE) -> 2022-01-29
A7: Afdeling/Division 1 | G7: Afdeling/Division 2A | M7: Afdeling/Division 2B
A8: =VLOOKUP($R$8,Division1,2,FALSE) -> 432 Wetteren 1 | B8: =VLOOKUP($S$8,Division1,2,FALSE) -> 174 Brasschaat 1 | C8: 7.5 | D8: - | E8: 0.5 | G8: =VLOOKUP($R$8,Division2a,2,FALSE) -> 239 Boitsfort 1 | H8: =VLOOKUP($S$8,Division2a,2,FALSE) -> 176 Westerlo 1 | I8: 6.5 | J8: - | K8: 1.5 | M8: =VLOOKUP($R$8,Division2b,2,FALSE) -> 143 Boey Temse 1 | N8: =VLOOKUP($S$8,Division2b,2,FALSE) -> 402 Jean Jaurès Gent 1 | O8: 1.5 | P8: - | Q8: 6.5 | R8: 12 | S8: 9
A9: =VLOOKUP($R$9,Division1,2,FALSE) -> 471 Wachtebeke 1 | B9: =VLOOKUP($S$9,Division1,2,FALSE) -> 166 TSM Mechelen 1 | C9: 6.5 | D9: - | E9: 1.5 | G9: =VLOOKUP($R$9,Division2a,2,FALSE) -> 618 Echiquier Mosan 1 | H9: =VLOOKUP($S$9,Division2a,2,FALSE) -> 901 Namur Echecs 1 | I9: 2 | J9: - | K9: 6 | M9: =VLOOKUP($R$9,Division2b,2,FALSE) -> 209 The Belgian CC 1 | N9: =VLOOKUP($S$9,Division2b,2,FALSE) -> 436 LSV-Chesspirant 1 | O9: 6 | P9: - | Q9: 2 | R9: 10 | S9: 8
A10: =VLOOKUP($R$10,Division1,2,FALSE) -> 401 KGSRL 1 | B10: =VLOOKUP($S$10,Division1,2,FALSE) -> 501 CREC Charleroi 1 | C10: 5 | D10: - | E10: 3 | G10: =VLOOKUP($R$10,Division2a,2,FALSE) -> 231 Dolle Toren Leuven 1 | H10: =VLOOKUP($S$10,Division2a,2,FALSE) -> 952 CEW 1 | I10: 3 | J10: - | K10: 5 | M10: =VLOOKUP($R$10,Division2b,2,FALSE) -> 261 Opwijk 1 | N10: =VLOOKUP($S$10,Division2b,2,FALSE) -> 124 Deurne 1 | O10: 3.5 | P10: - | Q10: 4.5 | R10: 11 | S10: 7
A11: =VLOOKUP($R$11,Division1,2,FALSE) -> 621 T.A.L. 1 | B11: =VLOOKUP($S$11,Division1,2,FALSE) -> 607 Roch. Eupen-Kelmis 1 | C11: 3.5 | D11: - | E11: 4.5 | G11: =VLOOKUP($R$11,Division2a,2,FALSE) -> 230 Leuven Centraal 1 | H11: =VLOOKUP($S$11,Division2a,2,FALSE) -> 201 CREB Bruxelles 1 | I11: 7 | J11: - | K11: 1 | M11: =VLOOKUP($R$11,Division2b,2,FALSE) -> 462 Zottegem 1 | N11: =VLOOKUP($S$11,Division2b,2,FALSE) -> 114 Mechelen 1 | O11: 2 | P11: - | Q11: 6 | R11: 1 | S11: 6
A12: =VLOOKUP($R$12,Division1,2,FALSE) -> 303 KBSK Brugge 1 | B12: =VLOOKUP($S$12,Division1,2,FALSE) -> 301 KOSK Oostende 1 | C12: 7.5 | D12: - | E12: 0.5 | G12: =VLOOKUP($R$12,Division2a,2,FALSE) -> 514 MCC 1 | H12: =VLOOKUP($S$12,Division2a,2,FALSE) -> 278 Pantin 1 | I12: 2 | J12: - | K12: 6 | M12: =VLOOKUP($R$12,Division2b,2,FALSE) -> 303 KBSK Brugge 2 | N12: =VLOOKUP($S$12,Division2b,2,FALSE) -> 401 KGSRL 3 | O12: 5 | P12: - | Q12: 3 | R12: 2 | S12: 5
A13: =VLOOKUP($R$13,Division1,2,FALSE) -> 601 CRELEL Liège 1 | B13: =VLOOKUP($S$13,Division1,2,FALSE) -> 627 Wirtzfeld 1 | C13: 1.5 | D13: - | E13: 6.5 | G13: =VLOOKUP($R$13,Division2a,2,FALSE) -> 601 CRELEL Liège 2 | H13: =VLOOKUP($S$13,Division2a,2,FALSE) -> 401 KGSRL 2 | I13: 4 | J13: - | K13: 4 | M13: =VLOOKUP($R$13,Division2b,2,FALSE) -> 109 Borgerhout 1 | N13: =VLOOKUP($S$13,Division2b,2,FALSE) -> 226 Europchess 1 | O13: 4 | P13: - | Q13: 4 | R13: 3 | S13: 4
A15: Afdeling/Division 3A | G15: Afdeling/Division 3B | M15: Afdeling/Division 3C
A16: =VLOOKUP($R$8,Division3a,2,FALSE) -> 239 Boitsfort 2 | B16: =VLOOKUP($S$8,Division3a,2,FALSE) -> 174 Brasschaat 2 | C16: 5 | D16: - | E16: 1 | G16: =VLOOKUP($R$8,Division3b,2,FALSE) -> 432 Wetteren 2 | H16: =VLOOKUP($S$8,Division3b,2,FALSE) -> 521 Tournai 1 | I16: 4.5 | J16: - | K16: 1.5 | M16: =VLOOKUP($R$8,Division3c,2,FALSE) -> 230 Leuven Centraal 2 | N16: =VLOOKUP($S$8,Division3c,2,FALSE) -> 174 Brasschaat 3 | O16: 4.5 | P16: - | Q16: 1.5
A17: =VLOOKUP($R$9,Division3a,2,FALSE) -> 511 EDC 1 | B17: =VLOOKUP($S$9,Division3a,2,FALSE) -> 909 Philippeville 1 | C17: 5 | D17: - | E17: 1 | G17: =VLOOKUP($R$9,Division3b,2,FALSE) -> 471 Wachtebeke 2 | H17: =VLOOKUP($S$9,Division3b,2,FALSE) -> 472 De Mercatel 1 | I17: 0.5 | J17: - | K17: 5.5 | M17: =VLOOKUP($R$9,Division3c,2,FALSE) -> 703 Eisden/MSK-Dilsen 1 | N17: =VLOOKUP($S$9,Division3c,2,FALSE) -> 901 Namur Echecs 2 | O17: 5.5 | P17: - | Q17: 0.5
A18: =VLOOKUP($R$10,Division3a,2,FALSE) -> 244 Brussels 1 | B18: =VLOOKUP($S$10,Division3a,2,FALSE) -> 401 KGSRL 4 | C18: 1.5 | D18: - | E18: 4.5 | G18: =VLOOKUP($R$10,Division3b,2,FALSE) -> 401 KGSRL 6 | H18: =VLOOKUP($S$10,Division3b,2,FALSE) -> 302 KISK Ieper 1 | I18: 1 | J18: - | K18: 5 | M18: =VLOOKUP($R$10,Division3c,2,FALSE) -> 604 KSK47-Eynatten 1 | N18: =VLOOKUP($S$10,Division3c,2,FALSE) -> 607 Roch. Eupen-Kelmis 3 | O18: 2 | P18: - | Q18: 4
A19: =VLOOKUP($R$11,Division3a,2,FALSE) -> 548 Caissa Europe 1 | B19: =VLOOKUP($S$11,Division3a,2,FALSE) -> 201 CREB Bruxelles 2 | C19: 4 | D19: - | E19: 2 | G19: =VLOOKUP($R$11,Division3b,2,FALSE) -> 401 KGSRL 5 | H19: =VLOOKUP($S$11,Division3b,2,FALSE) -> 313 KWSLE 1 | I19: 2.5 | J19: - | K19: 3.5 | M19: =VLOOKUP($R$11,Division3c,2,FALSE) -> 621 T.A.L. 2 | N19: =VLOOKUP($S$11,Division3c,2,FALSE) -> 607 Roch. Eupen-Kelmis 2 | O19: 1.5 | P19: - | Q19: 4.5
A20: =VLOOKUP($R$12,Division3a,2,FALSE) -> 541 Leuze-En-Hainaut 1 | B20: =VLOOKUP($S$12,Division3a,2,FALSE) -> 417 Pion-Aalst 1 | C20: 4 | D20: - | E20: 2 | G20: =VLOOKUP($R$12,Division3b,2,FALSE) -> 303 KBSK Brugge 3 | H20: =VLOOKUP($S$12,Division3b,2,FALSE) -> 301 KOSK Oostende 2 | I20: 2 | J20: - | K20: 4 | M20: =VLOOKUP($R$12,Division3c,2,FALSE) -> 727 Midden-Limburg 1 | N20: =VLOOKUP($S$12,Division3c,2,FALSE) -> 135 Geel 1 | O20: 3.5 | P20: - | Q20: 2.5
A21: =VLOOKUP($R$13,Division3a,2,FALSE) -> 228 Dworp 1 | B21: =VLOOKUP($S$13,Division3a,2,FALSE) -> 226 Europchess 2 | C21: 2.5 | D21: - | E21: 3.5 | G21: =VLOOKUP($R$13,Division3b,2,FALSE) -> 436 LSV-Chesspirant 2 | H21: =VLOOKUP($S$13,Division3b,2,FALSE) -> 309 KRST 1 | I21: 1.5 | J21: - | K21: 4.5 | M21: =VLOOKUP($R$13,Division3c,2,FALSE) -> 601 CRELEL Liège 3 | N21: =VLOOKUP($S$13,Division3c,2,FALSE) -> 627 Wirtzfeld 2 | O21: 2.5 | P21: - | Q21: 3.5
A23: Afdeling/Division 3D | G23: Afdeling/Division 4A | M23: Afdeling/Division 4B
A24: =VLOOKUP($R$8,Division3d,2,FALSE) -> 708 NLS Lommel 1 | B24: =VLOOKUP($S$8,Division3d,2,FALSE) -> 174 Brasschaat 4 | C24: 4.5 | D24: - | E24: 1.5 | G24: =VLOOKUP($R$8,Division4a,2,FALSE) -> 239 Boitsfort 3 | H24: =VLOOKUP($S$8,Division4a,2,FALSE) -> 207 2 Fous Diogène 1 | I24: 0.5 | J24: - | K24: 3.5 | M24: =VLOOKUP($R$8,Division4b,2,FALSE) -> 952 CEW 2 | N24: =VLOOKUP($S$8,Division4b,2,FALSE) -> 207 2 Fous Diogène 2 | O24: 2 | P24: - | Q24: 2
A25: =VLOOKUP($R$9,Division3d,2,FALSE) -> 260 Kapelle-op-den Bos 1 | B25: =VLOOKUP($S$9,Division3d,2,FALSE) -> 401 KGSRL 7 | C25: 2 | D25: - | E25: 4 | G25: =VLOOKUP($R$9,Division4a,2,FALSE) -> 240 SCRR 1 | H25: =VLOOKUP($S$9,Division4a,2,FALSE) -> 229 Woluwe 1 | I25: 0 | J25: - | K25: 4 | M25: =VLOOKUP($R$9,Division4b,2,FALSE) -> 209 The Belgian CC 2 | N25: =VLOOKUP($S$9,Division4b,2,FALSE) -> 901 Namur Echecs 3 | O25: 3.5 | P25: - | Q25: 0.5
A26: =VLOOKUP($R$10,Division3d,2,FALSE) -> 244 Brussels 2 | B26: =VLOOKUP($S$10,Division3d,2,FALSE) -> 166 TSM Mechelen 2 | C26: 1.5 | D26: - | E26: 4.5 | G26: =VLOOKUP($R$10,Division4a,2,FALSE) -> 261 Opwijk 2 | H26: =VLOOKUP($S$10,Division4a,2,FALSE) -> 166 TSM Mechelen 3 | I26: 1.5 | J26: - | K26: 2.5 | M26: =VLOOKUP($R$10,Division4b,2,FALSE) -> 231 Dolle Toren Leuven 2 | N26: =VLOOKUP($S$10,Division4b,2,FALSE) -> 961 Braine Echecs 1 | O26: 2 | P26: - | Q26: 2
A27: =VLOOKUP($R$11,Division3d,2,FALSE) -> 410 St.-Niklaas 1 | B27: =VLOOKUP($S$11,Division3d,2,FALSE) -> 114 Mechelen 2 | C27: 4 | D27: - | E27: 2 | G27: =VLOOKUP($R$11,Division4a,2,FALSE) -> 230 Leuven Centraal 3 | H27: =VLOOKUP($S$11,Division4a,2,FALSE) -> 114 Mechelen 3 | I27: 2 | J27: - | K27: 2 | M27: =VLOOKUP($R$11,Division4b,2,FALSE) -> 525 CELB Anderlues 1 | N27: =VLOOKUP($S$11,Division4b,2,FALSE) -> 607 Roch. Eupen-Kelmis 4 | O27: 2.5 | P27: - | Q27: 1.5
A28: =VLOOKUP($R$12,Division3d,2,FALSE) -> 425 Dendermonde 1 | B28: =VLOOKUP($S$12,Division3d,2,FALSE) -> 128 Beveren 1 | C28: 2.5 | D28: - | E28: 3.5 | G28: =VLOOKUP($R$12,Division4a,2,FALSE) -> 121 Turnhout 1 | H28: =VLOOKUP($S$12,Division4a,2,FALSE) -> 278 Pantin 2 | I28: 2 | J28: - | K28: 2 | M28: =VLOOKUP($R$12,Division4b,2,FALSE) -> 601 CRELEL Liège 4 | N28: =VLOOKUP($S$12,Division4b,2,FALSE) -> 278 Pantin 3 | O28: 0 | P28: - | Q28: 4
A29: =VLOOKUP($R$13,Division3d,2,FALSE) -> 109 Borgerhout 2 | B29: =VLOOKUP($S$13,Division3d,2,FALSE) -> 101 KASK 1 | C29: 1.5 | D29: - | E29: 4.5 | G29: =VLOOKUP($R$13,Division4a,2,FALSE) -> 194 ChessLooks Lier 1 | H29: =VLOOKUP($S$13,Division4a,2,FALSE) -> 226 Europchess 3 | I29: 3 | J29: - | K29: 1 | M29: =VLOOKUP($R$13,Division4b,2,FALSE) -> 952 CEW 3 | N29: =VLOOKUP($S$13,Division4b,2,FALSE) -> 226 Europchess 4 | O29: 1.5 | P29: - | Q29: 2.5
A31: Afdeling/Division 4C | G31: Afdeling/Division 4D | M31: Afdeling/Division 4E
A32: =VLOOKUP($R$8,Division4c,2,FALSE) -> 712 Landen 1 | B32: =VLOOKUP($S$8,Division4c,2,FALSE) -> 622 Herve 1 | C32: 3 | D32: - | E32: 1 | G32: =VLOOKUP($R$8,Division4d,2,FALSE) -> 432 Wetteren 3 | H32: =VLOOKUP($S$8,Division4d,2,FALSE) -> 422 MSV 1 | I32: 3.5 | J32: - | K32: 0.5 | M32: =VLOOKUP($R$8,Division4e,2,FALSE) -> 432 Wetteren 4 | N32: =VLOOKUP($S$8,Division4e,2,FALSE) -> 402 Jean Jaurès Gent 2 | O32: 0.5 | P32: - | Q32: 3.5
A33: =VLOOKUP($R$9,Division4c,2,FALSE) -> 618 Echiquier Mosan 2 | B33: =VLOOKUP($S$9,Division4c,2,FALSE) -> 901 Namur Echecs 4 | C33: 2.5 | D33: - | E33: 1.5 | G33: =VLOOKUP($R$9,Division4d,2,FALSE) -> 340 Izegem 1 | H33: =VLOOKUP($S$9,Division4d,2,FALSE) -> 307 Bredene 1 | I33: 3 | J33: - | K33: 1 | M33: =VLOOKUP($R$9,Division4e,2,FALSE) -> 401 KGSRL 8 | N33: =VLOOKUP($S$9,Division4e,2,FALSE) -> 472 De Mercatel 2 | O33: 2.5 | P33: - | Q33: 1.5
A34: =VLOOKUP($R$10,Division4c,2,FALSE) -> 604 KSK47-Eynatten 2 - FF | B34: =VLOOKUP($S$10,Division4c,2,FALSE) -> 607 Roch. Eupen-Kelmis 6 | D34: - | G34: =VLOOKUP($R$10,Division4d,2,FALSE) -> 304 Tielt 1 | H34: =VLOOKUP($S$10,Division4d,2,FALSE) -> 302 KISK Ieper 2 | I34: 3 | J34: - | K34: 1 | M34: =VLOOKUP($R$10,Division4e,2,FALSE) -> 304 Tielt 2 | N34: =VLOOKUP($S$10,Division4e,2,FALSE) -> 438 Deinze 1 | O34: 0 | P34: - | Q34: 4
A35: =VLOOKUP($R$11,Division4c,2,FALSE) -> 621 T.A.L. 3 | B35: =VLOOKUP($S$11,Division4c,2,FALSE) -> 607 Roch. Eupen-Kelmis 5 | C35: 2 | D35: - | E35: 2 | G35: =VLOOKUP($R$11,Division4d,2,FALSE) -> 465 SK Artevelde 1 | H35: =VLOOKUP($S$11,Division4d,2,FALSE) -> 313 KWSLE 2 | I35: 2.5 | J35: - | K35: 1.5 | M35: =VLOOKUP($R$11,Division4e,2,FALSE) -> 462 Zottegem 2 | N35: =VLOOKUP($S$11,Division4e,2,FALSE) -> 417 Pion-Aalst 2 | O35: 1.5 | P35: - | Q35: 2.5
A36: =VLOOKUP($R$12,Division4c,2,FALSE) -> 601 CRELEL Liège 5 | B36: =VLOOKUP($S$12,Division4c,2,FALSE) -> 810 Marche-en-Famenne 1 | C36: 1.5 | D36: - | E36: 2.5 | G36: =VLOOKUP($R$12,Division4d,2,FALSE) -> 303 KBSK Brugge 4 | H36: =VLOOKUP($S$12,Division4d,2,FALSE) -> 301 KOSK Oostende 3 | I36: 1.5 | J36: - | K36: 2.5 | M36: =VLOOKUP($R$12,Division4e,2,FALSE) -> 541 Leuze-En-Hainaut 2 | N36: =VLOOKUP($S$12,Division4e,2,FALSE) -> 460 Oudenaarde 1 | O36: 1 | P36: - | Q36: 3
A37: =VLOOKUP($R$13,Division4c,2,FALSE) -> 601 CRELEL Liège 6 | B37: =VLOOKUP($S$13,Division4c,2,FALSE) -> 627 Wirtzfeld 3 | C37: 3 | D37: - | E37: 1 | G37: =VLOOKUP($R$13,Division4d,2,FALSE) -> 475 Rapid Aalter 1 | H37: =VLOOKUP($S$13,Division4d,2,FALSE) -> 430 Landegem 1 | I37: 0 | J37: - | K37: 4 | M37: =VLOOKUP($R$13,Division4e,2,FALSE) -> 418 VPTD 1 | N37: =VLOOKUP($S$13,Division4e,2,FALSE) -> 430 Landegem 2 | O37: 2 | P37: - | Q37: 2
A39: Afdeling/Division 4F | G39: Afdeling/Division 4G | M39: Afdeling/Division 4H
A40: =VLOOKUP($R$8,Division4f,2,FALSE) -> 548 Caissa Europe 2 | B40: =VLOOKUP($S$8,Division4f,2,FALSE) -> 207 2 Fous Diogène 3 | C40: 2.5 | D40: - | E40: 1.5 | G40: =VLOOKUP($R$8,Division4g,2,FALSE) -> 143 Boey Temse 2 | H40: =VLOOKUP($S$8,Division4g,2,FALSE) -> 422 MSV 2 | I40: 2 | J40: - | K40: 2 | M40: =VLOOKUP($R$8,Division4h,2,FALSE) -> 230 Leuven Centraal 4 | N40: =VLOOKUP($S$8,Division4h,2,FALSE) -> 176 Westerlo 2 | O40: 4 | P40: - | Q40: 0
A41: =VLOOKUP($R$9,Division4f,2,FALSE) -> 233 DZD Halle 1 | B41: =VLOOKUP($S$9,Division4f,2,FALSE) -> 909 Philippeville 2 | C41: 3 | D41: - | E41: 1 | G41: =VLOOKUP($R$9,Division4g,2,FALSE) -> 471 Wachtebeke 3 | H41: =VLOOKUP($S$9,Division4g,2,FALSE) -> 132 SK Oude God 1 | I41: 1.5 | J41: - | K41: 2.5 | M41: =VLOOKUP($R$9,Division4h,2,FALSE) -> 714 Pelt 1 | N41: =VLOOKUP($S$9,Division4h,2,FALSE) -> 132 SK Oude God 2 | O41: 1 | P41: - | Q41: 3
A42: =VLOOKUP($R$10,Division4f,2,FALSE) -> 547 Ren. Binchois 1 | B42: =VLOOKUP($S$10,Division4f,2,FALSE) -> 501 CREC Charleroi 2 | C42: 0.5 | D42: - | E42: 3.5 | G42: =VLOOKUP($R$10,Division4g,2,FALSE) -> 130 Hoboken 1 | H42: =VLOOKUP($S$10,Division4g,2,FALSE) -> 436 LSV-Chesspirant 4 | I42: 3 | J42: - | K42: 1 | M42: =VLOOKUP($R$10,Division4h,2,FALSE) -> 130 Hoboken 2 | N42: =VLOOKUP($S$10,Division4h,2,FALSE) -> 124 Deurne 3 | O42: 2 | P42: - | Q42: 2
A43: =VLOOKUP($R$11,Division4f,2,FALSE) -> 525 CELB Anderlues 2 | B43: =VLOOKUP($S$11,Division4f,2,FALSE) -> 902 CES 1 | C43: 3.5 | D43: - | E43: 0.5 | G43: =VLOOKUP($R$11,Division4g,2,FALSE) -> 465 SK Artevelde 2 | H43: =VLOOKUP($S$11,Division4g,2,FALSE) -> 124 Deurne 2 | I43: 2 | J43: - | K43: 2 | M43: =VLOOKUP($R$11,Division4h,2,FALSE) -> 121 Turnhout 3 | N43: =VLOOKUP($S$11,Division4h,2,FALSE) -> 114 Mechelen 4 | O43: 2 | P43: - | Q43: 2
A44: =VLOOKUP($R$12,Division4f,2,FALSE) -> 541 Leuze-En-Hainaut 3 | B44: =VLOOKUP($S$12,Division4f,2,FALSE) -> 278 Pantin 4 | C44: 2 | D44: - | E44: 2 | G44: =VLOOKUP($R$12,Division4g,2,FALSE) -> 121 Turnhout 2 | H44: =VLOOKUP($S$12,Division4g,2,FALSE) -> 401 KGSRL 9 | I44: 2 | J44: - | K44: 2 | M44: =VLOOKUP($R$12,Division4h,2,FALSE) -> 727 Midden-Limburg 2 | N44: =VLOOKUP($S$12,Division4h,2,FALSE) -> 135 Geel 2 | O44: 2.5 | P44: - | Q44: 1.5
A45: =VLOOKUP($R$13,Division4f,2,FALSE) -> 228 Dworp 2 | B45: =VLOOKUP($S$13,Division4f,2,FALSE) -> 551 HCC Jurbise 1 | C45: 2 | D45: - | E45: 2 | G45: =VLOOKUP($R$13,Division4g,2,FALSE) -> 436 LSV-Chesspirant 3 | H45: =VLOOKUP($S$13,Division4g,2,FALSE) -> 430 Landegem 3 | I45: 1 | J45: - | K45: 3 | M45: =VLOOKUP($R$13,Division4h,2,FALSE) -> 194 ChessLooks Lier 2 | N45: =VLOOKUP($S$13,Division4h,2,FALSE) -> 101 KASK 2 | O45: 3 | P45: - | Q45: 1
A47: Afdeling/Division 5A | G47: Afdeling/Division 5B | M47: Afdeling/Division 5C
A48: =VLOOKUP($R$8,Division5a,2,FALSE) -> 712 Landen 2 | B48: =VLOOKUP($S$8,Division5a,2,FALSE) -> 000 BYE 5A | D48: - | G48: =VLOOKUP($R$8,Division5b,2,FALSE) -> 209 The Belgian CC 3 | H48: =VLOOKUP($S$8,Division5b,2,FALSE) -> 207 2 Fous Diogène 4 | I48: 2 | J48: - | K48: 2 | M48: =VLOOKUP($R$8,Division5c,2,FALSE) -> 549 Saint-Ghislain 1 | N48: =VLOOKUP($S$8,Division5c,2,FALSE) -> 548 Caissa Europe 3 | O48: 0 | P48: - | Q48: 4
A49: =VLOOKUP($R$9,Division5a,2,FALSE) -> 618 Echiquier Mosan 3 | B49: =VLOOKUP($S$9,Division5a,2,FALSE) -> 901 Namur Echecs 5 - FF | D49: - | G49: =VLOOKUP($R$9,Division5b,2,FALSE) -> 233 DZD Halle 2 | H49: =VLOOKUP($S$9,Division5b,2,FALSE) -> 952 CEW 4 | I49: 1 | J49: - | K49: 3 | M49: =VLOOKUP($R$9,Division5c,2,FALSE) -> 511 EDC 2 | N49: =VLOOKUP($S$9,Division5c,2,FALSE) -> 901 Namur Echecs 6 | O49: 2 | P49: - | Q49: 2
A50: =VLOOKUP($R$10,Division5a,2,FALSE) -> 604 KSK47-Eynatten 3 | B50: =VLOOKUP($S$10,Division5a,2,FALSE) -> 733 St.-Truiden 1 | C50: 3 | D50: - | E50: 1 | G50: =VLOOKUP($R$10,Division5b,2,FALSE) -> 244 Brussels 3 | H50: =VLOOKUP($S$10,Division5b,2,FALSE) -> 501 CREC Charleroi 3 | I50: 3 | J50: - | K50: 1 | M50: =VLOOKUP($R$10,Division5c,2,FALSE) -> 000 BYE 5C | N50: =VLOOKUP($S$10,Division5c,2,FALSE) -> 501 CREC Charleroi 4 | P50: -
A51: =VLOOKUP($R$11,Division5a,2,FALSE) -> 609 Anthisnes 1 | B51: =VLOOKUP($S$11,Division5a,2,FALSE) -> 607 Roch. Eupen-Kelmis 7 | C51: 2 | D51: - | E51: 2 | G51: =VLOOKUP($R$11,Division5b,2,FALSE) -> 230 Leuven Centraal 5 | H51: =VLOOKUP($S$11,Division5b,2,FALSE) -> 961 Braine Echecs 2 | I51: 2 | J51: - | K51: 2 | M51: =VLOOKUP($R$11,Division5c,2,FALSE) -> 525 CELB Anderlues 3 | N51: =VLOOKUP($S$11,Division5c,2,FALSE) -> 961 Braine Echecs 3 | O51: 2 | P51: - | Q51: 2
A52: =VLOOKUP($R$12,Division5a,2,FALSE) -> 601 CRELEL Liège 7 | B52: =VLOOKUP($S$12,Division5a,2,FALSE) -> 810 Marche-en-Famenne 2 | C52: 0 | D52: - | E52: 4 | G52: =VLOOKUP($R$12,Division5b,2,FALSE) -> 514 MCC 2 | H52: =VLOOKUP($S$12,Division5b,2,FALSE) -> 278 Pantin 5 | I52: 1 | J52: - | K52: 3 | M52: =VLOOKUP($R$12,Division5c,2,FALSE) -> 514 MCC 3 | N52: =VLOOKUP($S$12,Division5c,2,FALSE) -> 902 CES 2 | O52: 1 | P52: - | Q52: 3
A53: =VLOOKUP($R$13,Division5a,2,FALSE) -> 601 CRELEL Liège 8 | B53: =VLOOKUP($S$13,Division5a,2,FALSE) -> 703 Eisden/MSK-Dilsen 2 | C53: 2.5 | D53: - | E53: 1.5 | G53: =VLOOKUP($R$13,Division5b,2,FALSE) -> 204 Excelsior 1 | H53: =VLOOKUP($S$13,Division5b,2,FALSE) -> 226 Europchess 5 | I53: 1.5 | J53: - | K53: 2.5 | M53: =VLOOKUP($R$13,Division5c,2,FALSE) -> 953 Nivelles 1 | N53: =VLOOKUP($S$13,Division5c,2,FALSE) -> 551 HCC Jurbise 2 | O53: 3.5 | P53: - | Q53: 0.5
A55: Afdeling/Division 5D | G55: Afdeling/Division 5E | M55: Afdeling/Division 5F
A56: =VLOOKUP($R$8,Division5d,2,FALSE) -> 000 BYE 5D | B56: =VLOOKUP($S$8,Division5d,2,FALSE) -> 623 Sankt Vith 1 | D56: - | G56: =VLOOKUP($R$8,Division5e,2,FALSE) -> 143 Boey Temse 3 | H56: =VLOOKUP($S$8,Division5e,2,FALSE) -> 174 Brasschaat 5 | I56: 2.5 | J56: - | K56: 1.5 | M56: =VLOOKUP($R$8,Division5f,2,FALSE) -> 432 Wetteren 5 | N56: =VLOOKUP($S$8,Division5f,2,FALSE) -> 521 Tournai 2 | O56: 4 | P56: - | Q56: 0
A57: =VLOOKUP($R$9,Division5d,2,FALSE) -> 619 Welkenraedt 1 | B57: =VLOOKUP($S$9,Division5d,2,FALSE) -> 703 Eisden/MSK-Dilsen 4 | C57: 2.5 | D57: - | E57: 1.5 | G57: =VLOOKUP($R$9,Division5e,2,FALSE) -> 401 KGSRL 10 | H57: =VLOOKUP($S$9,Division5e,2,FALSE) -> 132 SK Oude God 3 | I57: 3.5 | J57: - | K57: 0.5 | M57: =VLOOKUP($R$9,Division5f,2,FALSE) -> 340 Izegem 2 | N57: =VLOOKUP($S$9,Division5f,2,FALSE) -> 000 BYE 5F | P57: -
A58: =VLOOKUP($R$10,Division5d,2,FALSE) -> 604 KSK47-Eynatten 4 | B58: =VLOOKUP($S$10,Division5d,2,FALSE) -> 609 Anthisnes 2 | C58: 1 | D58: - | E58: 3 | G58: =VLOOKUP($R$10,Division5e,2,FALSE) -> 130 Hoboken 3 | H58: =VLOOKUP($S$10,Division5e,2,FALSE) -> 436 LSV-Chesspirant 5 | I58: 0.5 | J58: - | K58: 3.5 | M58: =VLOOKUP($R$10,Division5f,2,FALSE) -> 401 KGSRL 11 | N58: =VLOOKUP($S$10,Division5f,2,FALSE) -> 438 Deinze 2 | O58: 1 | P58: - | Q58: 3
A59: =VLOOKUP($R$11,Division5d,2,FALSE) -> 621 T.A.L. 4 | B59: =VLOOKUP($S$11,Division5d,2,FALSE) -> 607 Roch. Eupen-Kelmis 8 | C59: 0.5 | D59: - | E59: 3.5 | G59: =VLOOKUP($R$11,Division5e,2,FALSE) -> 410 St.-Niklaas 2 | H59: =VLOOKUP($S$11,Division5e,2,FALSE) -> 114 Mechelen 5 | I59: 2.5 | J59: - | K59: 1.5 | M59: =VLOOKUP($R$11,Division5f,2,FALSE) -> 462 Zottegem 3 | N59: =VLOOKUP($S$11,Division5f,2,FALSE) -> 313 KWSLE 3 | O59: 4 | P59: - | Q59: 0
A60: =VLOOKUP($R$12,Division5d,2,FALSE) -> 601 CRELEL Liège 9 | B60: =VLOOKUP($S$12,Division5d,2,FALSE) -> 627 Wirtzfeld 4 | C60: 4 | D60: - | E60: 0 | G60: =VLOOKUP($R$12,Division5e,2,FALSE) -> 190 Burcht 1 | H60: =VLOOKUP($S$12,Division5e,2,FALSE) -> 128 Beveren 2 | I60: 0 | J60: - | K60: 4 | M60: =VLOOKUP($R$12,Division5f,2,FALSE) -> 541 Leuze-En-Hainaut 4 | N60: =VLOOKUP($S$12,Division5f,2,FALSE) -> 460 Oudenaarde 2 | O60: 0 | P60: - | Q60: 4
A61: =VLOOKUP($R$13,Division5d,2,FALSE) -> 601 CRELEL Liège 10 | B61: =VLOOKUP($S$13,Division5d,2,FALSE) -> 703 Eisden/MSK-Dilsen 3 | C61: 0 | D61: - | E61: 4 | G61: =VLOOKUP($R$13,Division5e,2,FALSE) -> 109 Borgerhout 3 | H61: =VLOOKUP($S$13,Division5e,2,FALSE) -> 101 KASK 3 | I61: 2 | J61: - | K61: 2 | M61: =VLOOKUP($R$13,Division5f,2,FALSE) -> 436 LSV-Chesspirant 6 | N61: =VLOOKUP($S$13,Division5f,2,FALSE) -> 309 KRST 2 | O61: 2 | P61: - | Q61: 2
A63: Afdeling/Division 5G | G63: Afdeling/Division 5H | M63: Afdeling/Division 5I
A64: =VLOOKUP($R$8,Division5g,2,FALSE) -> 432 Wetteren 6 | B64: =VLOOKUP($S$8,Division5g,2,FALSE) -> 422 MSV 3 | C64: 2 | D64: - | E64: 2 | G64: =VLOOKUP($R$8,Division5h,2,FALSE) -> 000 BYE 5H | H64: =VLOOKUP($S$8,Division5h,2,FALSE) -> 351 Knokke Schaak 1 | J64: - | M64: =VLOOKUP($R$8,Division5i,2,FALSE) -> 239 Boitsfort 4 | N64: =VLOOKUP($S$8,Division5i,2,FALSE) -> 207 2 Fous Diogène 5 | O64: 1.5 | P64: - | Q64: 2.5
A65: =VLOOKUP($R$9,Division5g,2,FALSE) -> 471 Wachtebeke 4 | B65: =VLOOKUP($S$9,Division5g,2,FALSE) -> 472 De Mercatel 3 | C65: 0 | D65: - | E65: 4 | G65: =VLOOKUP($R$9,Division5h,2,FALSE) -> 340 Izegem 3 | H65: =VLOOKUP($S$9,Division5h,2,FALSE) -> 307 Bredene 2 | I65: 2 | J65: - | K65: 2 | M65: =VLOOKUP($R$9,Division5i,2,FALSE) -> 209 The Belgian CC 4 | N65: =VLOOKUP($S$9,Division5i,2,FALSE) -> 229 Woluwe 2 | O65: 2 | P65: - | Q65: 2
A66: =VLOOKUP($R$10,Division5g,2,FALSE) -> 401 KGSRL 13 | B66: =VLOOKUP($S$10,Division5g,2,FALSE) -> 401 KGSRL 12 | C66: 2 | D66: - | E66: 2 | G66: =VLOOKUP($R$10,Division5h,2,FALSE) -> 305 Kortrijk 1 | H66: =VLOOKUP($S$10,Division5h,2,FALSE) -> 302 KISK Ieper 3 | I66: 3.5 | J66: - | K66: 0.5 | M66: =VLOOKUP($R$10,Division5i,2,FALSE) -> 244 Brussels 4 | N66: =VLOOKUP($S$10,Division5i,2,FALSE) -> 000 BYE 5I | P66: -
A67: =VLOOKUP($R$11,Division5g,2,FALSE) -> 465 SK Artevelde 3 | B67: =VLOOKUP($S$11,Division5g,2,FALSE) -> 313 KWSLE 4 | C67: 2.5 | D67: - | E67: 1.5 | G67: =VLOOKUP($R$11,Division5h,2,FALSE) -> 322 Veurne 1 | H67: =VLOOKUP($S$11,Division5h,2,FALSE) -> 401 KGSRL 14 | I67: 1.5 | J67: - | K67: 2.5 | M67: =VLOOKUP($R$11,Division5i,2,FALSE) -> 230 Leuven Centraal 6 | N67: =VLOOKUP($S$11,Division5i,2,FALSE) -> 201 CREB Bruxelles 3 | O67: 4 | P67: - | Q67: 0
A68: =VLOOKUP($R$12,Division5g,2,FALSE) -> 303 KBSK Brugge 5 | B68: =VLOOKUP($S$12,Division5g,2,FALSE) -> 301 KOSK Oostende 4 | C68: 1 | D68: - | E68: 3 | G68: =VLOOKUP($R$12,Division5h,2,FALSE) -> 303 KBSK Brugge 6 | H68: =VLOOKUP($S$12,Division5h,2,FALSE) -> 301 KOSK Oostende 5 | I68: 1.5 | J68: - | K68: 2.5 | M68: =VLOOKUP($R$12,Division5i,2,FALSE) -> 401 KGSRL 15 | N68: =VLOOKUP($S$12,Division5i,2,FALSE) -> 278 Pantin 6 | O68: 3 | P68: - | Q68: 1
A69: =VLOOKUP($R$13,Division5g,2,FALSE) -> 436 LSV-Chesspirant 7 | B69: =VLOOKUP($S$13,Division5g,2,FALSE) -> 430 Landegem 4 | C69: 3 | D69: - | E69: 1 | G69: =VLOOKUP($R$13,Division5h,2,FALSE) -> 475 Rapid Aalter 2 | H69: =VLOOKUP($S$13,Division5h,2,FALSE) -> 309 KRST 3 | I69: 1.5 | J69: - | K69: 2.5 | M69: =VLOOKUP($R$13,Division5i,2,FALSE) -> 204 Excelsior 2 | N69: =VLOOKUP($S$13,Division5i,2,FALSE) -> 260 Kapelle-op-den Bos 2 | O69: 0.5 | P69: - | Q69: 3.5
A71: Afdeling/Division 5J | G71: Afdeling/Division 5K | M71: Afdeling/Division 5L
A72: =VLOOKUP($R$8,Division5j,2,FALSE) -> 196 De Rode Loper 1 | B72: =VLOOKUP($S$8,Division5j,2,FALSE) -> 174 Brasschaat 6 | C72: 2.5 | D72: - | E72: 1.5 | G72: =VLOOKUP($R$8,Division5k,2,FALSE) -> 121 Turnhout 4 | H72: =VLOOKUP($S$8,Division5k,2,FALSE) -> 176 Westerlo 3 | I72: 2 | J72: - | K72: 2 | M72: =VLOOKUP($R$8,Division5l,2,FALSE) -> 432 Wetteren 7 | N72: =VLOOKUP($S$8,Division5l,2,FALSE) -> 422 MSV 4 | O72: 3 | P72: - | Q72: 1
A73: =VLOOKUP($R$9,Division5j,2,FALSE) -> 195 Kapellen 1 | B73: =VLOOKUP($S$9,Division5j,2,FALSE) -> 132 SK Oude God 4 | C73: 1.5 | D73: - | E73: 2.5 | G73: =VLOOKUP($R$9,Division5k,2,FALSE) -> 182 Noorderwijk 1 | H73: =VLOOKUP($S$9,Division5k,2,FALSE) -> 132 SK Oude God 5 | I73: 3 | J73: - | K73: 1 | M73: =VLOOKUP($R$9,Division5l,2,FALSE) -> 000 BYE 5L | N73: =VLOOKUP($S$9,Division5l,2,FALSE) -> 436 LSV-Chesspirant 9 | P73: -
A74: =VLOOKUP($R$10,Division5j,2,FALSE) -> 130 Hoboken 4 | B74: =VLOOKUP($S$10,Division5j,2,FALSE) -> 114 Mechelen 6 | C74: 0 | D74: - | E74: 4 | G74: =VLOOKUP($R$10,Division5k,2,FALSE) -> 231 Dolle Toren Leuven 3 | H74: =VLOOKUP($S$10,Division5k,2,FALSE) -> 166 TSM Mechelen 4 | I74: 2.5 | J74: - | K74: 1.5 | M74: =VLOOKUP($R$10,Division5l,2,FALSE) -> 261 Opwijk 3 | N74: =VLOOKUP($S$10,Division5l,2,FALSE) -> 401 KGSRL 18 | O74: 2 | P74: - | Q74: 2
A75: =VLOOKUP($R$11,Division5j,2,FALSE) -> 230 Leuven Centraal 7 | B75: =VLOOKUP($S$11,Division5j,2,FALSE) -> 124 Deurne 4 | C75: 3.5 | D75: - | E75: 0.5 | G75: =VLOOKUP($R$11,Division5k,2,FALSE) -> 230 Leuven Centraal 8 | H75: =VLOOKUP($S$11,Division5k,2,FALSE) -> 114 Mechelen 7 | I75: 2 | J75: - | K75: 2 | M75: =VLOOKUP($R$11,Division5l,2,FALSE) -> 462 Zottegem 4 | N75: =VLOOKUP($S$11,Division5l,2,FALSE) -> 417 Pion-Aalst 3 | O75: 2 | P75: - | Q75: 2
A76: =VLOOKUP($R$12,Division5j,2,FALSE) -> 190 Burcht 2 | B76: =VLOOKUP($S$12,Division5j,2,FALSE) -> 128 Beveren 3 | C76: 3 | D76: - | E76: 1 | G76: =VLOOKUP($R$12,Division5k,2,FALSE) -> 727 Midden-Limburg 3 | H76: =VLOOKUP($S$12,Division5k,2,FALSE) -> 401 KGSRL 17 | I76: 3.5 | J76: - | K76: 0.5 | M76: =VLOOKUP($R$12,Division5l,2,FALSE) -> 425 Dendermonde 2 | N76: =VLOOKUP($S$12,Division5l,2,FALSE) -> 128 Beveren 4 | O76: 2 | P76: - | Q76: 2
A77: =VLOOKUP($R$13,Division5j,2,FALSE) -> 109 Borgerhout 4 | B77: =VLOOKUP($S$13,Division5j,2,FALSE) -> 401 KGSRL 16 | C77: 4 | D77: - | E77: 0 | G77: =VLOOKUP($R$13,Division5k,2,FALSE) -> 194 ChessLooks Lier 3 | H77: =VLOOKUP($S$13,Division5k,2,FALSE) -> 162 Molse SC 1 | I77: 3.5 | J77: - | K77: 0.5 | M77: =VLOOKUP($R$13,Division5l,2,FALSE) -> 436 LSV-Chesspirant 8 | N77: =VLOOKUP($S$13,Division5l,2,FALSE) -> 404 Drie Torens 1 | O77: 1 | P77: - | Q77: 3
A79: Afdeling/Division 5M | G79: Afdeling/Division 5N
A80: =VLOOKUP($R$8,Division5m,2,FALSE) -> 230 Leuven Centraal 9 | B80: =VLOOKUP($S$8,Division5m,2,FALSE) -> 176 Westerlo 4 | C80: 1.5 | D80: - | E80: 2.5 | G80: =VLOOKUP($R$8,Division5n,2,FALSE) -> 549 Saint-Ghislain 2 | H80: =VLOOKUP($S$8,Division5n,2,FALSE) -> 952 CEW 5 | I80: 0.5 | J80: - | K80: 3.5
A81: =VLOOKUP($R$9,Division5m,2,FALSE) -> 714 Pelt 2 | B81: =VLOOKUP($S$9,Division5m,2,FALSE) -> 132 SK Oude God 6 | C81: 1 | D81: - | E81: 3 | G81: =VLOOKUP($R$9,Division5n,2,FALSE) -> 000 BYE 5N | H81: =VLOOKUP($S$9,Division5n,2,FALSE) -> 901 Namur Echecs 7 | J81: -
A82: =VLOOKUP($R$10,Division5m,2,FALSE) -> 231 Dolle Toren Leuven 4 | B82: =VLOOKUP($S$10,Division5m,2,FALSE) -> 166 TSM Mechelen 5 | C82: 2 | D82: - | E82: 2 | G82: =VLOOKUP($R$10,Division5n,2,FALSE) -> 518 Soignies 1 | H82: =VLOOKUP($S$10,Division5n,2,FALSE) -> 501 CREC Charleroi 5 | I82: 2 | J82: - | K82: 2
A83: =VLOOKUP($R$11,Division5m,2,FALSE) -> 121 Turnhout 5 | B83: =VLOOKUP($S$11,Division5m,2,FALSE) -> 114 Mechelen 8 | C83: 3 | D83: - | E83: 1 | G83: =VLOOKUP($R$11,Division5n,2,FALSE) -> 230 Leuven Centraal 10 | H83: =VLOOKUP($S$11,Division5n,2,FALSE) -> 548 Caissa Europe 4 | I83: 0.5 | J83: - | K83: 3.5
A84: =VLOOKUP($R$12,Division5m,2,FALSE) -> 727 Midden-Limburg 4 | B84: =VLOOKUP($S$12,Division5m,2,FALSE) -> 135 Geel 3 | C84: 4 | D84: - | E84: 0 | G84: =VLOOKUP($R$12,Division5n,2,FALSE) -> 514 MCC 4 | H84: =VLOOKUP($S$12,Division5n,2,FALSE) -> 902 CES 3 | I84: 2 | J84: - | K84: 2
A85: =VLOOKUP($R$13,Division5m,2,FALSE) -> 666 666 1 | B85: =VLOOKUP($S$13,Division5m,2,FALSE) -> 162 Molse SC 2 | C85: 4 | D85: - | E85: 0 | G85: =VLOOKUP($R$13,Division5n,2,FALSE) -> 228 Dworp 3 | H85: =VLOOKUP($S$13,Division5n,2,FALSE) -> 551 HCC Jurbise 3 | I85: 2 | J85: - | K85: 2

Sheet R7
G1: =CONCATENATE("INTERCLUBS NATIONAUX ",Data!$B$1) -> INTERCLUBS NATIONAUX 2022-2023
G2: =CONCATENATE("NATIONALE INTERCLUBS ",Data!$B$1) -> NATIONALE INTERCLUBS 2022-2023
G5: Ronde 7: | H5: =VLOOKUP(G5,Data,2,FALSE) -> 2023-02-12
A7: Afdeling/Division 1 | G7: Afdeling/Division 2A | M7: Afdeling/Division 2B
A8: =VLOOKUP($R$8,Division1,2,FALSE) -> 627 Wirtzfeld 1 | B8: =VLOOKUP($S$8,Division1,2,FALSE) -> 432 Wetteren 1 | C8: 7.5 | D8: - | E8: 0.5 | G8: =VLOOKUP($R$8,Division2a,2,FALSE) -> 401 KGSRL 2 | H8: =VLOOKUP($S$8,Division2a,2,FALSE) -> 239 Boitsfort 1 | I8: 3 | J8: - | K8: 5 | M8: =VLOOKUP($R$8,Division2b,2,FALSE) -> 226 Europchess 1 | N8: =VLOOKUP($S$8,Division2b,2,FALSE) -> 143 Boey Temse 1 | O8: 4 | P8: - | Q8: 4 | R8: 4 | S8: 12
A9: =VLOOKUP($R$9,Division1,2,FALSE) -> 301 KOSK Oostende 1 | B9: =VLOOKUP($S$9,Division1,2,FALSE) -> 601 CRELEL Liège 1 | C9: 4.5 | D9: - | E9: 3.5 | G9: =VLOOKUP($R$9,Division2a,2,FALSE) -> 278 Pantin 1 | H9: =VLOOKUP($S$9,Division2a,2,FALSE) -> 601 CRELEL Liège 2 | I9: 5 | J9: - | K9: 3 | M9: =VLOOKUP($R$9,Division2b,2,FALSE) -> 401 KGSRL 3 | N9: =VLOOKUP($S$9,Division2b,2,FALSE) -> 109 Borgerhout 1 | O9: 2.5 | P9: - | Q9: 5.5 | R9: 5 | S9: 3
A10: =VLOOKUP($R$10,Division1,2,FALSE) -> 607 Roch. Eupen-Kelmis 1 | B10: =VLOOKUP($S$10,Division1,2,FALSE) -> 303 KBSK Brugge 1 | C10: 3 | D10: - | E10: 5 | G10: =VLOOKUP($R$10,Division2a,2,FALSE) -> 201 CREB Bruxelles 1 | H10: =VLOOKUP($S$10,Division2a,2,FALSE) -> 514 MCC 1 | I10: 2 | J10: - | K10: 6 | M10: =VLOOKUP($R$10,Division2b,2,FALSE) -> 114 Mechelen 1 | N10: =VLOOKUP($S$10,Division2b,2,FALSE) -> 303 KBSK Brugge 2 | O10: 5 | P10: - | Q10: 3 | R10: 6 | S10: 2
A11: =VLOOKUP($R$11,Division1,2,FALSE) -> 501 CREC Charleroi 1 | B11: =VLOOKUP($S$11,Division1,2,FALSE) -> 621 T.A.L. 1 | C11: 1 | D11: - | E11: 7 | G11: =VLOOKUP($R$11,Division2a,2,FALSE) -> 952 CEW 1 | H11: =VLOOKUP($S$11,Division2a,2,FALSE) -> 230 Leuven Centraal 1 | I11: 1.5 | J11: - | K11: 6.5 | M11: =VLOOKUP($R$11,Division2b,2,FALSE) -> 124 Deurne 1 | N11: =VLOOKUP($S$11,Division2b,2,FALSE) -> 462 Zottegem 1 | O11: 3 | P11: - | Q11: 5 | R11: 7 | S11: 1
A12: =VLOOKUP($R$12,Division1,2,FALSE) -> 166 TSM Mechelen 1 | B12: =VLOOKUP($S$12,Division1,2,FALSE) -> 401 KGSRL 1 | C12: 2.5 | D12: - | E12: 5.5 | G12: =VLOOKUP($R$12,Division2a,2,FALSE) -> 901 Namur Echecs 1 | H12: =VLOOKUP($S$12,Division2a,2,FALSE) -> 231 Dolle Toren Leuven 1 | I12: 5.5 | J12: - | K12: 2.5 | M12: =VLOOKUP($R$12,Division2b,2,FALSE) -> 436 LSV-Chesspirant 1 | N12: =VLOOKUP($S$12,Division2b,2,FALSE) -> 261 Opwijk 1 | O12: 6.5 | P12: - | Q12: 1.5 | R12: 8 | S12: 11
A13: =VLOOKUP($R$13,Division1,2,FALSE) -> 174 Brasschaat 1 | B13: =VLOOKUP($S$13,Division1,2,FALSE) -> 471 Wachtebeke 1 | C13: 2.5 | D13: - | E13: 5.5 | G13: =VLOOKUP($R$13,Division2a,2,FALSE) -> 176 Westerlo 1 | H13: =VLOOKUP($S$13,Division2a,2,FALSE) -> 618 Echiquier Mosan 1 | I13: 4.5 | J13: - | K13: 3.5 | M13: =VLOOKUP($R$13,Division2b,2,FALSE) -> 402 Jean Jaurès Gent 1 | N13: =VLOOKUP($S$13,Division2b,2,FALSE) -> 209 The Belgian CC 1 | O13: 5.5 | P13: - | Q13: 2.5 | R13: 9 | S13: 10
A15: Afdeling/Division 3A | G15: Afdeling/Division 3B | M15: Afdeling/Division 3C
A16: =VLOOKUP($R$8,Division3a,2,FALSE) -> 226 Europchess 2 | B16: =VLOOKUP($S$8,Division3a,2,FALSE) -> 239 Boitsfort 2 | C16: 5 | D16: - | E16: 1 | G16: =VLOOKUP($R$8,Division3b,2,FALSE) -> 309 KRST 1 | H16: =VLOOKUP($S$8,Division3b,2,FALSE) -> 432 Wetteren 2 | I16: 3.5 | J16: - | K16: 2.5 | M16: =VLOOKUP($R$8,Division3c,2,FALSE) -> 627 Wirtzfeld 2 | N16: =VLOOKUP($S$8,Division3c,2,FALSE) -> 230 Leuven Centraal 2 | O16: 2.5 | P16: - | Q16: 3.5
A17: =VLOOKUP($R$9,Division3a,2,FALSE) -> 417 Pion-Aalst 1 | B17: =VLOOKUP($S$9,Division3a,2,FALSE) -> 228 Dworp 1 | C17: 0.5 | D17: - | E17: 5.5 | G17: =VLOOKUP($R$9,Division3b,2,FALSE) -> 301 KOSK Oostende 2 | H17: =VLOOKUP($S$9,Division3b,2,FALSE) -> 436 LSV-Chesspirant 2 | I17: 4.5 | J17: - | K17: 1.5 | M17: =VLOOKUP($R$9,Division3c,2,FALSE) -> 135 Geel 1 | N17: =VLOOKUP($S$9,Division3c,2,FALSE) -> 601 CRELEL Liège 3 | O17: 2.5 | P17: - | Q17: 3.5
A18: =VLOOKUP($R$10,Division3a,2,FALSE) -> 201 CREB Bruxelles 2 | B18: =VLOOKUP($S$10,Division3a,2,FALSE) -> 541 Leuze-En-Hainaut 1 | C18: 4 | D18: - | E18: 2 | G18: =VLOOKUP($R$10,Division3b,2,FALSE) -> 313 KWSLE 1 | H18: =VLOOKUP($S$10,Division3b,2,FALSE) -> 303 KBSK Brugge 3 | I18: 3.5 | J18: - | K18: 2.5 | M18: =VLOOKUP($R$10,Division3c,2,FALSE) -> 607 Roch. Eupen-Kelmis 2 | N18: =VLOOKUP($S$10,Division3c,2,FALSE) -> 727 Midden-Limburg 1 | O18: 3.5 | P18: - | Q18: 2.5
A19: =VLOOKUP($R$11,Division3a,2,FALSE) -> 401 KGSRL 4 | B19: =VLOOKUP($S$11,Division3a,2,FALSE) -> 548 Caissa Europe 1 | C19: 3 | D19: - | E19: 3 | G19: =VLOOKUP($R$11,Division3b,2,FALSE) -> 302 KISK Ieper 1 | H19: =VLOOKUP($S$11,Division3b,2,FALSE) -> 401 KGSRL 5 | I19: 4 | J19: - | K19: 2 | M19: =VLOOKUP($R$11,Division3c,2,FALSE) -> 607 Roch. Eupen-Kelmis 3 | N19: =VLOOKUP($S$11,Division3c,2,FALSE) -> 621 T.A.L. 2 | O19: 3.5 | P19: - | Q19: 2.5
A20: =VLOOKUP($R$12,Division3a,2,FALSE) -> 909 Philippeville 1 | B20: =VLOOKUP($S$12,Division3a,2,FALSE) -> 244 Brussels 1 | C20: 4 | D20: - | E20: 2 | G20: =VLOOKUP($R$12,Division3b,2,FALSE) -> 472 De Mercatel 1 | H20: =VLOOKUP($S$12,Division3b,2,FALSE) -> 401 KGSRL 6 | I20: 4.5 | J20: - | K20: 1.5 | M20: =VLOOKUP($R$12,Division3c,2,FALSE) -> 901 Namur Echecs 2 | N20: =VLOOKUP($S$12,Division3c,2,FALSE) -> 604 KSK47-Eynatten 1 | O20: 1.5 | P20: - | Q20: 4.5
A21: =VLOOKUP($R$13,Division3a,2,FALSE) -> 174 Brasschaat 2 | B21: =VLOOKUP($S$13,Division3a,2,FALSE) -> 511 EDC 1 | C21: 3.5 | D21: - | E21: 2.5 | G21: =VLOOKUP($R$13,Division3b,2,FALSE) -> 521 Tournai 1 | H21: =VLOOKUP($S$13,Division3b,2,FALSE) -> 471 Wachtebeke 2 | I21: 3 | J21: - | K21: 3 | M21: =VLOOKUP($R$13,Division3c,2,FALSE) -> 174 Brasschaat 3 | N21: =VLOOKUP($S$13,Division3c,2,FALSE) -> 703 Eisden/MSK-Dilsen 1 | O21: 2.5 | P21: - | Q21: 3.5
A23: Afdeling/Division 3D | G23: Afdeling/Division 4A | M23: Afdeling/Division 4B
A24: =VLOOKUP($R$8,Division3d,2,FALSE) -> 101 KASK 1 | B24: =VLOOKUP($S$8,Division3d,2,FALSE) -> 708 NLS Lommel 1 | C24: 3 | D24: - | E24: 3 | G24: =VLOOKUP($R$8,Division4a,2,FALSE) -> 226 Europchess 3 | H24: =VLOOKUP($S$8,Division4a,2,FALSE) -> 239 Boitsfort 3 | I24: 1.5 | J24: - | K24: 2.5 | M24: =VLOOKUP($R$8,Division4b,2,FALSE) -> 226 Europchess 4 | N24: =VLOOKUP($S$8,Division4b,2,FALSE) -> 952 CEW 2 | O24: 0.5 | P24: - | Q24: 3.5
A25: =VLOOKUP($R$9,Division3d,2,FALSE) -> 128 Beveren 1 | B25: =VLOOKUP($S$9,Division3d,2,FALSE) -> 109 Borgerhout 2 | C25: 5.5 | D25: - | E25: 0.5 | G25: =VLOOKUP($R$9,Division4a,2,FALSE) -> 278 Pantin 2 | H25: =VLOOKUP($S$9,Division4a,2,FALSE) -> 194 ChessLooks Lier 1 | I25: 1.5 | J25: - | K25: 2.5 | M25: =VLOOKUP($R$9,Division4b,2,FALSE) -> 278 Pantin 3 | N25: =VLOOKUP($S$9,Division4b,2,FALSE) -> 952 CEW 3 | O25: 2.5 | P25: - | Q25: 1.5
A26: =VLOOKUP($R$10,Division3d,2,FALSE) -> 114 Mechelen 2 | B26: =VLOOKUP($S$10,Division3d,2,FALSE) -> 425 Dendermonde 1 | C26: 2.5 | D26: - | E26: 3.5 | G26: =VLOOKUP($R$10,Division4a,2,FALSE) -> 114 Mechelen 3 | H26: =VLOOKUP($S$10,Division4a,2,FALSE) -> 121 Turnhout 1 | I26: 2.5 | J26: - | K26: 1.5 | M26: =VLOOKUP($R$10,Division4b,2,FALSE) -> 607 Roch. Eupen-Kelmis 4 | N26: =VLOOKUP($S$10,Division4b,2,FALSE) -> 601 CRELEL Liège 4 | O26: 0.5 | P26: - | Q26: 3.5
A27: =VLOOKUP($R$11,Division3d,2,FALSE) -> 166 TSM Mechelen 2 | B27: =VLOOKUP($S$11,Division3d,2,FALSE) -> 410 St.-Niklaas 1 | C27: 1.5 | D27: - | E27: 4.5 | G27: =VLOOKUP($R$11,Division4a,2,FALSE) -> 166 TSM Mechelen 3 | H27: =VLOOKUP($S$11,Division4a,2,FALSE) -> 230 Leuven Centraal 3 | I27: 1.5 | J27: - | K27: 2.5 | M27: =VLOOKUP($R$11,Division4b,2,FALSE) -> 961 Braine Echecs 1 | N27: =VLOOKUP($S$11,Division4b,2,FALSE) -> 525 CELB Anderlues 1 | O27: 1.5 | P27: - | Q27: 2.5
A28: =VLOOKUP($R$12,Division3d,2,FALSE) -> 401 KGSRL 7 | B28: =VLOOKUP($S$12,Division3d,2,FALSE) -> 244 Brussels 2 | C28: 3 | D28: - | E28: 3 | G28: =VLOOKUP($R$12,Division4a,2,FALSE) -> 229 Woluwe 1 | H28: =VLOOKUP($S$12,Division4a,2,FALSE) -> 261 Opwijk 2 | I28: 2 | J28: - | K28: 2 | M28: =VLOOKUP($R$12,Division4b,2,FALSE) -> 901 Namur Echecs 3 | N28: =VLOOKUP($S$12,Division4b,2,FALSE) -> 231 Dolle Toren Leuven 2 | O28: 1.5 | P28: - | Q28: 2.5
A29: =VLOOKUP($R$13,Division3d,2,FALSE) -> 174 Brasschaat 4 | B29: =VLOOKUP($S$13,Division3d,2,FALSE) -> 260 Kapelle-op-den Bos 1 | C29: 2.5 | D29: - | E29: 3.5 | G29: =VLOOKUP($R$13,Division4a,2,FALSE) -> 207 2 Fous Diogène 1 | H29: =VLOOKUP($S$13,Division4a,2,FALSE) -> 240 SCRR 1 | I29: 4 | J29: - | K29: 0 | M29: =VLOOKUP($R$13,Division4b,2,FALSE) -> 207 2 Fous Diogène 2 | N29: =VLOOKUP($S$13,Division4b,2,FALSE) -> 209 The Belgian CC 2 | O29: 2 | P29: - | Q29: 2
A31: Afdeling/Division 4C | G31: Afdeling/Division 4D | M31: Afdeling/Division 4E
A32: =VLOOKUP($R$8,Division4c,2,FALSE) -> 627 Wirtzfeld 3 | B32: =VLOOKUP($S$8,Division4c,2,FALSE) -> 712 Landen 1 | C32: 2 | D32: - | E32: 2 | G32: =VLOOKUP($R$8,Division4d,2,FALSE) -> 430 Landegem 1 | H32: =VLOOKUP($S$8,Division4d,2,FALSE) -> 432 Wetteren 3 | I32: 1.5 | J32: - | K32: 2.5 | M32: =VLOOKUP($R$8,Division4e,2,FALSE) -> 430 Landegem 2 | N32: =VLOOKUP($S$8,Division4e,2,FALSE) -> 432 Wetteren 4 | O32: 1.5 | P32: - | Q32: 2.5
A33: =VLOOKUP($R$9,Division4c,2,FALSE) -> 810 Marche-en-Famenne 1 | B33: =VLOOKUP($S$9,Division4c,2,FALSE) -> 601 CRELEL Liège 6 | C33: 4 | D33: - | E33: 0 | G33: =VLOOKUP($R$9,Division4d,2,FALSE) -> 301 KOSK Oostende 3 | H33: =VLOOKUP($S$9,Division4d,2,FALSE) -> 475 Rapid Aalter 1 | I33: 4 | J33: - | K33: 0 | M33: =VLOOKUP($R$9,Division4e,2,FALSE) -> 460 Oudenaarde 1 | N33: =VLOOKUP($S$9,Division4e,2,FALSE) -> 418 VPTD 1 | O33: 2 | P33: - | Q33: 2
A34: =VLOOKUP($R$10,Division4c,2,FALSE) -> 607 Roch. Eupen-Kelmis 5 | B34: =VLOOKUP($S$10,Division4c,2,FALSE) -> 601 CRELEL Liège 5 | C34: 2.5 | D34: - | E34: 1.5 | G34: =VLOOKUP($R$10,Division4d,2,FALSE) -> 313 KWSLE 2 | H34: =VLOOKUP($S$10,Division4d,2,FALSE) -> 303 KBSK Brugge 4 | I34: 0.5 | J34: - | K34: 3.5 | M34: =VLOOKUP($R$10,Division4e,2,FALSE) -> 417 Pion-Aalst 2 | N34: =VLOOKUP($S$10,Division4e,2,FALSE) -> 541 Leuze-En-Hainaut 2 | O34: 3.5 | P34: - | Q34: 0.5
A35: =VLOOKUP($R$11,Division4c,2,FALSE) -> 607 Roch. Eupen-Kelmis 6 | B35: =VLOOKUP($S$11,Division4c,2,FALSE) -> 621 T.A.L. 3 | C35: 0 | D35: - | E35: 4 | G35: =VLOOKUP($R$11,Division4d,2,FALSE) -> 302 KISK Ieper 2 | H35: =VLOOKUP($S$11,Division4d,2,FALSE) -> 465 SK Artevelde 1 | I35: 1.5 | J35: - | K35: 2.5 | M35: =VLOOKUP($R$11,Division4e,2,FALSE) -> 438 Deinze 1 | N35: =VLOOKUP($S$11,Division4e,2,FALSE) -> 462 Zottegem 2 | O35: 1 | P35: - | Q35: 3
A36: =VLOOKUP($R$12,Division4c,2,FALSE) -> 901 Namur Echecs 4 | B36: =VLOOKUP($S$12,Division4c,2,FALSE) -> 604 KSK47-Eynatten 2 - FF | D36: - | G36: =VLOOKUP($R$12,Division4d,2,FALSE) -> 307 Bredene 1 | H36: =VLOOKUP($S$12,Division4d,2,FALSE) -> 304 Tielt 1 | I36: 1 | J36: - | K36: 3 | M36: =VLOOKUP($R$12,Division4e,2,FALSE) -> 472 De Mercatel 2 | N36: =VLOOKUP($S$12,Division4e,2,FALSE) -> 304 Tielt 2 | O36: 3 | P36: - | Q36: 1
A37: =VLOOKUP($R$13,Division4c,2,FALSE) -> 622 Herve 1 | B37: =VLOOKUP($S$13,Division4c,2,FALSE) -> 618 Echiquier Mosan 2 | C37: 3 | D37: - | E37: 1 | G37: =VLOOKUP($R$13,Division4d,2,FALSE) -> 422 MSV 1 | H37: =VLOOKUP($S$13,Division4d,2,FALSE) -> 340 Izegem 1 | I37: 1.5 | J37: - | K37: 2.5 | M37: =VLOOKUP($R$13,Division4e,2,FALSE) -> 402 Jean Jaurès Gent 2 | N37: =VLOOKUP($S$13,Division4e,2,FALSE) -> 401 KGSRL 8 | O37: 1 | P37: - | Q37: 3
A39: Afdeling/Division 4F | G39: Afdeling/Division 4G | M39: Afdeling/Division 4H
A40: =VLOOKUP($R$8,Division4f,2,FALSE) -> 551 HCC Jurbise 1 | B40: =VLOOKUP($S$8,Division4f,2,FALSE) -> 548 Caissa Europe 2 | C40: 2.5 | D40: - | E40: 1.5 | G40: =VLOOKUP($R$8,Division4g,2,FALSE) -> 430 Landegem 3 | H40: =VLOOKUP($S$8,Division4g,2,FALSE) -> 143 Boey Temse 2 | I40: 2 | J40: - | K40: 2 | M40: =VLOOKUP($R$8,Division4h,2,FALSE) -> 101 KASK 2 | N40: =VLOOKUP($S$8,Division4h,2,FALSE) -> 230 Leuven Centraal 4 | O40: 0.5 | P40: - | Q40: 3.5
A41: =VLOOKUP($R$9,Division4f,2,FALSE) -> 278 Pantin 4 | B41: =VLOOKUP($S$9,Division4f,2,FALSE) -> 228 Dworp 2 | C41: 3.5 | D41: - | E41: 0.5 | G41: =VLOOKUP($R$9,Division4g,2,FALSE) -> 401 KGSRL 9 | H41: =VLOOKUP($S$9,Division4g,2,FALSE) -> 436 LSV-Chesspirant 3 | I41: 3 | J41: - | K41: 1 | M41: =VLOOKUP($R$9,Division4h,2,FALSE) -> 135 Geel 2 | N41: =VLOOKUP($S$9,Division4h,2,FALSE) -> 194 ChessLooks Lier 2 | O41: 1 | P41: - | Q41: 3
A42: =VLOOKUP($R$10,Division4f,2,FALSE) -> 902 CES 1 | B42: =VLOOKUP($S$10,Division4f,2,FALSE) -> 541 Leuze-En-Hainaut 3 | C42: 4 | D42: - | E42: 0 | G42: =VLOOKUP($R$10,Division4g,2,FALSE) -> 124 Deurne 2 | H42: =VLOOKUP($S$10,Division4g,2,FALSE) -> 121 Turnhout 2 | I42: 2.5 | J42: - | K42: 1.5 | M42: =VLOOKUP($R$10,Division4h,2,FALSE) -> 114 Mechelen 4 | N42: =VLOOKUP($S$10,Division4h,2,FALSE) -> 727 Midden-Limburg 2 | O42: 0 | P42: - | Q42: 4
A43: =VLOOKUP($R$11,Division4f,2,FALSE) -> 501 CREC Charleroi 2 | B43: =VLOOKUP($S$11,Division4f,2,FALSE) -> 525 CELB Anderlues 2 | C43: 3 | D43: - | E43: 1 | G43: =VLOOKUP($R$11,Division4g,2,FALSE) -> 436 LSV-Chesspirant 4 | H43: =VLOOKUP($S$11,Division4g,2,FALSE) -> 465 SK Artevelde 2 | I43: 1.5 | J43: - | K43: 2.5 | M43: =VLOOKUP($R$11,Division4h,2,FALSE) -> 124 Deurne 3 | N43: =VLOOKUP($S$11,Division4h,2,FALSE) -> 121 Turnhout 3 | O43: 1.5 | P43: - | Q43: 2.5
A44: =VLOOKUP($R$12,Division4f,2,FALSE) -> 909 Philippeville 2 | B44: =VLOOKUP($S$12,Division4f,2,FALSE) -> 547 Ren. Binchois 1 | C44: 1.5 | D44: - | E44: 2.5 | G44: =VLOOKUP($R$12,Division4g,2,FALSE) -> 132 SK Oude God 1 | H44: =VLOOKUP($S$12,Division4g,2,FALSE) -> 130 Hoboken 1 | I44: 2 | J44: - | K44: 2 | M44: =VLOOKUP($R$12,Division4h,2,FALSE) -> 132 SK Oude God 2 | N44: =VLOOKUP($S$12,Division4h,2,FALSE) -> 130 Hoboken 2 | O44: 3.5 | P44: - | Q44: 0.5
A45: =VLOOKUP($R$13,Division4f,2,FALSE) -> 207 2 Fous Diogène 3 | B45: =VLOOKUP($S$13,Division4f,2,FALSE) -> 233 DZD Halle 1 | C45: 2 | D45: - | E45: 2 | G45: =VLOOKUP($R$13,Division4g,2,FALSE) -> 422 MSV 2 | H45: =VLOOKUP($S$13,Division4g,2,FALSE) -> 471 Wachtebeke 3 | I45: 2 | J45: - | K45: 2 | M45: =VLOOKUP($R$13,Division4h,2,FALSE) -> 176 Westerlo 2 | N45: =VLOOKUP($S$13,Division4h,2,FALSE) -> 714 Pelt 1 | O45: 0 | P45: - | Q45: 4
A47: Afdeling/Division 5A | G47: Afdeling/Division 5B | M47: Afdeling/Division 5C
A48: =VLOOKUP($R$8,Division5a,2,FALSE) -> 703 Eisden/MSK-Dilsen 2 | B48: =VLOOKUP($S$8,Division5a,2,FALSE) -> 712 Landen 2 | C48: 1.5 | D48: - | E48: 2.5 | G48: =VLOOKUP($R$8,Division5b,2,FALSE) -> 226 Europchess 5 | H48: =VLOOKUP($S$8,Division5b,2,FALSE) -> 209 The Belgian CC 3 | I48: 3 | J48: - | K48: 1 | M48: =VLOOKUP($R$8,Division5c,2,FALSE) -> 551 HCC Jurbise 2 | N48: =VLOOKUP($S$8,Division5c,2,FALSE) -> 549 Saint-Ghislain 1 | O48: 3 | P48: - | Q48: 1
A49: =VLOOKUP($R$9,Division5a,2,FALSE) -> 810 Marche-en-Famenne 2 | B49: =VLOOKUP($S$9,Division5a,2,FALSE) -> 601 CRELEL Liège 8 | C49: 4 | D49: - | E49: 0 | G49: =VLOOKUP($R$9,Division5b,2,FALSE) -> 278 Pantin 5 | H49: =VLOOKUP($S$9,Division5b,2,FALSE) -> 204 Excelsior 1 | I49: 3 | J49: - | K49: 1 | M49: =VLOOKUP($R$9,Division5c,2,FALSE) -> 902 CES 2 | N49: =VLOOKUP($S$9,Division5c,2,FALSE) -> 953 Nivelles 1 | O49: 2 | P49: - | Q49: 2
A50: =VLOOKUP($R$10,Division5a,2,FALSE) -> 607 Roch. Eupen-Kelmis 7 | B50: =VLOOKUP($S$10,Division5a,2,FALSE) -> 601 CRELEL Liège 7 | C50: 3.5 | D50: - | E50: 0.5 | G50: =VLOOKUP($R$10,Division5b,2,FALSE) -> 961 Braine Echecs 2 | H50: =VLOOKUP($S$10,Division5b,2,FALSE) -> 514 MCC 2 | I50: 2.5 | J50: - | K50: 1.5 | M50: =VLOOKUP($R$10,Division5c,2,FALSE) -> 961 Braine Echecs 3 | N50: =VLOOKUP($S$10,Division5c,2,FALSE) -> 514 MCC 3 | O50: 3 | P50: - | Q50: 1
A51: =VLOOKUP($R$11,Division5a,2,FALSE) -> 733 St.-Truiden 1 | B51: =VLOOKUP($S$11,Division5a,2,FALSE) -> 609 Anthisnes 1 | C51: 0 | D51: - | E51: 4 | G51: =VLOOKUP($R$11,Division5b,2,FALSE) -> 501 CREC Charleroi 3 | H51: =VLOOKUP($S$11,Division5b,2,FALSE) -> 230 Leuven Centraal 5 | I51: 0.5 | J51: - | K51: 3.5 | M51: =VLOOKUP($R$11,Division5c,2,FALSE) -> 501 CREC Charleroi 4 | N51: =VLOOKUP($S$11,Division5c,2,FALSE) -> 525 CELB Anderlues 3 | O51: 2 | P51: - | Q51: 2
A52: =VLOOKUP($R$12,Division5a,2,FALSE) -> 901 Namur Echecs 5 - FF | B52: =VLOOKUP($S$12,Division5a,2,FALSE) -> 604 KSK47-Eynatten 3 | D52: - | G52: =VLOOKUP($R$12,Division5b,2,FALSE) -> 952 CEW 4 | H52: =VLOOKUP($S$12,Division5b,2,FALSE) -> 244 Brussels 3 | I52: 2 | J52: - | K52: 2 | M52: =VLOOKUP($R$12,Division5c,2,FALSE) -> 901 Namur Echecs 6 | N52: =VLOOKUP($S$12,Division5c,2,FALSE) -> 000 BYE 5C | P52: -
A53: =VLOOKUP($R$13,Division5a,2,FALSE) -> 000 BYE 5A | B53: =VLOOKUP($S$13,Division5a,2,FALSE) -> 618 Echiquier Mosan 3 | D53: - | G53: =VLOOKUP($R$13,Division5b,2,FALSE) -> 207 2 Fous Diogène 4 | H53: =VLOOKUP($S$13,Division5b,2,FALSE) -> 233 DZD Halle 2 | I53: 2 | J53: - | K53: 2 | M53: =VLOOKUP($R$13,Division5c,2,FALSE) -> 548 Caissa Europe 3 | N53: =VLOOKUP($S$13,Division5c,2,FALSE) -> 511 EDC 2 | O53: 2 | P53: - | Q53: 2
A55: Afdeling/Division 5D | G55: Afdeling/Division 5E | M55: Afdeling/Division 5F
A56: =VLOOKUP($R$8,Division5d,2,FALSE) -> 703 Eisden/MSK-Dilsen 3 | B56: =VLOOKUP($S$8,Division5d,2,FALSE) -> 000 BYE 5D | D56: - | G56: =VLOOKUP($R$8,Division5e,2,FALSE) -> 101 KASK 3 | H56: =VLOOKUP($S$8,Division5e,2,FALSE) -> 143 Boey Temse 3 | I56: 0.5 | J56: - | K56: 3.5 | M56: =VLOOKUP($R$8,Division5f,2,FALSE) -> 309 KRST 2 | N56: =VLOOKUP($S$8,Division5f,2,FALSE) -> 432 Wetteren 5 | O56: 1.5 | P56: - | Q56: 2.5
A57: =VLOOKUP($R$9,Division5d,2,FALSE) -> 627 Wirtzfeld 4 | B57: =VLOOKUP($S$9,Division5d,2,FALSE) -> 601 CRELEL Liège 10 | C57: 2 | D57: - | E57: 2 | G57: =VLOOKUP($R$9,Division5e,2,FALSE) -> 128 Beveren 2 | H57: =VLOOKUP($S$9,Division5e,2,FALSE) -> 109 Borgerhout 3 | I57: 3.5 | J57: - | K57: 0.5 | M57: =VLOOKUP($R$9,Division5f,2,FALSE) -> 460 Oudenaarde 2 | N57: =VLOOKUP($S$9,Division5f,2,FALSE) -> 436 LSV-Chesspirant 6 | O57: 2 | P57: - | Q57: 2
A58: =VLOOKUP($R$10,Division5d,2,FALSE) -> 607 Roch. Eupen-Kelmis 8 | B58: =VLOOKUP($S$10,Division5d,2,FALSE) -> 601 CRELEL Liège 9 | C58: 2 | D58: - | E58: 2 | G58: =VLOOKUP($R$10,Division5e,2,FALSE) -> 114 Mechelen 5 | H58: =VLOOKUP($S$10,Division5e,2,FALSE) -> 190 Burcht 1 | I58: 3 | J58: - | K58: 1 | M58: =VLOOKUP($R$10,Division5f,2,FALSE) -> 313 KWSLE 3 | N58: =VLOOKUP($S$10,Division5f,2,FALSE) -> 541 Leuze-En-Hainaut 4 | O58: 3 | P58: - | Q58: 1
A59: =VLOOKUP($R$11,Division5d,2,FALSE) -> 609 Anthisnes 2 | B59: =VLOOKUP($S$11,Division5d,2,FALSE) -> 621 T.A.L. 4 | C59: 3 | D59: - | E59: 1 | G59: =VLOOKUP($R$11,Division5e,2,FALSE) -> 436 LSV-Chesspirant 5 | H59: =VLOOKUP($S$11,Division5e,2,FALSE) -> 410 St.-Niklaas 2 | I59: 2 | J59: - | K59: 2 | M59: =VLOOKUP($R$11,Division5f,2,FALSE) -> 438 Deinze 2 | N59: =VLOOKUP($S$11,Division5f,2,FALSE) -> 462 Zottegem 3 | O59: 1 | P59: - | Q59: 3
A60: =VLOOKUP($R$12,Division5d,2,FALSE) -> 703 Eisden/MSK-Dilsen 4 | B60: =VLOOKUP($S$12,Division5d,2,FALSE) -> 604 KSK47-Eynatten 4 | C60: 2 | D60: - | E60: 2 | G60: =VLOOKUP($R$12,Division5e,2,FALSE) -> 132 SK Oude God 3 | H60: =VLOOKUP($S$12,Division5e,2,FALSE) -> 130 Hoboken 3 | I60: 1.5 | J60: - | K60: 2.5 | M60: =VLOOKUP($R$12,Division5f,2,FALSE) -> 000 BYE 5F | N60: =VLOOKUP($S$12,Division5f,2,FALSE) -> 401 KGSRL 11 | P60: -
A61: =VLOOKUP($R$13,Division5d,2,FALSE) -> 623 Sankt Vith 1 | B61: =VLOOKUP($S$13,Division5d,2,FALSE) -> 619 Welkenraedt 1 | C61: 1.5 | D61: - | E61: 2.5 | G61: =VLOOKUP($R$13,Division5e,2,FALSE) -> 174 Brasschaat 5 | H61: =VLOOKUP($S$13,Division5e,2,FALSE) -> 401 KGSRL 10 | I61: 1.5 | J61: - | K61: 2.5 | M61: =VLOOKUP($R$13,Division5f,2,FALSE) -> 521 Tournai 2 | N61: =VLOOKUP($S$13,Division5f,2,FALSE) -> 340 Izegem 2 | O61: 2 | P61: - | Q61: 2
A63: Afdeling/Division 5G | G63: Afdeling/Division 5H | M63: Afdeling/Division 5I
A64: =VLOOKUP($R$8,Division5g,2,FALSE) -> 430 Landegem 4 | B64: =VLOOKUP($S$8,Division5g,2,FALSE) -> 432 Wetteren 6 | C64: 3.5 | D64: - | E64: 0.5 | G64: =VLOOKUP($R$8,Division5h,2,FALSE) -> 309 KRST 3 | H64: =VLOOKUP($S$8,Division5h,2,FALSE) -> 000 BYE 5H | J64: - | M64: =VLOOKUP($R$8,Division5i,2,FALSE) -> 260 Kapelle-op-den Bos 2 | N64: =VLOOKUP($S$8,Division5i,2,FALSE) -> 239 Boitsfort 4 | O64: 3 | P64: - | Q64: 1
A65: =VLOOKUP($R$9,Division5g,2,FALSE) -> 301 KOSK Oostende 4 | B65: =VLOOKUP($S$9,Division5g,2,FALSE) -> 436 LSV-Chesspirant 7 | C65: 2.5 | D65: - | E65: 1.5 | G65: =VLOOKUP($R$9,Division5h,2,FALSE) -> 301 KOSK Oostende 5 | H65: =VLOOKUP($S$9,Division5h,2,FALSE) -> 475 Rapid Aalter 2 | I65: 3.5 | J65: - | K65: 0.5 | M65: =VLOOKUP($R$9,Division5i,2,FALSE) -> 278 Pantin 6 | N65: =VLOOKUP($S$9,Division5i,2,FALSE) -> 204 Excelsior 2 | O65: 4 | P65: - | Q65: 0
A66: =VLOOKUP($R$10,Division5g,2,FALSE) -> 313 KWSLE 4 | B66: =VLOOKUP($S$10,Division5g,2,FALSE) -> 303 KBSK Brugge 5 | C66: 2 | D66: - | E66: 2 | G66: =VLOOKUP($R$10,Division5h,2,FALSE) -> 401 KGSRL 14 | H66: =VLOOKUP($S$10,Division5h,2,FALSE) -> 303 KBSK Brugge 6 | I66: 1 | J66: - | K66: 3 | M66: =VLOOKUP($R$10,Division5i,2,FALSE) -> 201 CREB Bruxelles 3 | N66: =VLOOKUP($S$10,Division5i,2,FALSE) -> 401 KGSRL 15 | O66: 0.5 | P66: - | Q66: 3.5
A67: =VLOOKUP($R$11,Division5g,2,FALSE) -> 401 KGSRL 12 | B67: =VLOOKUP($S$11,Division5g,2,FALSE) -> 465 SK Artevelde 3 | C67: 2 | D67: - | E67: 2 | G67: =VLOOKUP($R$11,Division5h,2,FALSE) -> 302 KISK Ieper 3 | H67: =VLOOKUP($S$11,Division5h,2,FALSE) -> 322 Veurne 1 | I67: 3 | J67: - | K67: 1 | M67: =VLOOKUP($R$11,Division5i,2,FALSE) -> 000 BYE 5I | N67: =VLOOKUP($S$11,Division5i,2,FALSE) -> 230 Leuven Centraal 6 | P67: -
A68: =VLOOKUP($R$12,Division5g,2,FALSE) -> 472 De Mercatel 3 | B68: =VLOOKUP($S$12,Division5g,2,FALSE) -> 401 KGSRL 13 | C68: 3.5 | D68: - | E68: 0.5 | G68: =VLOOKUP($R$12,Division5h,2,FALSE) -> 307 Bredene 2 | H68: =VLOOKUP($S$12,Division5h,2,FALSE) -> 305 Kortrijk 1 | I68: 1 | J68: - | K68: 3 | M68: =VLOOKUP($R$12,Division5i,2,FALSE) -> 229 Woluwe 2 | N68: =VLOOKUP($S$12,Division5i,2,FALSE) -> 244 Brussels 4 | O68: 1.5 | P68: - | Q68: 2.5
A69: =VLOOKUP($R$13,Division5g,2,FALSE) -> 422 MSV 3 | B69: =VLOOKUP($S$13,Division5g,2,FALSE) -> 471 Wachtebeke 4 | C69: 4 | D69: - | E69: 0 | G69: =VLOOKUP($R$13,Division5h,2,FALSE) -> 351 Knokke Schaak 1 | H69: =VLOOKUP($S$13,Division5h,2,FALSE) -> 340 Izegem 3 | I69: 4 | J69: - | K69: 0 | M69: =VLOOKUP($R$13,Division5i,2,FALSE) -> 207 2 Fous Diogène 5 | N69: =VLOOKUP($S$13,Division5i,2,FALSE) -> 209 The Belgian CC 4 | O69: 1.5 | P69: - | Q69: 2.5
A71: Afdeling/Division 5J | G71: Afdeling/Division 5K | M71: Afdeling/Division 5L
A72: =VLOOKUP($R$8,Division5j,2,FALSE) -> 401 KGSRL 16 | B72: =VLOOKUP($S$8,Division5j,2,FALSE) -> 196 De Rode Loper 1 | C72: 4 | D72: - | E72: 0 | G72: =VLOOKUP($R$8,Division5k,2,FALSE) -> 162 Molse SC 1 | H72: =VLOOKUP($S$8,Division5k,2,FALSE) -> 121 Turnhout 4 | I72: 2.5 | J72: - | K72: 1.5 | M72: =VLOOKUP($R$8,Division5l,2,FALSE) -> 404 Drie Torens 1 | N72: =VLOOKUP($S$8,Division5l,2,FALSE) -> 432 Wetteren 7 | O72: 2.5 | P72: - | Q72: 1.5
A73: =VLOOKUP($R$9,Division5j,2,FALSE) -> 128 Beveren 3 | B73: =VLOOKUP($S$9,Division5j,2,FALSE) -> 109 Borgerhout 4 | C73: 0 | D73: - | E73: 4 | G73: =VLOOKUP($R$9,Division5k,2,FALSE) -> 401 KGSRL 17 | H73: =VLOOKUP($S$9,Division5k,2,FALSE) -> 194 ChessLooks Lier 3 | I73: 1 | J73: - | K73: 3 | M73: =VLOOKUP($R$9,Division5l,2,FALSE) -> 128 Beveren 4 | N73: =VLOOKUP($S$9,Division5l,2,FALSE) -> 436 LSV-Chesspirant 8 | O73: 1.5 | P73: - | Q73: 2.5
A74: =VLOOKUP($R$10,Division5j,2,FALSE) -> 124 Deurne 4 | B74: =VLOOKUP($S$10,Division5j,2,FALSE) -> 190 Burcht 2 | C74: 1.5 | D74: - | E74: 2.5 | G74: =VLOOKUP($R$10,Division5k,2,FALSE) -> 114 Mechelen 7 | H74: =VLOOKUP($S$10,Division5k,2,FALSE) -> 727 Midden-Limburg 3 | I74: 0 | J74: - | K74: 4 | M74: =VLOOKUP($R$10,Division5l,2,FALSE) -> 417 Pion-Aalst 3 | N74: =VLOOKUP($S$10,Division5l,2,FALSE) -> 425 Dendermonde 2 | O74: 2 | P74: - | Q74: 2
A75: =VLOOKUP($R$11,Division5j,2,FALSE) -> 114 Mechelen 6 | B75: =VLOOKUP($S$11,Division5j,2,FALSE) -> 230 Leuven Centraal 7 | C75: 0.5 | D75: - | E75: 3.5 | G75: =VLOOKUP($R$11,Division5k,2,FALSE) -> 166 TSM Mechelen 4 | H75: =VLOOKUP($S$11,Division5k,2,FALSE) -> 230 Leuven Centraal 8 | I75: 2 | J75: - | K75: 2 | M75: =VLOOKUP($R$11,Division5l,2,FALSE) -> 401 KGSRL 18 | N75: =VLOOKUP($S$11,Division5l,2,FALSE) -> 462 Zottegem 4 | O75: 1 | P75: - | Q75: 3
A76: =VLOOKUP($R$12,Division5j,2,FALSE) -> 132 SK Oude God 4 | B76: =VLOOKUP($S$12,Division5j,2,FALSE) -> 130 Hoboken 4 | C76: 3 | D76: - | E76: 1 | G76: =VLOOKUP($R$12,Division5k,2,FALSE) -> 132 SK Oude God 5 | H76: =VLOOKUP($S$12,Division5k,2,FALSE) -> 231 Dolle Toren Leuven 3 | I76: 0.5 | J76: - | K76: 3.5 | M76: =VLOOKUP($R$12,Division5l,2,FALSE) -> 436 LSV-Chesspirant 9 | N76: =VLOOKUP($S$12,Division5l,2,FALSE) -> 261 Opwijk 3 | O76: 3.5 | P76: - | Q76: 0.5
A77: =VLOOKUP($R$13,Division5j,2,FALSE) -> 174 Brasschaat 6 | B77: =VLOOKUP($S$13,Division5j,2,FALSE) -> 195 Kapellen 1 | C77: 1 | D77: - | E77: 3 | G77: =VLOOKUP($R$13,Division5k,2,FALSE) -> 176 Westerlo 3 | H77: =VLOOKUP($S$13,Division5k,2,FALSE) -> 182 Noorderwijk 1 | I77: 3.5 | J77: - | K77: 0.5 | M77: =VLOOKUP($R$13,Division5l,2,FALSE) -> 422 MSV 4 | N77: =VLOOKUP($S$13,Division5l,2,FALSE) -> 000 BYE 5L | P77: -
A79: Afdeling/Division 5M | G79: Afdeling/Division 5N
A80: =VLOOKUP($R$8,Division5m,2,FALSE) -> 162 Molse SC 2 | B80: =VLOOKUP($S$8,Division5m,2,FALSE) -> 230 Leuven Centraal 9 | C80: 0.5 | D80: - | E80: 3.5 | G80: =VLOOKUP($R$8,Division5n,2,FALSE) -> 551 HCC Jurbise 3 | H80: =VLOOKUP($S$8,Division5n,2,FALSE) -> 549 Saint-Ghislain 2 | I80: 3 | J80: - | K80: 1
A81: =VLOOKUP($R$9,Division5m,2,FALSE) -> 135 Geel 3 | B81: =VLOOKUP($S$9,Division5m,2,FALSE) -> 666 666 1 | C81: 1.5 | D81: - | E81: 2.5 | G81: =VLOOKUP($R$9,Division5n,2,FALSE) -> 902 CES 3 | H81: =VLOOKUP($S$9,Division5n,2,FALSE) -> 228 Dworp 3 | I81: 2.5 | J81: - | K81: 1.5
A82: =VLOOKUP($R$10,Division5m,2,FALSE) -> 114 Mechelen 8 | B82: =VLOOKUP($S$10,Division5m,2,FALSE) -> 727 Midden-Limburg 4 | C82: 2.5 | D82: - | E82: 1.5 | G82: =VLOOKUP($R$10,Division5n,2,FALSE) -> 548 Caissa Europe 4 | H82: =VLOOKUP($S$10,Division5n,2,FALSE) -> 514 MCC 4 | I82: 1 | J82: - | K82: 3
A83: =VLOOKUP($R$11,Division5m,2,FALSE) -> 166 TSM Mechelen 5 | B83: =VLOOKUP($S$11,Division5m,2,FALSE) -> 121 Turnhout 5 | C83: 3 | D83: - | E83: 1 | G83: =VLOOKUP($R$11,Division5n,2,FALSE) -> 501 CREC Charleroi 5 | H83: =VLOOKUP($S$11,Division5n,2,FALSE) -> 230 Leuven Centraal 10 | I83: 1.5 | J83: - | K83: 2.5
A84: =VLOOKUP($R$12,Division5m,2,FALSE) -> 132 SK Oude God 6 | B84: =VLOOKUP($S$12,Division5m,2,FALSE) -> 231 Dolle Toren Leuven 4 | C84: 2 | D84: - | E84: 2 | G84: =VLOOKUP($R$12,Division5n,2,FALSE) -> 901 Namur Echecs 7 | H84: =VLOOKUP($S$12,Division5n,2,FALSE) -> 518 Soignies 1 | I84: 2 | J84: - | K84: 2
A85: =VLOOKUP($R$13,Division5m,2,FALSE) -> 176 Westerlo 4 | B85: =VLOOKUP($S$13,Division5m,2,FALSE) -> 714 Pelt 2 | C85: 0.5 | D85: - | E85: 3.5 | G85: =VLOOKUP($R$13,Division5n,2,FALSE) -> 952 CEW 5 | H85: =VLOOKUP($S$13,Division5n,2,FALSE) -> 000 BYE 5N | J85: -

Sheet R8
G1: =CONCATENATE("INTERCLUBS NATIONAUX ",Data!$B$1) -> INTERCLUBS NATIONAUX 2022-2023
G2: =CONCATENATE("NATIONALE INTERCLUBS ",Data!$B$1) -> NATIONALE INTERCLUBS 2022-2023
G5: Ronde 8: | H5: =VLOOKUP(G5,Data,2,FALSE) -> 2023-03-05
A7: Afdeling/Division 1 | G7: Afdeling/Division 2A | M7: Afdeling/Division 2B
A8: =VLOOKUP($R$8,Division1,2,FALSE) -> 432 Wetteren 1 | B8: =VLOOKUP($S$8,Division1,2,FALSE) -> 471 Wachtebeke 1 | C8: 7 | D8: - | E8: 1 | G8: =VLOOKUP($R$8,Division2a,2,FALSE) -> 239 Boitsfort 1 | H8: =VLOOKUP($S$8,Division2a,2,FALSE) -> 618 Echiquier Mosan 1 | I8: 4.5 | J8: - | K8: 3.5 | M8: =VLOOKUP($R$8,Division2b,2,FALSE) -> 143 Boey Temse 1 | N8: =VLOOKUP($S$8,Division2b,2,FALSE) -> 209 The Belgian CC 1 | O8: 4 | P8: - | Q8: 4 | R8: 12 | S8: 10
A9: =VLOOKUP($R$9,Division1,2,FALSE) -> 401 KGSRL 1 | B9: =VLOOKUP($S$9,Division1,2,FALSE) -> 174 Brasschaat 1 | C9: 5.5 | D9: - | E9: 2.5 | G9: =VLOOKUP($R$9,Division2a,2,FALSE) -> 231 Dolle Toren Leuven 1 | H9: =VLOOKUP($S$9,Division2a,2,FALSE) -> 176 Westerlo 1 | I9: 3.5 | J9: - | K9: 4.5 | M9: =VLOOKUP($R$9,Division2b,2,FALSE) -> 261 Opwijk 1 | N9: =VLOOKUP($S$9,Division2b,2,FALSE) -> 402 Jean Jaurès Gent 1 | O9: 4 | P9: - | Q9: 4 | R9: 11 | S9: 9
A10: =VLOOKUP($R$10,Division1,2,FALSE) -> 621 T.A.L. 1 | B10: =VLOOKUP($S$10,Division1,2,FALSE) -> 166 TSM Mechelen 1 | C10: 2 | D10: - | E10: 6 | G10: =VLOOKUP($R$10,Division2a,2,FALSE) -> 230 Leuven Centraal 1 | H10: =VLOOKUP($S$10,Division2a,2,FALSE) -> 901 Namur Echecs 1 | I10: 6.5 | J10: - | K10: 1.5 | M10: =VLOOKUP($R$10,Division2b,2,FALSE) -> 462 Zottegem 1 | N10: =VLOOKUP($S$10,Division2b,2,FALSE) -> 436 LSV-Chesspirant 1 | O10: 5 | P10: - | Q10: 3 | R10: 1 | S10: 8
A11: =VLOOKUP($R$11,Division1,2,FALSE) -> 303 KBSK Brugge 1 | B11: =VLOOKUP($S$11,Division1,2,FALSE) -> 501 CREC Charleroi 1 | C11: 7.5 | D11: - | E11: 0.5 | G11: =VLOOKUP($R$11,Division2a,2,FALSE) -> 514 MCC 1 | H11: =VLOOKUP($S$11,Division2a,2,FALSE) -> 952 CEW 1 | I11: 3 | J11: - | K11: 5 | M11: =VLOOKUP($R$11,Division2b,2,FALSE) -> 303 KBSK Brugge 2 | N11: =VLOOKUP($S$11,Division2b,2,FALSE) -> 124 Deurne 1 | O11: 2.5 | P11: - | Q11: 5.5 | R11: 2 | S11: 7
A12: =VLOOKUP($R$12,Division1,2,FALSE) -> 601 CRELEL Liège 1 | B12: =VLOOKUP($S$12,Division1,2,FALSE) -> 607 Roch. Eupen-Kelmis 1 | C12: 1.5 | D12: - | E12: 6.5 | G12: =VLOOKUP($R$12,Division2a,2,FALSE) -> 601 CRELEL Liège 2 | H12: =VLOOKUP($S$12,Division2a,2,FALSE) -> 201 CREB Bruxelles 1 | I12: 3 | J12: - | K12: 5 | M12: =VLOOKUP($R$12,Division2b,2,FALSE) -> 109 Borgerhout 1 | N12: =VLOOKUP($S$12,Division2b,2,FALSE) -> 114 Mechelen 1 | O12: 3.5 | P12: - | Q12: 4.5 | R12: 3 | S12: 6
A13: =VLOOKUP($R$13,Division1,2,FALSE) -> 627 Wirtzfeld 1 | B13: =VLOOKUP($S$13,Division1,2,FALSE) -> 301 KOSK Oostende 1 | C13: 6 | D13: - | E13: 2 | G13: =VLOOKUP($R$13,Division2a,2,FALSE) -> 401 KGSRL 2 | H13: =VLOOKUP($S$13,Division2a,2,FALSE) -> 278 Pantin 1 | I13: 4 | J13: - | K13: 4 | M13: =VLOOKUP($R$13,Division2b,2,FALSE) -> 226 Europchess 1 | N13: =VLOOKUP($S$13,Division2b,2,FALSE) -> 401 KGSRL 3 | O13: 5.5 | P13: - | Q13: 2.5 | R13: 4 | S13: 5
A15: Afdeling/Division 3A | G15: Afdeling/Division 3B | M15: Afdeling/Division 3C
A16: =VLOOKUP($R$8,Division3a,2,FALSE) -> 239 Boitsfort 2 | B16: =VLOOKUP($S$8,Division3a,2,FALSE) -> 511 EDC 1 | C16: 0.5 | D16: - | E16: 5.5 | G16: =VLOOKUP($R$8,Division3b,2,FALSE) -> 432 Wetteren 2 | H16: =VLOOKUP($S$8,Division3b,2,FALSE) -> 471 Wachtebeke 2 | I16: 4.5 | J16: - | K16: 1.5 | M16: =VLOOKUP($R$8,Division3c,2,FALSE) -> 230 Leuven Centraal 2 | N16: =VLOOKUP($S$8,Division3c,2,FALSE) -> 703 Eisden/MSK-Dilsen 1 | O16: 0.5 | P16: - | Q16: 5.5
A17: =VLOOKUP($R$9,Division3a,2,FALSE) -> 244 Brussels 1 | B17: =VLOOKUP($S$9,Division3a,2,FALSE) -> 174 Brasschaat 2 | C17: 4 | D17: - | E17: 2 | G17: =VLOOKUP($R$9,Division3b,2,FALSE) -> 401 KGSRL 6 | H17: =VLOOKUP($S$9,Division3b,2,FALSE) -> 521 Tournai 1 | I17: 3.5 | J17: - | K17: 2.5 | M17: =VLOOKUP($R$9,Division3c,2,FALSE) -> 604 KSK47-Eynatten 1 | N17: =VLOOKUP($S$9,Division3c,2,FALSE) -> 174 Brasschaat 3 | O17: 5 | P17: - | Q17: 1
A18: =VLOOKUP($R$10,Division3a,2,FALSE) -> 548 Caissa Europe 1 | B18: =VLOOKUP($S$10,Division3a,2,FALSE) -> 909 Philippeville 1 | C18: 5 | D18: - | E18: 1 | G18: =VLOOKUP($R$10,Division3b,2,FALSE) -> 401 KGSRL 5 | H18: =VLOOKUP($S$10,Division3b,2,FALSE) -> 472 De Mercatel 1 | I18: 2.5 | J18: - | K18: 3.5 | M18: =VLOOKUP($R$10,Division3c,2,FALSE) -> 621 T.A.L. 2 | N18: =VLOOKUP($S$10,Division3c,2,FALSE) -> 901 Namur Echecs 2 | O18: 2.5 | P18: - | Q18: 3.5
A19: =VLOOKUP($R$11,Division3a,2,FALSE) -> 541 Leuze-En-Hainaut 1 | B19: =VLOOKUP($S$11,Division3a,2,FALSE) -> 401 KGSRL 4 | C19: 2.5 | D19: - | E19: 3.5 | G19: =VLOOKUP($R$11,Division3b,2,FALSE) -> 303 KBSK Brugge 3 | H19: =VLOOKUP($S$11,Division3b,2,FALSE) -> 302 KISK Ieper 1 | I19: 5.5 | J19: - | K19: 0.5 | M19: =VLOOKUP($R$11,Division3c,2,FALSE) -> 727 Midden-Limburg 1 | N19: =VLOOKUP($S$11,Division3c,2,FALSE) -> 607 Roch. Eupen-Kelmis 3 | O19: 2 | P19: - | Q19: 4
A20: =VLOOKUP($R$12,Division3a,2,FALSE) -> 228 Dworp 1 | B20: =VLOOKUP($S$12,Division3a,2,FALSE) -> 201 CREB Bruxelles 2 | C20: 4.5 | D20: - | E20: 1.5 | G20: =VLOOKUP($R$12,Division3b,2,FALSE) -> 436 LSV-Chesspirant 2 | H20: =VLOOKUP($S$12,Division3b,2,FALSE) -> 313 KWSLE 1 | I20: 3 | J20: - | K20: 3 | M20: =VLOOKUP($R$12,Division3c,2,FALSE) -> 601 CRELEL Liège 3 | N20: =VLOOKUP($S$12,Division3c,2,FALSE) -> 607 Roch. Eupen-Kelmis 2 | O20: 1.5 | P20: - | Q20: 4.5
A21: =VLOOKUP($R$13,Division3a,2,FALSE) -> 226 Europchess 2 | B21: =VLOOKUP($S$13,Division3a,2,FALSE) -> 417 Pion-Aalst 1 | C21: 3.5 | D21: - | E21: 2.5 | G21: =VLOOKUP($R$13,Division3b,2,FALSE) -> 309 KRST 1 | H21: =VLOOKUP($S$13,Division3b,2,FALSE) -> 301 KOSK Oostende 2 | I21: 3 | J21: - | K21: 3 | M21: =VLOOKUP($R$13,Division3c,2,FALSE) -> 627 Wirtzfeld 2 | N21: =VLOOKUP($S$13,Division3c,2,FALSE) -> 135 Geel 1 | O21: 4 | P21: - | Q21: 2
A23: Afdeling/Division 3D | G23: Afdeling/Division 4A | M23: Afdeling/Division 4B
A24: =VLOOKUP($R$8,Division3d,2,FALSE) -> 708 NLS Lommel 1 | B24: =VLOOKUP($S$8,Division3d,2,FALSE) -> 260 Kapelle-op-den Bos 1 | C24: 3.5 | D24: - | E24: 2.5 | G24: =VLOOKUP($R$8,Division4a,2,FALSE) -> 239 Boitsfort 3 | H24: =VLOOKUP($S$8,Division4a,2,FALSE) -> 240 SCRR 1 | I24: 3.5 | J24: - | K24: 0.5 | M24: =VLOOKUP($R$8,Division4b,2,FALSE) -> 952 CEW 2 | N24: =VLOOKUP($S$8,Division4b,2,FALSE) -> 209 The Belgian CC 2 | O24: 1.5 | P24: - | Q24: 2.5
A25: =VLOOKUP($R$9,Division3d,2,FALSE) -> 244 Brussels 2 | B25: =VLOOKUP($S$9,Division3d,2,FALSE) -> 174 Brasschaat 4 | C25: 6 | D25: - | E25: 0 | G25: =VLOOKUP($R$9,Division4a,2,FALSE) -> 261 Opwijk 2 | H25: =VLOOKUP($S$9,Division4a,2,FALSE) -> 207 2 Fous Diogène 1 | I25: 1 | J25: - | K25: 3 | M25: =VLOOKUP($R$9,Division4b,2,FALSE) -> 231 Dolle Toren Leuven 2 | N25: =VLOOKUP($S$9,Division4b,2,FALSE) -> 207 2 Fous Diogène 2 | O25: 2.5 | P25: - | Q25: 1.5
A26: =VLOOKUP($R$10,Division3d,2,FALSE) -> 410 St.-Niklaas 1 | B26: =VLOOKUP($S$10,Division3d,2,FALSE) -> 401 KGSRL 7 | C26: 3.5 | D26: - | E26: 2.5 | G26: =VLOOKUP($R$10,Division4a,2,FALSE) -> 230 Leuven Centraal 3 | H26: =VLOOKUP($S$10,Division4a,2,FALSE) -> 229 Woluwe 1 | I26: 1.5 | J26: - | K26: 2.5 | M26: =VLOOKUP($R$10,Division4b,2,FALSE) -> 525 CELB Anderlues 1 | N26: =VLOOKUP($S$10,Division4b,2,FALSE) -> 901 Namur Echecs 3 | O26: 3 | P26: - | Q26: 1
A27: =VLOOKUP($R$11,Division3d,2,FALSE) -> 425 Dendermonde 1 | B27: =VLOOKUP($S$11,Division3d,2,FALSE) -> 166 TSM Mechelen 2 | C27: 2.5 | D27: - | E27: 3.5 | G27: =VLOOKUP($R$11,Division4a,2,FALSE) -> 121 Turnhout 1 | H27: =VLOOKUP($S$11,Division4a,2,FALSE) -> 166 TSM Mechelen 3 | I27: 2 | J27: - | K27: 2 | M27: =VLOOKUP($R$11,Division4b,2,FALSE) -> 601 CRELEL Liège 4 | N27: =VLOOKUP($S$11,Division4b,2,FALSE) -> 961 Braine Echecs 1 | O27: 1 | P27: - | Q27: 3
A28: =VLOOKUP($R$12,Division3d,2,FALSE) -> 109 Borgerhout 2 | B28: =VLOOKUP($S$12,Division3d,2,FALSE) -> 114 Mechelen 2 | C28: 4.5 | D28: - | E28: 1.5 | G28: =VLOOKUP($R$12,Division4a,2,FALSE) -> 194 ChessLooks Lier 1 | H28: =VLOOKUP($S$12,Division4a,2,FALSE) -> 114 Mechelen 3 | I28: 3 | J28: - | K28: 1 | M28: =VLOOKUP($R$12,Division4b,2,FALSE) -> 952 CEW 3 | N28: =VLOOKUP($S$12,Division4b,2,FALSE) -> 607 Roch. Eupen-Kelmis 4 | O28: 1.5 | P28: - | Q28: 2.5
A29: =VLOOKUP($R$13,Division3d,2,FALSE) -> 101 KASK 1 | B29: =VLOOKUP($S$13,Division3d,2,FALSE) -> 128 Beveren 1 | C29: 4 | D29: - | E29: 2 | G29: =VLOOKUP($R$13,Division4a,2,FALSE) -> 226 Europchess 3 | H29: =VLOOKUP($S$13,Division4a,2,FALSE) -> 278 Pantin 2 | I29: 3 | J29: - | K29: 1 | M29: =VLOOKUP($R$13,Division4b,2,FALSE) -> 226 Europchess 4 | N29: =VLOOKUP($S$13,Division4b,2,FALSE) -> 278 Pantin 3 | O29: 0 | P29: - | Q29: 4
A31: Afdeling/Division 4C | G31: Afdeling/Division 4D | M31: Afdeling/Division 4E
A32: =VLOOKUP($R$8,Division4c,2,FALSE) -> 712 Landen 1 | B32: =VLOOKUP($S$8,Division4c,2,FALSE) -> 618 Echiquier Mosan 2 | C32: 2 | D32: - | E32: 2 | G32: =VLOOKUP($R$8,Division4d,2,FALSE) -> 432 Wetteren 3 | H32: =VLOOKUP($S$8,Division4d,2,FALSE) -> 340 Izegem 1 | I32: 1.5 | J32: - | K32: 2.5 | M32: =VLOOKUP($R$8,Division4e,2,FALSE) -> 432 Wetteren 4 | N32: =VLOOKUP($S$8,Division4e,2,FALSE) -> 401 KGSRL 8 | O32: 3.5 | P32: - | Q32: 0.5
A33: =VLOOKUP($R$9,Division4c,2,FALSE) -> 604 KSK47-Eynatten 2 - FF | B33: =VLOOKUP($S$9,Division4c,2,FALSE) -> 622 Herve 1 | D33: - | G33: =VLOOKUP($R$9,Division4d,2,FALSE) -> 304 Tielt 1 | H33: =VLOOKUP($S$9,Division4d,2,FALSE) -> 422 MSV 1 | I33: 3 | J33: - | K33: 1 | M33: =VLOOKUP($R$9,Division4e,2,FALSE) -> 304 Tielt 2 | N33: =VLOOKUP($S$9,Division4e,2,FALSE) -> 402 Jean Jaurès Gent 2 | O33: 1.5 | P33: - | Q33: 2.5
A34: =VLOOKUP($R$10,Division4c,2,FALSE) -> 621 T.A.L. 3 | B34: =VLOOKUP($S$10,Division4c,2,FALSE) -> 901 Namur Echecs 4 | C34: 2.5 | D34: - | E34: 1.5 | G34: =VLOOKUP($R$10,Division4d,2,FALSE) -> 465 SK Artevelde 1 | H34: =VLOOKUP($S$10,Division4d,2,FALSE) -> 307 Bredene 1 | I34: 2 | J34: - | K34: 2 | M34: =VLOOKUP($R$10,Division4e,2,FALSE) -> 462 Zottegem 2 | N34: =VLOOKUP($S$10,Division4e,2,FALSE) -> 472 De Mercatel 2 | O34: 2.5 | P34: - | Q34: 1.5
A35: =VLOOKUP($R$11,Division4c,2,FALSE) -> 601 CRELEL Liège 5 | B35: =VLOOKUP($S$11,Division4c,2,FALSE) -> 607 Roch. Eupen-Kelmis 6 | C35: 1.5 | D35: - | E35: 2.5 | G35: =VLOOKUP($R$11,Division4d,2,FALSE) -> 303 KBSK Brugge 4 | H35: =VLOOKUP($S$11,Division4d,2,FALSE) -> 302 KISK Ieper 2 | I35: 1.5 | J35: - | K35: 2.5 | M35: =VLOOKUP($R$11,Division4e,2,FALSE) -> 541 Leuze-En-Hainaut 2 | N35: =VLOOKUP($S$11,Division4e,2,FALSE) -> 438 Deinze 1 | O35: 2.5 | P35: - | Q35: 1.5
A36: =VLOOKUP($R$12,Division4c,2,FALSE) -> 601 CRELEL Liège 6 | B36: =VLOOKUP($S$12,Division4c,2,FALSE) -> 607 Roch. Eupen-Kelmis 5 | C36: 2.5 | D36: - | E36: 1.5 | G36: =VLOOKUP($R$12,Division4d,2,FALSE) -> 475 Rapid Aalter 1 | H36: =VLOOKUP($S$12,Division4d,2,FALSE) -> 313 KWSLE 2 | I36: 1.5 | J36: - | K36: 2.5 | M36: =VLOOKUP($R$12,Division4e,2,FALSE) -> 418 VPTD 1 | N36: =VLOOKUP($S$12,Division4e,2,FALSE) -> 417 Pion-Aalst 2 | O36: 3 | P36: - | Q36: 1
A37: =VLOOKUP($R$13,Division4c,2,FALSE) -> 627 Wirtzfeld 3 | B37: =VLOOKUP($S$13,Division4c,2,FALSE) -> 810 Marche-en-Famenne 1 | C37: 0 | D37: - | E37: 4 | G37: =VLOOKUP($R$13,Division4d,2,FALSE) -> 430 Landegem 1 | H37: =VLOOKUP($S$13,Division4d,2,FALSE) -> 301 KOSK Oostende 3 | I37: 2 | J37: - | K37: 2 | M37: =VLOOKUP($R$13,Division4e,2,FALSE) -> 430 Landegem 2 | N37: =VLOOKUP($S$13,Division4e,2,FALSE) -> 460 Oudenaarde 1 | O37: 1 | P37: - | Q37: 3
A39: Afdeling/Division 4F | G39: Afdeling/Division 4G | M39: Afdeling/Division 4H
A40: =VLOOKUP($R$8,Division4f,2,FALSE) -> 548 Caissa Europe 2 | B40: =VLOOKUP($S$8,Division4f,2,FALSE) -> 233 DZD Halle 1 | C40: 3 | D40: - | E40: 1 | G40: =VLOOKUP($R$8,Division4g,2,FALSE) -> 143 Boey Temse 2 | H40: =VLOOKUP($S$8,Division4g,2,FALSE) -> 471 Wachtebeke 3 | I40: 2 | J40: - | K40: 2 | M40: =VLOOKUP($R$8,Division4h,2,FALSE) -> 230 Leuven Centraal 4 | N40: =VLOOKUP($S$8,Division4h,2,FALSE) -> 714 Pelt 1 | O40: 3 | P40: - | Q40: 1
A41: =VLOOKUP($R$9,Division4f,2,FALSE) -> 547 Ren. Binchois 1 | B41: =VLOOKUP($S$9,Division4f,2,FALSE) -> 207 2 Fous Diogène 3 | C41: 4 | D41: - | E41: 0 | G41: =VLOOKUP($R$9,Division4g,2,FALSE) -> 130 Hoboken 1 | H41: =VLOOKUP($S$9,Division4g,2,FALSE) -> 422 MSV 2 | I41: 4 | J41: - | K41: 0 | M41: =VLOOKUP($R$9,Division4h,2,FALSE) -> 130 Hoboken 2 | N41: =VLOOKUP($S$9,Division4h,2,FALSE) -> 176 Westerlo 2 | O41: 4 | P41: - | Q41: 0
A42: =VLOOKUP($R$10,Division4f,2,FALSE) -> 525 CELB Anderlues 2 | B42: =VLOOKUP($S$10,Division4f,2,FALSE) -> 909 Philippeville 2 | C42: 4 | D42: - | E42: 0 | G42: =VLOOKUP($R$10,Division4g,2,FALSE) -> 465 SK Artevelde 2 | H42: =VLOOKUP($S$10,Division4g,2,FALSE) -> 132 SK Oude God 1 | I42: 2 | J42: - | K42: 2 | M42: =VLOOKUP($R$10,Division4h,2,FALSE) -> 121 Turnhout 3 | N42: =VLOOKUP($S$10,Division4h,2,FALSE) -> 132 SK Oude God 2 | O42: 0.5 | P42: - | Q42: 3.5
A43: =VLOOKUP($R$11,Division4f,2,FALSE) -> 541 Leuze-En-Hainaut 3 | B43: =VLOOKUP($S$11,Division4f,2,FALSE) -> 501 CREC Charleroi 2 | C43: 2 | D43: - | E43: 2 | G43: =VLOOKUP($R$11,Division4g,2,FALSE) -> 121 Turnhout 2 | H43: =VLOOKUP($S$11,Division4g,2,FALSE) -> 436 LSV-Chesspirant 4 | I43: 2 | J43: - | K43: 2 | M43: =VLOOKUP($R$11,Division4h,2,FALSE) -> 727 Midden-Limburg 2 | N43: =VLOOKUP($S$11,Division4h,2,FALSE) -> 124 Deurne 3 | O43: 2 | P43: - | Q43: 2
A44: =VLOOKUP($R$12,Division4f,2,FALSE) -> 228 Dworp 2 | B44: =VLOOKUP($S$12,Division4f,2,FALSE) -> 902 CES 1 | C44: 0.5 | D44: - | E44: 3.5 | G44: =VLOOKUP($R$12,Division4g,2,FALSE) -> 436 LSV-Chesspirant 3 | H44: =VLOOKUP($S$12,Division4g,2,FALSE) -> 124 Deurne 2 | I44: 1 | J44: - | K44: 3 | M44: =VLOOKUP($R$12,Division4h,2,FALSE) -> 194 ChessLooks Lier 2 | N44: =VLOOKUP($S$12,Division4h,2,FALSE) -> 114 Mechelen 4 | O44: 1 | P44: - | Q44: 3
A45: =VLOOKUP($R$13,Division4f,2,FALSE) -> 551 HCC Jurbise 1 | B45: =VLOOKUP($S$13,Division4f,2,FALSE) -> 278 Pantin 4 | C45: 2 | D45: - | E45: 2 | G45: =VLOOKUP($R$13,Division4g,2,FALSE) -> 430 Landegem 3 | H45: =VLOOKUP($S$13,Division4g,2,FALSE) -> 401 KGSRL 9 | I45: 2.5 | J45: - | K45: 1.5 | M45: =VLOOKUP($R$13,Division4h,2,FALSE) -> 101 KASK 2 | N45: =VLOOKUP($S$13,Division4h,2,FALSE) -> 135 Geel 2 | O45: 0.5 | P45: - | Q45: 3.5
A47: Afdeling/Division 5A | G47: Afdeling/Division 5B | M47: Afdeling/Division 5C
A48: =VLOOKUP($R$8,Division5a,2,FALSE) -> 712 Landen 2 | B48: =VLOOKUP($S$8,Division5a,2,FALSE) -> 618 Echiquier Mosan 3 | C48: 2 | D48: - | E48: 2 | G48: =VLOOKUP($R$8,Division5b,2,FALSE) -> 209 The Belgian CC 3 | H48: =VLOOKUP($S$8,Division5b,2,FALSE) -> 233 DZD Halle 2 | I48: 3 | J48: - | K48: 1 | M48: =VLOOKUP($R$8,Division5c,2,FALSE) -> 549 Saint-Ghislain 1 | N48: =VLOOKUP($S$8,Division5c,2,FALSE) -> 511 EDC 2 | O48: 1.5 | P48: - | Q48: 2.5
A49: =VLOOKUP($R$9,Division5a,2,FALSE) -> 604 KSK47-Eynatten 3 | B49: =VLOOKUP($S$9,Division5a,2,FALSE) -> 000 BYE 5A | D49: - | G49: =VLOOKUP($R$9,Division5b,2,FALSE) -> 244 Brussels 3 | H49: =VLOOKUP($S$9,Division5b,2,FALSE) -> 207 2 Fous Diogène 4 | I49: 3 | J49: - | K49: 1 | M49: =VLOOKUP($R$9,Division5c,2,FALSE) -> 000 BYE 5C | N49: =VLOOKUP($S$9,Division5c,2,FALSE) -> 548 Caissa Europe 3 | P49: -
A50: =VLOOKUP($R$10,Division5a,2,FALSE) -> 609 Anthisnes 1 | B50: =VLOOKUP($S$10,Division5a,2,FALSE) -> 901 Namur Echecs 5 - FF | D50: - | G50: =VLOOKUP($R$10,Division5b,2,FALSE) -> 230 Leuven Centraal 5 | H50: =VLOOKUP($S$10,Division5b,2,FALSE) -> 952 CEW 4 | I50: 4 | J50: - | K50: 0 | M50: =VLOOKUP($R$10,Division5c,2,FALSE) -> 525 CELB Anderlues 3 | N50: =VLOOKUP($S$10,Division5c,2,FALSE) -> 901 Namur Echecs 6 | O50: 4 | P50: - | Q50: 0
A51: =VLOOKUP($R$11,Division5a,2,FALSE) -> 601 CRELEL Liège 7 | B51: =VLOOKUP($S$11,Division5a,2,FALSE) -> 733 St.-Truiden 1 | C51: 1 | D51: - | E51: 3 | G51: =VLOOKUP($R$11,Division5b,2,FALSE) -> 514 MCC 2 | H51: =VLOOKUP($S$11,Division5b,2,FALSE) -> 501 CREC Charleroi 3 | I51: 1 | J51: - | K51: 3 | M51: =VLOOKUP($R$11,Division5c,2,FALSE) -> 514 MCC 3 | N51: =VLOOKUP($S$11,Division5c,2,FALSE) -> 501 CREC Charleroi 4 | O51: 2 | P51: - | Q51: 2
A52: =VLOOKUP($R$12,Division5a,2,FALSE) -> 601 CRELEL Liège 8 | B52: =VLOOKUP($S$12,Division5a,2,FALSE) -> 607 Roch. Eupen-Kelmis 7 | C52: 0.5 | D52: - | E52: 3.5 | G52: =VLOOKUP($R$12,Division5b,2,FALSE) -> 204 Excelsior 1 | H52: =VLOOKUP($S$12,Division5b,2,FALSE) -> 961 Braine Echecs 2 | I52: 2 | J52: - | K52: 2 | M52: =VLOOKUP($R$12,Division5c,2,FALSE) -> 953 Nivelles 1 | N52: =VLOOKUP($S$12,Division5c,2,FALSE) -> 961 Braine Echecs 3 | O52: 2.5 | P52: - | Q52: 1.5
A53: =VLOOKUP($R$13,Division5a,2,FALSE) -> 703 Eisden/MSK-Dilsen 2 | B53: =VLOOKUP($S$13,Division5a,2,FALSE) -> 810 Marche-en-Famenne 2 | C53: 0.5 | D53: - | E53: 3.5 | G53: =VLOOKUP($R$13,Division5b,2,FALSE) -> 226 Europchess 5 | H53: =VLOOKUP($S$13,Division5b,2,FALSE) -> 278 Pantin 5 | I53: 1 | J53: - | K53: 3 | M53: =VLOOKUP($R$13,Division5c,2,FALSE) -> 551 HCC Jurbise 2 | N53: =VLOOKUP($S$13,Division5c,2,FALSE) -> 902 CES 2 | O53: 1.5 | P53: - | Q53: 2.5
A55: Afdeling/Division 5D | G55: Afdeling/Division 5E | M55: Afdeling/Division 5F
A56: =VLOOKUP($R$8,Division5d,2,FALSE) -> 000 BYE 5D | B56: =VLOOKUP($S$8,Division5d,2,FALSE) -> 619 Welkenraedt 1 | D56: - | G56: =VLOOKUP($R$8,Division5e,2,FALSE) -> 143 Boey Temse 3 | H56: =VLOOKUP($S$8,Division5e,2,FALSE) -> 401 KGSRL 10 | I56: 1 | J56: - | K56: 3 | M56: =VLOOKUP($R$8,Division5f,2,FALSE) -> 432 Wetteren 5 | N56: =VLOOKUP($S$8,Division5f,2,FALSE) -> 340 Izegem 2 | O56: 2.5 | P56: - | Q56: 1.5
A57: =VLOOKUP($R$9,Division5d,2,FALSE) -> 604 KSK47-Eynatten 4 | B57: =VLOOKUP($S$9,Division5d,2,FALSE) -> 623 Sankt Vith 1 | C57: 2 | D57: - | E57: 2 | G57: =VLOOKUP($R$9,Division5e,2,FALSE) -> 130 Hoboken 3 | H57: =VLOOKUP($S$9,Division5e,2,FALSE) -> 174 Brasschaat 5 | I57: 1.5 | J57: - | K57: 2.5 | M57: =VLOOKUP($R$9,Division5f,2,FALSE) -> 401 KGSRL 11 | N57: =VLOOKUP($S$9,Division5f,2,FALSE) -> 521 Tournai 2 | O57: 0 | P57: - | Q57: 4
A58: =VLOOKUP($R$10,Division5d,2,FALSE) -> 621 T.A.L. 4 | B58: =VLOOKUP($S$10,Division5d,2,FALSE) -> 703 Eisden/MSK-Dilsen 4 | C58: 0 | D58: - | E58: 4 | G58: =VLOOKUP($R$10,Division5e,2,FALSE) -> 410 St.-Niklaas 2 | H58: =VLOOKUP($S$10,Division5e,2,FALSE) -> 132 SK Oude God 3 | I58: 2 | J58: - | K58: 2 | M58: =VLOOKUP($R$10,Division5f,2,FALSE) -> 462 Zottegem 3 | N58: =VLOOKUP($S$10,Division5f,2,FALSE) -> 000 BYE 5F | P58: -
A59: =VLOOKUP($R$11,Division5d,2,FALSE) -> 601 CRELEL Liège 9 | B59: =VLOOKUP($S$11,Division5d,2,FALSE) -> 609 Anthisnes 2 | C59: 3.5 | D59: - | E59: 0.5 | G59: =VLOOKUP($R$11,Division5e,2,FALSE) -> 190 Burcht 1 | H59: =VLOOKUP($S$11,Division5e,2,FALSE) -> 436 LSV-Chesspirant 5 | I59: 1 | J59: - | K59: 3 | M59: =VLOOKUP($R$11,Division5f,2,FALSE) -> 541 Leuze-En-Hainaut 4 | N59: =VLOOKUP($S$11,Division5f,2,FALSE) -> 438 Deinze 2 | O59: 1 | P59: - | Q59: 3
A60: =VLOOKUP($R$12,Division5d,2,FALSE) -> 601 CRELEL Liège 10 | B60: =VLOOKUP($S$12,Division5d,2,FALSE) -> 607 Roch. Eupen-Kelmis 8 | C60: 4 | D60: - | E60: 0 | G60: =VLOOKUP($R$12,Division5e,2,FALSE) -> 109 Borgerhout 3 | H60: =VLOOKUP($S$12,Division5e,2,FALSE) -> 114 Mechelen 5 | I60: 0.5 | J60: - | K60: 3.5 | M60: =VLOOKUP($R$12,Division5f,2,FALSE) -> 436 LSV-Chesspirant 6 | N60: =VLOOKUP($S$12,Division5f,2,FALSE) -> 313 KWSLE 3 | O60: 2 | P60: - | Q60: 2
A61: =VLOOKUP($R$13,Division5d,2,FALSE) -> 703 Eisden/MSK-Dilsen 3 | B61: =VLOOKUP($S$13,Division5d,2,FALSE) -> 627 Wirtzfeld 4 | C61: 4 | D61: - | E61: 0 | G61: =VLOOKUP($R$13,Division5e,2,FALSE) -> 101 KASK 3 | H61: =VLOOKUP($S$13,Division5e,2,FALSE) -> 128 Beveren 2 | I61: 0.5 | J61: - | K61: 3.5 | M61: =VLOOKUP($R$13,Division5f,2,FALSE) -> 309 KRST 2 | N61: =VLOOKUP($S$13,Division5f,2,FALSE) -> 460 Oudenaarde 2 | O61: 2.5 | P61: - | Q61: 1.5
A63: Afdeling/Division 5G | G63: Afdeling/Division 5H | M63: Afdeling/Division 5I
A64: =VLOOKUP($R$8,Division5g,2,FALSE) -> 432 Wetteren 6 | B64: =VLOOKUP($S$8,Division5g,2,FALSE) -> 471 Wachtebeke 4 | C64: 1.5 | D64: - | E64: 2.5 | G64: =VLOOKUP($R$8,Division5h,2,FALSE) -> 000 BYE 5H | H64: =VLOOKUP($S$8,Division5h,2,FALSE) -> 340 Izegem 3 | J64: - | M64: =VLOOKUP($R$8,Division5i,2,FALSE) -> 239 Boitsfort 4 | N64: =VLOOKUP($S$8,Division5i,2,FALSE) -> 209 The Belgian CC 4 | O64: 2.5 | P64: - | Q64: 1.5
A65: =VLOOKUP($R$9,Division5g,2,FALSE) -> 401 KGSRL 13 | B65: =VLOOKUP($S$9,Division5g,2,FALSE) -> 422 MSV 3 | C65: 1.5 | D65: - | E65: 2.5 | G65: =VLOOKUP($R$9,Division5h,2,FALSE) -> 305 Kortrijk 1 | H65: =VLOOKUP($S$9,Division5h,2,FALSE) -> 351 Knokke Schaak 1 | I65: 2.5 | J65: - | K65: 1.5 | M65: =VLOOKUP($R$9,Division5i,2,FALSE) -> 244 Brussels 4 | N65: =VLOOKUP($S$9,Division5i,2,FALSE) -> 207 2 Fous Diogène 5 | O65: 3 | P65: - | Q65: 1
A66: =VLOOKUP($R$10,Division5g,2,FALSE) -> 465 SK Artevelde 3 | B66: =VLOOKUP($S$10,Division5g,2,FALSE) -> 472 De Mercatel 3 | C66: 0.5 | D66: - | E66: 3.5 | G66: =VLOOKUP($R$10,Division5h,2,FALSE) -> 322 Veurne 1 | H66: =VLOOKUP($S$10,Division5h,2,FALSE) -> 307 Bredene 2 | I66: 1.5 | J66: - | K66: 2.5 | M66: =VLOOKUP($R$10,Division5i,2,FALSE) -> 230 Leuven Centraal 6 | N66: =VLOOKUP($S$10,Division5i,2,FALSE) -> 229 Woluwe 2 | O66: 2.5 | P66: - | Q66: 1.5
A67: =VLOOKUP($R$11,Division5g,2,FALSE) -> 303 KBSK Brugge 5 | B67: =VLOOKUP($S$11,Division5g,2,FALSE) -> 401 KGSRL 12 | C67: 3.5 | D67: - | E67: 0.5 | G67: =VLOOKUP($R$11,Division5h,2,FALSE) -> 303 KBSK Brugge 6 | H67: =VLOOKUP($S$11,Division5h,2,FALSE) -> 302 KISK Ieper 3 | I67: 2.5 | J67: - | K67: 1.5 | M67: =VLOOKUP($R$11,Division5i,2,FALSE) -> 401 KGSRL 15 | N67: =VLOOKUP($S$11,Division5i,2,FALSE) -> 000 BYE 5I | P67: -
A68: =VLOOKUP($R$12,Division5g,2,FALSE) -> 436 LSV-Chesspirant 7 | B68: =VLOOKUP($S$12,Division5g,2,FALSE) -> 313 KWSLE 4 | C68: 2.5 | D68: - | E68: 1.5 | G68: =VLOOKUP($R$12,Division5h,2,FALSE) -> 475 Rapid Aalter 2 | H68: =VLOOKUP($S$12,Division5h,2,FALSE) -> 401 KGSRL 14 | I68: 2 | J68: - | K68: 2 | M68: =VLOOKUP($R$12,Division5i,2,FALSE) -> 204 Excelsior 2 | N68: =VLOOKUP($S$12,Division5i,2,FALSE) -> 201 CREB Bruxelles 3 | O68: 1.5 | P68: - | Q68: 2.5
